Workbook

Sheet Readme
A1: Extrapolative Scaling Expression (ESE) Spreadsheet for Nb3Sn
A2: with Hybrid2 temperature and Exponential strain parameterizations
A4: General spreadsheet notes:
A6: 1 | B6: Yellow filled cells are values of scaling parameters for user input.
A7: 2 | B7: Red filled cells are for the desired output conditions of magnetic field, temperature, and strain.
A8: 3 | B8: Blue filled cells are drop down lists. Click on cell to display drop-down arrow and access list.
A9: 4 | B9: All other cells are protected (to prevent accidental overwriting only, password not needed).
A10: 5 | B10: The ESE spreadsheet is intended for extrapolating transport data, not sets of Ic(B,T,ɛ) magnetization data [because of the difference between magnetization and transport measurements, especially data for Bc2*(T); see Fig. 15b in Part 2 SUST reference below].
A11: 6 | B11: Any questions, feedback, comments -- please do not hesitate to contact Ian Pong (ipong@lbl.gov, 510-486-7866) or Jack Ekin (jackekin1@gmail.com)
A13: Home sheet:
A14: 7 | B14: The four core scaling parameters in cells E2:E6 are quite stable, but depend on the type of conductor (e.g., ITER vs. RRP). Default value suggestions are provided in the comment boxes, but users can supply their own values (also see core values listed for different conductor types in Appendix tables A1-A5 in Part 3 SUST reference below).
A15: 8 | B15: The axial strain invariants in rows 41 and 42 can be replaced with user-defined 3-D values for magnet design [see Eqs. (19) - (22) in Part 3].
A16: 9 | B16: To extrapolate a measured Ic [or Jc] single value, enter the four core parameters for that conductor (or use the suggested default values), plus a default value for Bc2*(0,0), and then adjust the prefactor constant C to match the measured value. The spreadsheet is then ready to calculate transport Ic(B,T,ɛ) at other fields, temperatures, and strains.
A17: 10 | B17: To extrapolate a measured Ic(B) [or Jc(B)] curve, enter the four core parameters for that conductor (or use the suggested default values), and then enter the data in the "Ic(B) Data Fitting" sheet. The results for C and Bc2*(0,0) can be automatically transferred to cells E14 and E15 on the Home sheet by use of the two blue drop-down lists (G14:15) on the Home sheet. The Home sheet is then ready to calculate transport Ic(B,T,ɛ) at other fields, temperatures, and strains.
A19: Ic(B) Data Fitting sheet:
A20: 11 | B20: Determines individual conductor scaling parameters [C and Bc2*(0,0)] using a Kramer-type fit of user-measured Ic(B) data (see also item #10 above). When fitting, make sure the four core parameters for that type of conductor are entered on the Home sheet in cells E2:E6.
A21: 12 | B21: Transfer the results automatically to Home sheet by use of the two blue drop-down lists (G14:15) on the Home sheet.
A22: 13 | B22: Self-field corrections for B are needed when evaluating magnet performance. Corrections for some common measurement mandrel geometries are given in the Self Field reference below.
A24: Load Line Plot sheet:
A25: 14 | B25: Makes a plot of a magnet load line with short sample curves to determine magnet short sample limits.
A26: 15 | B26: Short sample curves for this plot are calculated by user-entered values of the parameters C and Bc2*(0,0) for each wire (or cable). These two parameters can be determined from a single Ic(B) curve for each conductor with the Ic(B) Data Fitting sheet.
A29: References: Determination of the ESE relation and its application (hyperlinks in column A):
A30: Part 1: | B30: J. W. Ekin, “Unified scaling law for flux pinning in practical superconductors: I. Separability postulate, raw scaling data and parameterization at moderate strains,” invited topical review article, Supercond. Sci. Technol., vol. 23, Art. no. 083001, 2010.
A31: Part 2: | B31: J. W. Ekin, N. Cheggour, L. Goodrich, J. Splett, B. Bordini, and D. Richter, "Unified scaling law for flux pinning in practical superconductors: II. Parameter testing, scaling constants, and the Extrapolative Scaling Expression," invited topical review article, Supercond. Sci. Technol., vol. 29, no. 12, Art. no. 123002, 2016.
A32: Part 3: | B32: J. W. Ekin, N. Cheggour, L. Goodrich, and J. Splett, "Unified scaling law for flux pinning in practical superconductors: III. Minimum datasets, core parameters, and application of the Extrapolative Scaling Expression," invited topical review article, Supercond. Sci. Technol., vol. 30, no. 3, Art. No. 033005, 2017.
A33: Summary: | B33: J. W. Ekin, N. Cheggour, L. Goodrich, J. Splett, B. Bordini, D. Richter, and L. Bottura, "Extrapolative Scaling Expression: A fitting equation for extrapolating full IC(B,T,ε) data matrixes from limited data", Applied Superconductivity Conference 2016, IEEE Trans. Appl. Supercond., vol. 27, no. 4, Art. no. 8400607, June 2017.
A34: Exp. Model: | B34: B. Bordini, P. Alknes, L. Bottura, L. Rossi and D. Valentinis, "An exponential scaling law for the strain dependence of the Nb3Sn critical current density," Supercond. Sci. Technol., vol. 26, Art. no. 075014, 2013.
A35: Self Field: | B35: B. Bordini, 2010, CERN Technical Report 1105765. This finite-element element analysis gives self-field corrections for critical current measurements on ITER barrels.
B36: N. Cheggour, et al. 2017 ‘International benchmarking of a selection of strain-measurement facilities available in the USA, Europe, and Asia: First assessment at fixed temperature and magnetic field’, (to be published). This paper gives self-field corrections for measurements on different mandrel geometries in a number of laboratories.

Sheet Home
A1: Four core scaling parameters: | D1: Default | E1: User | F1: Fitted Value | G1: ESE choice
A2: Effective flux-pinning critical temperature | B2: TC*(0) [K] | D2: 16.7 | E2: 17 | G2: User | H2: =INDEX($D2:$F2,1,MATCH($G2,$D$1:$F$1,0)) -> 17
A3: Prefactor temperature parameter | B3: η | D3: 2.25 | E3: 2.25 | G3: User | H3: 2.25
A4: Prefactor strain parameter | B4: s | D4: 1.1 | E4: 1.1 | G4: User | H4: 1.1
A5: Longitudinal residual strain | B5: εl0 [%] | D5: -0.3 | E5: -0.3 | G5: User | H5: -0.3
A6: Strain sensitivity parameter | B6: C1 | D6: 0.76 | E6: 0.76 | G6: User | H6: 0.76
AC7: 0
A9: Values of p and q (preferably those used to determine the core parameters):
A10: Low field pinning-force shape parameter | B10: p | D10: 0.5 | E10: 0.5 | G10: User | H10: =INDEX($D10:$F10,1,MATCH($G10,$D$1:$F$1,0)) -> 0.5
A11: High field pinning-force shape parameter | B11: q | D11: 2 | E11: 2 | G11: User | H11: 2
A13: Individual wire scaling parameters:
A14: Prefactor constant | B14: C [AT] | D14: 50500 | E14: 58875 | F14: ='Ic(B) Data Fitting'!G7 -> 63037.68134 | G14: User | H14: =INDEX($D14:$F14,1,MATCH($G14,$D$1:$F$1,0)) -> 58875
A15: Maximum effective upper critical field | B15: BC2*(0,0) [T] | D15: 29.1 | E15: 29.34456972 | F15: ='Ic(B) Data Fitting'!G8 -> 29.85404726 | G15: User | H15: 29.34456972
A17: Calculation of IC(B,T,ɛ) at the following field, temperature, and strain
A18: Input | B18: Magnetic field | C18: B [T] | E18: 12 | F18: T
B19: Temperature | C19: T [K] | E19: 4.2 | F19: K
B20: Intrinsic strain | C20: ɛ0 [%] | E20: -0.1 | F20: %
B21: Irreversible strain limit | C21: ɛirr [%] | E21: 0.25
A22: Output | B22: Calculated critical current | C22: IC(B,T,ɛ) = [A] | E22: =IF(E18=0,"error: B=0",IFERROR((1/E18)*Home!$H$14*E31*E32*E33,"0")) -> 664.4658807
A24: Calculation of Ic(B) curve at the following temperature, and strain
A25: Input | B25: Temperature | D25: T [K] | E25: =E19 -> 4.2 | F25: K
B26: Intrinsic strain | D26: ɛ0 [%] | E26: =E20 -> -0.1 | F26: %
A28: ESE separable parts:
A29: IC(B,T,ɛ) = B-1 C g(ε) h(t) f(b)
A30: Prefactor constant | B30: C [AT] | E30: =Home!$H$14 -> 58875
A31: Prefactor strain part | B31: g(ε) = bC2(ε) s | E31: =$E$39^Home!$H$4 -> 0.9424200166
A32: Prefactor temperature part (Hybrid2) | B32: h(t) = (1 – t1.5)η/2 (1 – t2)η/2 | E32: =(1-$E$38^1.5)^(Home!$H$3/2)*(1-$E$38^2)^($H$3/2) -> 0.7983227332
A33: Pinning force shape function | B33: f(b) = bp(1–b)q | E33: =(E37^Home!$H$10)*(1-E37)^Home!$H$11 -> 0.1800114015
A34: where:
A35: Reduced effective upper critical field | B35: BC2*(T,ε)/BC2*(0,0) = bC2(t) bC2(ε) = (1 – t 1.5) bC2(ε) | E35: =(1-$E$38^1.5)*$E$39 -> 0.8279800342
A36: Reduced effective critical temperature | B36: TC*(ε)/ TC*(0) = [bC2(ε)]1/3 | E36: =$E$39^(1/3) -> 0.9821895374
A37: Reduced magnetic field | B37: b = B/BC2*(T,ε) | E37: =IF(E38="error: T > Tc","error: T > Tc", IF($E$18/($E$35*Home!$H$15)>1,"error: B > Bc2",$E$18/($E$35*Home!$H$15))) -> 0.4938938699
A38: Reduced temperature | B38: t = T/TC*(ε) | E38: =IF($E$19/($E$36*Home!$H$2)>1,"error: T > Tc", $E$19/($E$36*Home!$H$2)) -> 0.2515388468
A39: Critical field strain part (Exponential) | B39: bC2(ε) = [Eq. (19) in Bordini et al.] | E39: =0.5*(EXP(-$H$6*($H$42+3)/($H$42+1)*$H$42)+EXP(-$H$6*($H$41^2+3)/($H$41^2+1)*$H$41^2)) -> 0.9475146001 | Q39: B Start value [T] | R39: ='I(B)'!B7 -> 8 | T39: T Start value [K] | U39: ='I(T)'!B7 -> 1 | W39: ɛ Start value [%] | X39: ='I(eps)'!AB7 -> -1.5
A40: where: | Q40: Step size | R40: ='I(B)'!B8 -> 0.2 | T40: Step size | U40: ='I(T)'!B8 -> 1 | W40: Step size | X40: ='I(eps)'!AB8 -> 0.1
A41: First strain invariant | B41: I1 axial = (1-2v)ε0 + 0.2 [Eq. (22a) in Part 3] I1 3D = ε1 + ε2 + ε3 [1,2,3 are principal axes] | C41: ="Default (axial) value = "&TEXT(D41,"0.0000") -> Default (axial) value = 0.1720 | D41: =(1-2*$H$43)*($E$20-$H$5)+$H$5+2*(-$H$43*$H$5+0.1) -> 0.172 | E41: 0.144 | F41: Default | H41: =INDEX($D41:$E41,1,MATCH($F41,$D$1:$E$1,0)) -> 0.172 | Q41: ='I(B)'!$H$2 -> Ic [A] vs. B [T] at 4.2 K, -0.1% Intrinsic strain | T41: ='I(T)'!$J$2 -> Ic [A] vs. T [K] at 12 T, -0.1% Intrinsic strain | W41: ='I(eps)'!$L$2 -> Ic [A] vs. ε0 [%] at 4.2 K, 12 T
A42: Second deviatoric strain invariant | B42: J2 axial = 1/3 [(1+v)ε0 - 0.1]2 [Eq. (22b) in Part 3] J2 3D = 1/6 [(ε1-ε2)2 + (ε2-ε3)2 + (ε3-ε1)2] | C42: ="Default (axial) value = "&TEXT(D42,"0.0000") -> Default (axial) value = 0.0186 | D42: =1/3*($H$5-(-$H$43*$H$5+0.1)+(1+$H$43)*($E$20-$H$5))^2 -> 0.01856533333 | E42: 0.0461 | F42: Default | H42: =INDEX($D42:$E42,1,MATCH($F42,$D$1:$E$1,0)) -> 0.01856533333 | Q42: B | R42: Ic | T42: T | U42: Ic | W42: ɛ | X42: Ic
A43: Effective Poisson's ratio | B43: ν | D43: 0.36 | E43: 0.36 | G43: User | H43: =INDEX($D43:$F43,1,MATCH($G43,$D$1:$F$1,0)) -> 0.36 | Q43: =IF(R43="","",'I(B)'!B7) -> 8 | R43: =IFERROR(INDEX('I(B)'!$F$2:$F$301,'I(B)'!$C$7+'I(B)'!$C$8*(ROW()-ROW(Home!$R$43))),"") -> 1429.355285 | T43: =IF(U43="","",'I(T)'!B7) -> 1 | U43: =IFERROR(INDEX('I(T)'!$I$2:$I$200,'I(T)'!$C$7+'I(T)'!$C$8*(ROW()-ROW(Home!$U$43))),"") -> 946.7342494 | W43: ='I(eps)'!AB7 -> -1.5 | X43: =IFERROR(INDEX('I(eps)'!$I$2:$I$2502,'I(eps)'!$AC$7+1+'I(eps)'!$AC$8*(ROW()-ROW(Home!$X$43))),"") -> 2.100302917
A44: Intrinsic axial applied strain definition | B44: ɛ0 ≡ Applied axial strain εa + Residual axial strain εl0 | Q44: =IF(R44="","",'I(B)'!$B$7+'I(B)'!$C$8*(ROW(Q44)-ROW($Q$43))*0.1) -> 8.2 | R44: =IFERROR(INDEX('I(B)'!$F$2:$F$301,'I(B)'!$C$7+'I(B)'!$C$8*(ROW()-ROW(Home!$R$43))),"") -> 1377.376374 | T44: =IF(U44="","",'I(T)'!$B$7+'I(T)'!$C$8*(ROW(T44)-ROW($T$43))*0.1) -> 2 | U44: =IFERROR(INDEX('I(T)'!$I$2:$I$200,'I(T)'!$C$7+'I(T)'!$C$8*(ROW()-ROW(Home!$U$43))),"") -> 879.636507 | W44: =IF(AND(X44="",OR(ISNUMBER(X43),W43="",MAX($X$43:$X$2542)=0)),"",'I(eps)'!$AB$7+'I(eps)'!$AC$8*(ROW(W44)-ROW($W$43))*0.001) -> -1.4 | X44: =IFERROR(INDEX('I(eps)'!$I$2:$I$2502,'I(eps)'!$AC$7+1+'I(eps)'!$AC$8*(ROW()-ROW(Home!$X$43))),"") -> 12.16031285
Q45: =IF(R45="","",'I(B)'!$B$7+'I(B)'!$C$8*(ROW(Q45)-ROW($Q$43))*0.1) -> 8.4 | R45: =IFERROR(INDEX('I(B)'!$F$2:$F$301,'I(B)'!$C$7+'I(B)'!$C$8*(ROW()-ROW(Home!$R$43))),"") -> 1327.27276 | T45: =IF(U45="","",'I(T)'!$B$7+'I(T)'!$C$8*(ROW(T45)-ROW($T$43))*0.1) -> 3 | U45: =IFERROR(INDEX('I(T)'!$I$2:$I$200,'I(T)'!$C$7+'I(T)'!$C$8*(ROW()-ROW(Home!$U$43))),"") -> 791.0071364 | W45: =IF(AND(X45="",OR(ISNUMBER(X44),W44="",MAX($X$43:$X$2542)=0)),"",'I(eps)'!$AB$7+'I(eps)'!$AC$8*(ROW(W45)-ROW($W$43))*0.001) -> -1.3 | X45: =IFERROR(INDEX('I(eps)'!$I$2:$I$2502,'I(eps)'!$AC$7+1+'I(eps)'!$AC$8*(ROW()-ROW(Home!$X$43))),"") -> 30.09387254
Q46: =IF(R46="","",'I(B)'!$B$7+'I(B)'!$C$8*(ROW(Q46)-ROW($Q$43))*0.1) -> 8.6 | R46: =IFERROR(INDEX('I(B)'!$F$2:$F$301,'I(B)'!$C$7+'I(B)'!$C$8*(ROW()-ROW(Home!$R$43))),"") -> 1278.949423 | T46: =IF(U46="","",'I(T)'!$B$7+'I(T)'!$C$8*(ROW(T46)-ROW($T$43))*0.1) -> 4 | U46: =IFERROR(INDEX('I(T)'!$I$2:$I$200,'I(T)'!$C$7+'I(T)'!$C$8*(ROW()-ROW(Home!$U$43))),"") -> 686.7358846 | W46: =IF(AND(X46="",OR(ISNUMBER(X45),W45="",MAX($X$43:$X$2542)=0)),"",'I(eps)'!$AB$7+'I(eps)'!$AC$8*(ROW(W46)-ROW($W$43))*0.001) -> -1.2 | X46: =IFERROR(INDEX('I(eps)'!$I$2:$I$2502,'I(eps)'!$AC$7+1+'I(eps)'!$AC$8*(ROW()-ROW(Home!$X$43))),"") -> 55.59058511
Q47: =IF(R47="","",'I(B)'!$B$7+'I(B)'!$C$8*(ROW(Q47)-ROW($Q$43))*0.1) -> 8.8 | R47: =IFERROR(INDEX('I(B)'!$F$2:$F$301,'I(B)'!$C$7+'I(B)'!$C$8*(ROW()-ROW(Home!$R$43))),"") -> 1232.318613 | T47: =IF(U47="","",'I(T)'!$B$7+'I(T)'!$C$8*(ROW(T47)-ROW($T$43))*0.1) -> 5 | U47: =IFERROR(INDEX('I(T)'!$I$2:$I$200,'I(T)'!$C$7+'I(T)'!$C$8*(ROW()-ROW(Home!$U$43))),"") -> 572.0533825 | W47: =IF(AND(X47="",OR(ISNUMBER(X46),W46="",MAX($X$43:$X$2542)=0)),"",'I(eps)'!$AB$7+'I(eps)'!$AC$8*(ROW(W47)-ROW($W$43))*0.001) -> -1.1 | X47: =IFERROR(INDEX('I(eps)'!$I$2:$I$2502,'I(eps)'!$AC$7+1+'I(eps)'!$AC$8*(ROW()-ROW(Home!$X$43))),"") -> 88.5115381
Q48: =IF(R48="","",'I(B)'!$B$7+'I(B)'!$C$8*(ROW(Q48)-ROW($Q$43))*0.1) -> 9 | R48: =IFERROR(INDEX('I(B)'!$F$2:$F$301,'I(B)'!$C$7+'I(B)'!$C$8*(ROW()-ROW(Home!$R$43))),"") -> 1187.299131 | T48: =IF(U48="","",'I(T)'!$B$7+'I(T)'!$C$8*(ROW(T48)-ROW($T$43))*0.1) -> 6 | U48: =IFERROR(INDEX('I(T)'!$I$2:$I$200,'I(T)'!$C$7+'I(T)'!$C$8*(ROW()-ROW(Home!$U$43))),"") -> 452.2795958 | W48: =IF(AND(X48="",OR(ISNUMBER(X47),W47="",MAX($X$43:$X$2542)=0)),"",'I(eps)'!$AB$7+'I(eps)'!$AC$8*(ROW(W48)-ROW($W$43))*0.001) -> -1 | X48: =IFERROR(INDEX('I(eps)'!$I$2:$I$2502,'I(eps)'!$AC$7+1+'I(eps)'!$AC$8*(ROW()-ROW(Home!$X$43))),"") -> 128.8503733
Q49: =IF(R49="","",'I(B)'!$B$7+'I(B)'!$C$8*(ROW(Q49)-ROW($Q$43))*0.1) -> 9.2 | R49: =IFERROR(INDEX('I(B)'!$F$2:$F$301,'I(B)'!$C$7+'I(B)'!$C$8*(ROW()-ROW(Home!$R$43))),"") -> 1143.815705 | T49: =IF(U49="","",'I(T)'!$B$7+'I(T)'!$C$8*(ROW(T49)-ROW($T$43))*0.1) -> 7 | U49: =IFERROR(INDEX('I(T)'!$I$2:$I$200,'I(T)'!$C$7+'I(T)'!$C$8*(ROW()-ROW(Home!$U$43))),"") -> 333.1414221 | W49: =IF(AND(X49="",OR(ISNUMBER(X48),W48="",MAX($X$43:$X$2542)=0)),"",'I(eps)'!$AB$7+'I(eps)'!$AC$8*(ROW(W49)-ROW($W$43))*0.001) -> -0.9 | X49: =IFERROR(INDEX('I(eps)'!$I$2:$I$2502,'I(eps)'!$AC$7+1+'I(eps)'!$AC$8*(ROW()-ROW(Home!$X$43))),"") -> 176.6483431
Q50: =IF(R50="","",'I(B)'!$B$7+'I(B)'!$C$8*(ROW(Q50)-ROW($Q$43))*0.1) -> 9.4 | R50: =IFERROR(INDEX('I(B)'!$F$2:$F$301,'I(B)'!$C$7+'I(B)'!$C$8*(ROW()-ROW(Home!$R$43))),"") -> 1101.798431 | T50: =IF(U50="","",'I(T)'!$B$7+'I(T)'!$C$8*(ROW(T50)-ROW($T$43))*0.1) -> 8 | U50: =IFERROR(INDEX('I(T)'!$I$2:$I$200,'I(T)'!$C$7+'I(T)'!$C$8*(ROW()-ROW(Home!$U$43))),"") -> 220.9962033 | W50: =IF(AND(X50="",OR(ISNUMBER(X49),W49="",MAX($X$43:$X$2542)=0)),"",'I(eps)'!$AB$7+'I(eps)'!$AC$8*(ROW(W50)-ROW($W$43))*0.001) -> -0.8 | X50: =IFERROR(INDEX('I(eps)'!$I$2:$I$2502,'I(eps)'!$AC$7+1+'I(eps)'!$AC$8*(ROW()-ROW(Home!$X$43))),"") -> 231.8406322
Q51: =IF(R51="","",'I(B)'!$B$7+'I(B)'!$C$8*(ROW(Q51)-ROW($Q$43))*0.1) -> 9.6 | R51: =IFERROR(INDEX('I(B)'!$F$2:$F$301,'I(B)'!$C$7+'I(B)'!$C$8*(ROW()-ROW(Home!$R$43))),"") -> 1061.182279 | T51: =IF(U51="","",'I(T)'!$B$7+'I(T)'!$C$8*(ROW(T51)-ROW($T$43))*0.1) -> 9 | U51: =IFERROR(INDEX('I(T)'!$I$2:$I$200,'I(T)'!$C$7+'I(T)'!$C$8*(ROW()-ROW(Home!$U$43))),"") -> 123.06717 | W51: =IF(AND(X51="",OR(ISNUMBER(X50),W50="",MAX($X$43:$X$2542)=0)),"",'I(eps)'!$AB$7+'I(eps)'!$AC$8*(ROW(W51)-ROW($W$43))*0.001) -> -0.7 | X51: =IFERROR(INDEX('I(eps)'!$I$2:$I$2502,'I(eps)'!$AC$7+1+'I(eps)'!$AC$8*(ROW()-ROW(Home!$X$43))),"") -> 294.0136013
Q52: =IF(R52="","",'I(B)'!$B$7+'I(B)'!$C$8*(ROW(Q52)-ROW($Q$43))*0.1) -> 9.8 | R52: =IFERROR(INDEX('I(B)'!$F$2:$F$301,'I(B)'!$C$7+'I(B)'!$C$8*(ROW()-ROW(Home!$R$43))),"") -> 1021.906654 | T52: =IF(U52="","",'I(T)'!$B$7+'I(T)'!$C$8*(ROW(T52)-ROW($T$43))*0.1) -> 10 | U52: =IFERROR(INDEX('I(T)'!$I$2:$I$200,'I(T)'!$C$7+'I(T)'!$C$8*(ROW()-ROW(Home!$U$43))),"") -> 47.76544274 | W52: =IF(AND(X52="",OR(ISNUMBER(X51),W51="",MAX($X$43:$X$2542)=0)),"",'I(eps)'!$AB$7+'I(eps)'!$AC$8*(ROW(W52)-ROW($W$43))*0.001) -> -0.6 | X52: =IFERROR(INDEX('I(eps)'!$I$2:$I$2502,'I(eps)'!$AC$7+1+'I(eps)'!$AC$8*(ROW()-ROW(Home!$X$43))),"") -> 362.0691148
Q53: =IF(R53="","",'I(B)'!$B$7+'I(B)'!$C$8*(ROW(Q53)-ROW($Q$43))*0.1) -> 10 | R53: =IFERROR(INDEX('I(B)'!$F$2:$F$301,'I(B)'!$C$7+'I(B)'!$C$8*(ROW()-ROW(Home!$R$43))),"") -> 983.9150076 | T53: =IF(U53="","",'I(T)'!$B$7+'I(T)'!$C$8*(ROW(T53)-ROW($T$43))*0.1) -> 11 | U53: =IFERROR(INDEX('I(T)'!$I$2:$I$200,'I(T)'!$C$7+'I(T)'!$C$8*(ROW()-ROW(Home!$U$43))),"") -> 5.206485505 | W53: =IF(AND(X53="",OR(ISNUMBER(X52),W52="",MAX($X$43:$X$2542)=0)),"",'I(eps)'!$AB$7+'I(eps)'!$AC$8*(ROW(W53)-ROW($W$43))*0.001) -> -0.5 | X53: =IFERROR(INDEX('I(eps)'!$I$2:$I$2502,'I(eps)'!$AC$7+1+'I(eps)'!$AC$8*(ROW()-ROW(Home!$X$43))),"") -> 433.8313076
Q54: =IF(R54="","",'I(B)'!$B$7+'I(B)'!$C$8*(ROW(Q54)-ROW($Q$43))*0.1) -> 10.2 | R54: =IFERROR(INDEX('I(B)'!$F$2:$F$301,'I(B)'!$C$7+'I(B)'!$C$8*(ROW()-ROW(Home!$R$43))),"") -> 947.1544869 | T54: =IF(U54="","",'I(T)'!$B$7+'I(T)'!$C$8*(ROW(T54)-ROW($T$43))*0.1) ->  | U54: =IFERROR(INDEX('I(T)'!$I$2:$I$200,'I(T)'!$C$7+'I(T)'!$C$8*(ROW()-ROW(Home!$U$43))),"") ->  | W54: =IF(AND(X54="",OR(ISNUMBER(X53),W53="",MAX($X$43:$X$2542)=0)),"",'I(eps)'!$AB$7+'I(eps)'!$AC$8*(ROW(W54)-ROW($W$43))*0.001) -> -0.4 | X54: =IFERROR(INDEX('I(eps)'!$I$2:$I$2502,'I(eps)'!$AC$7+1+'I(eps)'!$AC$8*(ROW()-ROW(Home!$X$43))),"") -> 505.6947879
Q55: =IF(R55="","",'I(B)'!$B$7+'I(B)'!$C$8*(ROW(Q55)-ROW($Q$43))*0.1) -> 10.4 | R55: =IFERROR(INDEX('I(B)'!$F$2:$F$301,'I(B)'!$C$7+'I(B)'!$C$8*(ROW()-ROW(Home!$R$43))),"") -> 911.5756222 | T55: =IF(U55="","",'I(T)'!$B$7+'I(T)'!$C$8*(ROW(T55)-ROW($T$43))*0.1) ->  | U55: =IFERROR(INDEX('I(T)'!$I$2:$I$200,'I(T)'!$C$7+'I(T)'!$C$8*(ROW()-ROW(Home!$U$43))),"") ->  | W55: =IF(AND(X55="",OR(ISNUMBER(X54),W54="",MAX($X$43:$X$2542)=0)),"",'I(eps)'!$AB$7+'I(eps)'!$AC$8*(ROW(W55)-ROW($W$43))*0.001) -> -0.3 | X55: =IFERROR(INDEX('I(eps)'!$I$2:$I$2502,'I(eps)'!$AC$7+1+'I(eps)'!$AC$8*(ROW()-ROW(Home!$X$43))),"") -> 572.4839025
Q56: =IF(R56="","",'I(B)'!$B$7+'I(B)'!$C$8*(ROW(Q56)-ROW($Q$43))*0.1) -> 10.6 | R56: =IFERROR(INDEX('I(B)'!$F$2:$F$301,'I(B)'!$C$7+'I(B)'!$C$8*(ROW()-ROW(Home!$R$43))),"") -> 877.1320466 | T56: =IF(U56="","",'I(T)'!$B$7+'I(T)'!$C$8*(ROW(T56)-ROW($T$43))*0.1) ->  | U56: =IFERROR(INDEX('I(T)'!$I$2:$I$200,'I(T)'!$C$7+'I(T)'!$C$8*(ROW()-ROW(Home!$U$43))),"") ->  | W56: =IF(AND(X56="",OR(ISNUMBER(X55),W55="",MAX($X$43:$X$2542)=0)),"",'I(eps)'!$AB$7+'I(eps)'!$AC$8*(ROW(W56)-ROW($W$43))*0.001) -> -0.2 | X56: =IFERROR(INDEX('I(eps)'!$I$2:$I$2502,'I(eps)'!$AC$7+1+'I(eps)'!$AC$8*(ROW()-ROW(Home!$X$43))),"") -> 627.7248951
Q57: =IF(R57="","",'I(B)'!$B$7+'I(B)'!$C$8*(ROW(Q57)-ROW($Q$43))*0.1) -> 10.8 | R57: =IFERROR(INDEX('I(B)'!$F$2:$F$301,'I(B)'!$C$7+'I(B)'!$C$8*(ROW()-ROW(Home!$R$43))),"") -> 843.7802436 | T57: =IF(U57="","",'I(T)'!$B$7+'I(T)'!$C$8*(ROW(T57)-ROW($T$43))*0.1) ->  | U57: =IFERROR(INDEX('I(T)'!$I$2:$I$200,'I(T)'!$C$7+'I(T)'!$C$8*(ROW()-ROW(Home!$U$43))),"") ->  | W57: =IF(AND(X57="",OR(ISNUMBER(X56),W56="",MAX($X$43:$X$2542)=0)),"",'I(eps)'!$AB$7+'I(eps)'!$AC$8*(ROW(W57)-ROW($W$43))*0.001) -> -0.1 | X57: =IFERROR(INDEX('I(eps)'!$I$2:$I$2502,'I(eps)'!$AC$7+1+'I(eps)'!$AC$8*(ROW()-ROW(Home!$X$43))),"") -> 664.4658807
Q58: =IF(R58="","",'I(B)'!$B$7+'I(B)'!$C$8*(ROW(Q58)-ROW($Q$43))*0.1) -> 11 | R58: =IFERROR(INDEX('I(B)'!$F$2:$F$301,'I(B)'!$C$7+'I(B)'!$C$8*(ROW()-ROW(Home!$R$43))),"") -> 811.4793194 | T58: =IF(U58="","",'I(T)'!$B$7+'I(T)'!$C$8*(ROW(T58)-ROW($T$43))*0.1) ->  | U58: =IFERROR(INDEX('I(T)'!$I$2:$I$200,'I(T)'!$C$7+'I(T)'!$C$8*(ROW()-ROW(Home!$U$43))),"") ->  | W58: =IF(AND(X58="",OR(ISNUMBER(X57),W57="",MAX($X$43:$X$2542)=0)),"",'I(eps)'!$AB$7+'I(eps)'!$AC$8*(ROW(W58)-ROW($W$43))*0.001) -> 0 | X58: =IFERROR(INDEX('I(eps)'!$I$2:$I$2502,'I(eps)'!$AC$7+1+'I(eps)'!$AC$8*(ROW()-ROW(Home!$X$43))),"") -> 676.5840088
Q59: =IF(R59="","",'I(B)'!$B$7+'I(B)'!$C$8*(ROW(Q59)-ROW($Q$43))*0.1) -> 11.2 | R59: =IFERROR(INDEX('I(B)'!$F$2:$F$301,'I(B)'!$C$7+'I(B)'!$C$8*(ROW()-ROW(Home!$R$43))),"") -> 780.1907978 | T59: =IF(U59="","",'I(T)'!$B$7+'I(T)'!$C$8*(ROW(T59)-ROW($T$43))*0.1) ->  | U59: =IFERROR(INDEX('I(T)'!$I$2:$I$200,'I(T)'!$C$7+'I(T)'!$C$8*(ROW()-ROW(Home!$U$43))),"") ->  | W59: =IF(AND(X59="",OR(ISNUMBER(X58),W58="",MAX($X$43:$X$2542)=0)),"",'I(eps)'!$AB$7+'I(eps)'!$AC$8*(ROW(W59)-ROW($W$43))*0.001) -> 0.1 | X59: =IFERROR(INDEX('I(eps)'!$I$2:$I$2502,'I(eps)'!$AC$7+1+'I(eps)'!$AC$8*(ROW()-ROW(Home!$X$43))),"") -> 660.255068
Q60: =IF(R60="","",'I(B)'!$B$7+'I(B)'!$C$8*(ROW(Q60)-ROW($Q$43))*0.1) -> 11.4 | R60: =IFERROR(INDEX('I(B)'!$F$2:$F$301,'I(B)'!$C$7+'I(B)'!$C$8*(ROW()-ROW(Home!$R$43))),"") -> 749.8784339 | T60: =IF(U60="","",'I(T)'!$B$7+'I(T)'!$C$8*(ROW(T60)-ROW($T$43))*0.1) ->  | U60: =IFERROR(INDEX('I(T)'!$I$2:$I$200,'I(T)'!$C$7+'I(T)'!$C$8*(ROW()-ROW(Home!$U$43))),"") ->  | W60: =IF(AND(X60="",OR(ISNUMBER(X59),W59="",MAX($X$43:$X$2542)=0)),"",'I(eps)'!$AB$7+'I(eps)'!$AC$8*(ROW(W60)-ROW($W$43))*0.001) -> 0.2 | X60: =IFERROR(INDEX('I(eps)'!$I$2:$I$2502,'I(eps)'!$AC$7+1+'I(eps)'!$AC$8*(ROW()-ROW(Home!$X$43))),"") -> 615.0837596
Q61: =IF(R61="","",'I(B)'!$B$7+'I(B)'!$C$8*(ROW(Q61)-ROW($Q$43))*0.1) -> 11.6 | R61: =IFERROR(INDEX('I(B)'!$F$2:$F$301,'I(B)'!$C$7+'I(B)'!$C$8*(ROW()-ROW(Home!$R$43))),"") -> 720.5080459 | T61: =IF(U61="","",'I(T)'!$B$7+'I(T)'!$C$8*(ROW(T61)-ROW($T$43))*0.1) ->  | U61: =IFERROR(INDEX('I(T)'!$I$2:$I$200,'I(T)'!$C$7+'I(T)'!$C$8*(ROW()-ROW(Home!$U$43))),"") ->  | W61: =IF(AND(X61="",OR(ISNUMBER(X60),W60="",MAX($X$43:$X$2542)=0)),"",'I(eps)'!$AB$7+'I(eps)'!$AC$8*(ROW(W61)-ROW($W$43))*0.001) -> 0.3 | X61: =IFERROR(INDEX('I(eps)'!$I$2:$I$2502,'I(eps)'!$AC$7+1+'I(eps)'!$AC$8*(ROW()-ROW(Home!$X$43))),"") -> 544.4567385
Q62: =IF(R62="","",'I(B)'!$B$7+'I(B)'!$C$8*(ROW(Q62)-ROW($Q$43))*0.1) -> 11.8 | R62: =IFERROR(INDEX('I(B)'!$F$2:$F$301,'I(B)'!$C$7+'I(B)'!$C$8*(ROW()-ROW(Home!$R$43))),"") -> 692.0473619 | T62: =IF(U62="","",'I(T)'!$B$7+'I(T)'!$C$8*(ROW(T62)-ROW($T$43))*0.1) ->  | U62: =IFERROR(INDEX('I(T)'!$I$2:$I$200,'I(T)'!$C$7+'I(T)'!$C$8*(ROW()-ROW(Home!$U$43))),"") ->  | W62: =IF(AND(X62="",OR(ISNUMBER(X61),W61="",MAX($X$43:$X$2542)=0)),"",'I(eps)'!$AB$7+'I(eps)'!$AC$8*(ROW(W62)-ROW($W$43))*0.001) -> 0.4 | X62: =IFERROR(INDEX('I(eps)'!$I$2:$I$2502,'I(eps)'!$AC$7+1+'I(eps)'!$AC$8*(ROW()-ROW(Home!$X$43))),"") -> 454.9922862
Q63: =IF(R63="","",'I(B)'!$B$7+'I(B)'!$C$8*(ROW(Q63)-ROW($Q$43))*0.1) -> 12 | R63: =IFERROR(INDEX('I(B)'!$F$2:$F$301,'I(B)'!$C$7+'I(B)'!$C$8*(ROW()-ROW(Home!$R$43))),"") -> 664.4658807 | T63: =IF(U63="","",'I(T)'!$B$7+'I(T)'!$C$8*(ROW(T63)-ROW($T$43))*0.1) ->  | U63: =IFERROR(INDEX('I(T)'!$I$2:$I$200,'I(T)'!$C$7+'I(T)'!$C$8*(ROW()-ROW(Home!$U$43))),"") ->  | W63: =IF(AND(X63="",OR(ISNUMBER(X62),W62="",MAX($X$43:$X$2542)=0)),"",'I(eps)'!$AB$7+'I(eps)'!$AC$8*(ROW(W63)-ROW($W$43))*0.001) -> 0.5 | X63: =IFERROR(INDEX('I(eps)'!$I$2:$I$2502,'I(eps)'!$AC$7+1+'I(eps)'!$AC$8*(ROW()-ROW(Home!$X$43))),"") -> 355.3399259
Q64: =IF(R64="","",'I(B)'!$B$7+'I(B)'!$C$8*(ROW(Q64)-ROW($Q$43))*0.1) -> 12.2 | R64: =IFERROR(INDEX('I(B)'!$F$2:$F$301,'I(B)'!$C$7+'I(B)'!$C$8*(ROW()-ROW(Home!$R$43))),"") -> 637.7347452 | T64: =IF(U64="","",'I(T)'!$B$7+'I(T)'!$C$8*(ROW(T64)-ROW($T$43))*0.1) ->  | U64: =IFERROR(INDEX('I(T)'!$I$2:$I$200,'I(T)'!$C$7+'I(T)'!$C$8*(ROW()-ROW(Home!$U$43))),"") ->  | W64: =IF(AND(X64="",OR(ISNUMBER(X63),W63="",MAX($X$43:$X$2542)=0)),"",'I(eps)'!$AB$7+'I(eps)'!$AC$8*(ROW(W64)-ROW($W$43))*0.001) -> 0.6 | X64: =IFERROR(INDEX('I(eps)'!$I$2:$I$2502,'I(eps)'!$AC$7+1+'I(eps)'!$AC$8*(ROW()-ROW(Home!$X$43))),"") -> 254.8005895
Q65: =IF(R65="","",'I(B)'!$B$7+'I(B)'!$C$8*(ROW(Q65)-ROW($Q$43))*0.1) -> 12.4 | R65: =IFERROR(INDEX('I(B)'!$F$2:$F$301,'I(B)'!$C$7+'I(B)'!$C$8*(ROW()-ROW(Home!$R$43))),"") -> 611.8266259 | T65: =IF(U65="","",'I(T)'!$B$7+'I(T)'!$C$8*(ROW(T65)-ROW($T$43))*0.1) ->  | U65: =IFERROR(INDEX('I(T)'!$I$2:$I$200,'I(T)'!$C$7+'I(T)'!$C$8*(ROW()-ROW(Home!$U$43))),"") ->  | W65: =IF(AND(X65="",OR(ISNUMBER(X64),W64="",MAX($X$43:$X$2542)=0)),"",'I(eps)'!$AB$7+'I(eps)'!$AC$8*(ROW(W65)-ROW($W$43))*0.001) -> 0.7 | X65: =IFERROR(INDEX('I(eps)'!$I$2:$I$2502,'I(eps)'!$AC$7+1+'I(eps)'!$AC$8*(ROW()-ROW(Home!$X$43))),"") -> 162.19853
Q66: =IF(R66="","",'I(B)'!$B$7+'I(B)'!$C$8*(ROW(Q66)-ROW($Q$43))*0.1) -> 12.6 | R66: =IFERROR(INDEX('I(B)'!$F$2:$F$301,'I(B)'!$C$7+'I(B)'!$C$8*(ROW()-ROW(Home!$R$43))),"") -> 586.7156158 | T66: =IF(U66="","",'I(T)'!$B$7+'I(T)'!$C$8*(ROW(T66)-ROW($T$43))*0.1) ->  | U66: =IFERROR(INDEX('I(T)'!$I$2:$I$200,'I(T)'!$C$7+'I(T)'!$C$8*(ROW()-ROW(Home!$U$43))),"") ->  | W66: =IF(AND(X66="",OR(ISNUMBER(X65),W65="",MAX($X$43:$X$2542)=0)),"",'I(eps)'!$AB$7+'I(eps)'!$AC$8*(ROW(W66)-ROW($W$43))*0.001) -> 0.8 | X66: =IFERROR(INDEX('I(eps)'!$I$2:$I$2502,'I(eps)'!$AC$7+1+'I(eps)'!$AC$8*(ROW()-ROW(Home!$X$43))),"") -> 85.22592905
Q67: =IF(R67="","",'I(B)'!$B$7+'I(B)'!$C$8*(ROW(Q67)-ROW($Q$43))*0.1) -> 12.8 | R67: =IFERROR(INDEX('I(B)'!$F$2:$F$301,'I(B)'!$C$7+'I(B)'!$C$8*(ROW()-ROW(Home!$R$43))),"") -> 562.3771332 | T67: =IF(U67="","",'I(T)'!$B$7+'I(T)'!$C$8*(ROW(T67)-ROW($T$43))*0.1) ->  | U67: =IFERROR(INDEX('I(T)'!$I$2:$I$200,'I(T)'!$C$7+'I(T)'!$C$8*(ROW()-ROW(Home!$U$43))),"") ->  | W67: =IF(AND(X67="",OR(ISNUMBER(X66),W66="",MAX($X$43:$X$2542)=0)),"",'I(eps)'!$AB$7+'I(eps)'!$AC$8*(ROW(W67)-ROW($W$43))*0.001) -> 0.9 | X67: =IFERROR(INDEX('I(eps)'!$I$2:$I$2502,'I(eps)'!$AC$7+1+'I(eps)'!$AC$8*(ROW()-ROW(Home!$X$43))),"") -> 30.25706653
Q68: =IF(R68="","",'I(B)'!$B$7+'I(B)'!$C$8*(ROW(Q68)-ROW($Q$43))*0.1) -> 13 | R68: =IFERROR(INDEX('I(B)'!$F$2:$F$301,'I(B)'!$C$7+'I(B)'!$C$8*(ROW()-ROW(Home!$R$43))),"") -> 538.7878327 | T68: =IF(U68="","",'I(T)'!$B$7+'I(T)'!$C$8*(ROW(T68)-ROW($T$43))*0.1) ->  | U68: =IFERROR(INDEX('I(T)'!$I$2:$I$200,'I(T)'!$C$7+'I(T)'!$C$8*(ROW()-ROW(Home!$U$43))),"") ->  | W68: =IF(AND(X68="",OR(ISNUMBER(X67),W67="",MAX($X$43:$X$2542)=0)),"",'I(eps)'!$AB$7+'I(eps)'!$AC$8*(ROW(W68)-ROW($W$43))*0.001) -> 1 | X68: =IFERROR(INDEX('I(eps)'!$I$2:$I$2502,'I(eps)'!$AC$7+1+'I(eps)'!$AC$8*(ROW()-ROW(Home!$X$43))),"") -> 2.494755287
Q69: =IF(R69="","",'I(B)'!$B$7+'I(B)'!$C$8*(ROW(Q69)-ROW($Q$43))*0.1) -> 13.2 | R69: =IFERROR(INDEX('I(B)'!$F$2:$F$301,'I(B)'!$C$7+'I(B)'!$C$8*(ROW()-ROW(Home!$R$43))),"") -> 515.9255237 | T69: =IF(U69="","",'I(T)'!$B$7+'I(T)'!$C$8*(ROW(T69)-ROW($T$43))*0.1) ->  | U69: =IFERROR(INDEX('I(T)'!$I$2:$I$200,'I(T)'!$C$7+'I(T)'!$C$8*(ROW()-ROW(Home!$U$43))),"") ->  | W69: =IF(AND(X69="",OR(ISNUMBER(X68),W68="",MAX($X$43:$X$2542)=0)),"",'I(eps)'!$AB$7+'I(eps)'!$AC$8*(ROW(W69)-ROW($W$43))*0.001) ->  | X69: =IFERROR(INDEX('I(eps)'!$I$2:$I$2502,'I(eps)'!$AC$7+1+'I(eps)'!$AC$8*(ROW()-ROW(Home!$X$43))),"") -> 
Q70: =IF(R70="","",'I(B)'!$B$7+'I(B)'!$C$8*(ROW(Q70)-ROW($Q$43))*0.1) -> 13.4 | R70: =IFERROR(INDEX('I(B)'!$F$2:$F$301,'I(B)'!$C$7+'I(B)'!$C$8*(ROW()-ROW(Home!$R$43))),"") -> 493.7690956 | T70: =IF(U70="","",'I(T)'!$B$7+'I(T)'!$C$8*(ROW(T70)-ROW($T$43))*0.1) ->  | U70: =IFERROR(INDEX('I(T)'!$I$2:$I$200,'I(T)'!$C$7+'I(T)'!$C$8*(ROW()-ROW(Home!$U$43))),"") ->  | W70: =IF(AND(X70="",OR(ISNUMBER(X69),W69="",MAX($X$43:$X$2542)=0)),"",'I(eps)'!$AB$7+'I(eps)'!$AC$8*(ROW(W70)-ROW($W$43))*0.001) ->  | X70: =IFERROR(INDEX('I(eps)'!$I$2:$I$2502,'I(eps)'!$AC$7+1+'I(eps)'!$AC$8*(ROW()-ROW(Home!$X$43))),"") -> 
Q71: =IF(R71="","",'I(B)'!$B$7+'I(B)'!$C$8*(ROW(Q71)-ROW($Q$43))*0.1) -> 13.6 | R71: =IFERROR(INDEX('I(B)'!$F$2:$F$301,'I(B)'!$C$7+'I(B)'!$C$8*(ROW()-ROW(Home!$R$43))),"") -> 472.2984484 | T71: =IF(U71="","",'I(T)'!$B$7+'I(T)'!$C$8*(ROW(T71)-ROW($T$43))*0.1) ->  | U71: =IFERROR(INDEX('I(T)'!$I$2:$I$200,'I(T)'!$C$7+'I(T)'!$C$8*(ROW()-ROW(Home!$U$43))),"") ->  | W71: =IF(AND(X71="",OR(ISNUMBER(X70),W70="",MAX($X$43:$X$2542)=0)),"",'I(eps)'!$AB$7+'I(eps)'!$AC$8*(ROW(W71)-ROW($W$43))*0.001) ->  | X71: =IFERROR(INDEX('I(eps)'!$I$2:$I$2502,'I(eps)'!$AC$7+1+'I(eps)'!$AC$8*(ROW()-ROW(Home!$X$43))),"") -> 
Q72: =IF(R72="","",'I(B)'!$B$7+'I(B)'!$C$8*(ROW(Q72)-ROW($Q$43))*0.1) -> 13.8 | R72: =IFERROR(INDEX('I(B)'!$F$2:$F$301,'I(B)'!$C$7+'I(B)'!$C$8*(ROW()-ROW(Home!$R$43))),"") -> 451.4944291 | T72: =IF(U72="","",'I(T)'!$B$7+'I(T)'!$C$8*(ROW(T72)-ROW($T$43))*0.1) ->  | U72: =IFERROR(INDEX('I(T)'!$I$2:$I$200,'I(T)'!$C$7+'I(T)'!$C$8*(ROW()-ROW(Home!$U$43))),"") ->  | W72: =IF(AND(X72="",OR(ISNUMBER(X71),W71="",MAX($X$43:$X$2542)=0)),"",'I(eps)'!$AB$7+'I(eps)'!$AC$8*(ROW(W72)-ROW($W$43))*0.001) ->  | X72: =IFERROR(INDEX('I(eps)'!$I$2:$I$2502,'I(eps)'!$AC$7+1+'I(eps)'!$AC$8*(ROW()-ROW(Home!$X$43))),"") -> 
Q73: =IF(R73="","",'I(B)'!$B$7+'I(B)'!$C$8*(ROW(Q73)-ROW($Q$43))*0.1) -> 14 | R73: =IFERROR(INDEX('I(B)'!$F$2:$F$301,'I(B)'!$C$7+'I(B)'!$C$8*(ROW()-ROW(Home!$R$43))),"") -> 431.3387734 | T73: =IF(U73="","",'I(T)'!$B$7+'I(T)'!$C$8*(ROW(T73)-ROW($T$43))*0.1) ->  | U73: =IFERROR(INDEX('I(T)'!$I$2:$I$200,'I(T)'!$C$7+'I(T)'!$C$8*(ROW()-ROW(Home!$U$43))),"") ->  | W73: =IF(AND(X73="",OR(ISNUMBER(X72),W72="",MAX($X$43:$X$2542)=0)),"",'I(eps)'!$AB$7+'I(eps)'!$AC$8*(ROW(W73)-ROW($W$43))*0.001) ->  | X73: =IFERROR(INDEX('I(eps)'!$I$2:$I$2502,'I(eps)'!$AC$7+1+'I(eps)'!$AC$8*(ROW()-ROW(Home!$X$43))),"") -> 
Q74: =IF(R74="","",'I(B)'!$B$7+'I(B)'!$C$8*(ROW(Q74)-ROW($Q$43))*0.1) -> 14.2 | R74: =IFERROR(INDEX('I(B)'!$F$2:$F$301,'I(B)'!$C$7+'I(B)'!$C$8*(ROW()-ROW(Home!$R$43))),"") -> 411.8140506 | T74: =IF(U74="","",'I(T)'!$B$7+'I(T)'!$C$8*(ROW(T74)-ROW($T$43))*0.1) ->  | U74: =IFERROR(INDEX('I(T)'!$I$2:$I$200,'I(T)'!$C$7+'I(T)'!$C$8*(ROW()-ROW(Home!$U$43))),"") ->  | W74: =IF(AND(X74="",OR(ISNUMBER(X73),W73="",MAX($X$43:$X$2542)=0)),"",'I(eps)'!$AB$7+'I(eps)'!$AC$8*(ROW(W74)-ROW($W$43))*0.001) ->  | X74: =IFERROR(INDEX('I(eps)'!$I$2:$I$2502,'I(eps)'!$AC$7+1+'I(eps)'!$AC$8*(ROW()-ROW(Home!$X$43))),"") -> 
Q75: =IF(R75="","",'I(B)'!$B$7+'I(B)'!$C$8*(ROW(Q75)-ROW($Q$43))*0.1) -> 14.4 | R75: =IFERROR(INDEX('I(B)'!$F$2:$F$301,'I(B)'!$C$7+'I(B)'!$C$8*(ROW()-ROW(Home!$R$43))),"") -> 392.9036142 | T75: =IF(U75="","",'I(T)'!$B$7+'I(T)'!$C$8*(ROW(T75)-ROW($T$43))*0.1) ->  | U75: =IFERROR(INDEX('I(T)'!$I$2:$I$200,'I(T)'!$C$7+'I(T)'!$C$8*(ROW()-ROW(Home!$U$43))),"") ->  | W75: =IF(AND(X75="",OR(ISNUMBER(X74),W74="",MAX($X$43:$X$2542)=0)),"",'I(eps)'!$AB$7+'I(eps)'!$AC$8*(ROW(W75)-ROW($W$43))*0.001) ->  | X75: =IFERROR(INDEX('I(eps)'!$I$2:$I$2502,'I(eps)'!$AC$7+1+'I(eps)'!$AC$8*(ROW()-ROW(Home!$X$43))),"") -> 
Q76: =IF(R76="","",'I(B)'!$B$7+'I(B)'!$C$8*(ROW(Q76)-ROW($Q$43))*0.1) -> 14.6 | R76: =IFERROR(INDEX('I(B)'!$F$2:$F$301,'I(B)'!$C$7+'I(B)'!$C$8*(ROW()-ROW(Home!$R$43))),"") -> 374.5915548 | T76: =IF(U76="","",'I(T)'!$B$7+'I(T)'!$C$8*(ROW(T76)-ROW($T$43))*0.1) ->  | U76: =IFERROR(INDEX('I(T)'!$I$2:$I$200,'I(T)'!$C$7+'I(T)'!$C$8*(ROW()-ROW(Home!$U$43))),"") ->  | W76: =IF(AND(X76="",OR(ISNUMBER(X75),W75="",MAX($X$43:$X$2542)=0)),"",'I(eps)'!$AB$7+'I(eps)'!$AC$8*(ROW(W76)-ROW($W$43))*0.001) ->  | X76: =IFERROR(INDEX('I(eps)'!$I$2:$I$2502,'I(eps)'!$AC$7+1+'I(eps)'!$AC$8*(ROW()-ROW(Home!$X$43))),"") -> 
Q77: =IF(R77="","",'I(B)'!$B$7+'I(B)'!$C$8*(ROW(Q77)-ROW($Q$43))*0.1) -> 14.8 | R77: =IFERROR(INDEX('I(B)'!$F$2:$F$301,'I(B)'!$C$7+'I(B)'!$C$8*(ROW()-ROW(Home!$R$43))),"") -> 356.862657 | T77: =IF(U77="","",'I(T)'!$B$7+'I(T)'!$C$8*(ROW(T77)-ROW($T$43))*0.1) ->  | U77: =IFERROR(INDEX('I(T)'!$I$2:$I$200,'I(T)'!$C$7+'I(T)'!$C$8*(ROW()-ROW(Home!$U$43))),"") ->  | W77: =IF(AND(X77="",OR(ISNUMBER(X76),W76="",MAX($X$43:$X$2542)=0)),"",'I(eps)'!$AB$7+'I(eps)'!$AC$8*(ROW(W77)-ROW($W$43))*0.001) ->  | X77: =IFERROR(INDEX('I(eps)'!$I$2:$I$2502,'I(eps)'!$AC$7+1+'I(eps)'!$AC$8*(ROW()-ROW(Home!$X$43))),"") -> 
Q78: =IF(R78="","",'I(B)'!$B$7+'I(B)'!$C$8*(ROW(Q78)-ROW($Q$43))*0.1) -> 15 | R78: =IFERROR(INDEX('I(B)'!$F$2:$F$301,'I(B)'!$C$7+'I(B)'!$C$8*(ROW()-ROW(Home!$R$43))),"") -> 339.7023596 | T78: =IF(U78="","",'I(T)'!$B$7+'I(T)'!$C$8*(ROW(T78)-ROW($T$43))*0.1) ->  | U78: =IFERROR(INDEX('I(T)'!$I$2:$I$200,'I(T)'!$C$7+'I(T)'!$C$8*(ROW()-ROW(Home!$U$43))),"") ->  | W78: =IF(AND(X78="",OR(ISNUMBER(X77),W77="",MAX($X$43:$X$2542)=0)),"",'I(eps)'!$AB$7+'I(eps)'!$AC$8*(ROW(W78)-ROW($W$43))*0.001) ->  | X78: =IFERROR(INDEX('I(eps)'!$I$2:$I$2502,'I(eps)'!$AC$7+1+'I(eps)'!$AC$8*(ROW()-ROW(Home!$X$43))),"") -> 
Q79: =IF(R79="","",'I(B)'!$B$7+'I(B)'!$C$8*(ROW(Q79)-ROW($Q$43))*0.1) -> 15.2 | R79: =IFERROR(INDEX('I(B)'!$F$2:$F$301,'I(B)'!$C$7+'I(B)'!$C$8*(ROW()-ROW(Home!$R$43))),"") -> 323.0967184 | T79: =IF(U79="","",'I(T)'!$B$7+'I(T)'!$C$8*(ROW(T79)-ROW($T$43))*0.1) ->  | U79: =IFERROR(INDEX('I(T)'!$I$2:$I$200,'I(T)'!$C$7+'I(T)'!$C$8*(ROW()-ROW(Home!$U$43))),"") ->  | W79: =IF(AND(X79="",OR(ISNUMBER(X78),W78="",MAX($X$43:$X$2542)=0)),"",'I(eps)'!$AB$7+'I(eps)'!$AC$8*(ROW(W79)-ROW($W$43))*0.001) ->  | X79: =IFERROR(INDEX('I(eps)'!$I$2:$I$2502,'I(eps)'!$AC$7+1+'I(eps)'!$AC$8*(ROW()-ROW(Home!$X$43))),"") -> 
Q80: =IF(R80="","",'I(B)'!$B$7+'I(B)'!$C$8*(ROW(Q80)-ROW($Q$43))*0.1) -> 15.4 | R80: =IFERROR(INDEX('I(B)'!$F$2:$F$301,'I(B)'!$C$7+'I(B)'!$C$8*(ROW()-ROW(Home!$R$43))),"") -> 307.0323712 | T80: =IF(U80="","",'I(T)'!$B$7+'I(T)'!$C$8*(ROW(T80)-ROW($T$43))*0.1) ->  | U80: =IFERROR(INDEX('I(T)'!$I$2:$I$200,'I(T)'!$C$7+'I(T)'!$C$8*(ROW()-ROW(Home!$U$43))),"") ->  | W80: =IF(AND(X80="",OR(ISNUMBER(X79),W79="",MAX($X$43:$X$2542)=0)),"",'I(eps)'!$AB$7+'I(eps)'!$AC$8*(ROW(W80)-ROW($W$43))*0.001) ->  | X80: =IFERROR(INDEX('I(eps)'!$I$2:$I$2502,'I(eps)'!$AC$7+1+'I(eps)'!$AC$8*(ROW()-ROW(Home!$X$43))),"") -> 
Q81: =IF(R81="","",'I(B)'!$B$7+'I(B)'!$C$8*(ROW(Q81)-ROW($Q$43))*0.1) -> 15.6 | R81: =IFERROR(INDEX('I(B)'!$F$2:$F$301,'I(B)'!$C$7+'I(B)'!$C$8*(ROW()-ROW(Home!$R$43))),"") -> 291.496506 | T81: =IF(U81="","",'I(T)'!$B$7+'I(T)'!$C$8*(ROW(T81)-ROW($T$43))*0.1) ->  | U81: =IFERROR(INDEX('I(T)'!$I$2:$I$200,'I(T)'!$C$7+'I(T)'!$C$8*(ROW()-ROW(Home!$U$43))),"") ->  | W81: =IF(AND(X81="",OR(ISNUMBER(X80),W80="",MAX($X$43:$X$2542)=0)),"",'I(eps)'!$AB$7+'I(eps)'!$AC$8*(ROW(W81)-ROW($W$43))*0.001) ->  | X81: =IFERROR(INDEX('I(eps)'!$I$2:$I$2502,'I(eps)'!$AC$7+1+'I(eps)'!$AC$8*(ROW()-ROW(Home!$X$43))),"") -> 
Q82: =IF(R82="","",'I(B)'!$B$7+'I(B)'!$C$8*(ROW(Q82)-ROW($Q$43))*0.1) -> 15.8 | R82: =IFERROR(INDEX('I(B)'!$F$2:$F$301,'I(B)'!$C$7+'I(B)'!$C$8*(ROW()-ROW(Home!$R$43))),"") -> 276.4768305 | T82: =IF(U82="","",'I(T)'!$B$7+'I(T)'!$C$8*(ROW(T82)-ROW($T$43))*0.1) ->  | U82: =IFERROR(INDEX('I(T)'!$I$2:$I$200,'I(T)'!$C$7+'I(T)'!$C$8*(ROW()-ROW(Home!$U$43))),"") ->  | W82: =IF(AND(X82="",OR(ISNUMBER(X81),W81="",MAX($X$43:$X$2542)=0)),"",'I(eps)'!$AB$7+'I(eps)'!$AC$8*(ROW(W82)-ROW($W$43))*0.001) ->  | X82: =IFERROR(INDEX('I(eps)'!$I$2:$I$2502,'I(eps)'!$AC$7+1+'I(eps)'!$AC$8*(ROW()-ROW(Home!$X$43))),"") -> 
Q83: =IF(R83="","",'I(B)'!$B$7+'I(B)'!$C$8*(ROW(Q83)-ROW($Q$43))*0.1) -> 16 | R83: =IFERROR(INDEX('I(B)'!$F$2:$F$301,'I(B)'!$C$7+'I(B)'!$C$8*(ROW()-ROW(Home!$R$43))),"") -> 261.9615447 | T83: =IF(U83="","",'I(T)'!$B$7+'I(T)'!$C$8*(ROW(T83)-ROW($T$43))*0.1) ->  | U83: =IFERROR(INDEX('I(T)'!$I$2:$I$200,'I(T)'!$C$7+'I(T)'!$C$8*(ROW()-ROW(Home!$U$43))),"") ->  | W83: =IF(AND(X83="",OR(ISNUMBER(X82),W82="",MAX($X$43:$X$2542)=0)),"",'I(eps)'!$AB$7+'I(eps)'!$AC$8*(ROW(W83)-ROW($W$43))*0.001) ->  | X83: =IFERROR(INDEX('I(eps)'!$I$2:$I$2502,'I(eps)'!$AC$7+1+'I(eps)'!$AC$8*(ROW()-ROW(Home!$X$43))),"") -> 
Q84: =IF(R84="","",'I(B)'!$B$7+'I(B)'!$C$8*(ROW(Q84)-ROW($Q$43))*0.1) -> 16.2 | R84: =IFERROR(INDEX('I(B)'!$F$2:$F$301,'I(B)'!$C$7+'I(B)'!$C$8*(ROW()-ROW(Home!$R$43))),"") -> 247.9393141 | T84: =IF(U84="","",'I(T)'!$B$7+'I(T)'!$C$8*(ROW(T84)-ROW($T$43))*0.1) ->  | U84: =IFERROR(INDEX('I(T)'!$I$2:$I$200,'I(T)'!$C$7+'I(T)'!$C$8*(ROW()-ROW(Home!$U$43))),"") ->  | W84: =IF(AND(X84="",OR(ISNUMBER(X83),W83="",MAX($X$43:$X$2542)=0)),"",'I(eps)'!$AB$7+'I(eps)'!$AC$8*(ROW(W84)-ROW($W$43))*0.001) ->  | X84: =IFERROR(INDEX('I(eps)'!$I$2:$I$2502,'I(eps)'!$AC$7+1+'I(eps)'!$AC$8*(ROW()-ROW(Home!$X$43))),"") -> 
Q85: =IF(R85="","",'I(B)'!$B$7+'I(B)'!$C$8*(ROW(Q85)-ROW($Q$43))*0.1) -> 16.4 | R85: =IFERROR(INDEX('I(B)'!$F$2:$F$301,'I(B)'!$C$7+'I(B)'!$C$8*(ROW()-ROW(Home!$R$43))),"") -> 234.3992456 | T85: =IF(U85="","",'I(T)'!$B$7+'I(T)'!$C$8*(ROW(T85)-ROW($T$43))*0.1) ->  | U85: =IFERROR(INDEX('I(T)'!$I$2:$I$200,'I(T)'!$C$7+'I(T)'!$C$8*(ROW()-ROW(Home!$U$43))),"") ->  | W85: =IF(AND(X85="",OR(ISNUMBER(X84),W84="",MAX($X$43:$X$2542)=0)),"",'I(eps)'!$AB$7+'I(eps)'!$AC$8*(ROW(W85)-ROW($W$43))*0.001) ->  | X85: =IFERROR(INDEX('I(eps)'!$I$2:$I$2502,'I(eps)'!$AC$7+1+'I(eps)'!$AC$8*(ROW()-ROW(Home!$X$43))),"") -> 
Q86: =IF(R86="","",'I(B)'!$B$7+'I(B)'!$C$8*(ROW(Q86)-ROW($Q$43))*0.1) -> 16.6 | R86: =IFERROR(INDEX('I(B)'!$F$2:$F$301,'I(B)'!$C$7+'I(B)'!$C$8*(ROW()-ROW(Home!$R$43))),"") -> 221.3308645 | T86: =IF(U86="","",'I(T)'!$B$7+'I(T)'!$C$8*(ROW(T86)-ROW($T$43))*0.1) ->  | U86: =IFERROR(INDEX('I(T)'!$I$2:$I$200,'I(T)'!$C$7+'I(T)'!$C$8*(ROW()-ROW(Home!$U$43))),"") ->  | W86: =IF(AND(X86="",OR(ISNUMBER(X85),W85="",MAX($X$43:$X$2542)=0)),"",'I(eps)'!$AB$7+'I(eps)'!$AC$8*(ROW(W86)-ROW($W$43))*0.001) ->  | X86: =IFERROR(INDEX('I(eps)'!$I$2:$I$2502,'I(eps)'!$AC$7+1+'I(eps)'!$AC$8*(ROW()-ROW(Home!$X$43))),"") -> 
Q87: =IF(R87="","",'I(B)'!$B$7+'I(B)'!$C$8*(ROW(Q87)-ROW($Q$43))*0.1) -> 16.8 | R87: =IFERROR(INDEX('I(B)'!$F$2:$F$301,'I(B)'!$C$7+'I(B)'!$C$8*(ROW()-ROW(Home!$R$43))),"") -> 208.724093 | T87: =IF(U87="","",'I(T)'!$B$7+'I(T)'!$C$8*(ROW(T87)-ROW($T$43))*0.1) ->  | U87: =IFERROR(INDEX('I(T)'!$I$2:$I$200,'I(T)'!$C$7+'I(T)'!$C$8*(ROW()-ROW(Home!$U$43))),"") ->  | W87: =IF(AND(X87="",OR(ISNUMBER(X86),W86="",MAX($X$43:$X$2542)=0)),"",'I(eps)'!$AB$7+'I(eps)'!$AC$8*(ROW(W87)-ROW($W$43))*0.001) ->  | X87: =IFERROR(INDEX('I(eps)'!$I$2:$I$2502,'I(eps)'!$AC$7+1+'I(eps)'!$AC$8*(ROW()-ROW(Home!$X$43))),"") -> 
Q88: =IF(R88="","",'I(B)'!$B$7+'I(B)'!$C$8*(ROW(Q88)-ROW($Q$43))*0.1) -> 17 | R88: =IFERROR(INDEX('I(B)'!$F$2:$F$301,'I(B)'!$C$7+'I(B)'!$C$8*(ROW()-ROW(Home!$R$43))),"") -> 196.5692305 | T88: =IF(U88="","",'I(T)'!$B$7+'I(T)'!$C$8*(ROW(T88)-ROW($T$43))*0.1) ->  | U88: =IFERROR(INDEX('I(T)'!$I$2:$I$200,'I(T)'!$C$7+'I(T)'!$C$8*(ROW()-ROW(Home!$U$43))),"") ->  | W88: =IF(AND(X88="",OR(ISNUMBER(X87),W87="",MAX($X$43:$X$2542)=0)),"",'I(eps)'!$AB$7+'I(eps)'!$AC$8*(ROW(W88)-ROW($W$43))*0.001) ->  | X88: =IFERROR(INDEX('I(eps)'!$I$2:$I$2502,'I(eps)'!$AC$7+1+'I(eps)'!$AC$8*(ROW()-ROW(Home!$X$43))),"") -> 
Q89: =IF(R89="","",'I(B)'!$B$7+'I(B)'!$C$8*(ROW(Q89)-ROW($Q$43))*0.1) -> 17.2 | R89: =IFERROR(INDEX('I(B)'!$F$2:$F$301,'I(B)'!$C$7+'I(B)'!$C$8*(ROW()-ROW(Home!$R$43))),"") -> 184.8569342 | T89: =IF(U89="","",'I(T)'!$B$7+'I(T)'!$C$8*(ROW(T89)-ROW($T$43))*0.1) ->  | U89: =IFERROR(INDEX('I(T)'!$I$2:$I$200,'I(T)'!$C$7+'I(T)'!$C$8*(ROW()-ROW(Home!$U$43))),"") ->  | W89: =IF(AND(X89="",OR(ISNUMBER(X88),W88="",MAX($X$43:$X$2542)=0)),"",'I(eps)'!$AB$7+'I(eps)'!$AC$8*(ROW(W89)-ROW($W$43))*0.001) ->  | X89: =IFERROR(INDEX('I(eps)'!$I$2:$I$2502,'I(eps)'!$AC$7+1+'I(eps)'!$AC$8*(ROW()-ROW(Home!$X$43))),"") -> 
Q90: =IF(R90="","",'I(B)'!$B$7+'I(B)'!$C$8*(ROW(Q90)-ROW($Q$43))*0.1) -> 17.4 | R90: =IFERROR(INDEX('I(B)'!$F$2:$F$301,'I(B)'!$C$7+'I(B)'!$C$8*(ROW()-ROW(Home!$R$43))),"") -> 173.578202 | T90: =IF(U90="","",'I(T)'!$B$7+'I(T)'!$C$8*(ROW(T90)-ROW($T$43))*0.1) ->  | U90: =IFERROR(INDEX('I(T)'!$I$2:$I$200,'I(T)'!$C$7+'I(T)'!$C$8*(ROW()-ROW(Home!$U$43))),"") ->  | W90: =IF(AND(X90="",OR(ISNUMBER(X89),W89="",MAX($X$43:$X$2542)=0)),"",'I(eps)'!$AB$7+'I(eps)'!$AC$8*(ROW(W90)-ROW($W$43))*0.001) ->  | X90: =IFERROR(INDEX('I(eps)'!$I$2:$I$2502,'I(eps)'!$AC$7+1+'I(eps)'!$AC$8*(ROW()-ROW(Home!$X$43))),"") -> 
Q91: =IF(R91="","",'I(B)'!$B$7+'I(B)'!$C$8*(ROW(Q91)-ROW($Q$43))*0.1) -> 17.6 | R91: =IFERROR(INDEX('I(B)'!$F$2:$F$301,'I(B)'!$C$7+'I(B)'!$C$8*(ROW()-ROW(Home!$R$43))),"") -> 162.7243556 | T91: =IF(U91="","",'I(T)'!$B$7+'I(T)'!$C$8*(ROW(T91)-ROW($T$43))*0.1) ->  | U91: =IFERROR(INDEX('I(T)'!$I$2:$I$200,'I(T)'!$C$7+'I(T)'!$C$8*(ROW()-ROW(Home!$U$43))),"") ->  | W91: =IF(AND(X91="",OR(ISNUMBER(X90),W90="",MAX($X$43:$X$2542)=0)),"",'I(eps)'!$AB$7+'I(eps)'!$AC$8*(ROW(W91)-ROW($W$43))*0.001) ->  | X91: =IFERROR(INDEX('I(eps)'!$I$2:$I$2502,'I(eps)'!$AC$7+1+'I(eps)'!$AC$8*(ROW()-ROW(Home!$X$43))),"") -> 
Q92: =IF(R92="","",'I(B)'!$B$7+'I(B)'!$C$8*(ROW(Q92)-ROW($Q$43))*0.1) -> 17.8 | R92: =IFERROR(INDEX('I(B)'!$F$2:$F$301,'I(B)'!$C$7+'I(B)'!$C$8*(ROW()-ROW(Home!$R$43))),"") -> 152.2870249 | T92: =IF(U92="","",'I(T)'!$B$7+'I(T)'!$C$8*(ROW(T92)-ROW($T$43))*0.1) ->  | U92: =IFERROR(INDEX('I(T)'!$I$2:$I$200,'I(T)'!$C$7+'I(T)'!$C$8*(ROW()-ROW(Home!$U$43))),"") ->  | W92: =IF(AND(X92="",OR(ISNUMBER(X91),W91="",MAX($X$43:$X$2542)=0)),"",'I(eps)'!$AB$7+'I(eps)'!$AC$8*(ROW(W92)-ROW($W$43))*0.001) ->  | X92: =IFERROR(INDEX('I(eps)'!$I$2:$I$2502,'I(eps)'!$AC$7+1+'I(eps)'!$AC$8*(ROW()-ROW(Home!$X$43))),"") -> 
Q93: =IF(R93="","",'I(B)'!$B$7+'I(B)'!$C$8*(ROW(Q93)-ROW($Q$43))*0.1) -> 18 | R93: =IFERROR(INDEX('I(B)'!$F$2:$F$301,'I(B)'!$C$7+'I(B)'!$C$8*(ROW()-ROW(Home!$R$43))),"") -> 142.2581333 | T93: =IF(U93="","",'I(T)'!$B$7+'I(T)'!$C$8*(ROW(T93)-ROW($T$43))*0.1) ->  | U93: =IFERROR(INDEX('I(T)'!$I$2:$I$200,'I(T)'!$C$7+'I(T)'!$C$8*(ROW()-ROW(Home!$U$43))),"") ->  | W93: =IF(AND(X93="",OR(ISNUMBER(X92),W92="",MAX($X$43:$X$2542)=0)),"",'I(eps)'!$AB$7+'I(eps)'!$AC$8*(ROW(W93)-ROW($W$43))*0.001) ->  | X93: =IFERROR(INDEX('I(eps)'!$I$2:$I$2502,'I(eps)'!$AC$7+1+'I(eps)'!$AC$8*(ROW()-ROW(Home!$X$43))),"") -> 
Q94: =IF(R94="","",'I(B)'!$B$7+'I(B)'!$C$8*(ROW(Q94)-ROW($Q$43))*0.1) -> 18.2 | R94: =IFERROR(INDEX('I(B)'!$F$2:$F$301,'I(B)'!$C$7+'I(B)'!$C$8*(ROW()-ROW(Home!$R$43))),"") -> 132.6298844 | T94: =IF(U94="","",'I(T)'!$B$7+'I(T)'!$C$8*(ROW(T94)-ROW($T$43))*0.1) ->  | U94: =IFERROR(INDEX('I(T)'!$I$2:$I$200,'I(T)'!$C$7+'I(T)'!$C$8*(ROW()-ROW(Home!$U$43))),"") ->  | W94: =IF(AND(X94="",OR(ISNUMBER(X93),W93="",MAX($X$43:$X$2542)=0)),"",'I(eps)'!$AB$7+'I(eps)'!$AC$8*(ROW(W94)-ROW($W$43))*0.001) ->  | X94: =IFERROR(INDEX('I(eps)'!$I$2:$I$2502,'I(eps)'!$AC$7+1+'I(eps)'!$AC$8*(ROW()-ROW(Home!$X$43))),"") -> 
Q95: =IF(R95="","",'I(B)'!$B$7+'I(B)'!$C$8*(ROW(Q95)-ROW($Q$43))*0.1) -> 18.4 | R95: =IFERROR(INDEX('I(B)'!$F$2:$F$301,'I(B)'!$C$7+'I(B)'!$C$8*(ROW()-ROW(Home!$R$43))),"") -> 123.3947481 | T95: =IF(U95="","",'I(T)'!$B$7+'I(T)'!$C$8*(ROW(T95)-ROW($T$43))*0.1) ->  | U95: =IFERROR(INDEX('I(T)'!$I$2:$I$200,'I(T)'!$C$7+'I(T)'!$C$8*(ROW()-ROW(Home!$U$43))),"") ->  | W95: =IF(AND(X95="",OR(ISNUMBER(X94),W94="",MAX($X$43:$X$2542)=0)),"",'I(eps)'!$AB$7+'I(eps)'!$AC$8*(ROW(W95)-ROW($W$43))*0.001) ->  | X95: =IFERROR(INDEX('I(eps)'!$I$2:$I$2502,'I(eps)'!$AC$7+1+'I(eps)'!$AC$8*(ROW()-ROW(Home!$X$43))),"") -> 
Q96: =IF(R96="","",'I(B)'!$B$7+'I(B)'!$C$8*(ROW(Q96)-ROW($Q$43))*0.1) -> 18.6 | R96: =IFERROR(INDEX('I(B)'!$F$2:$F$301,'I(B)'!$C$7+'I(B)'!$C$8*(ROW()-ROW(Home!$R$43))),"") -> 114.5454491 | T96: =IF(U96="","",'I(T)'!$B$7+'I(T)'!$C$8*(ROW(T96)-ROW($T$43))*0.1) ->  | U96: =IFERROR(INDEX('I(T)'!$I$2:$I$200,'I(T)'!$C$7+'I(T)'!$C$8*(ROW()-ROW(Home!$U$43))),"") ->  | W96: =IF(AND(X96="",OR(ISNUMBER(X95),W95="",MAX($X$43:$X$2542)=0)),"",'I(eps)'!$AB$7+'I(eps)'!$AC$8*(ROW(W96)-ROW($W$43))*0.001) ->  | X96: =IFERROR(INDEX('I(eps)'!$I$2:$I$2502,'I(eps)'!$AC$7+1+'I(eps)'!$AC$8*(ROW()-ROW(Home!$X$43))),"") -> 
Q97: =IF(R97="","",'I(B)'!$B$7+'I(B)'!$C$8*(ROW(Q97)-ROW($Q$43))*0.1) -> 18.8 | R97: =IFERROR(INDEX('I(B)'!$F$2:$F$301,'I(B)'!$C$7+'I(B)'!$C$8*(ROW()-ROW(Home!$R$43))),"") -> 106.0749551 | T97: =IF(U97="","",'I(T)'!$B$7+'I(T)'!$C$8*(ROW(T97)-ROW($T$43))*0.1) ->  | U97: =IFERROR(INDEX('I(T)'!$I$2:$I$200,'I(T)'!$C$7+'I(T)'!$C$8*(ROW()-ROW(Home!$U$43))),"") ->  | W97: =IF(AND(X97="",OR(ISNUMBER(X96),W96="",MAX($X$43:$X$2542)=0)),"",'I(eps)'!$AB$7+'I(eps)'!$AC$8*(ROW(W97)-ROW($W$43))*0.001) ->  | X97: =IFERROR(INDEX('I(eps)'!$I$2:$I$2502,'I(eps)'!$AC$7+1+'I(eps)'!$AC$8*(ROW()-ROW(Home!$X$43))),"") -> 
Q98: =IF(R98="","",'I(B)'!$B$7+'I(B)'!$C$8*(ROW(Q98)-ROW($Q$43))*0.1) -> 19 | R98: =IFERROR(INDEX('I(B)'!$F$2:$F$301,'I(B)'!$C$7+'I(B)'!$C$8*(ROW()-ROW(Home!$R$43))),"") -> 97.9764657 | T98: =IF(U98="","",'I(T)'!$B$7+'I(T)'!$C$8*(ROW(T98)-ROW($T$43))*0.1) ->  | U98: =IFERROR(INDEX('I(T)'!$I$2:$I$200,'I(T)'!$C$7+'I(T)'!$C$8*(ROW()-ROW(Home!$U$43))),"") ->  | W98: =IF(AND(X98="",OR(ISNUMBER(X97),W97="",MAX($X$43:$X$2542)=0)),"",'I(eps)'!$AB$7+'I(eps)'!$AC$8*(ROW(W98)-ROW($W$43))*0.001) ->  | X98: =IFERROR(INDEX('I(eps)'!$I$2:$I$2502,'I(eps)'!$AC$7+1+'I(eps)'!$AC$8*(ROW()-ROW(Home!$X$43))),"") -> 
Q99: =IF(R99="","",'I(B)'!$B$7+'I(B)'!$C$8*(ROW(Q99)-ROW($Q$43))*0.1) -> 19.2 | R99: =IFERROR(INDEX('I(B)'!$F$2:$F$301,'I(B)'!$C$7+'I(B)'!$C$8*(ROW()-ROW(Home!$R$43))),"") -> 90.24340241 | T99: =IF(U99="","",'I(T)'!$B$7+'I(T)'!$C$8*(ROW(T99)-ROW($T$43))*0.1) ->  | U99: =IFERROR(INDEX('I(T)'!$I$2:$I$200,'I(T)'!$C$7+'I(T)'!$C$8*(ROW()-ROW(Home!$U$43))),"") ->  | W99: =IF(AND(X99="",OR(ISNUMBER(X98),W98="",MAX($X$43:$X$2542)=0)),"",'I(eps)'!$AB$7+'I(eps)'!$AC$8*(ROW(W99)-ROW($W$43))*0.001) ->  | X99: =IFERROR(INDEX('I(eps)'!$I$2:$I$2502,'I(eps)'!$AC$7+1+'I(eps)'!$AC$8*(ROW()-ROW(Home!$X$43))),"") -> 
Q100: =IF(R100="","",'I(B)'!$B$7+'I(B)'!$C$8*(ROW(Q100)-ROW($Q$43))*0.1) -> 19.4 | R100: =IFERROR(INDEX('I(B)'!$F$2:$F$301,'I(B)'!$C$7+'I(B)'!$C$8*(ROW()-ROW(Home!$R$43))),"") -> 82.86939864 | T100: =IF(U100="","",'I(T)'!$B$7+'I(T)'!$C$8*(ROW(T100)-ROW($T$43))*0.1) ->  | U100: =IFERROR(INDEX('I(T)'!$I$2:$I$200,'I(T)'!$C$7+'I(T)'!$C$8*(ROW()-ROW(Home!$U$43))),"") ->  | W100: =IF(AND(X100="",OR(ISNUMBER(X99),W99="",MAX($X$43:$X$2542)=0)),"",'I(eps)'!$AB$7+'I(eps)'!$AC$8*(ROW(W100)-ROW($W$43))*0.001) ->  | X100: =IFERROR(INDEX('I(eps)'!$I$2:$I$2502,'I(eps)'!$AC$7+1+'I(eps)'!$AC$8*(ROW()-ROW(Home!$X$43))),"") -> 
Q101: =IF(R101="","",'I(B)'!$B$7+'I(B)'!$C$8*(ROW(Q101)-ROW($Q$43))*0.1) -> 19.6 | R101: =IFERROR(INDEX('I(B)'!$F$2:$F$301,'I(B)'!$C$7+'I(B)'!$C$8*(ROW()-ROW(Home!$R$43))),"") -> 75.84829065 | T101: =IF(U101="","",'I(T)'!$B$7+'I(T)'!$C$8*(ROW(T101)-ROW($T$43))*0.1) ->  | U101: =IFERROR(INDEX('I(T)'!$I$2:$I$200,'I(T)'!$C$7+'I(T)'!$C$8*(ROW()-ROW(Home!$U$43))),"") ->  | W101: =IF(AND(X101="",OR(ISNUMBER(X100),W100="",MAX($X$43:$X$2542)=0)),"",'I(eps)'!$AB$7+'I(eps)'!$AC$8*(ROW(W101)-ROW($W$43))*0.001) ->  | X101: =IFERROR(INDEX('I(eps)'!$I$2:$I$2502,'I(eps)'!$AC$7+1+'I(eps)'!$AC$8*(ROW()-ROW(Home!$X$43))),"") -> 
Q102: =IF(R102="","",'I(B)'!$B$7+'I(B)'!$C$8*(ROW(Q102)-ROW($Q$43))*0.1) -> 19.8 | R102: =IFERROR(INDEX('I(B)'!$F$2:$F$301,'I(B)'!$C$7+'I(B)'!$C$8*(ROW()-ROW(Home!$R$43))),"") -> 69.17410876 | T102: =IF(U102="","",'I(T)'!$B$7+'I(T)'!$C$8*(ROW(T102)-ROW($T$43))*0.1) ->  | U102: =IFERROR(INDEX('I(T)'!$I$2:$I$200,'I(T)'!$C$7+'I(T)'!$C$8*(ROW()-ROW(Home!$U$43))),"") ->  | W102: =IF(AND(X102="",OR(ISNUMBER(X101),W101="",MAX($X$43:$X$2542)=0)),"",'I(eps)'!$AB$7+'I(eps)'!$AC$8*(ROW(W102)-ROW($W$43))*0.001) ->  | X102: =IFERROR(INDEX('I(eps)'!$I$2:$I$2502,'I(eps)'!$AC$7+1+'I(eps)'!$AC$8*(ROW()-ROW(Home!$X$43))),"") -> 
Q103: =IF(R103="","",'I(B)'!$B$7+'I(B)'!$C$8*(ROW(Q103)-ROW($Q$43))*0.1) -> 20 | R103: =IFERROR(INDEX('I(B)'!$F$2:$F$301,'I(B)'!$C$7+'I(B)'!$C$8*(ROW()-ROW(Home!$R$43))),"") -> 62.84106912 | T103: =IF(U103="","",'I(T)'!$B$7+'I(T)'!$C$8*(ROW(T103)-ROW($T$43))*0.1) ->  | U103: =IFERROR(INDEX('I(T)'!$I$2:$I$200,'I(T)'!$C$7+'I(T)'!$C$8*(ROW()-ROW(Home!$U$43))),"") ->  | W103: =IF(AND(X103="",OR(ISNUMBER(X102),W102="",MAX($X$43:$X$2542)=0)),"",'I(eps)'!$AB$7+'I(eps)'!$AC$8*(ROW(W103)-ROW($W$43))*0.001) ->  | X103: =IFERROR(INDEX('I(eps)'!$I$2:$I$2502,'I(eps)'!$AC$7+1+'I(eps)'!$AC$8*(ROW()-ROW(Home!$X$43))),"") -> 
Q104: =IF(R104="","",'I(B)'!$B$7+'I(B)'!$C$8*(ROW(Q104)-ROW($Q$43))*0.1) -> 20.2 | R104: =IFERROR(INDEX('I(B)'!$F$2:$F$301,'I(B)'!$C$7+'I(B)'!$C$8*(ROW()-ROW(Home!$R$43))),"") -> 56.84356592 | T104: =IF(U104="","",'I(T)'!$B$7+'I(T)'!$C$8*(ROW(T104)-ROW($T$43))*0.1) ->  | U104: =IFERROR(INDEX('I(T)'!$I$2:$I$200,'I(T)'!$C$7+'I(T)'!$C$8*(ROW()-ROW(Home!$U$43))),"") ->  | W104: =IF(AND(X104="",OR(ISNUMBER(X103),W103="",MAX($X$43:$X$2542)=0)),"",'I(eps)'!$AB$7+'I(eps)'!$AC$8*(ROW(W104)-ROW($W$43))*0.001) ->  | X104: =IFERROR(INDEX('I(eps)'!$I$2:$I$2502,'I(eps)'!$AC$7+1+'I(eps)'!$AC$8*(ROW()-ROW(Home!$X$43))),"") -> 
Q105: =IF(R105="","",'I(B)'!$B$7+'I(B)'!$C$8*(ROW(Q105)-ROW($Q$43))*0.1) -> 20.4 | R105: =IFERROR(INDEX('I(B)'!$F$2:$F$301,'I(B)'!$C$7+'I(B)'!$C$8*(ROW()-ROW(Home!$R$43))),"") -> 51.17616392 | T105: =IF(U105="","",'I(T)'!$B$7+'I(T)'!$C$8*(ROW(T105)-ROW($T$43))*0.1) ->  | U105: =IFERROR(INDEX('I(T)'!$I$2:$I$200,'I(T)'!$C$7+'I(T)'!$C$8*(ROW()-ROW(Home!$U$43))),"") ->  | W105: =IF(AND(X105="",OR(ISNUMBER(X104),W104="",MAX($X$43:$X$2542)=0)),"",'I(eps)'!$AB$7+'I(eps)'!$AC$8*(ROW(W105)-ROW($W$43))*0.001) ->  | X105: =IFERROR(INDEX('I(eps)'!$I$2:$I$2502,'I(eps)'!$AC$7+1+'I(eps)'!$AC$8*(ROW()-ROW(Home!$X$43))),"") -> 
Q106: =IF(R106="","",'I(B)'!$B$7+'I(B)'!$C$8*(ROW(Q106)-ROW($Q$43))*0.1) -> 20.6 | R106: =IFERROR(INDEX('I(B)'!$F$2:$F$301,'I(B)'!$C$7+'I(B)'!$C$8*(ROW()-ROW(Home!$R$43))),"") -> 45.83359147 | T106: =IF(U106="","",'I(T)'!$B$7+'I(T)'!$C$8*(ROW(T106)-ROW($T$43))*0.1) ->  | U106: =IFERROR(INDEX('I(T)'!$I$2:$I$200,'I(T)'!$C$7+'I(T)'!$C$8*(ROW()-ROW(Home!$U$43))),"") ->  | W106: =IF(AND(X106="",OR(ISNUMBER(X105),W105="",MAX($X$43:$X$2542)=0)),"",'I(eps)'!$AB$7+'I(eps)'!$AC$8*(ROW(W106)-ROW($W$43))*0.001) ->  | X106: =IFERROR(INDEX('I(eps)'!$I$2:$I$2502,'I(eps)'!$AC$7+1+'I(eps)'!$AC$8*(ROW()-ROW(Home!$X$43))),"") -> 
Q107: =IF(R107="","",'I(B)'!$B$7+'I(B)'!$C$8*(ROW(Q107)-ROW($Q$43))*0.1) -> 20.8 | R107: =IFERROR(INDEX('I(B)'!$F$2:$F$301,'I(B)'!$C$7+'I(B)'!$C$8*(ROW()-ROW(Home!$R$43))),"") -> 40.81073382 | T107: =IF(U107="","",'I(T)'!$B$7+'I(T)'!$C$8*(ROW(T107)-ROW($T$43))*0.1) ->  | U107: =IFERROR(INDEX('I(T)'!$I$2:$I$200,'I(T)'!$C$7+'I(T)'!$C$8*(ROW()-ROW(Home!$U$43))),"") ->  | W107: =IF(AND(X107="",OR(ISNUMBER(X106),W106="",MAX($X$43:$X$2542)=0)),"",'I(eps)'!$AB$7+'I(eps)'!$AC$8*(ROW(W107)-ROW($W$43))*0.001) ->  | X107: =IFERROR(INDEX('I(eps)'!$I$2:$I$2502,'I(eps)'!$AC$7+1+'I(eps)'!$AC$8*(ROW()-ROW(Home!$X$43))),"") -> 
Q108: =IF(R108="","",'I(B)'!$B$7+'I(B)'!$C$8*(ROW(Q108)-ROW($Q$43))*0.1) -> 21 | R108: =IFERROR(INDEX('I(B)'!$F$2:$F$301,'I(B)'!$C$7+'I(B)'!$C$8*(ROW()-ROW(Home!$R$43))),"") -> 36.1026268 | T108: =IF(U108="","",'I(T)'!$B$7+'I(T)'!$C$8*(ROW(T108)-ROW($T$43))*0.1) ->  | U108: =IFERROR(INDEX('I(T)'!$I$2:$I$200,'I(T)'!$C$7+'I(T)'!$C$8*(ROW()-ROW(Home!$U$43))),"") ->  | W108: =IF(AND(X108="",OR(ISNUMBER(X107),W107="",MAX($X$43:$X$2542)=0)),"",'I(eps)'!$AB$7+'I(eps)'!$AC$8*(ROW(W108)-ROW($W$43))*0.001) ->  | X108: =IFERROR(INDEX('I(eps)'!$I$2:$I$2502,'I(eps)'!$AC$7+1+'I(eps)'!$AC$8*(ROW()-ROW(Home!$X$43))),"") -> 
Q109: =IF(R109="","",'I(B)'!$B$7+'I(B)'!$C$8*(ROW(Q109)-ROW($Q$43))*0.1) -> 21.2 | R109: =IFERROR(INDEX('I(B)'!$F$2:$F$301,'I(B)'!$C$7+'I(B)'!$C$8*(ROW()-ROW(Home!$R$43))),"") -> 31.7044508 | T109: =IF(U109="","",'I(T)'!$B$7+'I(T)'!$C$8*(ROW(T109)-ROW($T$43))*0.1) ->  | U109: =IFERROR(INDEX('I(T)'!$I$2:$I$200,'I(T)'!$C$7+'I(T)'!$C$8*(ROW()-ROW(Home!$U$43))),"") ->  | W109: =IF(AND(X109="",OR(ISNUMBER(X108),W108="",MAX($X$43:$X$2542)=0)),"",'I(eps)'!$AB$7+'I(eps)'!$AC$8*(ROW(W109)-ROW($W$43))*0.001) ->  | X109: =IFERROR(INDEX('I(eps)'!$I$2:$I$2502,'I(eps)'!$AC$7+1+'I(eps)'!$AC$8*(ROW()-ROW(Home!$X$43))),"") -> 
Q110: =IF(R110="","",'I(B)'!$B$7+'I(B)'!$C$8*(ROW(Q110)-ROW($Q$43))*0.1) -> 21.4 | R110: =IFERROR(INDEX('I(B)'!$F$2:$F$301,'I(B)'!$C$7+'I(B)'!$C$8*(ROW()-ROW(Home!$R$43))),"") -> 27.61152504 | T110: =IF(U110="","",'I(T)'!$B$7+'I(T)'!$C$8*(ROW(T110)-ROW($T$43))*0.1) ->  | U110: =IFERROR(INDEX('I(T)'!$I$2:$I$200,'I(T)'!$C$7+'I(T)'!$C$8*(ROW()-ROW(Home!$U$43))),"") ->  | W110: =IF(AND(X110="",OR(ISNUMBER(X109),W109="",MAX($X$43:$X$2542)=0)),"",'I(eps)'!$AB$7+'I(eps)'!$AC$8*(ROW(W110)-ROW($W$43))*0.001) ->  | X110: =IFERROR(INDEX('I(eps)'!$I$2:$I$2502,'I(eps)'!$AC$7+1+'I(eps)'!$AC$8*(ROW()-ROW(Home!$X$43))),"") -> 
Q111: =IF(R111="","",'I(B)'!$B$7+'I(B)'!$C$8*(ROW(Q111)-ROW($Q$43))*0.1) -> 21.6 | R111: =IFERROR(INDEX('I(B)'!$F$2:$F$301,'I(B)'!$C$7+'I(B)'!$C$8*(ROW()-ROW(Home!$R$43))),"") -> 23.81930216 | T111: =IF(U111="","",'I(T)'!$B$7+'I(T)'!$C$8*(ROW(T111)-ROW($T$43))*0.1) ->  | U111: =IFERROR(INDEX('I(T)'!$I$2:$I$200,'I(T)'!$C$7+'I(T)'!$C$8*(ROW()-ROW(Home!$U$43))),"") ->  | W111: =IF(AND(X111="",OR(ISNUMBER(X110),W110="",MAX($X$43:$X$2542)=0)),"",'I(eps)'!$AB$7+'I(eps)'!$AC$8*(ROW(W111)-ROW($W$43))*0.001) ->  | X111: =IFERROR(INDEX('I(eps)'!$I$2:$I$2502,'I(eps)'!$AC$7+1+'I(eps)'!$AC$8*(ROW()-ROW(Home!$X$43))),"") -> 
Q112: =IF(R112="","",'I(B)'!$B$7+'I(B)'!$C$8*(ROW(Q112)-ROW($Q$43))*0.1) -> 21.8 | R112: =IFERROR(INDEX('I(B)'!$F$2:$F$301,'I(B)'!$C$7+'I(B)'!$C$8*(ROW()-ROW(Home!$R$43))),"") -> 20.32336304 | T112: =IF(U112="","",'I(T)'!$B$7+'I(T)'!$C$8*(ROW(T112)-ROW($T$43))*0.1) ->  | U112: =IFERROR(INDEX('I(T)'!$I$2:$I$200,'I(T)'!$C$7+'I(T)'!$C$8*(ROW()-ROW(Home!$U$43))),"") ->  | W112: =IF(AND(X112="",OR(ISNUMBER(X111),W111="",MAX($X$43:$X$2542)=0)),"",'I(eps)'!$AB$7+'I(eps)'!$AC$8*(ROW(W112)-ROW($W$43))*0.001) ->  | X112: =IFERROR(INDEX('I(eps)'!$I$2:$I$2502,'I(eps)'!$AC$7+1+'I(eps)'!$AC$8*(ROW()-ROW(Home!$X$43))),"") -> 
Q113: =IF(R113="","",'I(B)'!$B$7+'I(B)'!$C$8*(ROW(Q113)-ROW($Q$43))*0.1) -> 22 | R113: =IFERROR(INDEX('I(B)'!$F$2:$F$301,'I(B)'!$C$7+'I(B)'!$C$8*(ROW()-ROW(Home!$R$43))),"") -> 17.11941185 | T113: =IF(U113="","",'I(T)'!$B$7+'I(T)'!$C$8*(ROW(T113)-ROW($T$43))*0.1) ->  | U113: =IFERROR(INDEX('I(T)'!$I$2:$I$200,'I(T)'!$C$7+'I(T)'!$C$8*(ROW()-ROW(Home!$U$43))),"") ->  | W113: =IF(AND(X113="",OR(ISNUMBER(X112),W112="",MAX($X$43:$X$2542)=0)),"",'I(eps)'!$AB$7+'I(eps)'!$AC$8*(ROW(W113)-ROW($W$43))*0.001) ->  | X113: =IFERROR(INDEX('I(eps)'!$I$2:$I$2502,'I(eps)'!$AC$7+1+'I(eps)'!$AC$8*(ROW()-ROW(Home!$X$43))),"") -> 
Q114: =IF(R114="","",'I(B)'!$B$7+'I(B)'!$C$8*(ROW(Q114)-ROW($Q$43))*0.1) -> 22.2 | R114: =IFERROR(INDEX('I(B)'!$F$2:$F$301,'I(B)'!$C$7+'I(B)'!$C$8*(ROW()-ROW(Home!$R$43))),"") -> 14.20327142 | T114: =IF(U114="","",'I(T)'!$B$7+'I(T)'!$C$8*(ROW(T114)-ROW($T$43))*0.1) ->  | U114: =IFERROR(INDEX('I(T)'!$I$2:$I$200,'I(T)'!$C$7+'I(T)'!$C$8*(ROW()-ROW(Home!$U$43))),"") ->  | W114: =IF(AND(X114="",OR(ISNUMBER(X113),W113="",MAX($X$43:$X$2542)=0)),"",'I(eps)'!$AB$7+'I(eps)'!$AC$8*(ROW(W114)-ROW($W$43))*0.001) ->  | X114: =IFERROR(INDEX('I(eps)'!$I$2:$I$2502,'I(eps)'!$AC$7+1+'I(eps)'!$AC$8*(ROW()-ROW(Home!$X$43))),"") -> 
Q115: =IF(R115="","",'I(B)'!$B$7+'I(B)'!$C$8*(ROW(Q115)-ROW($Q$43))*0.1) -> 22.4 | R115: =IFERROR(INDEX('I(B)'!$F$2:$F$301,'I(B)'!$C$7+'I(B)'!$C$8*(ROW()-ROW(Home!$R$43))),"") -> 11.57087873 | T115: =IF(U115="","",'I(T)'!$B$7+'I(T)'!$C$8*(ROW(T115)-ROW($T$43))*0.1) ->  | U115: =IFERROR(INDEX('I(T)'!$I$2:$I$200,'I(T)'!$C$7+'I(T)'!$C$8*(ROW()-ROW(Home!$U$43))),"") ->  | W115: =IF(AND(X115="",OR(ISNUMBER(X114),W114="",MAX($X$43:$X$2542)=0)),"",'I(eps)'!$AB$7+'I(eps)'!$AC$8*(ROW(W115)-ROW($W$43))*0.001) ->  | X115: =IFERROR(INDEX('I(eps)'!$I$2:$I$2502,'I(eps)'!$AC$7+1+'I(eps)'!$AC$8*(ROW()-ROW(Home!$X$43))),"") -> 
Q116: =IF(R116="","",'I(B)'!$B$7+'I(B)'!$C$8*(ROW(Q116)-ROW($Q$43))*0.1) -> 22.6 | R116: =IFERROR(INDEX('I(B)'!$F$2:$F$301,'I(B)'!$C$7+'I(B)'!$C$8*(ROW()-ROW(Home!$R$43))),"") -> 9.218280643 | T116: =IF(U116="","",'I(T)'!$B$7+'I(T)'!$C$8*(ROW(T116)-ROW($T$43))*0.1) ->  | U116: =IFERROR(INDEX('I(T)'!$I$2:$I$200,'I(T)'!$C$7+'I(T)'!$C$8*(ROW()-ROW(Home!$U$43))),"") ->  | W116: =IF(AND(X116="",OR(ISNUMBER(X115),W115="",MAX($X$43:$X$2542)=0)),"",'I(eps)'!$AB$7+'I(eps)'!$AC$8*(ROW(W116)-ROW($W$43))*0.001) ->  | X116: =IFERROR(INDEX('I(eps)'!$I$2:$I$2502,'I(eps)'!$AC$7+1+'I(eps)'!$AC$8*(ROW()-ROW(Home!$X$43))),"") -> 
Q117: =IF(R117="","",'I(B)'!$B$7+'I(B)'!$C$8*(ROW(Q117)-ROW($Q$43))*0.1) -> 22.8 | R117: =IFERROR(INDEX('I(B)'!$F$2:$F$301,'I(B)'!$C$7+'I(B)'!$C$8*(ROW()-ROW(Home!$R$43))),"") -> 7.141629896 | T117: =IF(U117="","",'I(T)'!$B$7+'I(T)'!$C$8*(ROW(T117)-ROW($T$43))*0.1) ->  | U117: =IFERROR(INDEX('I(T)'!$I$2:$I$200,'I(T)'!$C$7+'I(T)'!$C$8*(ROW()-ROW(Home!$U$43))),"") ->  | W117: =IF(AND(X117="",OR(ISNUMBER(X116),W116="",MAX($X$43:$X$2542)=0)),"",'I(eps)'!$AB$7+'I(eps)'!$AC$8*(ROW(W117)-ROW($W$43))*0.001) ->  | X117: =IFERROR(INDEX('I(eps)'!$I$2:$I$2502,'I(eps)'!$AC$7+1+'I(eps)'!$AC$8*(ROW()-ROW(Home!$X$43))),"") -> 
Q118: =IF(R118="","",'I(B)'!$B$7+'I(B)'!$C$8*(ROW(Q118)-ROW($Q$43))*0.1) -> 23 | R118: =IFERROR(INDEX('I(B)'!$F$2:$F$301,'I(B)'!$C$7+'I(B)'!$C$8*(ROW()-ROW(Home!$R$43))),"") -> 5.337181187 | T118: =IF(U118="","",'I(T)'!$B$7+'I(T)'!$C$8*(ROW(T118)-ROW($T$43))*0.1) ->  | U118: =IFERROR(INDEX('I(T)'!$I$2:$I$200,'I(T)'!$C$7+'I(T)'!$C$8*(ROW()-ROW(Home!$U$43))),"") ->  | W118: =IF(AND(X118="",OR(ISNUMBER(X117),W117="",MAX($X$43:$X$2542)=0)),"",'I(eps)'!$AB$7+'I(eps)'!$AC$8*(ROW(W118)-ROW($W$43))*0.001) ->  | X118: =IFERROR(INDEX('I(eps)'!$I$2:$I$2502,'I(eps)'!$AC$7+1+'I(eps)'!$AC$8*(ROW()-ROW(Home!$X$43))),"") -> 
Q119: =IF(R119="","",'I(B)'!$B$7+'I(B)'!$C$8*(ROW(Q119)-ROW($Q$43))*0.1) -> 23.2 | R119: =IFERROR(INDEX('I(B)'!$F$2:$F$301,'I(B)'!$C$7+'I(B)'!$C$8*(ROW()-ROW(Home!$R$43))),"") -> 3.801287492 | T119: =IF(U119="","",'I(T)'!$B$7+'I(T)'!$C$8*(ROW(T119)-ROW($T$43))*0.1) ->  | U119: =IFERROR(INDEX('I(T)'!$I$2:$I$200,'I(T)'!$C$7+'I(T)'!$C$8*(ROW()-ROW(Home!$U$43))),"") ->  | W119: =IF(AND(X119="",OR(ISNUMBER(X118),W118="",MAX($X$43:$X$2542)=0)),"",'I(eps)'!$AB$7+'I(eps)'!$AC$8*(ROW(W119)-ROW($W$43))*0.001) ->  | X119: =IFERROR(INDEX('I(eps)'!$I$2:$I$2502,'I(eps)'!$AC$7+1+'I(eps)'!$AC$8*(ROW()-ROW(Home!$X$43))),"") -> 
Q120: =IF(R120="","",'I(B)'!$B$7+'I(B)'!$C$8*(ROW(Q120)-ROW($Q$43))*0.1) -> 23.4 | R120: =IFERROR(INDEX('I(B)'!$F$2:$F$301,'I(B)'!$C$7+'I(B)'!$C$8*(ROW()-ROW(Home!$R$43))),"") -> 2.530396535 | T120: =IF(U120="","",'I(T)'!$B$7+'I(T)'!$C$8*(ROW(T120)-ROW($T$43))*0.1) ->  | U120: =IFERROR(INDEX('I(T)'!$I$2:$I$200,'I(T)'!$C$7+'I(T)'!$C$8*(ROW()-ROW(Home!$U$43))),"") ->  | W120: =IF(AND(X120="",OR(ISNUMBER(X119),W119="",MAX($X$43:$X$2542)=0)),"",'I(eps)'!$AB$7+'I(eps)'!$AC$8*(ROW(W120)-ROW($W$43))*0.001) ->  | X120: =IFERROR(INDEX('I(eps)'!$I$2:$I$2502,'I(eps)'!$AC$7+1+'I(eps)'!$AC$8*(ROW()-ROW(Home!$X$43))),"") -> 
Q121: =IF(R121="","",'I(B)'!$B$7+'I(B)'!$C$8*(ROW(Q121)-ROW($Q$43))*0.1) -> 23.6 | R121: =IFERROR(INDEX('I(B)'!$F$2:$F$301,'I(B)'!$C$7+'I(B)'!$C$8*(ROW()-ROW(Home!$R$43))),"") -> 1.52104742 | T121: =IF(U121="","",'I(T)'!$B$7+'I(T)'!$C$8*(ROW(T121)-ROW($T$43))*0.1) ->  | U121: =IFERROR(INDEX('I(T)'!$I$2:$I$200,'I(T)'!$C$7+'I(T)'!$C$8*(ROW()-ROW(Home!$U$43))),"") ->  | W121: =IF(AND(X121="",OR(ISNUMBER(X120),W120="",MAX($X$43:$X$2542)=0)),"",'I(eps)'!$AB$7+'I(eps)'!$AC$8*(ROW(W121)-ROW($W$43))*0.001) ->  | X121: =IFERROR(INDEX('I(eps)'!$I$2:$I$2502,'I(eps)'!$AC$7+1+'I(eps)'!$AC$8*(ROW()-ROW(Home!$X$43))),"") -> 
Q122: =IF(R122="","",'I(B)'!$B$7+'I(B)'!$C$8*(ROW(Q122)-ROW($Q$43))*0.1) -> 23.8 | R122: =IFERROR(INDEX('I(B)'!$F$2:$F$301,'I(B)'!$C$7+'I(B)'!$C$8*(ROW()-ROW(Home!$R$43))),"") -> 0.769867402 | T122: =IF(U122="","",'I(T)'!$B$7+'I(T)'!$C$8*(ROW(T122)-ROW($T$43))*0.1) ->  | U122: =IFERROR(INDEX('I(T)'!$I$2:$I$200,'I(T)'!$C$7+'I(T)'!$C$8*(ROW()-ROW(Home!$U$43))),"") ->  | W122: =IF(AND(X122="",OR(ISNUMBER(X121),W121="",MAX($X$43:$X$2542)=0)),"",'I(eps)'!$AB$7+'I(eps)'!$AC$8*(ROW(W122)-ROW($W$43))*0.001) ->  | X122: =IFERROR(INDEX('I(eps)'!$I$2:$I$2502,'I(eps)'!$AC$7+1+'I(eps)'!$AC$8*(ROW()-ROW(Home!$X$43))),"") -> 
Q123: =IF(R123="","",'I(B)'!$B$7+'I(B)'!$C$8*(ROW(Q123)-ROW($Q$43))*0.1) -> 24 | R123: =IFERROR(INDEX('I(B)'!$F$2:$F$301,'I(B)'!$C$7+'I(B)'!$C$8*(ROW()-ROW(Home!$R$43))),"") -> 0.2735688153 | T123: =IF(U123="","",'I(T)'!$B$7+'I(T)'!$C$8*(ROW(T123)-ROW($T$43))*0.1) ->  | U123: =IFERROR(INDEX('I(T)'!$I$2:$I$200,'I(T)'!$C$7+'I(T)'!$C$8*(ROW()-ROW(Home!$U$43))),"") ->  | W123: =IF(AND(X123="",OR(ISNUMBER(X122),W122="",MAX($X$43:$X$2542)=0)),"",'I(eps)'!$AB$7+'I(eps)'!$AC$8*(ROW(W123)-ROW($W$43))*0.001) ->  | X123: =IFERROR(INDEX('I(eps)'!$I$2:$I$2502,'I(eps)'!$AC$7+1+'I(eps)'!$AC$8*(ROW()-ROW(Home!$X$43))),"") -> 
Q124: =IF(R124="","",'I(B)'!$B$7+'I(B)'!$C$8*(ROW(Q124)-ROW($Q$43))*0.1) -> 24.2 | R124: =IFERROR(INDEX('I(B)'!$F$2:$F$301,'I(B)'!$C$7+'I(B)'!$C$8*(ROW()-ROW(Home!$R$43))),"") -> 0.02894612197 | T124: =IF(U124="","",'I(T)'!$B$7+'I(T)'!$C$8*(ROW(T124)-ROW($T$43))*0.1) ->  | U124: =IFERROR(INDEX('I(T)'!$I$2:$I$200,'I(T)'!$C$7+'I(T)'!$C$8*(ROW()-ROW(Home!$U$43))),"") ->  | W124: =IF(AND(X124="",OR(ISNUMBER(X123),W123="",MAX($X$43:$X$2542)=0)),"",'I(eps)'!$AB$7+'I(eps)'!$AC$8*(ROW(W124)-ROW($W$43))*0.001) ->  | X124: =IFERROR(INDEX('I(eps)'!$I$2:$I$2502,'I(eps)'!$AC$7+1+'I(eps)'!$AC$8*(ROW()-ROW(Home!$X$43))),"") -> 
Q125: =IF(R125="","",'I(B)'!$B$7+'I(B)'!$C$8*(ROW(Q125)-ROW($Q$43))*0.1) ->  | R125: =IFERROR(INDEX('I(B)'!$F$2:$F$301,'I(B)'!$C$7+'I(B)'!$C$8*(ROW()-ROW(Home!$R$43))),"") ->  | T125: =IF(U125="","",'I(T)'!$B$7+'I(T)'!$C$8*(ROW(T125)-ROW($T$43))*0.1) ->  | U125: =IFERROR(INDEX('I(T)'!$I$2:$I$200,'I(T)'!$C$7+'I(T)'!$C$8*(ROW()-ROW(Home!$U$43))),"") ->  | W125: =IF(AND(X125="",OR(ISNUMBER(X124),W124="",MAX($X$43:$X$2542)=0)),"",'I(eps)'!$AB$7+'I(eps)'!$AC$8*(ROW(W125)-ROW($W$43))*0.001) ->  | X125: =IFERROR(INDEX('I(eps)'!$I$2:$I$2502,'I(eps)'!$AC$7+1+'I(eps)'!$AC$8*(ROW()-ROW(Home!$X$43))),"") -> 
Q126: =IF(R126="","",'I(B)'!$B$7+'I(B)'!$C$8*(ROW(Q126)-ROW($Q$43))*0.1) ->  | R126: =IFERROR(INDEX('I(B)'!$F$2:$F$301,'I(B)'!$C$7+'I(B)'!$C$8*(ROW()-ROW(Home!$R$43))),"") ->  | T126: =IF(U126="","",'I(T)'!$B$7+'I(T)'!$C$8*(ROW(T126)-ROW($T$43))*0.1) ->  | U126: =IFERROR(INDEX('I(T)'!$I$2:$I$200,'I(T)'!$C$7+'I(T)'!$C$8*(ROW()-ROW(Home!$U$43))),"") ->  | W126: =IF(AND(X126="",OR(ISNUMBER(X125),W125="",MAX($X$43:$X$2542)=0)),"",'I(eps)'!$AB$7+'I(eps)'!$AC$8*(ROW(W126)-ROW($W$43))*0.001) ->  | X126: =IFERROR(INDEX('I(eps)'!$I$2:$I$2502,'I(eps)'!$AC$7+1+'I(eps)'!$AC$8*(ROW()-ROW(Home!$X$43))),"") -> 
Q127: =IF(R127="","",'I(B)'!$B$7+'I(B)'!$C$8*(ROW(Q127)-ROW($Q$43))*0.1) ->  | R127: =IFERROR(INDEX('I(B)'!$F$2:$F$301,'I(B)'!$C$7+'I(B)'!$C$8*(ROW()-ROW(Home!$R$43))),"") ->  | T127: =IF(U127="","",'I(T)'!$B$7+'I(T)'!$C$8*(ROW(T127)-ROW($T$43))*0.1) ->  | U127: =IFERROR(INDEX('I(T)'!$I$2:$I$200,'I(T)'!$C$7+'I(T)'!$C$8*(ROW()-ROW(Home!$U$43))),"") ->  | W127: =IF(AND(X127="",OR(ISNUMBER(X126),W126="",MAX($X$43:$X$2542)=0)),"",'I(eps)'!$AB$7+'I(eps)'!$AC$8*(ROW(W127)-ROW($W$43))*0.001) ->  | X127: =IFERROR(INDEX('I(eps)'!$I$2:$I$2502,'I(eps)'!$AC$7+1+'I(eps)'!$AC$8*(ROW()-ROW(Home!$X$43))),"") -> 
Q128: =IF(R128="","",'I(B)'!$B$7+'I(B)'!$C$8*(ROW(Q128)-ROW($Q$43))*0.1) ->  | R128: =IFERROR(INDEX('I(B)'!$F$2:$F$301,'I(B)'!$C$7+'I(B)'!$C$8*(ROW()-ROW(Home!$R$43))),"") ->  | T128: =IF(U128="","",'I(T)'!$B$7+'I(T)'!$C$8*(ROW(T128)-ROW($T$43))*0.1) ->  | U128: =IFERROR(INDEX('I(T)'!$I$2:$I$200,'I(T)'!$C$7+'I(T)'!$C$8*(ROW()-ROW(Home!$U$43))),"") ->  | W128: =IF(AND(X128="",OR(ISNUMBER(X127),W127="",MAX($X$43:$X$2542)=0)),"",'I(eps)'!$AB$7+'I(eps)'!$AC$8*(ROW(W128)-ROW($W$43))*0.001) ->  | X128: =IFERROR(INDEX('I(eps)'!$I$2:$I$2502,'I(eps)'!$AC$7+1+'I(eps)'!$AC$8*(ROW()-ROW(Home!$X$43))),"") -> 
Q129: =IF(R129="","",'I(B)'!$B$7+'I(B)'!$C$8*(ROW(Q129)-ROW($Q$43))*0.1) ->  | R129: =IFERROR(INDEX('I(B)'!$F$2:$F$301,'I(B)'!$C$7+'I(B)'!$C$8*(ROW()-ROW(Home!$R$43))),"") ->  | T129: =IF(U129="","",'I(T)'!$B$7+'I(T)'!$C$8*(ROW(T129)-ROW($T$43))*0.1) ->  | U129: =IFERROR(INDEX('I(T)'!$I$2:$I$200,'I(T)'!$C$7+'I(T)'!$C$8*(ROW()-ROW(Home!$U$43))),"") ->  | W129: =IF(AND(X129="",OR(ISNUMBER(X128),W128="",MAX($X$43:$X$2542)=0)),"",'I(eps)'!$AB$7+'I(eps)'!$AC$8*(ROW(W129)-ROW($W$43))*0.001) ->  | X129: =IFERROR(INDEX('I(eps)'!$I$2:$I$2502,'I(eps)'!$AC$7+1+'I(eps)'!$AC$8*(ROW()-ROW(Home!$X$43))),"") -> 
Q130: =IF(R130="","",'I(B)'!$B$7+'I(B)'!$C$8*(ROW(Q130)-ROW($Q$43))*0.1) ->  | R130: =IFERROR(INDEX('I(B)'!$F$2:$F$301,'I(B)'!$C$7+'I(B)'!$C$8*(ROW()-ROW(Home!$R$43))),"") ->  | T130: =IF(U130="","",'I(T)'!$B$7+'I(T)'!$C$8*(ROW(T130)-ROW($T$43))*0.1) ->  | U130: =IFERROR(INDEX('I(T)'!$I$2:$I$200,'I(T)'!$C$7+'I(T)'!$C$8*(ROW()-ROW(Home!$U$43))),"") ->  | W130: =IF(AND(X130="",OR(ISNUMBER(X129),W129="",MAX($X$43:$X$2542)=0)),"",'I(eps)'!$AB$7+'I(eps)'!$AC$8*(ROW(W130)-ROW($W$43))*0.001) ->  | X130: =IFERROR(INDEX('I(eps)'!$I$2:$I$2502,'I(eps)'!$AC$7+1+'I(eps)'!$AC$8*(ROW()-ROW(Home!$X$43))),"") -> 
Q131: =IF(R131="","",'I(B)'!$B$7+'I(B)'!$C$8*(ROW(Q131)-ROW($Q$43))*0.1) ->  | R131: =IFERROR(INDEX('I(B)'!$F$2:$F$301,'I(B)'!$C$7+'I(B)'!$C$8*(ROW()-ROW(Home!$R$43))),"") ->  | T131: =IF(U131="","",'I(T)'!$B$7+'I(T)'!$C$8*(ROW(T131)-ROW($T$43))*0.1) ->  | U131: =IFERROR(INDEX('I(T)'!$I$2:$I$200,'I(T)'!$C$7+'I(T)'!$C$8*(ROW()-ROW(Home!$U$43))),"") ->  | W131: =IF(AND(X131="",OR(ISNUMBER(X130),W130="",MAX($X$43:$X$2542)=0)),"",'I(eps)'!$AB$7+'I(eps)'!$AC$8*(ROW(W131)-ROW($W$43))*0.001) ->  | X131: =IFERROR(INDEX('I(eps)'!$I$2:$I$2502,'I(eps)'!$AC$7+1+'I(eps)'!$AC$8*(ROW()-ROW(Home!$X$43))),"") -> 
Q132: =IF(R132="","",'I(B)'!$B$7+'I(B)'!$C$8*(ROW(Q132)-ROW($Q$43))*0.1) ->  | R132: =IFERROR(INDEX('I(B)'!$F$2:$F$301,'I(B)'!$C$7+'I(B)'!$C$8*(ROW()-ROW(Home!$R$43))),"") ->  | T132: =IF(U132="","",'I(T)'!$B$7+'I(T)'!$C$8*(ROW(T132)-ROW($T$43))*0.1) ->  | U132: =IFERROR(INDEX('I(T)'!$I$2:$I$200,'I(T)'!$C$7+'I(T)'!$C$8*(ROW()-ROW(Home!$U$43))),"") ->  | W132: =IF(AND(X132="",OR(ISNUMBER(X131),W131="",MAX($X$43:$X$2542)=0)),"",'I(eps)'!$AB$7+'I(eps)'!$AC$8*(ROW(W132)-ROW($W$43))*0.001) ->  | X132: =IFERROR(INDEX('I(eps)'!$I$2:$I$2502,'I(eps)'!$AC$7+1+'I(eps)'!$AC$8*(ROW()-ROW(Home!$X$43))),"") -> 
Q133: =IF(R133="","",'I(B)'!$B$7+'I(B)'!$C$8*(ROW(Q133)-ROW($Q$43))*0.1) ->  | R133: =IFERROR(INDEX('I(B)'!$F$2:$F$301,'I(B)'!$C$7+'I(B)'!$C$8*(ROW()-ROW(Home!$R$43))),"") ->  | T133: =IF(U133="","",'I(T)'!$B$7+'I(T)'!$C$8*(ROW(T133)-ROW($T$43))*0.1) ->  | U133: =IFERROR(INDEX('I(T)'!$I$2:$I$200,'I(T)'!$C$7+'I(T)'!$C$8*(ROW()-ROW(Home!$U$43))),"") ->  | W133: =IF(AND(X133="",OR(ISNUMBER(X132),W132="",MAX($X$43:$X$2542)=0)),"",'I(eps)'!$AB$7+'I(eps)'!$AC$8*(ROW(W133)-ROW($W$43))*0.001) ->  | X133: =IFERROR(INDEX('I(eps)'!$I$2:$I$2502,'I(eps)'!$AC$7+1+'I(eps)'!$AC$8*(ROW()-ROW(Home!$X$43))),"") -> 
Q134: =IF(R134="","",'I(B)'!$B$7+'I(B)'!$C$8*(ROW(Q134)-ROW($Q$43))*0.1) ->  | R134: =IFERROR(INDEX('I(B)'!$F$2:$F$301,'I(B)'!$C$7+'I(B)'!$C$8*(ROW()-ROW(Home!$R$43))),"") ->  | T134: =IF(U134="","",'I(T)'!$B$7+'I(T)'!$C$8*(ROW(T134)-ROW($T$43))*0.1) ->  | U134: =IFERROR(INDEX('I(T)'!$I$2:$I$200,'I(T)'!$C$7+'I(T)'!$C$8*(ROW()-ROW(Home!$U$43))),"") ->  | W134: =IF(AND(X134="",OR(ISNUMBER(X133),W133="",MAX($X$43:$X$2542)=0)),"",'I(eps)'!$AB$7+'I(eps)'!$AC$8*(ROW(W134)-ROW($W$43))*0.001) ->  | X134: =IFERROR(INDEX('I(eps)'!$I$2:$I$2502,'I(eps)'!$AC$7+1+'I(eps)'!$AC$8*(ROW()-ROW(Home!$X$43))),"") -> 
Q135: =IF(R135="","",'I(B)'!$B$7+'I(B)'!$C$8*(ROW(Q135)-ROW($Q$43))*0.1) ->  | R135: =IFERROR(INDEX('I(B)'!$F$2:$F$301,'I(B)'!$C$7+'I(B)'!$C$8*(ROW()-ROW(Home!$R$43))),"") ->  | T135: =IF(U135="","",'I(T)'!$B$7+'I(T)'!$C$8*(ROW(T135)-ROW($T$43))*0.1) ->  | U135: =IFERROR(INDEX('I(T)'!$I$2:$I$200,'I(T)'!$C$7+'I(T)'!$C$8*(ROW()-ROW(Home!$U$43))),"") ->  | W135: =IF(AND(X135="",OR(ISNUMBER(X134),W134="",MAX($X$43:$X$2542)=0)),"",'I(eps)'!$AB$7+'I(eps)'!$AC$8*(ROW(W135)-ROW($W$43))*0.001) ->  | X135: =IFERROR(INDEX('I(eps)'!$I$2:$I$2502,'I(eps)'!$AC$7+1+'I(eps)'!$AC$8*(ROW()-ROW(Home!$X$43))),"") -> 
Q136: =IF(R136="","",'I(B)'!$B$7+'I(B)'!$C$8*(ROW(Q136)-ROW($Q$43))*0.1) ->  | R136: =IFERROR(INDEX('I(B)'!$F$2:$F$301,'I(B)'!$C$7+'I(B)'!$C$8*(ROW()-ROW(Home!$R$43))),"") ->  | T136: =IF(U136="","",'I(T)'!$B$7+'I(T)'!$C$8*(ROW(T136)-ROW($T$43))*0.1) ->  | U136: =IFERROR(INDEX('I(T)'!$I$2:$I$200,'I(T)'!$C$7+'I(T)'!$C$8*(ROW()-ROW(Home!$U$43))),"") ->  | W136: =IF(AND(X136="",OR(ISNUMBER(X135),W135="",MAX($X$43:$X$2542)=0)),"",'I(eps)'!$AB$7+'I(eps)'!$AC$8*(ROW(W136)-ROW($W$43))*0.001) ->  | X136: =IFERROR(INDEX('I(eps)'!$I$2:$I$2502,'I(eps)'!$AC$7+1+'I(eps)'!$AC$8*(ROW()-ROW(Home!$X$43))),"") -> 
Q137: =IF(R137="","",'I(B)'!$B$7+'I(B)'!$C$8*(ROW(Q137)-ROW($Q$43))*0.1) ->  | R137: =IFERROR(INDEX('I(B)'!$F$2:$F$301,'I(B)'!$C$7+'I(B)'!$C$8*(ROW()-ROW(Home!$R$43))),"") ->  | T137: =IF(U137="","",'I(T)'!$B$7+'I(T)'!$C$8*(ROW(T137)-ROW($T$43))*0.1) ->  | U137: =IFERROR(INDEX('I(T)'!$I$2:$I$200,'I(T)'!$C$7+'I(T)'!$C$8*(ROW()-ROW(Home!$U$43))),"") ->  | W137: =IF(AND(X137="",OR(ISNUMBER(X136),W136="",MAX($X$43:$X$2542)=0)),"",'I(eps)'!$AB$7+'I(eps)'!$AC$8*(ROW(W137)-ROW($W$43))*0.001) ->  | X137: =IFERROR(INDEX('I(eps)'!$I$2:$I$2502,'I(eps)'!$AC$7+1+'I(eps)'!$AC$8*(ROW()-ROW(Home!$X$43))),"") -> 
Q138: =IF(R138="","",'I(B)'!$B$7+'I(B)'!$C$8*(ROW(Q138)-ROW($Q$43))*0.1) ->  | R138: =IFERROR(INDEX('I(B)'!$F$2:$F$301,'I(B)'!$C$7+'I(B)'!$C$8*(ROW()-ROW(Home!$R$43))),"") ->  | T138: =IF(U138="","",'I(T)'!$B$7+'I(T)'!$C$8*(ROW(T138)-ROW($T$43))*0.1) ->  | U138: =IFERROR(INDEX('I(T)'!$I$2:$I$200,'I(T)'!$C$7+'I(T)'!$C$8*(ROW()-ROW(Home!$U$43))),"") ->  | W138: =IF(AND(X138="",OR(ISNUMBER(X137),W137="",MAX($X$43:$X$2542)=0)),"",'I(eps)'!$AB$7+'I(eps)'!$AC$8*(ROW(W138)-ROW($W$43))*0.001) ->  | X138: =IFERROR(INDEX('I(eps)'!$I$2:$I$2502,'I(eps)'!$AC$7+1+'I(eps)'!$AC$8*(ROW()-ROW(Home!$X$43))),"") -> 
Q139: =IF(R139="","",'I(B)'!$B$7+'I(B)'!$C$8*(ROW(Q139)-ROW($Q$43))*0.1) ->  | R139: =IFERROR(INDEX('I(B)'!$F$2:$F$301,'I(B)'!$C$7+'I(B)'!$C$8*(ROW()-ROW(Home!$R$43))),"") ->  | T139: =IF(U139="","",'I(T)'!$B$7+'I(T)'!$C$8*(ROW(T139)-ROW($T$43))*0.1) ->  | U139: =IFERROR(INDEX('I(T)'!$I$2:$I$200,'I(T)'!$C$7+'I(T)'!$C$8*(ROW()-ROW(Home!$U$43))),"") ->  | W139: =IF(AND(X139="",OR(ISNUMBER(X138),W138="",MAX($X$43:$X$2542)=0)),"",'I(eps)'!$AB$7+'I(eps)'!$AC$8*(ROW(W139)-ROW($W$43))*0.001) ->  | X139: =IFERROR(INDEX('I(eps)'!$I$2:$I$2502,'I(eps)'!$AC$7+1+'I(eps)'!$AC$8*(ROW()-ROW(Home!$X$43))),"") -> 
Q140: =IF(R140="","",'I(B)'!$B$7+'I(B)'!$C$8*(ROW(Q140)-ROW($Q$43))*0.1) ->  | R140: =IFERROR(INDEX('I(B)'!$F$2:$F$301,'I(B)'!$C$7+'I(B)'!$C$8*(ROW()-ROW(Home!$R$43))),"") ->  | T140: =IF(U140="","",'I(T)'!$B$7+'I(T)'!$C$8*(ROW(T140)-ROW($T$43))*0.1) ->  | U140: =IFERROR(INDEX('I(T)'!$I$2:$I$200,'I(T)'!$C$7+'I(T)'!$C$8*(ROW()-ROW(Home!$U$43))),"") ->  | W140: =IF(AND(X140="",OR(ISNUMBER(X139),W139="",MAX($X$43:$X$2542)=0)),"",'I(eps)'!$AB$7+'I(eps)'!$AC$8*(ROW(W140)-ROW($W$43))*0.001) ->  | X140: =IFERROR(INDEX('I(eps)'!$I$2:$I$2502,'I(eps)'!$AC$7+1+'I(eps)'!$AC$8*(ROW()-ROW(Home!$X$43))),"") -> 
Q141: =IF(R141="","",'I(B)'!$B$7+'I(B)'!$C$8*(ROW(Q141)-ROW($Q$43))*0.1) ->  | R141: =IFERROR(INDEX('I(B)'!$F$2:$F$301,'I(B)'!$C$7+'I(B)'!$C$8*(ROW()-ROW(Home!$R$43))),"") ->  | T141: =IF(U141="","",'I(T)'!$B$7+'I(T)'!$C$8*(ROW(T141)-ROW($T$43))*0.1) ->  | U141: =IFERROR(INDEX('I(T)'!$I$2:$I$200,'I(T)'!$C$7+'I(T)'!$C$8*(ROW()-ROW(Home!$U$43))),"") ->  | W141: =IF(AND(X141="",OR(ISNUMBER(X140),W140="",MAX($X$43:$X$2542)=0)),"",'I(eps)'!$AB$7+'I(eps)'!$AC$8*(ROW(W141)-ROW($W$43))*0.001) ->  | X141: =IFERROR(INDEX('I(eps)'!$I$2:$I$2502,'I(eps)'!$AC$7+1+'I(eps)'!$AC$8*(ROW()-ROW(Home!$X$43))),"") -> 
Q142: =IF(R142="","",'I(B)'!$B$7+'I(B)'!$C$8*(ROW(Q142)-ROW($Q$43))*0.1) ->  | R142: =IFERROR(INDEX('I(B)'!$F$2:$F$301,'I(B)'!$C$7+'I(B)'!$C$8*(ROW()-ROW(Home!$R$43))),"") ->  | T142: =IF(U142="","",'I(T)'!$B$7+'I(T)'!$C$8*(ROW(T142)-ROW($T$43))*0.1) ->  | U142: =IFERROR(INDEX('I(T)'!$I$2:$I$200,'I(T)'!$C$7+'I(T)'!$C$8*(ROW()-ROW(Home!$U$43))),"") ->  | W142: =IF(AND(X142="",OR(ISNUMBER(X141),W141="",MAX($X$43:$X$2542)=0)),"",'I(eps)'!$AB$7+'I(eps)'!$AC$8*(ROW(W142)-ROW($W$43))*0.001) ->  | X142: =IFERROR(INDEX('I(eps)'!$I$2:$I$2502,'I(eps)'!$AC$7+1+'I(eps)'!$AC$8*(ROW()-ROW(Home!$X$43))),"") -> 
Q143: =IF(R143="","",'I(B)'!$B$7+'I(B)'!$C$8*(ROW(Q143)-ROW($Q$43))*0.1) ->  | R143: =IFERROR(INDEX('I(B)'!$F$2:$F$301,'I(B)'!$C$7+'I(B)'!$C$8*(ROW()-ROW(Home!$R$43))),"") ->  | T143: =IF(U143="","",'I(T)'!$B$7+'I(T)'!$C$8*(ROW(T143)-ROW($T$43))*0.1) ->  | U143: =IFERROR(INDEX('I(T)'!$I$2:$I$200,'I(T)'!$C$7+'I(T)'!$C$8*(ROW()-ROW(Home!$U$43))),"") ->  | W143: =IF(AND(X143="",OR(ISNUMBER(X142),W142="",MAX($X$43:$X$2542)=0)),"",'I(eps)'!$AB$7+'I(eps)'!$AC$8*(ROW(W143)-ROW($W$43))*0.001) ->  | X143: =IFERROR(INDEX('I(eps)'!$I$2:$I$2502,'I(eps)'!$AC$7+1+'I(eps)'!$AC$8*(ROW()-ROW(Home!$X$43))),"") -> 
Q144: =IF(R144="","",'I(B)'!$B$7+'I(B)'!$C$8*(ROW(Q144)-ROW($Q$43))*0.1) ->  | R144: =IFERROR(INDEX('I(B)'!$F$2:$F$301,'I(B)'!$C$7+'I(B)'!$C$8*(ROW()-ROW(Home!$R$43))),"") ->  | T144: =IF(U144="","",'I(T)'!$B$7+'I(T)'!$C$8*(ROW(T144)-ROW($T$43))*0.1) ->  | U144: =IFERROR(INDEX('I(T)'!$I$2:$I$200,'I(T)'!$C$7+'I(T)'!$C$8*(ROW()-ROW(Home!$U$43))),"") ->  | W144: =IF(AND(X144="",OR(ISNUMBER(X143),W143="",MAX($X$43:$X$2542)=0)),"",'I(eps)'!$AB$7+'I(eps)'!$AC$8*(ROW(W144)-ROW($W$43))*0.001) ->  | X144: =IFERROR(INDEX('I(eps)'!$I$2:$I$2502,'I(eps)'!$AC$7+1+'I(eps)'!$AC$8*(ROW()-ROW(Home!$X$43))),"") -> 
Q145: =IF(R145="","",'I(B)'!$B$7+'I(B)'!$C$8*(ROW(Q145)-ROW($Q$43))*0.1) ->  | R145: =IFERROR(INDEX('I(B)'!$F$2:$F$301,'I(B)'!$C$7+'I(B)'!$C$8*(ROW()-ROW(Home!$R$43))),"") ->  | T145: =IF(U145="","",'I(T)'!$B$7+'I(T)'!$C$8*(ROW(T145)-ROW($T$43))*0.1) ->  | U145: =IFERROR(INDEX('I(T)'!$I$2:$I$200,'I(T)'!$C$7+'I(T)'!$C$8*(ROW()-ROW(Home!$U$43))),"") ->  | W145: =IF(AND(X145="",OR(ISNUMBER(X144),W144="",MAX($X$43:$X$2542)=0)),"",'I(eps)'!$AB$7+'I(eps)'!$AC$8*(ROW(W145)-ROW($W$43))*0.001) ->  | X145: =IFERROR(INDEX('I(eps)'!$I$2:$I$2502,'I(eps)'!$AC$7+1+'I(eps)'!$AC$8*(ROW()-ROW(Home!$X$43))),"") -> 
Q146: =IF(R146="","",'I(B)'!$B$7+'I(B)'!$C$8*(ROW(Q146)-ROW($Q$43))*0.1) ->  | R146: =IFERROR(INDEX('I(B)'!$F$2:$F$301,'I(B)'!$C$7+'I(B)'!$C$8*(ROW()-ROW(Home!$R$43))),"") ->  | T146: =IF(U146="","",'I(T)'!$B$7+'I(T)'!$C$8*(ROW(T146)-ROW($T$43))*0.1) ->  | U146: =IFERROR(INDEX('I(T)'!$I$2:$I$200,'I(T)'!$C$7+'I(T)'!$C$8*(ROW()-ROW(Home!$U$43))),"") ->  | W146: =IF(AND(X146="",OR(ISNUMBER(X145),W145="",MAX($X$43:$X$2542)=0)),"",'I(eps)'!$AB$7+'I(eps)'!$AC$8*(ROW(W146)-ROW($W$43))*0.001) ->  | X146: =IFERROR(INDEX('I(eps)'!$I$2:$I$2502,'I(eps)'!$AC$7+1+'I(eps)'!$AC$8*(ROW()-ROW(Home!$X$43))),"") -> 
Q147: =IF(R147="","",'I(B)'!$B$7+'I(B)'!$C$8*(ROW(Q147)-ROW($Q$43))*0.1) ->  | R147: =IFERROR(INDEX('I(B)'!$F$2:$F$301,'I(B)'!$C$7+'I(B)'!$C$8*(ROW()-ROW(Home!$R$43))),"") ->  | T147: =IF(U147="","",'I(T)'!$B$7+'I(T)'!$C$8*(ROW(T147)-ROW($T$43))*0.1) ->  | U147: =IFERROR(INDEX('I(T)'!$I$2:$I$200,'I(T)'!$C$7+'I(T)'!$C$8*(ROW()-ROW(Home!$U$43))),"") ->  | W147: =IF(AND(X147="",OR(ISNUMBER(X146),W146="",MAX($X$43:$X$2542)=0)),"",'I(eps)'!$AB$7+'I(eps)'!$AC$8*(ROW(W147)-ROW($W$43))*0.001) ->  | X147: =IFERROR(INDEX('I(eps)'!$I$2:$I$2502,'I(eps)'!$AC$7+1+'I(eps)'!$AC$8*(ROW()-ROW(Home!$X$43))),"") -> 
Q148: =IF(R148="","",'I(B)'!$B$7+'I(B)'!$C$8*(ROW(Q148)-ROW($Q$43))*0.1) ->  | R148: =IFERROR(INDEX('I(B)'!$F$2:$F$301,'I(B)'!$C$7+'I(B)'!$C$8*(ROW()-ROW(Home!$R$43))),"") ->  | T148: =IF(U148="","",'I(T)'!$B$7+'I(T)'!$C$8*(ROW(T148)-ROW($T$43))*0.1) ->  | U148: =IFERROR(INDEX('I(T)'!$I$2:$I$200,'I(T)'!$C$7+'I(T)'!$C$8*(ROW()-ROW(Home!$U$43))),"") ->  | W148: =IF(AND(X148="",OR(ISNUMBER(X147),W147="",MAX($X$43:$X$2542)=0)),"",'I(eps)'!$AB$7+'I(eps)'!$AC$8*(ROW(W148)-ROW($W$43))*0.001) ->  | X148: =IFERROR(INDEX('I(eps)'!$I$2:$I$2502,'I(eps)'!$AC$7+1+'I(eps)'!$AC$8*(ROW()-ROW(Home!$X$43))),"") -> 
Q149: =IF(R149="","",'I(B)'!$B$7+'I(B)'!$C$8*(ROW(Q149)-ROW($Q$43))*0.1) ->  | R149: =IFERROR(INDEX('I(B)'!$F$2:$F$301,'I(B)'!$C$7+'I(B)'!$C$8*(ROW()-ROW(Home!$R$43))),"") ->  | T149: =IF(U149="","",'I(T)'!$B$7+'I(T)'!$C$8*(ROW(T149)-ROW($T$43))*0.1) ->  | U149: =IFERROR(INDEX('I(T)'!$I$2:$I$200,'I(T)'!$C$7+'I(T)'!$C$8*(ROW()-ROW(Home!$U$43))),"") ->  | W149: =IF(AND(X149="",OR(ISNUMBER(X148),W148="",MAX($X$43:$X$2542)=0)),"",'I(eps)'!$AB$7+'I(eps)'!$AC$8*(ROW(W149)-ROW($W$43))*0.001) ->  | X149: =IFERROR(INDEX('I(eps)'!$I$2:$I$2502,'I(eps)'!$AC$7+1+'I(eps)'!$AC$8*(ROW()-ROW(Home!$X$43))),"") -> 
Q150: =IF(R150="","",'I(B)'!$B$7+'I(B)'!$C$8*(ROW(Q150)-ROW($Q$43))*0.1) ->  | R150: =IFERROR(INDEX('I(B)'!$F$2:$F$301,'I(B)'!$C$7+'I(B)'!$C$8*(ROW()-ROW(Home!$R$43))),"") ->  | T150: =IF(U150="","",'I(T)'!$B$7+'I(T)'!$C$8*(ROW(T150)-ROW($T$43))*0.1) ->  | U150: =IFERROR(INDEX('I(T)'!$I$2:$I$200,'I(T)'!$C$7+'I(T)'!$C$8*(ROW()-ROW(Home!$U$43))),"") ->  | W150: =IF(AND(X150="",OR(ISNUMBER(X149),W149="",MAX($X$43:$X$2542)=0)),"",'I(eps)'!$AB$7+'I(eps)'!$AC$8*(ROW(W150)-ROW($W$43))*0.001) ->  | X150: =IFERROR(INDEX('I(eps)'!$I$2:$I$2502,'I(eps)'!$AC$7+1+'I(eps)'!$AC$8*(ROW()-ROW(Home!$X$43))),"") -> 
Q151: =IF(R151="","",'I(B)'!$B$7+'I(B)'!$C$8*(ROW(Q151)-ROW($Q$43))*0.1) ->  | R151: =IFERROR(INDEX('I(B)'!$F$2:$F$301,'I(B)'!$C$7+'I(B)'!$C$8*(ROW()-ROW(Home!$R$43))),"") ->  | T151: =IF(U151="","",'I(T)'!$B$7+'I(T)'!$C$8*(ROW(T151)-ROW($T$43))*0.1) ->  | U151: =IFERROR(INDEX('I(T)'!$I$2:$I$200,'I(T)'!$C$7+'I(T)'!$C$8*(ROW()-ROW(Home!$U$43))),"") ->  | W151: =IF(AND(X151="",OR(ISNUMBER(X150),W150="",MAX($X$43:$X$2542)=0)),"",'I(eps)'!$AB$7+'I(eps)'!$AC$8*(ROW(W151)-ROW($W$43))*0.001) ->  | X151: =IFERROR(INDEX('I(eps)'!$I$2:$I$2502,'I(eps)'!$AC$7+1+'I(eps)'!$AC$8*(ROW()-ROW(Home!$X$43))),"") -> 
Q152: =IF(R152="","",'I(B)'!$B$7+'I(B)'!$C$8*(ROW(Q152)-ROW($Q$43))*0.1) ->  | R152: =IFERROR(INDEX('I(B)'!$F$2:$F$301,'I(B)'!$C$7+'I(B)'!$C$8*(ROW()-ROW(Home!$R$43))),"") ->  | T152: =IF(U152="","",'I(T)'!$B$7+'I(T)'!$C$8*(ROW(T152)-ROW($T$43))*0.1) ->  | U152: =IFERROR(INDEX('I(T)'!$I$2:$I$200,'I(T)'!$C$7+'I(T)'!$C$8*(ROW()-ROW(Home!$U$43))),"") ->  | W152: =IF(AND(X152="",OR(ISNUMBER(X151),W151="",MAX($X$43:$X$2542)=0)),"",'I(eps)'!$AB$7+'I(eps)'!$AC$8*(ROW(W152)-ROW($W$43))*0.001) ->  | X152: =IFERROR(INDEX('I(eps)'!$I$2:$I$2502,'I(eps)'!$AC$7+1+'I(eps)'!$AC$8*(ROW()-ROW(Home!$X$43))),"") -> 
Q153: =IF(R153="","",'I(B)'!$B$7+'I(B)'!$C$8*(ROW(Q153)-ROW($Q$43))*0.1) ->  | R153: =IFERROR(INDEX('I(B)'!$F$2:$F$301,'I(B)'!$C$7+'I(B)'!$C$8*(ROW()-ROW(Home!$R$43))),"") ->  | T153: =IF(U153="","",'I(T)'!$B$7+'I(T)'!$C$8*(ROW(T153)-ROW($T$43))*0.1) ->  | U153: =IFERROR(INDEX('I(T)'!$I$2:$I$200,'I(T)'!$C$7+'I(T)'!$C$8*(ROW()-ROW(Home!$U$43))),"") ->  | W153: =IF(AND(X153="",OR(ISNUMBER(X152),W152="",MAX($X$43:$X$2542)=0)),"",'I(eps)'!$AB$7+'I(eps)'!$AC$8*(ROW(W153)-ROW($W$43))*0.001) ->  | X153: =IFERROR(INDEX('I(eps)'!$I$2:$I$2502,'I(eps)'!$AC$7+1+'I(eps)'!$AC$8*(ROW()-ROW(Home!$X$43))),"") -> 
Q154: =IF(R154="","",'I(B)'!$B$7+'I(B)'!$C$8*(ROW(Q154)-ROW($Q$43))*0.1) ->  | R154: =IFERROR(INDEX('I(B)'!$F$2:$F$301,'I(B)'!$C$7+'I(B)'!$C$8*(ROW()-ROW(Home!$R$43))),"") ->  | T154: =IF(U154="","",'I(T)'!$B$7+'I(T)'!$C$8*(ROW(T154)-ROW($T$43))*0.1) ->  | U154: =IFERROR(INDEX('I(T)'!$I$2:$I$200,'I(T)'!$C$7+'I(T)'!$C$8*(ROW()-ROW(Home!$U$43))),"") ->  | W154: =IF(AND(X154="",OR(ISNUMBER(X153),W153="",MAX($X$43:$X$2542)=0)),"",'I(eps)'!$AB$7+'I(eps)'!$AC$8*(ROW(W154)-ROW($W$43))*0.001) ->  | X154: =IFERROR(INDEX('I(eps)'!$I$2:$I$2502,'I(eps)'!$AC$7+1+'I(eps)'!$AC$8*(ROW()-ROW(Home!$X$43))),"") -> 
Q155: =IF(R155="","",'I(B)'!$B$7+'I(B)'!$C$8*(ROW(Q155)-ROW($Q$43))*0.1) ->  | R155: =IFERROR(INDEX('I(B)'!$F$2:$F$301,'I(B)'!$C$7+'I(B)'!$C$8*(ROW()-ROW(Home!$R$43))),"") ->  | T155: =IF(U155="","",'I(T)'!$B$7+'I(T)'!$C$8*(ROW(T155)-ROW($T$43))*0.1) ->  | U155: =IFERROR(INDEX('I(T)'!$I$2:$I$200,'I(T)'!$C$7+'I(T)'!$C$8*(ROW()-ROW(Home!$U$43))),"") ->  | W155: =IF(AND(X155="",OR(ISNUMBER(X154),W154="",MAX($X$43:$X$2542)=0)),"",'I(eps)'!$AB$7+'I(eps)'!$AC$8*(ROW(W155)-ROW($W$43))*0.001) ->  | X155: =IFERROR(INDEX('I(eps)'!$I$2:$I$2502,'I(eps)'!$AC$7+1+'I(eps)'!$AC$8*(ROW()-ROW(Home!$X$43))),"") -> 
Q156: =IF(R156="","",'I(B)'!$B$7+'I(B)'!$C$8*(ROW(Q156)-ROW($Q$43))*0.1) ->  | R156: =IFERROR(INDEX('I(B)'!$F$2:$F$301,'I(B)'!$C$7+'I(B)'!$C$8*(ROW()-ROW(Home!$R$43))),"") ->  | T156: =IF(U156="","",'I(T)'!$B$7+'I(T)'!$C$8*(ROW(T156)-ROW($T$43))*0.1) ->  | U156: =IFERROR(INDEX('I(T)'!$I$2:$I$200,'I(T)'!$C$7+'I(T)'!$C$8*(ROW()-ROW(Home!$U$43))),"") ->  | W156: =IF(AND(X156="",OR(ISNUMBER(X155),W155="",MAX($X$43:$X$2542)=0)),"",'I(eps)'!$AB$7+'I(eps)'!$AC$8*(ROW(W156)-ROW($W$43))*0.001) ->  | X156: =IFERROR(INDEX('I(eps)'!$I$2:$I$2502,'I(eps)'!$AC$7+1+'I(eps)'!$AC$8*(ROW()-ROW(Home!$X$43))),"") -> 
Q157: =IF(R157="","",'I(B)'!$B$7+'I(B)'!$C$8*(ROW(Q157)-ROW($Q$43))*0.1) ->  | R157: =IFERROR(INDEX('I(B)'!$F$2:$F$301,'I(B)'!$C$7+'I(B)'!$C$8*(ROW()-ROW(Home!$R$43))),"") ->  | T157: =IF(U157="","",'I(T)'!$B$7+'I(T)'!$C$8*(ROW(T157)-ROW($T$43))*0.1) ->  | U157: =IFERROR(INDEX('I(T)'!$I$2:$I$200,'I(T)'!$C$7+'I(T)'!$C$8*(ROW()-ROW(Home!$U$43))),"") ->  | W157: =IF(AND(X157="",OR(ISNUMBER(X156),W156="",MAX($X$43:$X$2542)=0)),"",'I(eps)'!$AB$7+'I(eps)'!$AC$8*(ROW(W157)-ROW($W$43))*0.001) ->  | X157: =IFERROR(INDEX('I(eps)'!$I$2:$I$2502,'I(eps)'!$AC$7+1+'I(eps)'!$AC$8*(ROW()-ROW(Home!$X$43))),"") -> 
Q158: =IF(R158="","",'I(B)'!$B$7+'I(B)'!$C$8*(ROW(Q158)-ROW($Q$43))*0.1) ->  | R158: =IFERROR(INDEX('I(B)'!$F$2:$F$301,'I(B)'!$C$7+'I(B)'!$C$8*(ROW()-ROW(Home!$R$43))),"") ->  | T158: =IF(U158="","",'I(T)'!$B$7+'I(T)'!$C$8*(ROW(T158)-ROW($T$43))*0.1) ->  | U158: =IFERROR(INDEX('I(T)'!$I$2:$I$200,'I(T)'!$C$7+'I(T)'!$C$8*(ROW()-ROW(Home!$U$43))),"") ->  | W158: =IF(AND(X158="",OR(ISNUMBER(X157),W157="",MAX($X$43:$X$2542)=0)),"",'I(eps)'!$AB$7+'I(eps)'!$AC$8*(ROW(W158)-ROW($W$43))*0.001) ->  | X158: =IFERROR(INDEX('I(eps)'!$I$2:$I$2502,'I(eps)'!$AC$7+1+'I(eps)'!$AC$8*(ROW()-ROW(Home!$X$43))),"") -> 
Q159: =IF(R159="","",'I(B)'!$B$7+'I(B)'!$C$8*(ROW(Q159)-ROW($Q$43))*0.1) ->  | R159: =IFERROR(INDEX('I(B)'!$F$2:$F$301,'I(B)'!$C$7+'I(B)'!$C$8*(ROW()-ROW(Home!$R$43))),"") ->  | T159: =IF(U159="","",'I(T)'!$B$7+'I(T)'!$C$8*(ROW(T159)-ROW($T$43))*0.1) ->  | U159: =IFERROR(INDEX('I(T)'!$I$2:$I$200,'I(T)'!$C$7+'I(T)'!$C$8*(ROW()-ROW(Home!$U$43))),"") ->  | W159: =IF(AND(X159="",OR(ISNUMBER(X158),W158="",MAX($X$43:$X$2542)=0)),"",'I(eps)'!$AB$7+'I(eps)'!$AC$8*(ROW(W159)-ROW($W$43))*0.001) ->  | X159: =IFERROR(INDEX('I(eps)'!$I$2:$I$2502,'I(eps)'!$AC$7+1+'I(eps)'!$AC$8*(ROW()-ROW(Home!$X$43))),"") -> 
Q160: =IF(R160="","",'I(B)'!$B$7+'I(B)'!$C$8*(ROW(Q160)-ROW($Q$43))*0.1) ->  | R160: =IFERROR(INDEX('I(B)'!$F$2:$F$301,'I(B)'!$C$7+'I(B)'!$C$8*(ROW()-ROW(Home!$R$43))),"") ->  | T160: =IF(U160="","",'I(T)'!$B$7+'I(T)'!$C$8*(ROW(T160)-ROW($T$43))*0.1) ->  | U160: =IFERROR(INDEX('I(T)'!$I$2:$I$200,'I(T)'!$C$7+'I(T)'!$C$8*(ROW()-ROW(Home!$U$43))),"") ->  | W160: =IF(AND(X160="",OR(ISNUMBER(X159),W159="",MAX($X$43:$X$2542)=0)),"",'I(eps)'!$AB$7+'I(eps)'!$AC$8*(ROW(W160)-ROW($W$43))*0.001) ->  | X160: =IFERROR(INDEX('I(eps)'!$I$2:$I$2502,'I(eps)'!$AC$7+1+'I(eps)'!$AC$8*(ROW()-ROW(Home!$X$43))),"") -> 
Q161: =IF(R161="","",'I(B)'!$B$7+'I(B)'!$C$8*(ROW(Q161)-ROW($Q$43))*0.1) ->  | R161: =IFERROR(INDEX('I(B)'!$F$2:$F$301,'I(B)'!$C$7+'I(B)'!$C$8*(ROW()-ROW(Home!$R$43))),"") ->  | T161: =IF(U161="","",'I(T)'!$B$7+'I(T)'!$C$8*(ROW(T161)-ROW($T$43))*0.1) ->  | U161: =IFERROR(INDEX('I(T)'!$I$2:$I$200,'I(T)'!$C$7+'I(T)'!$C$8*(ROW()-ROW(Home!$U$43))),"") ->  | W161: =IF(AND(X161="",OR(ISNUMBER(X160),W160="",MAX($X$43:$X$2542)=0)),"",'I(eps)'!$AB$7+'I(eps)'!$AC$8*(ROW(W161)-ROW($W$43))*0.001) ->  | X161: =IFERROR(INDEX('I(eps)'!$I$2:$I$2502,'I(eps)'!$AC$7+1+'I(eps)'!$AC$8*(ROW()-ROW(Home!$X$43))),"") -> 
Q162: =IF(R162="","",'I(B)'!$B$7+'I(B)'!$C$8*(ROW(Q162)-ROW($Q$43))*0.1) ->  | R162: =IFERROR(INDEX('I(B)'!$F$2:$F$301,'I(B)'!$C$7+'I(B)'!$C$8*(ROW()-ROW(Home!$R$43))),"") ->  | T162: =IF(U162="","",'I(T)'!$B$7+'I(T)'!$C$8*(ROW(T162)-ROW($T$43))*0.1) ->  | U162: =IFERROR(INDEX('I(T)'!$I$2:$I$200,'I(T)'!$C$7+'I(T)'!$C$8*(ROW()-ROW(Home!$U$43))),"") ->  | W162: =IF(AND(X162="",OR(ISNUMBER(X161),W161="",MAX($X$43:$X$2542)=0)),"",'I(eps)'!$AB$7+'I(eps)'!$AC$8*(ROW(W162)-ROW($W$43))*0.001) ->  | X162: =IFERROR(INDEX('I(eps)'!$I$2:$I$2502,'I(eps)'!$AC$7+1+'I(eps)'!$AC$8*(ROW()-ROW(Home!$X$43))),"") -> 
Q163: =IF(R163="","",'I(B)'!$B$7+'I(B)'!$C$8*(ROW(Q163)-ROW($Q$43))*0.1) ->  | R163: =IFERROR(INDEX('I(B)'!$F$2:$F$301,'I(B)'!$C$7+'I(B)'!$C$8*(ROW()-ROW(Home!$R$43))),"") ->  | T163: =IF(U163="","",'I(T)'!$B$7+'I(T)'!$C$8*(ROW(T163)-ROW($T$43))*0.1) ->  | U163: =IFERROR(INDEX('I(T)'!$I$2:$I$200,'I(T)'!$C$7+'I(T)'!$C$8*(ROW()-ROW(Home!$U$43))),"") ->  | W163: =IF(AND(X163="",OR(ISNUMBER(X162),W162="",MAX($X$43:$X$2542)=0)),"",'I(eps)'!$AB$7+'I(eps)'!$AC$8*(ROW(W163)-ROW($W$43))*0.001) ->  | X163: =IFERROR(INDEX('I(eps)'!$I$2:$I$2502,'I(eps)'!$AC$7+1+'I(eps)'!$AC$8*(ROW()-ROW(Home!$X$43))),"") -> 
Q164: =IF(R164="","",'I(B)'!$B$7+'I(B)'!$C$8*(ROW(Q164)-ROW($Q$43))*0.1) ->  | R164: =IFERROR(INDEX('I(B)'!$F$2:$F$301,'I(B)'!$C$7+'I(B)'!$C$8*(ROW()-ROW(Home!$R$43))),"") ->  | T164: =IF(U164="","",'I(T)'!$B$7+'I(T)'!$C$8*(ROW(T164)-ROW($T$43))*0.1) ->  | U164: =IFERROR(INDEX('I(T)'!$I$2:$I$200,'I(T)'!$C$7+'I(T)'!$C$8*(ROW()-ROW(Home!$U$43))),"") ->  | W164: =IF(AND(X164="",OR(ISNUMBER(X163),W163="",MAX($X$43:$X$2542)=0)),"",'I(eps)'!$AB$7+'I(eps)'!$AC$8*(ROW(W164)-ROW($W$43))*0.001) ->  | X164: =IFERROR(INDEX('I(eps)'!$I$2:$I$2502,'I(eps)'!$AC$7+1+'I(eps)'!$AC$8*(ROW()-ROW(Home!$X$43))),"") -> 
Q165: =IF(R165="","",'I(B)'!$B$7+'I(B)'!$C$8*(ROW(Q165)-ROW($Q$43))*0.1) ->  | R165: =IFERROR(INDEX('I(B)'!$F$2:$F$301,'I(B)'!$C$7+'I(B)'!$C$8*(ROW()-ROW(Home!$R$43))),"") ->  | T165: =IF(U165="","",'I(T)'!$B$7+'I(T)'!$C$8*(ROW(T165)-ROW($T$43))*0.1) ->  | U165: =IFERROR(INDEX('I(T)'!$I$2:$I$200,'I(T)'!$C$7+'I(T)'!$C$8*(ROW()-ROW(Home!$U$43))),"") ->  | W165: =IF(AND(X165="",OR(ISNUMBER(X164),W164="",MAX($X$43:$X$2542)=0)),"",'I(eps)'!$AB$7+'I(eps)'!$AC$8*(ROW(W165)-ROW($W$43))*0.001) ->  | X165: =IFERROR(INDEX('I(eps)'!$I$2:$I$2502,'I(eps)'!$AC$7+1+'I(eps)'!$AC$8*(ROW()-ROW(Home!$X$43))),"") -> 
Q166: =IF(R166="","",'I(B)'!$B$7+'I(B)'!$C$8*(ROW(Q166)-ROW($Q$43))*0.1) ->  | R166: =IFERROR(INDEX('I(B)'!$F$2:$F$301,'I(B)'!$C$7+'I(B)'!$C$8*(ROW()-ROW(Home!$R$43))),"") ->  | T166: =IF(U166="","",'I(T)'!$B$7+'I(T)'!$C$8*(ROW(T166)-ROW($T$43))*0.1) ->  | U166: =IFERROR(INDEX('I(T)'!$I$2:$I$200,'I(T)'!$C$7+'I(T)'!$C$8*(ROW()-ROW(Home!$U$43))),"") ->  | W166: =IF(AND(X166="",OR(ISNUMBER(X165),W165="",MAX($X$43:$X$2542)=0)),"",'I(eps)'!$AB$7+'I(eps)'!$AC$8*(ROW(W166)-ROW($W$43))*0.001) ->  | X166: =IFERROR(INDEX('I(eps)'!$I$2:$I$2502,'I(eps)'!$AC$7+1+'I(eps)'!$AC$8*(ROW()-ROW(Home!$X$43))),"") -> 
Q167: =IF(R167="","",'I(B)'!$B$7+'I(B)'!$C$8*(ROW(Q167)-ROW($Q$43))*0.1) ->  | R167: =IFERROR(INDEX('I(B)'!$F$2:$F$301,'I(B)'!$C$7+'I(B)'!$C$8*(ROW()-ROW(Home!$R$43))),"") ->  | T167: =IF(U167="","",'I(T)'!$B$7+'I(T)'!$C$8*(ROW(T167)-ROW($T$43))*0.1) ->  | U167: =IFERROR(INDEX('I(T)'!$I$2:$I$200,'I(T)'!$C$7+'I(T)'!$C$8*(ROW()-ROW(Home!$U$43))),"") ->  | W167: =IF(AND(X167="",OR(ISNUMBER(X166),W166="",MAX($X$43:$X$2542)=0)),"",'I(eps)'!$AB$7+'I(eps)'!$AC$8*(ROW(W167)-ROW($W$43))*0.001) ->  | X167: =IFERROR(INDEX('I(eps)'!$I$2:$I$2502,'I(eps)'!$AC$7+1+'I(eps)'!$AC$8*(ROW()-ROW(Home!$X$43))),"") -> 
Q168: =IF(R168="","",'I(B)'!$B$7+'I(B)'!$C$8*(ROW(Q168)-ROW($Q$43))*0.1) ->  | R168: =IFERROR(INDEX('I(B)'!$F$2:$F$301,'I(B)'!$C$7+'I(B)'!$C$8*(ROW()-ROW(Home!$R$43))),"") ->  | T168: =IF(U168="","",'I(T)'!$B$7+'I(T)'!$C$8*(ROW(T168)-ROW($T$43))*0.1) ->  | U168: =IFERROR(INDEX('I(T)'!$I$2:$I$200,'I(T)'!$C$7+'I(T)'!$C$8*(ROW()-ROW(Home!$U$43))),"") ->  | W168: =IF(AND(X168="",OR(ISNUMBER(X167),W167="",MAX($X$43:$X$2542)=0)),"",'I(eps)'!$AB$7+'I(eps)'!$AC$8*(ROW(W168)-ROW($W$43))*0.001) ->  | X168: =IFERROR(INDEX('I(eps)'!$I$2:$I$2502,'I(eps)'!$AC$7+1+'I(eps)'!$AC$8*(ROW()-ROW(Home!$X$43))),"") -> 
Q169: =IF(R169="","",'I(B)'!$B$7+'I(B)'!$C$8*(ROW(Q169)-ROW($Q$43))*0.1) ->  | R169: =IFERROR(INDEX('I(B)'!$F$2:$F$301,'I(B)'!$C$7+'I(B)'!$C$8*(ROW()-ROW(Home!$R$43))),"") ->  | T169: =IF(U169="","",'I(T)'!$B$7+'I(T)'!$C$8*(ROW(T169)-ROW($T$43))*0.1) ->  | U169: =IFERROR(INDEX('I(T)'!$I$2:$I$200,'I(T)'!$C$7+'I(T)'!$C$8*(ROW()-ROW(Home!$U$43))),"") ->  | W169: =IF(AND(X169="",OR(ISNUMBER(X168),W168="",MAX($X$43:$X$2542)=0)),"",'I(eps)'!$AB$7+'I(eps)'!$AC$8*(ROW(W169)-ROW($W$43))*0.001) ->  | X169: =IFERROR(INDEX('I(eps)'!$I$2:$I$2502,'I(eps)'!$AC$7+1+'I(eps)'!$AC$8*(ROW()-ROW(Home!$X$43))),"") -> 
Q170: =IF(R170="","",'I(B)'!$B$7+'I(B)'!$C$8*(ROW(Q170)-ROW($Q$43))*0.1) ->  | R170: =IFERROR(INDEX('I(B)'!$F$2:$F$301,'I(B)'!$C$7+'I(B)'!$C$8*(ROW()-ROW(Home!$R$43))),"") ->  | T170: =IF(U170="","",'I(T)'!$B$7+'I(T)'!$C$8*(ROW(T170)-ROW($T$43))*0.1) ->  | U170: =IFERROR(INDEX('I(T)'!$I$2:$I$200,'I(T)'!$C$7+'I(T)'!$C$8*(ROW()-ROW(Home!$U$43))),"") ->  | W170: =IF(AND(X170="",OR(ISNUMBER(X169),W169="",MAX($X$43:$X$2542)=0)),"",'I(eps)'!$AB$7+'I(eps)'!$AC$8*(ROW(W170)-ROW($W$43))*0.001) ->  | X170: =IFERROR(INDEX('I(eps)'!$I$2:$I$2502,'I(eps)'!$AC$7+1+'I(eps)'!$AC$8*(ROW()-ROW(Home!$X$43))),"") -> 
Q171: =IF(R171="","",'I(B)'!$B$7+'I(B)'!$C$8*(ROW(Q171)-ROW($Q$43))*0.1) ->  | R171: =IFERROR(INDEX('I(B)'!$F$2:$F$301,'I(B)'!$C$7+'I(B)'!$C$8*(ROW()-ROW(Home!$R$43))),"") ->  | T171: =IF(U171="","",'I(T)'!$B$7+'I(T)'!$C$8*(ROW(T171)-ROW($T$43))*0.1) ->  | U171: =IFERROR(INDEX('I(T)'!$I$2:$I$200,'I(T)'!$C$7+'I(T)'!$C$8*(ROW()-ROW(Home!$U$43))),"") ->  | W171: =IF(AND(X171="",OR(ISNUMBER(X170),W170="",MAX($X$43:$X$2542)=0)),"",'I(eps)'!$AB$7+'I(eps)'!$AC$8*(ROW(W171)-ROW($W$43))*0.001) ->  | X171: =IFERROR(INDEX('I(eps)'!$I$2:$I$2502,'I(eps)'!$AC$7+1+'I(eps)'!$AC$8*(ROW()-ROW(Home!$X$43))),"") -> 
Q172: =IF(R172="","",'I(B)'!$B$7+'I(B)'!$C$8*(ROW(Q172)-ROW($Q$43))*0.1) ->  | R172: =IFERROR(INDEX('I(B)'!$F$2:$F$301,'I(B)'!$C$7+'I(B)'!$C$8*(ROW()-ROW(Home!$R$43))),"") ->  | T172: =IF(U172="","",'I(T)'!$B$7+'I(T)'!$C$8*(ROW(T172)-ROW($T$43))*0.1) ->  | U172: =IFERROR(INDEX('I(T)'!$I$2:$I$200,'I(T)'!$C$7+'I(T)'!$C$8*(ROW()-ROW(Home!$U$43))),"") ->  | W172: =IF(AND(X172="",OR(ISNUMBER(X171),W171="",MAX($X$43:$X$2542)=0)),"",'I(eps)'!$AB$7+'I(eps)'!$AC$8*(ROW(W172)-ROW($W$43))*0.001) ->  | X172: =IFERROR(INDEX('I(eps)'!$I$2:$I$2502,'I(eps)'!$AC$7+1+'I(eps)'!$AC$8*(ROW()-ROW(Home!$X$43))),"") -> 
Q173: =IF(R173="","",'I(B)'!$B$7+'I(B)'!$C$8*(ROW(Q173)-ROW($Q$43))*0.1) ->  | R173: =IFERROR(INDEX('I(B)'!$F$2:$F$301,'I(B)'!$C$7+'I(B)'!$C$8*(ROW()-ROW(Home!$R$43))),"") ->  | T173: =IF(U173="","",'I(T)'!$B$7+'I(T)'!$C$8*(ROW(T173)-ROW($T$43))*0.1) ->  | U173: =IFERROR(INDEX('I(T)'!$I$2:$I$200,'I(T)'!$C$7+'I(T)'!$C$8*(ROW()-ROW(Home!$U$43))),"") ->  | W173: =IF(AND(X173="",OR(ISNUMBER(X172),W172="",MAX($X$43:$X$2542)=0)),"",'I(eps)'!$AB$7+'I(eps)'!$AC$8*(ROW(W173)-ROW($W$43))*0.001) ->  | X173: =IFERROR(INDEX('I(eps)'!$I$2:$I$2502,'I(eps)'!$AC$7+1+'I(eps)'!$AC$8*(ROW()-ROW(Home!$X$43))),"") -> 
Q174: =IF(R174="","",'I(B)'!$B$7+'I(B)'!$C$8*(ROW(Q174)-ROW($Q$43))*0.1) ->  | R174: =IFERROR(INDEX('I(B)'!$F$2:$F$301,'I(B)'!$C$7+'I(B)'!$C$8*(ROW()-ROW(Home!$R$43))),"") ->  | T174: =IF(U174="","",'I(T)'!$B$7+'I(T)'!$C$8*(ROW(T174)-ROW($T$43))*0.1) ->  | U174: =IFERROR(INDEX('I(T)'!$I$2:$I$200,'I(T)'!$C$7+'I(T)'!$C$8*(ROW()-ROW(Home!$U$43))),"") ->  | W174: =IF(AND(X174="",OR(ISNUMBER(X173),W173="",MAX($X$43:$X$2542)=0)),"",'I(eps)'!$AB$7+'I(eps)'!$AC$8*(ROW(W174)-ROW($W$43))*0.001) ->  | X174: =IFERROR(INDEX('I(eps)'!$I$2:$I$2502,'I(eps)'!$AC$7+1+'I(eps)'!$AC$8*(ROW()-ROW(Home!$X$43))),"") -> 
Q175: =IF(R175="","",'I(B)'!$B$7+'I(B)'!$C$8*(ROW(Q175)-ROW($Q$43))*0.1) ->  | R175: =IFERROR(INDEX('I(B)'!$F$2:$F$301,'I(B)'!$C$7+'I(B)'!$C$8*(ROW()-ROW(Home!$R$43))),"") ->  | T175: =IF(U175="","",'I(T)'!$B$7+'I(T)'!$C$8*(ROW(T175)-ROW($T$43))*0.1) ->  | U175: =IFERROR(INDEX('I(T)'!$I$2:$I$200,'I(T)'!$C$7+'I(T)'!$C$8*(ROW()-ROW(Home!$U$43))),"") ->  | W175: =IF(AND(X175="",OR(ISNUMBER(X174),W174="",MAX($X$43:$X$2542)=0)),"",'I(eps)'!$AB$7+'I(eps)'!$AC$8*(ROW(W175)-ROW($W$43))*0.001) ->  | X175: =IFERROR(INDEX('I(eps)'!$I$2:$I$2502,'I(eps)'!$AC$7+1+'I(eps)'!$AC$8*(ROW()-ROW(Home!$X$43))),"") -> 
Q176: =IF(R176="","",'I(B)'!$B$7+'I(B)'!$C$8*(ROW(Q176)-ROW($Q$43))*0.1) ->  | R176: =IFERROR(INDEX('I(B)'!$F$2:$F$301,'I(B)'!$C$7+'I(B)'!$C$8*(ROW()-ROW(Home!$R$43))),"") ->  | T176: =IF(U176="","",'I(T)'!$B$7+'I(T)'!$C$8*(ROW(T176)-ROW($T$43))*0.1) ->  | U176: =IFERROR(INDEX('I(T)'!$I$2:$I$200,'I(T)'!$C$7+'I(T)'!$C$8*(ROW()-ROW(Home!$U$43))),"") ->  | W176: =IF(AND(X176="",OR(ISNUMBER(X175),W175="",MAX($X$43:$X$2542)=0)),"",'I(eps)'!$AB$7+'I(eps)'!$AC$8*(ROW(W176)-ROW($W$43))*0.001) ->  | X176: =IFERROR(INDEX('I(eps)'!$I$2:$I$2502,'I(eps)'!$AC$7+1+'I(eps)'!$AC$8*(ROW()-ROW(Home!$X$43))),"") -> 
Q177: =IF(R177="","",'I(B)'!$B$7+'I(B)'!$C$8*(ROW(Q177)-ROW($Q$43))*0.1) ->  | R177: =IFERROR(INDEX('I(B)'!$F$2:$F$301,'I(B)'!$C$7+'I(B)'!$C$8*(ROW()-ROW(Home!$R$43))),"") ->  | T177: =IF(U177="","",'I(T)'!$B$7+'I(T)'!$C$8*(ROW(T177)-ROW($T$43))*0.1) ->  | U177: =IFERROR(INDEX('I(T)'!$I$2:$I$200,'I(T)'!$C$7+'I(T)'!$C$8*(ROW()-ROW(Home!$U$43))),"") ->  | W177: =IF(AND(X177="",OR(ISNUMBER(X176),W176="",MAX($X$43:$X$2542)=0)),"",'I(eps)'!$AB$7+'I(eps)'!$AC$8*(ROW(W177)-ROW($W$43))*0.001) ->  | X177: =IFERROR(INDEX('I(eps)'!$I$2:$I$2502,'I(eps)'!$AC$7+1+'I(eps)'!$AC$8*(ROW()-ROW(Home!$X$43))),"") -> 
Q178: =IF(R178="","",'I(B)'!$B$7+'I(B)'!$C$8*(ROW(Q178)-ROW($Q$43))*0.1) ->  | R178: =IFERROR(INDEX('I(B)'!$F$2:$F$301,'I(B)'!$C$7+'I(B)'!$C$8*(ROW()-ROW(Home!$R$43))),"") ->  | T178: =IF(U178="","",'I(T)'!$B$7+'I(T)'!$C$8*(ROW(T178)-ROW($T$43))*0.1) ->  | U178: =IFERROR(INDEX('I(T)'!$I$2:$I$200,'I(T)'!$C$7+'I(T)'!$C$8*(ROW()-ROW(Home!$U$43))),"") ->  | W178: =IF(AND(X178="",OR(ISNUMBER(X177),W177="",MAX($X$43:$X$2542)=0)),"",'I(eps)'!$AB$7+'I(eps)'!$AC$8*(ROW(W178)-ROW($W$43))*0.001) ->  | X178: =IFERROR(INDEX('I(eps)'!$I$2:$I$2502,'I(eps)'!$AC$7+1+'I(eps)'!$AC$8*(ROW()-ROW(Home!$X$43))),"") -> 
Q179: =IF(R179="","",'I(B)'!$B$7+'I(B)'!$C$8*(ROW(Q179)-ROW($Q$43))*0.1) ->  | R179: =IFERROR(INDEX('I(B)'!$F$2:$F$301,'I(B)'!$C$7+'I(B)'!$C$8*(ROW()-ROW(Home!$R$43))),"") ->  | T179: =IF(U179="","",'I(T)'!$B$7+'I(T)'!$C$8*(ROW(T179)-ROW($T$43))*0.1) ->  | U179: =IFERROR(INDEX('I(T)'!$I$2:$I$200,'I(T)'!$C$7+'I(T)'!$C$8*(ROW()-ROW(Home!$U$43))),"") ->  | W179: =IF(AND(X179="",OR(ISNUMBER(X178),W178="",MAX($X$43:$X$2542)=0)),"",'I(eps)'!$AB$7+'I(eps)'!$AC$8*(ROW(W179)-ROW($W$43))*0.001) ->  | X179: =IFERROR(INDEX('I(eps)'!$I$2:$I$2502,'I(eps)'!$AC$7+1+'I(eps)'!$AC$8*(ROW()-ROW(Home!$X$43))),"") -> 
Q180: =IF(R180="","",'I(B)'!$B$7+'I(B)'!$C$8*(ROW(Q180)-ROW($Q$43))*0.1) ->  | R180: =IFERROR(INDEX('I(B)'!$F$2:$F$301,'I(B)'!$C$7+'I(B)'!$C$8*(ROW()-ROW(Home!$R$43))),"") ->  | T180: =IF(U180="","",'I(T)'!$B$7+'I(T)'!$C$8*(ROW(T180)-ROW($T$43))*0.1) ->  | U180: =IFERROR(INDEX('I(T)'!$I$2:$I$200,'I(T)'!$C$7+'I(T)'!$C$8*(ROW()-ROW(Home!$U$43))),"") ->  | W180: =IF(AND(X180="",OR(ISNUMBER(X179),W179="",MAX($X$43:$X$2542)=0)),"",'I(eps)'!$AB$7+'I(eps)'!$AC$8*(ROW(W180)-ROW($W$43))*0.001) ->  | X180: =IFERROR(INDEX('I(eps)'!$I$2:$I$2502,'I(eps)'!$AC$7+1+'I(eps)'!$AC$8*(ROW()-ROW(Home!$X$43))),"") -> 
Q181: =IF(R181="","",'I(B)'!$B$7+'I(B)'!$C$8*(ROW(Q181)-ROW($Q$43))*0.1) ->  | R181: =IFERROR(INDEX('I(B)'!$F$2:$F$301,'I(B)'!$C$7+'I(B)'!$C$8*(ROW()-ROW(Home!$R$43))),"") ->  | T181: =IF(U181="","",'I(T)'!$B$7+'I(T)'!$C$8*(ROW(T181)-ROW($T$43))*0.1) ->  | U181: =IFERROR(INDEX('I(T)'!$I$2:$I$200,'I(T)'!$C$7+'I(T)'!$C$8*(ROW()-ROW(Home!$U$43))),"") ->  | W181: =IF(AND(X181="",OR(ISNUMBER(X180),W180="",MAX($X$43:$X$2542)=0)),"",'I(eps)'!$AB$7+'I(eps)'!$AC$8*(ROW(W181)-ROW($W$43))*0.001) ->  | X181: =IFERROR(INDEX('I(eps)'!$I$2:$I$2502,'I(eps)'!$AC$7+1+'I(eps)'!$AC$8*(ROW()-ROW(Home!$X$43))),"") -> 
Q182: =IF(R182="","",'I(B)'!$B$7+'I(B)'!$C$8*(ROW(Q182)-ROW($Q$43))*0.1) ->  | R182: =IFERROR(INDEX('I(B)'!$F$2:$F$301,'I(B)'!$C$7+'I(B)'!$C$8*(ROW()-ROW(Home!$R$43))),"") ->  | T182: =IF(U182="","",'I(T)'!$B$7+'I(T)'!$C$8*(ROW(T182)-ROW($T$43))*0.1) ->  | U182: =IFERROR(INDEX('I(T)'!$I$2:$I$200,'I(T)'!$C$7+'I(T)'!$C$8*(ROW()-ROW(Home!$U$43))),"") ->  | W182: =IF(AND(X182="",OR(ISNUMBER(X181),W181="",MAX($X$43:$X$2542)=0)),"",'I(eps)'!$AB$7+'I(eps)'!$AC$8*(ROW(W182)-ROW($W$43))*0.001) ->  | X182: =IFERROR(INDEX('I(eps)'!$I$2:$I$2502,'I(eps)'!$AC$7+1+'I(eps)'!$AC$8*(ROW()-ROW(Home!$X$43))),"") -> 
Q183: =IF(R183="","",'I(B)'!$B$7+'I(B)'!$C$8*(ROW(Q183)-ROW($Q$43))*0.1) ->  | R183: =IFERROR(INDEX('I(B)'!$F$2:$F$301,'I(B)'!$C$7+'I(B)'!$C$8*(ROW()-ROW(Home!$R$43))),"") ->  | T183: =IF(U183="","",'I(T)'!$B$7+'I(T)'!$C$8*(ROW(T183)-ROW($T$43))*0.1) ->  | U183: =IFERROR(INDEX('I(T)'!$I$2:$I$200,'I(T)'!$C$7+'I(T)'!$C$8*(ROW()-ROW(Home!$U$43))),"") ->  | W183: =IF(AND(X183="",OR(ISNUMBER(X182),W182="",MAX($X$43:$X$2542)=0)),"",'I(eps)'!$AB$7+'I(eps)'!$AC$8*(ROW(W183)-ROW($W$43))*0.001) ->  | X183: =IFERROR(INDEX('I(eps)'!$I$2:$I$2502,'I(eps)'!$AC$7+1+'I(eps)'!$AC$8*(ROW()-ROW(Home!$X$43))),"") -> 
Q184: =IF(R184="","",'I(B)'!$B$7+'I(B)'!$C$8*(ROW(Q184)-ROW($Q$43))*0.1) ->  | R184: =IFERROR(INDEX('I(B)'!$F$2:$F$301,'I(B)'!$C$7+'I(B)'!$C$8*(ROW()-ROW(Home!$R$43))),"") ->  | T184: =IF(U184="","",'I(T)'!$B$7+'I(T)'!$C$8*(ROW(T184)-ROW($T$43))*0.1) ->  | U184: =IFERROR(INDEX('I(T)'!$I$2:$I$200,'I(T)'!$C$7+'I(T)'!$C$8*(ROW()-ROW(Home!$U$43))),"") ->  | W184: =IF(AND(X184="",OR(ISNUMBER(X183),W183="",MAX($X$43:$X$2542)=0)),"",'I(eps)'!$AB$7+'I(eps)'!$AC$8*(ROW(W184)-ROW($W$43))*0.001) ->  | X184: =IFERROR(INDEX('I(eps)'!$I$2:$I$2502,'I(eps)'!$AC$7+1+'I(eps)'!$AC$8*(ROW()-ROW(Home!$X$43))),"") -> 
Q185: =IF(R185="","",'I(B)'!$B$7+'I(B)'!$C$8*(ROW(Q185)-ROW($Q$43))*0.1) ->  | R185: =IFERROR(INDEX('I(B)'!$F$2:$F$301,'I(B)'!$C$7+'I(B)'!$C$8*(ROW()-ROW(Home!$R$43))),"") ->  | T185: =IF(U185="","",'I(T)'!$B$7+'I(T)'!$C$8*(ROW(T185)-ROW($T$43))*0.1) ->  | U185: =IFERROR(INDEX('I(T)'!$I$2:$I$200,'I(T)'!$C$7+'I(T)'!$C$8*(ROW()-ROW(Home!$U$43))),"") ->  | W185: =IF(AND(X185="",OR(ISNUMBER(X184),W184="",MAX($X$43:$X$2542)=0)),"",'I(eps)'!$AB$7+'I(eps)'!$AC$8*(ROW(W185)-ROW($W$43))*0.001) ->  | X185: =IFERROR(INDEX('I(eps)'!$I$2:$I$2502,'I(eps)'!$AC$7+1+'I(eps)'!$AC$8*(ROW()-ROW(Home!$X$43))),"") -> 
Q186: =IF(R186="","",'I(B)'!$B$7+'I(B)'!$C$8*(ROW(Q186)-ROW($Q$43))*0.1) ->  | R186: =IFERROR(INDEX('I(B)'!$F$2:$F$301,'I(B)'!$C$7+'I(B)'!$C$8*(ROW()-ROW(Home!$R$43))),"") ->  | T186: =IF(U186="","",'I(T)'!$B$7+'I(T)'!$C$8*(ROW(T186)-ROW($T$43))*0.1) ->  | U186: =IFERROR(INDEX('I(T)'!$I$2:$I$200,'I(T)'!$C$7+'I(T)'!$C$8*(ROW()-ROW(Home!$U$43))),"") ->  | W186: =IF(AND(X186="",OR(ISNUMBER(X185),W185="",MAX($X$43:$X$2542)=0)),"",'I(eps)'!$AB$7+'I(eps)'!$AC$8*(ROW(W186)-ROW($W$43))*0.001) ->  | X186: =IFERROR(INDEX('I(eps)'!$I$2:$I$2502,'I(eps)'!$AC$7+1+'I(eps)'!$AC$8*(ROW()-ROW(Home!$X$43))),"") -> 
Q187: =IF(R187="","",'I(B)'!$B$7+'I(B)'!$C$8*(ROW(Q187)-ROW($Q$43))*0.1) ->  | R187: =IFERROR(INDEX('I(B)'!$F$2:$F$301,'I(B)'!$C$7+'I(B)'!$C$8*(ROW()-ROW(Home!$R$43))),"") ->  | T187: =IF(U187="","",'I(T)'!$B$7+'I(T)'!$C$8*(ROW(T187)-ROW($T$43))*0.1) ->  | U187: =IFERROR(INDEX('I(T)'!$I$2:$I$200,'I(T)'!$C$7+'I(T)'!$C$8*(ROW()-ROW(Home!$U$43))),"") ->  | W187: =IF(AND(X187="",OR(ISNUMBER(X186),W186="",MAX($X$43:$X$2542)=0)),"",'I(eps)'!$AB$7+'I(eps)'!$AC$8*(ROW(W187)-ROW($W$43))*0.001) ->  | X187: =IFERROR(INDEX('I(eps)'!$I$2:$I$2502,'I(eps)'!$AC$7+1+'I(eps)'!$AC$8*(ROW()-ROW(Home!$X$43))),"") -> 
Q188: =IF(R188="","",'I(B)'!$B$7+'I(B)'!$C$8*(ROW(Q188)-ROW($Q$43))*0.1) ->  | R188: =IFERROR(INDEX('I(B)'!$F$2:$F$301,'I(B)'!$C$7+'I(B)'!$C$8*(ROW()-ROW(Home!$R$43))),"") ->  | T188: =IF(U188="","",'I(T)'!$B$7+'I(T)'!$C$8*(ROW(T188)-ROW($T$43))*0.1) ->  | U188: =IFERROR(INDEX('I(T)'!$I$2:$I$200,'I(T)'!$C$7+'I(T)'!$C$8*(ROW()-ROW(Home!$U$43))),"") ->  | W188: =IF(AND(X188="",OR(ISNUMBER(X187),W187="",MAX($X$43:$X$2542)=0)),"",'I(eps)'!$AB$7+'I(eps)'!$AC$8*(ROW(W188)-ROW($W$43))*0.001) ->  | X188: =IFERROR(INDEX('I(eps)'!$I$2:$I$2502,'I(eps)'!$AC$7+1+'I(eps)'!$AC$8*(ROW()-ROW(Home!$X$43))),"") -> 
Q189: =IF(R189="","",'I(B)'!$B$7+'I(B)'!$C$8*(ROW(Q189)-ROW($Q$43))*0.1) ->  | R189: =IFERROR(INDEX('I(B)'!$F$2:$F$301,'I(B)'!$C$7+'I(B)'!$C$8*(ROW()-ROW(Home!$R$43))),"") ->  | T189: =IF(U189="","",'I(T)'!$B$7+'I(T)'!$C$8*(ROW(T189)-ROW($T$43))*0.1) ->  | U189: =IFERROR(INDEX('I(T)'!$I$2:$I$200,'I(T)'!$C$7+'I(T)'!$C$8*(ROW()-ROW(Home!$U$43))),"") ->  | W189: =IF(AND(X189="",OR(ISNUMBER(X188),W188="",MAX($X$43:$X$2542)=0)),"",'I(eps)'!$AB$7+'I(eps)'!$AC$8*(ROW(W189)-ROW($W$43))*0.001) ->  | X189: =IFERROR(INDEX('I(eps)'!$I$2:$I$2502,'I(eps)'!$AC$7+1+'I(eps)'!$AC$8*(ROW()-ROW(Home!$X$43))),"") -> 
Q190: =IF(R190="","",'I(B)'!$B$7+'I(B)'!$C$8*(ROW(Q190)-ROW($Q$43))*0.1) ->  | R190: =IFERROR(INDEX('I(B)'!$F$2:$F$301,'I(B)'!$C$7+'I(B)'!$C$8*(ROW()-ROW(Home!$R$43))),"") ->  | T190: =IF(U190="","",'I(T)'!$B$7+'I(T)'!$C$8*(ROW(T190)-ROW($T$43))*0.1) ->  | U190: =IFERROR(INDEX('I(T)'!$I$2:$I$200,'I(T)'!$C$7+'I(T)'!$C$8*(ROW()-ROW(Home!$U$43))),"") ->  | W190: =IF(AND(X190="",OR(ISNUMBER(X189),W189="",MAX($X$43:$X$2542)=0)),"",'I(eps)'!$AB$7+'I(eps)'!$AC$8*(ROW(W190)-ROW($W$43))*0.001) ->  | X190: =IFERROR(INDEX('I(eps)'!$I$2:$I$2502,'I(eps)'!$AC$7+1+'I(eps)'!$AC$8*(ROW()-ROW(Home!$X$43))),"") -> 
Q191: =IF(R191="","",'I(B)'!$B$7+'I(B)'!$C$8*(ROW(Q191)-ROW($Q$43))*0.1) ->  | R191: =IFERROR(INDEX('I(B)'!$F$2:$F$301,'I(B)'!$C$7+'I(B)'!$C$8*(ROW()-ROW(Home!$R$43))),"") ->  | T191: =IF(U191="","",'I(T)'!$B$7+'I(T)'!$C$8*(ROW(T191)-ROW($T$43))*0.1) ->  | U191: =IFERROR(INDEX('I(T)'!$I$2:$I$200,'I(T)'!$C$7+'I(T)'!$C$8*(ROW()-ROW(Home!$U$43))),"") ->  | W191: =IF(AND(X191="",OR(ISNUMBER(X190),W190="",MAX($X$43:$X$2542)=0)),"",'I(eps)'!$AB$7+'I(eps)'!$AC$8*(ROW(W191)-ROW($W$43))*0.001) ->  | X191: =IFERROR(INDEX('I(eps)'!$I$2:$I$2502,'I(eps)'!$AC$7+1+'I(eps)'!$AC$8*(ROW()-ROW(Home!$X$43))),"") -> 
Q192: =IF(R192="","",'I(B)'!$B$7+'I(B)'!$C$8*(ROW(Q192)-ROW($Q$43))*0.1) ->  | R192: =IFERROR(INDEX('I(B)'!$F$2:$F$301,'I(B)'!$C$7+'I(B)'!$C$8*(ROW()-ROW(Home!$R$43))),"") ->  | T192: =IF(U192="","",'I(T)'!$B$7+'I(T)'!$C$8*(ROW(T192)-ROW($T$43))*0.1) ->  | U192: =IFERROR(INDEX('I(T)'!$I$2:$I$200,'I(T)'!$C$7+'I(T)'!$C$8*(ROW()-ROW(Home!$U$43))),"") ->  | W192: =IF(AND(X192="",OR(ISNUMBER(X191),W191="",MAX($X$43:$X$2542)=0)),"",'I(eps)'!$AB$7+'I(eps)'!$AC$8*(ROW(W192)-ROW($W$43))*0.001) ->  | X192: =IFERROR(INDEX('I(eps)'!$I$2:$I$2502,'I(eps)'!$AC$7+1+'I(eps)'!$AC$8*(ROW()-ROW(Home!$X$43))),"") -> 
Q193: =IF(R193="","",'I(B)'!$B$7+'I(B)'!$C$8*(ROW(Q193)-ROW($Q$43))*0.1) ->  | R193: =IFERROR(INDEX('I(B)'!$F$2:$F$301,'I(B)'!$C$7+'I(B)'!$C$8*(ROW()-ROW(Home!$R$43))),"") ->  | T193: =IF(U193="","",'I(T)'!$B$7+'I(T)'!$C$8*(ROW(T193)-ROW($T$43))*0.1) ->  | U193: =IFERROR(INDEX('I(T)'!$I$2:$I$200,'I(T)'!$C$7+'I(T)'!$C$8*(ROW()-ROW(Home!$U$43))),"") ->  | W193: =IF(AND(X193="",OR(ISNUMBER(X192),W192="",MAX($X$43:$X$2542)=0)),"",'I(eps)'!$AB$7+'I(eps)'!$AC$8*(ROW(W193)-ROW($W$43))*0.001) ->  | X193: =IFERROR(INDEX('I(eps)'!$I$2:$I$2502,'I(eps)'!$AC$7+1+'I(eps)'!$AC$8*(ROW()-ROW(Home!$X$43))),"") -> 
Q194: =IF(R194="","",'I(B)'!$B$7+'I(B)'!$C$8*(ROW(Q194)-ROW($Q$43))*0.1) ->  | R194: =IFERROR(INDEX('I(B)'!$F$2:$F$301,'I(B)'!$C$7+'I(B)'!$C$8*(ROW()-ROW(Home!$R$43))),"") ->  | T194: =IF(U194="","",'I(T)'!$B$7+'I(T)'!$C$8*(ROW(T194)-ROW($T$43))*0.1) ->  | U194: =IFERROR(INDEX('I(T)'!$I$2:$I$200,'I(T)'!$C$7+'I(T)'!$C$8*(ROW()-ROW(Home!$U$43))),"") ->  | W194: =IF(AND(X194="",OR(ISNUMBER(X193),W193="",MAX($X$43:$X$2542)=0)),"",'I(eps)'!$AB$7+'I(eps)'!$AC$8*(ROW(W194)-ROW($W$43))*0.001) ->  | X194: =IFERROR(INDEX('I(eps)'!$I$2:$I$2502,'I(eps)'!$AC$7+1+'I(eps)'!$AC$8*(ROW()-ROW(Home!$X$43))),"") -> 
Q195: =IF(R195="","",'I(B)'!$B$7+'I(B)'!$C$8*(ROW(Q195)-ROW($Q$43))*0.1) ->  | R195: =IFERROR(INDEX('I(B)'!$F$2:$F$301,'I(B)'!$C$7+'I(B)'!$C$8*(ROW()-ROW(Home!$R$43))),"") ->  | T195: =IF(U195="","",'I(T)'!$B$7+'I(T)'!$C$8*(ROW(T195)-ROW($T$43))*0.1) ->  | U195: =IFERROR(INDEX('I(T)'!$I$2:$I$200,'I(T)'!$C$7+'I(T)'!$C$8*(ROW()-ROW(Home!$U$43))),"") ->  | W195: =IF(AND(X195="",OR(ISNUMBER(X194),W194="",MAX($X$43:$X$2542)=0)),"",'I(eps)'!$AB$7+'I(eps)'!$AC$8*(ROW(W195)-ROW($W$43))*0.001) ->  | X195: =IFERROR(INDEX('I(eps)'!$I$2:$I$2502,'I(eps)'!$AC$7+1+'I(eps)'!$AC$8*(ROW()-ROW(Home!$X$43))),"") -> 
Q196: =IF(R196="","",'I(B)'!$B$7+'I(B)'!$C$8*(ROW(Q196)-ROW($Q$43))*0.1) ->  | R196: =IFERROR(INDEX('I(B)'!$F$2:$F$301,'I(B)'!$C$7+'I(B)'!$C$8*(ROW()-ROW(Home!$R$43))),"") ->  | T196: =IF(U196="","",'I(T)'!$B$7+'I(T)'!$C$8*(ROW(T196)-ROW($T$43))*0.1) ->  | U196: =IFERROR(INDEX('I(T)'!$I$2:$I$200,'I(T)'!$C$7+'I(T)'!$C$8*(ROW()-ROW(Home!$U$43))),"") ->  | W196: =IF(AND(X196="",OR(ISNUMBER(X195),W195="",MAX($X$43:$X$2542)=0)),"",'I(eps)'!$AB$7+'I(eps)'!$AC$8*(ROW(W196)-ROW($W$43))*0.001) ->  | X196: =IFERROR(INDEX('I(eps)'!$I$2:$I$2502,'I(eps)'!$AC$7+1+'I(eps)'!$AC$8*(ROW()-ROW(Home!$X$43))),"") -> 
Q197: =IF(R197="","",'I(B)'!$B$7+'I(B)'!$C$8*(ROW(Q197)-ROW($Q$43))*0.1) ->  | R197: =IFERROR(INDEX('I(B)'!$F$2:$F$301,'I(B)'!$C$7+'I(B)'!$C$8*(ROW()-ROW(Home!$R$43))),"") ->  | T197: =IF(U197="","",'I(T)'!$B$7+'I(T)'!$C$8*(ROW(T197)-ROW($T$43))*0.1) ->  | U197: =IFERROR(INDEX('I(T)'!$I$2:$I$200,'I(T)'!$C$7+'I(T)'!$C$8*(ROW()-ROW(Home!$U$43))),"") ->  | W197: =IF(AND(X197="",OR(ISNUMBER(X196),W196="",MAX($X$43:$X$2542)=0)),"",'I(eps)'!$AB$7+'I(eps)'!$AC$8*(ROW(W197)-ROW($W$43))*0.001) ->  | X197: =IFERROR(INDEX('I(eps)'!$I$2:$I$2502,'I(eps)'!$AC$7+1+'I(eps)'!$AC$8*(ROW()-ROW(Home!$X$43))),"") -> 
Q198: =IF(R198="","",'I(B)'!$B$7+'I(B)'!$C$8*(ROW(Q198)-ROW($Q$43))*0.1) ->  | R198: =IFERROR(INDEX('I(B)'!$F$2:$F$301,'I(B)'!$C$7+'I(B)'!$C$8*(ROW()-ROW(Home!$R$43))),"") ->  | T198: =IF(U198="","",'I(T)'!$B$7+'I(T)'!$C$8*(ROW(T198)-ROW($T$43))*0.1) ->  | U198: =IFERROR(INDEX('I(T)'!$I$2:$I$200,'I(T)'!$C$7+'I(T)'!$C$8*(ROW()-ROW(Home!$U$43))),"") ->  | W198: =IF(AND(X198="",OR(ISNUMBER(X197),W197="",MAX($X$43:$X$2542)=0)),"",'I(eps)'!$AB$7+'I(eps)'!$AC$8*(ROW(W198)-ROW($W$43))*0.001) ->  | X198: =IFERROR(INDEX('I(eps)'!$I$2:$I$2502,'I(eps)'!$AC$7+1+'I(eps)'!$AC$8*(ROW()-ROW(Home!$X$43))),"") -> 
Q199: =IF(R199="","",'I(B)'!$B$7+'I(B)'!$C$8*(ROW(Q199)-ROW($Q$43))*0.1) ->  | R199: =IFERROR(INDEX('I(B)'!$F$2:$F$301,'I(B)'!$C$7+'I(B)'!$C$8*(ROW()-ROW(Home!$R$43))),"") ->  | T199: =IF(U199="","",'I(T)'!$B$7+'I(T)'!$C$8*(ROW(T199)-ROW($T$43))*0.1) ->  | U199: =IFERROR(INDEX('I(T)'!$I$2:$I$200,'I(T)'!$C$7+'I(T)'!$C$8*(ROW()-ROW(Home!$U$43))),"") ->  | W199: =IF(AND(X199="",OR(ISNUMBER(X198),W198="",MAX($X$43:$X$2542)=0)),"",'I(eps)'!$AB$7+'I(eps)'!$AC$8*(ROW(W199)-ROW($W$43))*0.001) ->  | X199: =IFERROR(INDEX('I(eps)'!$I$2:$I$2502,'I(eps)'!$AC$7+1+'I(eps)'!$AC$8*(ROW()-ROW(Home!$X$43))),"") -> 
Q200: =IF(R200="","",'I(B)'!$B$7+'I(B)'!$C$8*(ROW(Q200)-ROW($Q$43))*0.1) ->  | R200: =IFERROR(INDEX('I(B)'!$F$2:$F$301,'I(B)'!$C$7+'I(B)'!$C$8*(ROW()-ROW(Home!$R$43))),"") ->  | T200: =IF(U200="","",'I(T)'!$B$7+'I(T)'!$C$8*(ROW(T200)-ROW($T$43))*0.1) ->  | U200: =IFERROR(INDEX('I(T)'!$I$2:$I$200,'I(T)'!$C$7+'I(T)'!$C$8*(ROW()-ROW(Home!$U$43))),"") ->  | W200: =IF(AND(X200="",OR(ISNUMBER(X199),W199="",MAX($X$43:$X$2542)=0)),"",'I(eps)'!$AB$7+'I(eps)'!$AC$8*(ROW(W200)-ROW($W$43))*0.001) ->  | X200: =IFERROR(INDEX('I(eps)'!$I$2:$I$2502,'I(eps)'!$AC$7+1+'I(eps)'!$AC$8*(ROW()-ROW(Home!$X$43))),"") -> 
Q201: =IF(R201="","",'I(B)'!$B$7+'I(B)'!$C$8*(ROW(Q201)-ROW($Q$43))*0.1) ->  | R201: =IFERROR(INDEX('I(B)'!$F$2:$F$301,'I(B)'!$C$7+'I(B)'!$C$8*(ROW()-ROW(Home!$R$43))),"") ->  | T201: =IF(U201="","",'I(T)'!$B$7+'I(T)'!$C$8*(ROW(T201)-ROW($T$43))*0.1) ->  | U201: =IFERROR(INDEX('I(T)'!$I$2:$I$200,'I(T)'!$C$7+'I(T)'!$C$8*(ROW()-ROW(Home!$U$43))),"") ->  | W201: =IF(AND(X201="",OR(ISNUMBER(X200),W200="",MAX($X$43:$X$2542)=0)),"",'I(eps)'!$AB$7+'I(eps)'!$AC$8*(ROW(W201)-ROW($W$43))*0.001) ->  | X201: =IFERROR(INDEX('I(eps)'!$I$2:$I$2502,'I(eps)'!$AC$7+1+'I(eps)'!$AC$8*(ROW()-ROW(Home!$X$43))),"") -> 
Q202: =IF(R202="","",'I(B)'!$B$7+'I(B)'!$C$8*(ROW(Q202)-ROW($Q$43))*0.1) ->  | R202: =IFERROR(INDEX('I(B)'!$F$2:$F$301,'I(B)'!$C$7+'I(B)'!$C$8*(ROW()-ROW(Home!$R$43))),"") ->  | T202: =IF(U202="","",'I(T)'!$B$7+'I(T)'!$C$8*(ROW(T202)-ROW($T$43))*0.1) ->  | U202: =IFERROR(INDEX('I(T)'!$I$2:$I$200,'I(T)'!$C$7+'I(T)'!$C$8*(ROW()-ROW(Home!$U$43))),"") ->  | W202: =IF(AND(X202="",OR(ISNUMBER(X201),W201="",MAX($X$43:$X$2542)=0)),"",'I(eps)'!$AB$7+'I(eps)'!$AC$8*(ROW(W202)-ROW($W$43))*0.001) ->  | X202: =IFERROR(INDEX('I(eps)'!$I$2:$I$2502,'I(eps)'!$AC$7+1+'I(eps)'!$AC$8*(ROW()-ROW(Home!$X$43))),"") -> 
Q203: =IF(R203="","",'I(B)'!$B$7+'I(B)'!$C$8*(ROW(Q203)-ROW($Q$43))*0.1) ->  | R203: =IFERROR(INDEX('I(B)'!$F$2:$F$301,'I(B)'!$C$7+'I(B)'!$C$8*(ROW()-ROW(Home!$R$43))),"") ->  | T203: =IF(U203="","",'I(T)'!$B$7+'I(T)'!$C$8*(ROW(T203)-ROW($T$43))*0.1) ->  | U203: =IFERROR(INDEX('I(T)'!$I$2:$I$200,'I(T)'!$C$7+'I(T)'!$C$8*(ROW()-ROW(Home!$U$43))),"") ->  | W203: =IF(AND(X203="",OR(ISNUMBER(X202),W202="",MAX($X$43:$X$2542)=0)),"",'I(eps)'!$AB$7+'I(eps)'!$AC$8*(ROW(W203)-ROW($W$43))*0.001) ->  | X203: =IFERROR(INDEX('I(eps)'!$I$2:$I$2502,'I(eps)'!$AC$7+1+'I(eps)'!$AC$8*(ROW()-ROW(Home!$X$43))),"") -> 
Q204: =IF(R204="","",'I(B)'!$B$7+'I(B)'!$C$8*(ROW(Q204)-ROW($Q$43))*0.1) ->  | R204: =IFERROR(INDEX('I(B)'!$F$2:$F$301,'I(B)'!$C$7+'I(B)'!$C$8*(ROW()-ROW(Home!$R$43))),"") ->  | T204: =IF(U204="","",'I(T)'!$B$7+'I(T)'!$C$8*(ROW(T204)-ROW($T$43))*0.1) ->  | U204: =IFERROR(INDEX('I(T)'!$I$2:$I$200,'I(T)'!$C$7+'I(T)'!$C$8*(ROW()-ROW(Home!$U$43))),"") ->  | W204: =IF(AND(X204="",OR(ISNUMBER(X203),W203="",MAX($X$43:$X$2542)=0)),"",'I(eps)'!$AB$7+'I(eps)'!$AC$8*(ROW(W204)-ROW($W$43))*0.001) ->  | X204: =IFERROR(INDEX('I(eps)'!$I$2:$I$2502,'I(eps)'!$AC$7+1+'I(eps)'!$AC$8*(ROW()-ROW(Home!$X$43))),"") -> 
Q205: =IF(R205="","",'I(B)'!$B$7+'I(B)'!$C$8*(ROW(Q205)-ROW($Q$43))*0.1) ->  | R205: =IFERROR(INDEX('I(B)'!$F$2:$F$301,'I(B)'!$C$7+'I(B)'!$C$8*(ROW()-ROW(Home!$R$43))),"") ->  | T205: =IF(U205="","",'I(T)'!$B$7+'I(T)'!$C$8*(ROW(T205)-ROW($T$43))*0.1) ->  | U205: =IFERROR(INDEX('I(T)'!$I$2:$I$200,'I(T)'!$C$7+'I(T)'!$C$8*(ROW()-ROW(Home!$U$43))),"") ->  | W205: =IF(AND(X205="",OR(ISNUMBER(X204),W204="",MAX($X$43:$X$2542)=0)),"",'I(eps)'!$AB$7+'I(eps)'!$AC$8*(ROW(W205)-ROW($W$43))*0.001) ->  | X205: =IFERROR(INDEX('I(eps)'!$I$2:$I$2502,'I(eps)'!$AC$7+1+'I(eps)'!$AC$8*(ROW()-ROW(Home!$X$43))),"") -> 
... 2337 more rows

Sheet Ic(B) Data Fitting
A1: Determination of the individual wire parameters C and BC2*(0,0) from a single IC(B) curve
B2: T [K] | C2: 4.2 | E2: Maximum effective upper critical field
B3: ɛ0 [%] | C3: -0.1 | E3: Make sure the four core parameters entered on the "Home" sheet are correct for the conductor being fit!
J4: =MAX(B6:B55) -> 15.14
B5: B [ T] | C5: IC [A] | I5: J^(1/q)xB^((1-p)/q) | J5: =MIN(B6:B55) -> 12.27 | K5: b | L5: Ic [A]
B6: 12.27 | C6: 691 | E6: Fitted Individual Wire Parameters (Kramer-type fit) | I6: =IF(OR(B6="",C6=""),"",C6^(1/$G$11)*B6^((1-$G$10)/$G$11)) -> 49.1983077 | J6: =$J$5+(ROW()-ROW($J$6))*($J$4-$J$5)/49 -> 12.27 | K6: =IF(J6="","",IF(J6/(1-$G$18^1.5)/$G$13/'Ic(B) Data Fitting'!$F$25<=1,J6/(1-$G$18^1.5)/$G$13/'Ic(B) Data Fitting'!$F$25,NA())) -> 0.4963882381 | L6: =IFERROR(1/J6*$G$7*$F$27*$F$28*K6^$G$10*(1-K6)^$G$11,"") -> 690.6867686
B7: 13.22 | C7: 567 | E7: =Home!A14 -> Prefactor constant | F7: C [AT] | G7: =F23 -> 63037.68134 | I7: 45.40455182 | J7: =$J$5+(ROW()-ROW($J$6))*($J$4-$J$5)/49 -> 12.32857143 | K7: =IF(J7="","",IF(J7/(1-$G$18^1.5)/$G$13/'Ic(B) Data Fitting'!$F$25<=1,J7/(1-$G$18^1.5)/$G$13/'Ic(B) Data Fitting'!$F$25,NA())) -> 0.4987577709 | L7: =IFERROR(1/J7*$G$7*$F$27*$F$28*K7^$G$10*(1-K7)^$G$11,"") -> 682.5753745
B8: 14.18 | C8: 461 | E8: =Home!A15 -> Maximum effective upper critical field | F8: BC2*(0,0) [T] | G8: =F25 -> 29.85404726 | I8: 41.66482101 | J8: 12.38714286 | K8: =IF(J8="","",IF(J8/(1-$G$18^1.5)/$G$13/'Ic(B) Data Fitting'!$F$25<=1,J8/(1-$G$18^1.5)/$G$13/'Ic(B) Data Fitting'!$F$25,NA())) -> 0.5011273038 | L8: 674.5367036
B9: 15.14 | C9: 368 | I9: 37.84037034 | J9: 12.44571429 | K9: =IF(J9="","",IF(J9/(1-$G$18^1.5)/$G$13/'Ic(B) Data Fitting'!$F$25<=1,J9/(1-$G$18^1.5)/$G$13/'Ic(B) Data Fitting'!$F$25,NA())) -> 0.5034968367 | L9: 666.5700786
E10: =Home!A10 -> Low field pinning-force shape parameter | F10: =Home!B10 -> p | G10: =Home!$H$10 -> 0.5 | J10: 12.50428571 | K10: =IF(J10="","",IF(J10/(1-$G$18^1.5)/$G$13/'Ic(B) Data Fitting'!$F$25<=1,J10/(1-$G$18^1.5)/$G$13/'Ic(B) Data Fitting'!$F$25,NA())) -> 0.5058663695 | L10: 658.6748328
E11: =Home!A11 -> High field pinning-force shape parameter | F11: =Home!B11 -> q | G11: =Home!$H$11 -> 2 | J11: 12.56285714 | K11: =IF(J11="","",IF(J11/(1-$G$18^1.5)/$G$13/'Ic(B) Data Fitting'!$F$25<=1,J11/(1-$G$18^1.5)/$G$13/'Ic(B) Data Fitting'!$F$25,NA())) -> 0.5082359024 | L11: 650.8503095
J12: 12.62142857 | K12: =IF(J12="","",IF(J12/(1-$G$18^1.5)/$G$13/'Ic(B) Data Fitting'!$F$25<=1,J12/(1-$G$18^1.5)/$G$13/'Ic(B) Data Fitting'!$F$25,NA())) -> 0.5106054352 | L12: 643.095862
E13: =Home!A39 -> Critical field strain part (Exponential) | F13: =Home!B39 -> bC2(ε) = [Eq. (19) in Bordini et al.] | G13: =0.5*(EXP(-Home!$H$6*(G15+3)/(G15+1)*G15)+EXP(-Home!$H$6*(G14^2+3)/(G14^2+1)*G14^2)) -> 0.9475146001 | J13: 12.68 | K13: =IF(J13="","",IF(J13/(1-$G$18^1.5)/$G$13/'Ic(B) Data Fitting'!$F$25<=1,J13/(1-$G$18^1.5)/$G$13/'Ic(B) Data Fitting'!$F$25,NA())) -> 0.5129749681 | L13: 635.4108534
E14: =Home!A41 -> First strain invariant | F14: =Home!B41 -> I1 axial = (1-2v)ε0 + 0.2 [Eq. (22a) in Part 3] I1 3D = ε1 + ε2 + ε3 [1,2,3 are principal axes] | G14: =(1-2*Home!$H$43)*(C3-Home!$H$5)+Home!$H$5+2*(-Home!$H$43*Home!$H$5+0.1) -> 0.172 | J14: 12.73857143 | K14: =IF(J14="","",IF(J14/(1-$G$18^1.5)/$G$13/'Ic(B) Data Fitting'!$F$25<=1,J14/(1-$G$18^1.5)/$G$13/'Ic(B) Data Fitting'!$F$25,NA())) -> 0.515344501 | L14: 627.7946563
E15: =Home!A42 -> Second deviatoric strain invariant | F15: =Home!B42 -> J2 axial = 1/3 [(1+v)ε0 - 0.1]2 [Eq. (22b) in Part 3] J2 3D = 1/6 [(ε1-ε2)2 + (ε2-ε3)2 + (ε3-ε1)2] | G15: =1/3*(Home!$H$5-(-Home!$H$43*Home!$H$5+0.1)+(1+Home!$H$43)*(C3-Home!$H$5))^2 -> 0.01856533333 | J15: 12.79714286 | K15: =IF(J15="","",IF(J15/(1-$G$18^1.5)/$G$13/'Ic(B) Data Fitting'!$F$25<=1,J15/(1-$G$18^1.5)/$G$13/'Ic(B) Data Fitting'!$F$25,NA())) -> 0.5177140338 | L15: 620.2466525
J16: 12.85571429 | K16: =IF(J16="","",IF(J16/(1-$G$18^1.5)/$G$13/'Ic(B) Data Fitting'!$F$25<=1,J16/(1-$G$18^1.5)/$G$13/'Ic(B) Data Fitting'!$F$25,NA())) -> 0.5200835667 | L16: 612.7662332
E17: =Home!A36 -> Reduced effective critical temperature | F17: =Home!B36 -> TC*(ε)/ TC*(0) = [bC2(ε)]1/3 | G17: =G13^(1/3) -> 0.9821895374 | J17: 12.91428571 | K17: =IF(J17="","",IF(J17/(1-$G$18^1.5)/$G$13/'Ic(B) Data Fitting'!$F$25<=1,J17/(1-$G$18^1.5)/$G$13/'Ic(B) Data Fitting'!$F$25,NA())) -> 0.5224530996 | L17: 605.3527986
E18: =Home!A38 -> Reduced temperature | F18: =Home!B38 -> t = T/TC*(ε) | G18: =IF(C2/(G13^(1/3)*Home!$H$2)<=1,C2/(G13^(1/3)*Home!$H$2),NA()) -> 0.2515388468 | J18: 12.97285714 | K18: =IF(J18="","",IF(J18/(1-$G$18^1.5)/$G$13/'Ic(B) Data Fitting'!$F$25<=1,J18/(1-$G$18^1.5)/$G$13/'Ic(B) Data Fitting'!$F$25,NA())) -> 0.5248226324 | L18: 598.0057574
J19: 13.03142857 | K19: =IF(J19="","",IF(J19/(1-$G$18^1.5)/$G$13/'Ic(B) Data Fitting'!$F$25<=1,J19/(1-$G$18^1.5)/$G$13/'Ic(B) Data Fitting'!$F$25,NA())) -> 0.5271921653 | L19: 590.7245274
E20: m = -(C^(1/q)/(Bc2^(p/q+1) | F20: =SLOPE(I6:I55,B6:B55) -> -3.951234124 | J20: 13.09 | K20: =IF(J20="","",IF(J20/(1-$G$18^1.5)/$G$13/'Ic(B) Data Fitting'!$F$25<=1,J20/(1-$G$18^1.5)/$G$13/'Ic(B) Data Fitting'!$F$25,NA())) -> 0.5295616982 | L20: 583.5085346
E21: c = C^(1/q)/(Bc2^(p/q)) | F21: =INTERCEPT(I6:I55,B6:B55) -> 97.6687983 | J21: 13.14857143 | K21: =IF(J21="","",IF(J21/(1-$G$18^1.5)/$G$13/'Ic(B) Data Fitting'!$F$25<=1,J21/(1-$G$18^1.5)/$G$13/'Ic(B) Data Fitting'!$F$25,NA())) -> 0.531931231 | L21: 576.3572132
E22: Bc2 (note: Bc2*(T, ε)) | F22: =-F21/F20 -> 24.71855507 | J22: 13.20714286 | K22: =IF(J22="","",IF(J22/(1-$G$18^1.5)/$G$13/'Ic(B) Data Fitting'!$F$25<=1,J22/(1-$G$18^1.5)/$G$13/'Ic(B) Data Fitting'!$F$25,NA())) -> 0.5343007639 | L22: 569.2700059
E23: C | F23: =(F21*(F22^(G10/G11)))^G11/F27/F28 -> 63037.68134 | J23: 13.26571429 | K23: =IF(J23="","",IF(J23/(1-$G$18^1.5)/$G$13/'Ic(B) Data Fitting'!$F$25<=1,J23/(1-$G$18^1.5)/$G$13/'Ic(B) Data Fitting'!$F$25,NA())) -> 0.5366702967 | L23: 562.246363
J24: 13.32428571 | K24: =IF(J24="","",IF(J24/(1-$G$18^1.5)/$G$13/'Ic(B) Data Fitting'!$F$25<=1,J24/(1-$G$18^1.5)/$G$13/'Ic(B) Data Fitting'!$F$25,NA())) -> 0.5390398296 | L24: 555.2857431
E25: Bc2*(0,0) | F25: =F22/(1-G18^1.5)/G13 -> 29.85404726 | J25: 13.38285714 | K25: =IF(J25="","",IF(J25/(1-$G$18^1.5)/$G$13/'Ic(B) Data Fitting'!$F$25<=1,J25/(1-$G$18^1.5)/$G$13/'Ic(B) Data Fitting'!$F$25,NA())) -> 0.5414093625 | L25: 548.3876121
J26: 13.44142857 | K26: =IF(J26="","",IF(J26/(1-$G$18^1.5)/$G$13/'Ic(B) Data Fitting'!$F$25<=1,J26/(1-$G$18^1.5)/$G$13/'Ic(B) Data Fitting'!$F$25,NA())) -> 0.5437788953 | L26: 541.5514436
E27: g | F27: ='Ic(B) Data Fitting'!G13^Home!H4 -> 0.9424200166 | J27: 13.5 | K27: =IF(J27="","",IF(J27/(1-$G$18^1.5)/$G$13/'Ic(B) Data Fitting'!$F$25<=1,J27/(1-$G$18^1.5)/$G$13/'Ic(B) Data Fitting'!$F$25,NA())) -> 0.5461484282 | L27: 534.7767186
E28: h | F28: =(1-G18^1.5)^(Home!$H$3/2)*(1-'Ic(B) Data Fitting'!G18^2)^(Home!$H$3/2) -> 0.7983227332 | J28: 13.55857143 | K28: =IF(J28="","",IF(J28/(1-$G$18^1.5)/$G$13/'Ic(B) Data Fitting'!$F$25<=1,J28/(1-$G$18^1.5)/$G$13/'Ic(B) Data Fitting'!$F$25,NA())) -> 0.5485179611 | L28: 528.0629254
J29: 13.61714286 | K29: =IF(J29="","",IF(J29/(1-$G$18^1.5)/$G$13/'Ic(B) Data Fitting'!$F$25<=1,J29/(1-$G$18^1.5)/$G$13/'Ic(B) Data Fitting'!$F$25,NA())) -> 0.5508874939 | L29: 521.4095594
J30: 13.67571429 | K30: =IF(J30="","",IF(J30/(1-$G$18^1.5)/$G$13/'Ic(B) Data Fitting'!$F$25<=1,J30/(1-$G$18^1.5)/$G$13/'Ic(B) Data Fitting'!$F$25,NA())) -> 0.5532570268 | L30: 514.8161229
J31: 13.73428571 | K31: =IF(J31="","",IF(J31/(1-$G$18^1.5)/$G$13/'Ic(B) Data Fitting'!$F$25<=1,J31/(1-$G$18^1.5)/$G$13/'Ic(B) Data Fitting'!$F$25,NA())) -> 0.5556265596 | L31: 508.2821254
J32: 13.79285714 | K32: =IF(J32="","",IF(J32/(1-$G$18^1.5)/$G$13/'Ic(B) Data Fitting'!$F$25<=1,J32/(1-$G$18^1.5)/$G$13/'Ic(B) Data Fitting'!$F$25,NA())) -> 0.5579960925 | L32: 501.8070828
J33: 13.85142857 | K33: =IF(J33="","",IF(J33/(1-$G$18^1.5)/$G$13/'Ic(B) Data Fitting'!$F$25<=1,J33/(1-$G$18^1.5)/$G$13/'Ic(B) Data Fitting'!$F$25,NA())) -> 0.5603656254 | L33: 495.3905178
J34: 13.91 | K34: =IF(J34="","",IF(J34/(1-$G$18^1.5)/$G$13/'Ic(B) Data Fitting'!$F$25<=1,J34/(1-$G$18^1.5)/$G$13/'Ic(B) Data Fitting'!$F$25,NA())) -> 0.5627351582 | L34: 489.0319595
J35: 13.96857143 | K35: =IF(J35="","",IF(J35/(1-$G$18^1.5)/$G$13/'Ic(B) Data Fitting'!$F$25<=1,J35/(1-$G$18^1.5)/$G$13/'Ic(B) Data Fitting'!$F$25,NA())) -> 0.5651046911 | L35: 482.7309434
J36: 14.02714286 | K36: =IF(J36="","",IF(J36/(1-$G$18^1.5)/$G$13/'Ic(B) Data Fitting'!$F$25<=1,J36/(1-$G$18^1.5)/$G$13/'Ic(B) Data Fitting'!$F$25,NA())) -> 0.567474224 | L36: 476.4870113
J37: 14.08571429 | K37: =IF(J37="","",IF(J37/(1-$G$18^1.5)/$G$13/'Ic(B) Data Fitting'!$F$25<=1,J37/(1-$G$18^1.5)/$G$13/'Ic(B) Data Fitting'!$F$25,NA())) -> 0.5698437568 | L37: 470.2997113
I38: =IF(OR(B38="",C38=""),"",C38^(1/$G$11)*B38^((1-$G$10)/$G$11)) ->  | J38: 14.14428571 | K38: =IF(J38="","",IF(J38/(1-$G$18^1.5)/$G$13/'Ic(B) Data Fitting'!$F$25<=1,J38/(1-$G$18^1.5)/$G$13/'Ic(B) Data Fitting'!$F$25,NA())) -> 0.5722132897 | L38: 464.1685973
J39: 14.20285714 | K39: =IF(J39="","",IF(J39/(1-$G$18^1.5)/$G$13/'Ic(B) Data Fitting'!$F$25<=1,J39/(1-$G$18^1.5)/$G$13/'Ic(B) Data Fitting'!$F$25,NA())) -> 0.5745828225 | L39: 458.0932292
J40: 14.26142857 | K40: =IF(J40="","",IF(J40/(1-$G$18^1.5)/$G$13/'Ic(B) Data Fitting'!$F$25<=1,J40/(1-$G$18^1.5)/$G$13/'Ic(B) Data Fitting'!$F$25,NA())) -> 0.5769523554 | L40: 452.0731729
J41: 14.32 | K41: =IF(J41="","",IF(J41/(1-$G$18^1.5)/$G$13/'Ic(B) Data Fitting'!$F$25<=1,J41/(1-$G$18^1.5)/$G$13/'Ic(B) Data Fitting'!$F$25,NA())) -> 0.5793218883 | L41: 446.1079998
J42: 14.37857143 | K42: =IF(J42="","",IF(J42/(1-$G$18^1.5)/$G$13/'Ic(B) Data Fitting'!$F$25<=1,J42/(1-$G$18^1.5)/$G$13/'Ic(B) Data Fitting'!$F$25,NA())) -> 0.5816914211 | L42: 440.1972871
J43: 14.43714286 | K43: =IF(J43="","",IF(J43/(1-$G$18^1.5)/$G$13/'Ic(B) Data Fitting'!$F$25<=1,J43/(1-$G$18^1.5)/$G$13/'Ic(B) Data Fitting'!$F$25,NA())) -> 0.584060954 | L43: 434.3406174
J44: 14.49571429 | K44: =IF(J44="","",IF(J44/(1-$G$18^1.5)/$G$13/'Ic(B) Data Fitting'!$F$25<=1,J44/(1-$G$18^1.5)/$G$13/'Ic(B) Data Fitting'!$F$25,NA())) -> 0.5864304869 | L44: 428.5375789
J45: 14.55428571 | K45: =IF(J45="","",IF(J45/(1-$G$18^1.5)/$G$13/'Ic(B) Data Fitting'!$F$25<=1,J45/(1-$G$18^1.5)/$G$13/'Ic(B) Data Fitting'!$F$25,NA())) -> 0.5888000197 | L45: 422.7877649
J46: 14.61285714 | K46: =IF(J46="","",IF(J46/(1-$G$18^1.5)/$G$13/'Ic(B) Data Fitting'!$F$25<=1,J46/(1-$G$18^1.5)/$G$13/'Ic(B) Data Fitting'!$F$25,NA())) -> 0.5911695526 | L46: 417.0907742
J47: 14.67142857 | K47: =IF(J47="","",IF(J47/(1-$G$18^1.5)/$G$13/'Ic(B) Data Fitting'!$F$25<=1,J47/(1-$G$18^1.5)/$G$13/'Ic(B) Data Fitting'!$F$25,NA())) -> 0.5935390855 | L47: 411.4462105
J48: 14.73 | K48: =IF(J48="","",IF(J48/(1-$G$18^1.5)/$G$13/'Ic(B) Data Fitting'!$F$25<=1,J48/(1-$G$18^1.5)/$G$13/'Ic(B) Data Fitting'!$F$25,NA())) -> 0.5959086183 | L48: 405.8536829
J49: 14.78857143 | K49: =IF(J49="","",IF(J49/(1-$G$18^1.5)/$G$13/'Ic(B) Data Fitting'!$F$25<=1,J49/(1-$G$18^1.5)/$G$13/'Ic(B) Data Fitting'!$F$25,NA())) -> 0.5982781512 | L49: 400.3128051
J50: 14.84714286 | K50: =IF(J50="","",IF(J50/(1-$G$18^1.5)/$G$13/'Ic(B) Data Fitting'!$F$25<=1,J50/(1-$G$18^1.5)/$G$13/'Ic(B) Data Fitting'!$F$25,NA())) -> 0.600647684 | L50: 394.823196
J51: 14.90571429 | K51: =IF(J51="","",IF(J51/(1-$G$18^1.5)/$G$13/'Ic(B) Data Fitting'!$F$25<=1,J51/(1-$G$18^1.5)/$G$13/'Ic(B) Data Fitting'!$F$25,NA())) -> 0.6030172169 | L51: 389.3844791
J52: 14.96428571 | K52: =IF(J52="","",IF(J52/(1-$G$18^1.5)/$G$13/'Ic(B) Data Fitting'!$F$25<=1,J52/(1-$G$18^1.5)/$G$13/'Ic(B) Data Fitting'!$F$25,NA())) -> 0.6053867498 | L52: 383.9962829
J53: 15.02285714 | K53: =IF(J53="","",IF(J53/(1-$G$18^1.5)/$G$13/'Ic(B) Data Fitting'!$F$25<=1,J53/(1-$G$18^1.5)/$G$13/'Ic(B) Data Fitting'!$F$25,NA())) -> 0.6077562826 | L53: 378.6582402
J54: 15.08142857 | K54: =IF(J54="","",IF(J54/(1-$G$18^1.5)/$G$13/'Ic(B) Data Fitting'!$F$25<=1,J54/(1-$G$18^1.5)/$G$13/'Ic(B) Data Fitting'!$F$25,NA())) -> 0.6101258155 | L54: 373.3699886
J55: 15.14 | K55: =IF(J55="","",IF(J55/(1-$G$18^1.5)/$G$13/'Ic(B) Data Fitting'!$F$25<=1,J55/(1-$G$18^1.5)/$G$13/'Ic(B) Data Fitting'!$F$25,NA())) -> 0.6124953484 | L55: 368.1311702

Sheet Load Line Plot
A1: Magnet load line plot and margin calculation
A2: Plot data range | D2: User specified load-line data points | G2: Reference points to show on plot | K2: Parameters of short sample curves (core parameters, p, q, and ɛ0 from Home sheet) | O2: For reference | P2: Crosses load line at | X2: =(B4-B3)/2999 -> 0.002000666889 | Y2: =INDEX($N$4:$N$13,QUOTIENT(COLUMN(),3)-7,) -> 30.62649428 | Z2: =INDEX($M$4:$M$13,QUOTIENT(COLUMN(),3)-7,) -> 63306 | AA2: =MIN(AA4:AA3003) -> 0.01849622714 | AB2: =INDEX($N$4:$N$13,QUOTIENT(COLUMN(),3)-7,) -> 30.60734121 | AC2: =INDEX($M$4:$M$13,QUOTIENT(COLUMN(),3)-7,) -> 64742 | AD2: =MIN(AD4:AD3003) -> 0.1041617024 | AE2: =INDEX($N$4:$N$13,QUOTIENT(COLUMN(),3)-7,) -> 30.50510073 | AF2: =INDEX($M$4:$M$13,QUOTIENT(COLUMN(),3)-7,) -> 62057 | AG2: =MIN(AG4:AG3003) -> 0.1323550564 | AH2: =INDEX($N$4:$N$13,QUOTIENT(COLUMN(),3)-7,) -> 30.50510073 | AI2: =INDEX($M$4:$M$13,QUOTIENT(COLUMN(),3)-7,) -> 62057 | AJ2: =MIN(AJ4:AJ3003) -> 0.006527041792 | AK2: =INDEX($N$4:$N$13,QUOTIENT(COLUMN(),3)-7,) -> 29.34456972 | AL2: =INDEX($M$4:$M$13,QUOTIENT(COLUMN(),3)-7,) -> 58875 | AM2: =MIN(AM4:AM3003) -> 0.0650621568 | AN2: =INDEX($N$4:$N$13,QUOTIENT(COLUMN(),3)-7,) -> 29.34456972 | AO2: =INDEX($M$4:$M$13,QUOTIENT(COLUMN(),3)-7,) -> 58876 | AP2: =MIN(AP4:AP3003) -> 0.0496781039 | AQ2: =INDEX($N$4:$N$13,QUOTIENT(COLUMN(),3)-7,) -> 29.3 | AR2: =INDEX($M$4:$M$13,QUOTIENT(COLUMN(),3)-7,) -> 55932 | AS2: =MIN(AS4:AS3003) -> 0.0747387015 | AT2: =INDEX($N$4:$N$13,QUOTIENT(COLUMN(),3)-7,) -> 30.50510073 | AU2: =INDEX($M$4:$M$13,QUOTIENT(COLUMN(),3)-7,) -> 62057 | AV2: =MIN(AV4:AV3003) -> 0.09867887698 | AW2: =INDEX($N$4:$N$13,QUOTIENT(COLUMN(),3)-7,) -> 30.50510073 | AX2: =INDEX($M$4:$M$13,QUOTIENT(COLUMN(),3)-7,) -> 62057 | AY2: =MIN(AY4:AY3003) -> 0.133397064 | AZ2: =INDEX($N$4:$N$13,QUOTIENT(COLUMN(),3)-7,) -> 0 | BA2: =INDEX($M$4:$M$13,QUOTIENT(COLUMN(),3)-7,) -> 0 | BB2: =MIN(BB4:BB3003) -> 0 | BC2: =$N$14 -> 30.50510073 | BD2: =$M$14 -> 62057 | BE2: =MIN(BE4:BE3003) -> 0.09867887698
A3: Bmin [T] | B3: 10 | C3: =IF(ABS(B3-$B$39)<0.1,"value too high","") ->  | D3: I or J | E3: B [T] | G3: Name | H3: IC or JC | I3: B [T] | K3: Name | L3: T [K] | M3: C [AT] | N3: BC2*(0,0) [T] | O3: BC2*(4.2 K,0) [T] | P3: IC or JC | Q3: ="B (± "&TEXT(X2,"0.000")&" T)" -> B (± 0.002 T) | S3: t | T3: h | X3: B [T] | Y3: b | Z3: IC or JC | AA3: delta | AB3: b | AC3: IC or JC | AD3: delta | AE3: b | AF3: IC or JC | AG3: delta | AH3: b | AI3: IC or JC | AJ3: delta | AK3: b | AL3: IC or JC | AM3: delta | AN3: b | AO3: IC or JC | AP3: delta | AQ3: b | AR3: IC or JC | AS3: delta | AT3: b | AU3: IC or JC | AV3: delta | AW3: b | AX3: IC or JC | AY3: delta | AZ3: b | BA3: IC or JC | BB3: delta | BC3: b | BD3: IC or JC | BE3: delta | BH3: T-upper | BI3: t | BJ3: h | BK3: b | BL3: f | BM3: I(T-upper) - I | BN3: T-lower | BO3: t | BP3: h | BQ3: b | BR3: f | BS3: I(T-upper) - I | BT3: T-mid | BU3: t | BV3: h | BW3: b | BX3: f | BY3: I(T-mid) - I
A4: Bmax [T] | B4: 16 | C4: =IF(ABS(B4-$B$39)<0.1,"value too low","") ->  | D4: 401 | E4: 11 | G4: Spec 12 T | H4: 632 | I4: 12.27 | K4: Witness RW | L4: 4.2 | M4: 63306 | N4: 30.62649428 | O4: =IF(N4="","",N4*0.953708882861042*(1-(4.2/(Home!$E$36*Home!$H$2)^1.5))) -> 27.41073323 | P4: =INDEX(OFFSET($X$3,1,2+(ROW()-ROW($P$4))*3,3000,1),MATCH(OFFSET($X$3,-1,3+(ROW()-ROW($P$4))*3,1,1),OFFSET($X$3,1,3+(ROW()-ROW($P$4))*3,3000,1),0)) -> 511.7350351 | Q4: =INDEX($X$4:$X$3003,MATCH(OFFSET($X$3,-1,3+(ROW()-ROW($P$4))*3,1,1),OFFSET($X$3,1,3+(ROW()-ROW($P$4))*3,3000,1),0)) -> 13.95731911 | R4: =COUNTA($K$4:K4) -> 1 | S4: =IF($L4/(Home!$E$36*Home!$H$2)>1,"error: T > Tc", $L4/(Home!$E$36*Home!$H$2)) -> 0.2515388468 | T4: =(1-$S4^1.5)^(Home!$H$3/2)*(1-$S4^2)^(Home!$H$3/2) -> 0.7983227332 | X4: =B3 -> 10 | Y4: =IFERROR(IF($X4/(1-INDEX($S$4:$S$13,QUOTIENT(COLUMN(),3)-7,)^1.5)/$B$32/Y$2<=1,$X4/(1-INDEX($S$4:$S$13,QUOTIENT(COLUMN(),3)-7,)^1.5)/$B$32/Y$2,NA()),NA()) -> 0.3943509109 | Z4: =IFERROR(IF(OR($X4<$B$3,$X4>$B$4),NA(),IF(OR(1/$X4*Z$2*$B$31*INDEX($T$4:$T$13,QUOTIENT(COLUMN(),3)-7,)*Y4^$B$33*(1-Y4)^$B$34<$B$5,1/$X4*Z$2*$B$31*INDEX($T$4:$T$13,QUOTIENT(COLUMN(),3)-7,)*Y4^$B$33*(1-Y4)^$B$34>$B$6),NA(),1/$X4*Z$2*$B$31*INDEX($T$4:$T$13,QUOTIENT(COLUMN(),3)-7,)*Y4^$B$33*(1-Y4)^$B$34)),NA()) -> 1097.113181 | AA4: =IFERROR(ABS(Z4-($B$37*$X4+$B$38)),"") -> 732.2131805 | AB4: =IFERROR(IF($X4/(1-INDEX($S$4:$S$13,QUOTIENT(COLUMN(),3)-7,)^1.5)/$B$32/AB$2<=1,$X4/(1-INDEX($S$4:$S$13,QUOTIENT(COLUMN(),3)-7,)^1.5)/$B$32/AB$2,NA()),NA()) -> 0.3945976828 | AC4: =IFERROR(IF(OR($X4<$B$3,$X4>$B$4),NA(),IF(OR(1/$X4*AC$2*$B$31*INDEX($T$4:$T$13,QUOTIENT(COLUMN(),3)-7,)*AB4^$B$33*(1-AB4)^$B$34<$B$5,1/$X4*AC$2*$B$31*INDEX($T$4:$T$13,QUOTIENT(COLUMN(),3)-7,)*AB4^$B$33*(1-AB4)^$B$34>$B$6),NA(),1/$X4*AC$2*$B$31*INDEX($T$4:$T$13,QUOTIENT(COLUMN(),3)-7,)*AB4^$B$33*(1-AB4)^$B$34)),NA()) ->  | AD4: =IFERROR(ABS(AC4-($B$37*$X4+$B$38)),"") ->  | AE4: =IFERROR(IF($X4/(1-INDEX($S$4:$S$13,QUOTIENT(COLUMN(),3)-7,)^1.5)/$B$32/AE$2<=1,$X4/(1-INDEX($S$4:$S$13,QUOTIENT(COLUMN(),3)-7,)^1.5)/$B$32/AE$2,NA()),NA()) -> 0.395920211 | AF4: =IFERROR(IF(OR($X4<$B$3,$X4>$B$4),NA(),IF(OR(1/$X4*AF$2*$B$31*INDEX($T$4:$T$13,QUOTIENT(COLUMN(),3)-7,)*AE4^$B$33*(1-AE4)^$B$34<$B$5,1/$X4*AF$2*$B$31*INDEX($T$4:$T$13,QUOTIENT(COLUMN(),3)-7,)*AE4^$B$33*(1-AE4)^$B$34>$B$6),NA(),1/$X4*AF$2*$B$31*INDEX($T$4:$T$13,QUOTIENT(COLUMN(),3)-7,)*AE4^$B$33*(1-AE4)^$B$34)),NA()) -> 1072.028231 | AG4: =IFERROR(ABS(AF4-($B$37*$X4+$B$38)),"") -> 707.1282311 | AH4: =IFERROR(IF($X4/(1-INDEX($S$4:$S$13,QUOTIENT(COLUMN(),3)-7,)^1.5)/$B$32/AH$2<=1,$X4/(1-INDEX($S$4:$S$13,QUOTIENT(COLUMN(),3)-7,)^1.5)/$B$32/AH$2,NA()),NA()) -> 0.3597828828 | AI4: =IFERROR(IF(OR($X4<$B$3,$X4>$B$4),NA(),IF(OR(1/$X4*AI$2*$B$31*INDEX($T$4:$T$13,QUOTIENT(COLUMN(),3)-7,)*AH4^$B$33*(1-AH4)^$B$34<$B$5,1/$X4*AI$2*$B$31*INDEX($T$4:$T$13,QUOTIENT(COLUMN(),3)-7,)*AH4^$B$33*(1-AH4)^$B$34>$B$6),NA(),1/$X4*AI$2*$B$31*INDEX($T$4:$T$13,QUOTIENT(COLUMN(),3)-7,)*AH4^$B$33*(1-AH4)^$B$34)),NA()) ->  | AJ4: =IFERROR(ABS(AI4-($B$37*$X4+$B$38)),"") ->  | AK4: =IFERROR(IF($X4/(1-INDEX($S$4:$S$13,QUOTIENT(COLUMN(),3)-7,)^1.5)/$B$32/AK$2<=1,$X4/(1-INDEX($S$4:$S$13,QUOTIENT(COLUMN(),3)-7,)^1.5)/$B$32/AK$2,NA()),NA()) -> 0.4115782249 | AL4: =IFERROR(IF(OR($X4<$B$3,$X4>$B$4),NA(),IF(OR(1/$X4*AL$2*$B$31*INDEX($T$4:$T$13,QUOTIENT(COLUMN(),3)-7,)*AK4^$B$33*(1-AK4)^$B$34<$B$5,1/$X4*AL$2*$B$31*INDEX($T$4:$T$13,QUOTIENT(COLUMN(),3)-7,)*AK4^$B$33*(1-AK4)^$B$34>$B$6),NA(),1/$X4*AL$2*$B$31*INDEX($T$4:$T$13,QUOTIENT(COLUMN(),3)-7,)*AK4^$B$33*(1-AK4)^$B$34)),NA()) -> 983.9150076 | AM4: =IFERROR(ABS(AL4-($B$37*$X4+$B$38)),"") -> 619.0150076 | AN4: =IFERROR(IF($X4/(1-INDEX($S$4:$S$13,QUOTIENT(COLUMN(),3)-7,)^1.5)/$B$32/AN$2<=1,$X4/(1-INDEX($S$4:$S$13,QUOTIENT(COLUMN(),3)-7,)^1.5)/$B$32/AN$2,NA()),NA()) -> 0.374011723 | AO4: =IFERROR(IF(OR($X4<$B$3,$X4>$B$4),NA(),IF(OR(1/$X4*AO$2*$B$31*INDEX($T$4:$T$13,QUOTIENT(COLUMN(),3)-7,)*AN4^$B$33*(1-AN4)^$B$34<$B$5,1/$X4*AO$2*$B$31*INDEX($T$4:$T$13,QUOTIENT(COLUMN(),3)-7,)*AN4^$B$33*(1-AN4)^$B$34>$B$6),NA(),1/$X4*AO$2*$B$31*INDEX($T$4:$T$13,QUOTIENT(COLUMN(),3)-7,)*AN4^$B$33*(1-AN4)^$B$34)),NA()) ->  | AP4: =IFERROR(ABS(AO4-($B$37*$X4+$B$38)),"") ->  | AQ4: =IFERROR(IF($X4/(1-INDEX($S$4:$S$13,QUOTIENT(COLUMN(),3)-7,)^1.5)/$B$32/AQ$2<=1,$X4/(1-INDEX($S$4:$S$13,QUOTIENT(COLUMN(),3)-7,)^1.5)/$B$32/AQ$2,NA()),NA()) -> 0.3745806512 | AR4: =IFERROR(IF(OR($X4<$B$3,$X4>$B$4),NA(),IF(OR(1/$X4*AR$2*$B$31*INDEX($T$4:$T$13,QUOTIENT(COLUMN(),3)-7,)*AQ4^$B$33*(1-AQ4)^$B$34<$B$5,1/$X4*AR$2*$B$31*INDEX($T$4:$T$13,QUOTIENT(COLUMN(),3)-7,)*AQ4^$B$33*(1-AQ4)^$B$34>$B$6),NA(),1/$X4*AR$2*$B$31*INDEX($T$4:$T$13,QUOTIENT(COLUMN(),3)-7,)*AQ4^$B$33*(1-AQ4)^$B$34)),NA()) ->  | AS4: =IFERROR(ABS(AR4-($B$37*$X4+$B$38)),"") ->  | AT4: =IFERROR(IF($X4/(1-INDEX($S$4:$S$13,QUOTIENT(COLUMN(),3)-7,)^1.5)/$B$32/AT$2<=1,$X4/(1-INDEX($S$4:$S$13,QUOTIENT(COLUMN(),3)-7,)^1.5)/$B$32/AT$2,NA()),NA()) -> 0.4826358675 | AU4: =IFERROR(IF(OR($X4<$B$3,$X4>$B$4),NA(),IF(OR(1/$X4*AU$2*$B$31*INDEX($T$4:$T$13,QUOTIENT(COLUMN(),3)-7,)*AT4^$B$33*(1-AT4)^$B$34<$B$5,1/$X4*AU$2*$B$31*INDEX($T$4:$T$13,QUOTIENT(COLUMN(),3)-7,)*AT4^$B$33*(1-AT4)^$B$34>$B$6),NA(),1/$X4*AU$2*$B$31*INDEX($T$4:$T$13,QUOTIENT(COLUMN(),3)-7,)*AT4^$B$33*(1-AT4)^$B$34)),NA()) -> 593.3009014 | AV4: =IFERROR(ABS(AU4-($B$37*$X4+$B$38)),"") -> 228.4009014 | AW4: =IFERROR(IF($X4/(1-INDEX($S$4:$S$13,QUOTIENT(COLUMN(),3)-7,)^1.5)/$B$32/AW$2<=1,$X4/(1-INDEX($S$4:$S$13,QUOTIENT(COLUMN(),3)-7,)^1.5)/$B$32/AW$2,NA()),NA()) -> 0.4471471834 | AX4: =IFERROR(IF(OR($X4<$B$3,$X4>$B$4),NA(),IF(OR(1/$X4*AX$2*$B$31*INDEX($T$4:$T$13,QUOTIENT(COLUMN(),3)-7,)*AW4^$B$33*(1-AW4)^$B$34<$B$5,1/$X4*AX$2*$B$31*INDEX($T$4:$T$13,QUOTIENT(COLUMN(),3)-7,)*AW4^$B$33*(1-AW4)^$B$34>$B$6),NA(),1/$X4*AX$2*$B$31*INDEX($T$4:$T$13,QUOTIENT(COLUMN(),3)-7,)*AW4^$B$33*(1-AW4)^$B$34)),NA()) -> 757.9829305 | AY4: =IFERROR(ABS(AX4-($B$37*$X4+$B$38)),"") -> 393.0829305 | AZ4: =IFERROR(IF($X4/(1-INDEX($S$4:$S$13,QUOTIENT(COLUMN(),3)-7,)^1.5)/$B$32/AZ$2<=1,$X4/(1-INDEX($S$4:$S$13,QUOTIENT(COLUMN(),3)-7,)^1.5)/$B$32/AZ$2,NA()),NA()) ->  | BA4: =IFERROR(IF(OR($X4<$B$3,$X4>$B$4),NA(),IF(OR(1/$X4*BA$2*$B$31*INDEX($T$4:$T$13,QUOTIENT(COLUMN(),3)-7,)*AZ4^$B$33*(1-AZ4)^$B$34<$B$5,1/$X4*BA$2*$B$31*INDEX($T$4:$T$13,QUOTIENT(COLUMN(),3)-7,)*AZ4^$B$33*(1-AZ4)^$B$34>$B$6),NA(),1/$X4*BA$2*$B$31*INDEX($T$4:$T$13,QUOTIENT(COLUMN(),3)-7,)*AZ4^$B$33*(1-AZ4)^$B$34)),NA()) ->  | BB4: =IFERROR(ABS(BA4-($B$37*$X4+$B$38)),"") ->  | BC4: =IFERROR(IF($X4/(1-$S$14^1.5)/$B$32/BC$2<=1,$X4/(1-$S$14^1.5)/$B$32/BC$2,NA()),NA()) -> 0.4826358675 | BD4: =IFERROR(IF(OR($X4<$B$3,$X4>$B$4),NA(),IF(OR(1/$X4*BD$2*$B$31*$T$14*BC4^$B$33*(1-BC4)^$B$34<$B$5,1/$X4*BD$2*$B$31*$T$14*BC4^$B$33*(1-BC4)^$B$34>$B$6),NA(),1/$X4*BD$2*$B$31*$T$14*BC4^$B$33*(1-BC4)^$B$34)),NA()) -> 593.3009014 | BE4: =IFERROR(ABS(BD4-($B$37*$X4+$B$38)),"") -> 228.4009014 | BF4: =IF($B$9=$C$9,BD4,NA()) ->  | BH4: =Home!$H$2*Home!$E$36-0.01 -> 16.68722214 | BI4: =IF(BH4/(Home!$E$36*Home!$H$2)<=1,BH4/(Home!$E$36*Home!$H$2),NA()) -> 0.999401098 | BJ4: =(1-BI4^1.5)^(Home!$H$3/2)*(1-BI4^2)^(Home!$H$3/2) -> 1.930156001e-07 | BK4: =IF($B$25/((1-BI4^1.5)*Home!$E$39*$B$27)<=1,$B$25/((1-BI4^1.5)*Home!$E$39*$B$27),NA()) ->  | BL4: =BK4^$B$33*(1-BK4)^$B$34 ->  | BM4: =IF(ISNA(BL4),-$B$24,1/$B$25*$B$26*$B$31*BJ4*BL4-$B$24) -> -417 | BN4: 0 | BO4: =IF(BN4/(Home!$E$36*Home!$H$2)<=1,BN4/(Home!$E$36*Home!$H$2),NA()) -> 0 | BP4: =(1-BO4^1.5)^(Home!$H$3/2)*(1-BO4^2)^(Home!$H$3/2) -> 1 | BQ4: =IF($B$25/((1-BO4^1.5)*Home!$E$39*$B$27)<=1,$B$25/((1-BO4^1.5)*Home!$E$39*$B$27),NA()) -> 0.3945578984 | BR4: =BQ4^$B$33*(1-BQ4)^$B$34 -> 0.2302505131 | BS4: =IF(ISNA(BR4),-$B$24,1/$B$25*$B$26*$B$31*BP4*BR4-$B$24) -> 763.7739669 | BT4: =AVERAGE(BH4,BN4) -> 8.343611068 | BU4: =IF(BT4/(Home!$E$36*Home!$H$2)<=1,BT4/(Home!$E$36*Home!$H$2),NA()) -> 0.499700549 | BV4: =(1-BU4^1.5)^(Home!$H$3/2)*(1-BU4^2)^(Home!$H$3/2) -> 0.4433310007 | BW4: =IF($B$25/((1-BU4^1.5)*Home!$E$39*$B$27)<=1,$B$25/((1-BU4^1.5)*Home!$E$39*$B$27),NA()) -> 0.6100490906 | BX4: =BW4^$B$33*(1-BW4)^$B$34 -> 0.1187687722 | BY4: =IF(ISNA(BX4),-$B$24,1/$B$25*$B$26*$B$31*BV4*BX4-$B$24) -> -146.9796282
A5: Imin or Jmin | B5: 200 | C5: =IF(ABS(B5-$A$39)<10,"value too high","") ->  | D5: 440 | E5: 12 | G5: Spec 15 T | H5: 331 | I5: 15.14 | K5: Witness XS 2 | L5: 4.2 | M5: 64742 | N5: 30.60734121 | O5: =IF(N5="","",N5*0.953708882861042*(1-(4.2/(Home!$E$36*Home!$H$2)^1.5))) -> 27.39359122 | P5: 514.567016 | Q5: 14.03134378 | R5: =COUNTA($K$4:K5) -> 2 | S5: =IF($L5/(Home!$E$36*Home!$H$2)>1,"error: T > Tc", $L5/(Home!$E$36*Home!$H$2)) -> 0.2515388468 | T5: =(1-$S5^1.5)^(Home!$H$3/2)*(1-$S5^2)^(Home!$H$3/2) -> 0.7983227332 | X5: =X4+$X$2 -> 10.00200067 | Y5: 0.3944298073 | Z5: 1096.71766 | AA5: 731.7434349 | AB5: 0.3946766286 | AE5: 0.3959994214 | AF5: 1071.639914 | AG5: 706.6656893 | AH5: 0.3598548634 | AK5: 0.411660568 | AL5: 983.541269 | AM5: 618.5670442 | AN5: 0.3740865503 | AQ5: 0.3746555923 | AT5: 0.4827324268 | AU5: 593.0201393 | AV5: 228.0459146 | AW5: 0.4472366427 | AX5: 757.6618584 | AY5: 392.6876336 | BC5: =IFERROR(IF($X5/(1-$S$14^1.5)/$B$32/BC$2<=1,$X5/(1-$S$14^1.5)/$B$32/BC$2,NA()),NA()) -> 0.4827324268 | BD5: =IFERROR(IF(OR($X5<$B$3,$X5>$B$4),NA(),IF(OR(1/$X5*BD$2*$B$31*$T$14*BC5^$B$33*(1-BC5)^$B$34<$B$5,1/$X5*BD$2*$B$31*$T$14*BC5^$B$33*(1-BC5)^$B$34>$B$6),NA(),1/$X5*BD$2*$B$31*$T$14*BC5^$B$33*(1-BC5)^$B$34)),NA()) -> 593.0201393 | BE5: =IFERROR(ABS(BD5-($B$37*$X5+$B$38)),"") -> 228.0459146 | BF5: =IF($B$9=$C$9,BD5,NA()) ->  | BH5: =IF(BM4*$BY4<0,BH4,$BT4) -> 8.343611068 | BI5: =IF(BH5/(Home!$E$36*Home!$H$2)<=1,BH5/(Home!$E$36*Home!$H$2),NA()) -> 0.499700549 | BJ5: =(1-BI5^1.5)^(Home!$H$3/2)*(1-BI5^2)^(Home!$H$3/2) -> 0.4433310007 | BK5: =IF($B$25/((1-BI5^1.5)*Home!$E$39*$B$27)<=1,$B$25/((1-BI5^1.5)*Home!$E$39*$B$27),NA()) -> 0.6100490906 | BL5: 0.1187687722 | BM5: -146.9796282 | BN5: =IF(BS4*$BY4<0,BN4,$BT4) -> 0 | BO5: =IF(BN5/(Home!$E$36*Home!$H$2)<=1,BN5/(Home!$E$36*Home!$H$2),NA()) -> 0 | BP5: =(1-BO5^1.5)^(Home!$H$3/2)*(1-BO5^2)^(Home!$H$3/2) -> 1 | BQ5: =IF($B$25/((1-BO5^1.5)*Home!$E$39*$B$27)<=1,$B$25/((1-BO5^1.5)*Home!$E$39*$B$27),NA()) -> 0.3945578984 | BR5: 0.2302505131 | BS5: 763.7739669 | BT5: =AVERAGE(BH5,BN5) -> 4.171805534 | BU5: =IF(BT5/(Home!$E$36*Home!$H$2)<=1,BT5/(Home!$E$36*Home!$H$2),NA()) -> 0.2498502745 | BV5: =(1-BU5^1.5)^(Home!$H$3/2)*(1-BU5^2)^(Home!$H$3/2) -> 0.800439361 | BW5: =IF($B$25/((1-BU5^1.5)*Home!$E$39*$B$27)<=1,$B$25/((1-BU5^1.5)*Home!$E$39*$B$27),NA()) -> 0.4508654588 | BX5: 0.2024794754 | BY5: 414.142722
A6: Imax or Jmax | B6: 1100 | C6: =IF(ABS(B6-$A$39)<10,"value too low","") ->  | D6: 477 | E6: 13 | K6: Cable, 4.2 K | L6: 4.2 | M6: 62057 | N6: 30.50510073 | O6: =IF(N6="","",N6*0.953708882861042*(1-(4.2/(Home!$E$36*Home!$H$2)^1.5))) -> 27.30208592 | P6: 508.2118816 | Q6: 13.85928643 | R6: =COUNTA($K$4:K6) -> 3 | S6: =IF($L6/(Home!$E$36*Home!$H$2)>1,"error: T > Tc", $L6/(Home!$E$36*Home!$H$2)) -> 0.2515388468 | T6: =(1-$S6^1.5)^(Home!$H$3/2)*(1-$S6^2)^(Home!$H$3/2) -> 0.7983227332 | X6: =X5+$X$2 -> 10.00400133 | Y6: 0.3945087038 | Z6: 1096.322266 | AA6: 731.2738165 | AB6: 0.3947555745 | AE6: 0.3960786319 | AF6: 1071.251722 | AG6: 706.2032727 | AH6: 0.359926844 | AK6: 0.4117429111 | AL6: 983.1676534 | AM6: 618.1192039 | AN6: 0.3741613775 | AQ6: 0.3747305334 | AT6: 0.4828289862 | AU6: 592.7394806 | AV6: 227.6910311 | AW6: 0.4473261019 | AX6: 757.3408977 | AY6: 392.2924482 | BC6: 0.4828289862 | BD6: 592.7394806 | BE6: 227.6910311 | BH6: =IF(BM5*$BY5<0,BH5,$BT5) -> 8.343611068 | BI6: =IF(BH6/(Home!$E$36*Home!$H$2)<=1,BH6/(Home!$E$36*Home!$H$2),NA()) -> 0.499700549 | BJ6: =(1-BI6^1.5)^(Home!$H$3/2)*(1-BI6^2)^(Home!$H$3/2) -> 0.4433310007 | BK6: =IF($B$25/((1-BI6^1.5)*Home!$E$39*$B$27)<=1,$B$25/((1-BI6^1.5)*Home!$E$39*$B$27),NA()) -> 0.6100490906 | BL6: 0.1187687722 | BM6: -146.9796282 | BN6: =IF(BS5*$BY5<0,BN5,$BT5) -> 4.171805534 | BO6: =IF(BN6/(Home!$E$36*Home!$H$2)<=1,BN6/(Home!$E$36*Home!$H$2),NA()) -> 0.2498502745 | BP6: =(1-BO6^1.5)^(Home!$H$3/2)*(1-BO6^2)^(Home!$H$3/2) -> 0.800439361 | BQ6: =IF($B$25/((1-BO6^1.5)*Home!$E$39*$B$27)<=1,$B$25/((1-BO6^1.5)*Home!$E$39*$B$27),NA()) -> 0.4508654588 | BR6: 0.2024794754 | BS6: 414.142722 | BT6: =AVERAGE(BH6,BN6) -> 6.257708301 | BU6: =IF(BT6/(Home!$E$36*Home!$H$2)<=1,BT6/(Home!$E$36*Home!$H$2),NA()) -> 0.3747754117 | BV6: =(1-BU6^1.5)^(Home!$H$3/2)*(1-BU6^2)^(Home!$H$3/2) -> 0.6290899342 | BW6: =IF($B$25/((1-BU6^1.5)*Home!$E$39*$B$27)<=1,$B$25/((1-BU6^1.5)*Home!$E$39*$B$27),NA()) -> 0.5120360742 | BX6: 0.1703827851 | BY6: 132.6732622
A7: Load line termination at | B7: =B13 -> Cable, 4.2 K | D7: 513 | E7: 14 | K7: Cable, 1.9 K | L7: 1.9 | M7: 62057 | N7: 30.50510073 | O7: =IF(N7="","",N7*0.953708882861042*(1-(4.2/(Home!$E$36*Home!$H$2)^1.5))) -> 27.30208592 | P7: 556.0352366 | Q7: 15.15171724 | R7: =COUNTA($K$4:K7) -> 4 | S7: =IF($L7/(Home!$E$36*Home!$H$2)>1,"error: T > Tc", $L7/(Home!$E$36*Home!$H$2)) -> 0.1137913831 | T7: =(1-$S7^1.5)^(Home!$H$3/2)*(1-$S7^2)^(Home!$H$3/2) -> 0.9429932186 | X7: 10.006002 | Y7: 0.3945876003 | Z7: 1095.927 | AA7: 730.8043254 | AB7: 0.3948345203 | AE7: 0.3961578423 | AF7: 1070.863656 | AG7: 705.7409814 | AH7: 0.3599988245 | AK7: 0.4118252542 | AL7: 982.7941609 | AM7: 617.6714866 | AN7: 0.3742362048 | AQ7: 0.3748054746 | AT7: 0.4829255455 | AU7: 592.4589253 | AV7: 227.336251 | AW7: 0.4474155612 | AX7: 757.0200485 | AY7: 391.8973743 | BC7: 0.4829255455 | BD7: 592.4589253 | BE7: 227.336251 | BH7: 8.343611068 | BI7: =IF(BH7/(Home!$E$36*Home!$H$2)<=1,BH7/(Home!$E$36*Home!$H$2),NA()) -> 0.499700549 | BJ7: =(1-BI7^1.5)^(Home!$H$3/2)*(1-BI7^2)^(Home!$H$3/2) -> 0.4433310007 | BK7: =IF($B$25/((1-BI7^1.5)*Home!$E$39*$B$27)<=1,$B$25/((1-BI7^1.5)*Home!$E$39*$B$27),NA()) -> 0.6100490906 | BL7: 0.1187687722 | BM7: -146.9796282 | BN7: 6.257708301 | BO7: =IF(BN7/(Home!$E$36*Home!$H$2)<=1,BN7/(Home!$E$36*Home!$H$2),NA()) -> 0.3747754117 | BP7: =(1-BO7^1.5)^(Home!$H$3/2)*(1-BO7^2)^(Home!$H$3/2) -> 0.6290899342 | BQ7: =IF($B$25/((1-BO7^1.5)*Home!$E$39*$B$27)<=1,$B$25/((1-BO7^1.5)*Home!$E$39*$B$27),NA()) -> 0.5120360742 | BR7: 0.1703827851 | BS7: 132.6732622 | BT7: 7.300659684 | BU7: =IF(BT7/(Home!$E$36*Home!$H$2)<=1,BT7/(Home!$E$36*Home!$H$2),NA()) -> 0.4372379804 | BV7: =(1-BU7^1.5)^(Home!$H$3/2)*(1-BU7^2)^(Home!$H$3/2) -> 0.5365455323 | BW7: =IF($B$25/((1-BU7^1.5)*Home!$E$39*$B$27)<=1,$B$25/((1-BU7^1.5)*Home!$E$39*$B$27),NA()) -> 0.5550267446 | BX7: 0.1475111244 | BY7: -11.12012397
D8: 550 | E8: 15 | K8: Spec fit, 4.2 K | L8: 4.2 | M8: 58875 | N8: 29.34456972 | O8: =IF(N8="","",N8*0.953708882861042*(1-(4.2/(Home!$E$36*Home!$H$2)^1.5))) -> 26.26340988 | P8: 491.6850212 | Q8: 13.41913971 | R8: =COUNTA($K$4:K8) -> 5 | S8: =IF($L8/(Home!$E$36*Home!$H$2)>1,"error: T > Tc", $L8/(Home!$E$36*Home!$H$2)) -> 0.2515388468 | T8: =(1-$S8^1.5)^(Home!$H$3/2)*(1-$S8^2)^(Home!$H$3/2) -> 0.7983227332 | X8: 10.00800267 | Y8: 0.3946664968 | Z8: 1095.53186 | AA8: 730.3349615 | AB8: 0.3949134662 | AE8: 0.3962370528 | AF8: 1070.475714 | AG8: 705.2788152 | AH8: 0.3600708051 | AK8: 0.4119075973 | AL8: 982.4207914 | AM8: 617.2238924 | AN8: 0.3743110321 | AQ8: 0.3748804157 | AT8: 0.4830221049 | AU8: 592.1784733 | AV8: 226.9815743 | AW8: 0.4475050204 | AX8: 756.6993107 | AY8: 391.5024117 | BC8: 0.4830221049 | BD8: 592.1784733 | BE8: 226.9815743 | BH8: 7.300659684 | BI8: =IF(BH8/(Home!$E$36*Home!$H$2)<=1,BH8/(Home!$E$36*Home!$H$2),NA()) -> 0.4372379804 | BJ8: =(1-BI8^1.5)^(Home!$H$3/2)*(1-BI8^2)^(Home!$H$3/2) -> 0.5365455323 | BK8: =IF($B$25/((1-BI8^1.5)*Home!$E$39*$B$27)<=1,$B$25/((1-BI8^1.5)*Home!$E$39*$B$27),NA()) -> 0.5550267446 | BL8: 0.1475111244 | BM8: -11.12012397 | BN8: 6.257708301 | BO8: =IF(BN8/(Home!$E$36*Home!$H$2)<=1,BN8/(Home!$E$36*Home!$H$2),NA()) -> 0.3747754117 | BP8: =(1-BO8^1.5)^(Home!$H$3/2)*(1-BO8^2)^(Home!$H$3/2) -> 0.6290899342 | BQ8: =IF($B$25/((1-BO8^1.5)*Home!$E$39*$B$27)<=1,$B$25/((1-BO8^1.5)*Home!$E$39*$B$27),NA()) -> 0.5120360742 | BR8: 0.1703827851 | BS8: 132.6732622 | BT8: 6.779183992 | BU8: =IF(BT8/(Home!$E$36*Home!$H$2)<=1,BT8/(Home!$E$36*Home!$H$2),NA()) -> 0.4060066961 | BV8: =(1-BU8^1.5)^(Home!$H$3/2)*(1-BU8^2)^(Home!$H$3/2) -> 0.5830851545 | BW8: =IF($B$25/((1-BU8^1.5)*Home!$E$39*$B$27)<=1,$B$25/((1-BU8^1.5)*Home!$E$39*$B$27),NA()) -> 0.5322527526 | BX8: 0.1596178435 | BY8: 60.28697867
A9: Display zero temp margin SS curve? | B9: No | C9: Yes | K9: Spec fit, 1.9 K | L9: 1.9 | M9: 58876 | N9: 29.34456972 | O9: =IF(N9="","",N9*0.953708882861042*(1-(4.2/(Home!$E$36*Home!$H$2)^1.5))) -> 26.26340988 | P9: 538.190225 | Q9: 14.66955652 | R9: =COUNTA($K$4:K9) -> 6 | S9: =IF($L9/(Home!$E$36*Home!$H$2)>1,"error: T > Tc", $L9/(Home!$E$36*Home!$H$2)) -> 0.1137913831 | T9: =(1-$S9^1.5)^(Home!$H$3/2)*(1-$S9^2)^(Home!$H$3/2) -> 0.9429932186 | X9: 10.01000333 | Y9: 0.3947453933 | Z9: 1095.136848 | AA9: 729.8657247 | AB9: 0.394992412 | AE9: 0.3963162632 | AF9: 1070.087898 | AG9: 704.816774 | AH9: 0.3601427857 | AK9: 0.4119899404 | AL9: 982.0475448 | AM9: 616.7764211 | AN9: 0.3743858594 | AQ9: 0.3749553568 | AT9: 0.4831186643 | AU9: 591.8981245 | AV9: 226.6270008 | AW9: 0.4475944797 | AX9: 756.3786842 | AY9: 391.1075605 | BC9: 0.4831186643 | BD9: 591.8981245 | BE9: 226.6270008 | BH9: 7.300659684 | BI9: =IF(BH9/(Home!$E$36*Home!$H$2)<=1,BH9/(Home!$E$36*Home!$H$2),NA()) -> 0.4372379804 | BJ9: =(1-BI9^1.5)^(Home!$H$3/2)*(1-BI9^2)^(Home!$H$3/2) -> 0.5365455323 | BK9: =IF($B$25/((1-BI9^1.5)*Home!$E$39*$B$27)<=1,$B$25/((1-BI9^1.5)*Home!$E$39*$B$27),NA()) -> 0.5550267446 | BL9: 0.1475111244 | BM9: -11.12012397 | BN9: 6.779183992 | BO9: =IF(BN9/(Home!$E$36*Home!$H$2)<=1,BN9/(Home!$E$36*Home!$H$2),NA()) -> 0.4060066961 | BP9: =(1-BO9^1.5)^(Home!$H$3/2)*(1-BO9^2)^(Home!$H$3/2) -> 0.5830851545 | BQ9: =IF($B$25/((1-BO9^1.5)*Home!$E$39*$B$27)<=1,$B$25/((1-BO9^1.5)*Home!$E$39*$B$27),NA()) -> 0.5322527526 | BR9: 0.1596178435 | BS9: 60.28697867 | BT9: 7.039921838 | BU9: =IF(BT9/(Home!$E$36*Home!$H$2)<=1,BT9/(Home!$E$36*Home!$H$2),NA()) -> 0.4216223382 | BV9: =(1-BU9^1.5)^(Home!$H$3/2)*(1-BU9^2)^(Home!$H$3/2) -> 0.5598592563 | BW9: =IF($B$25/((1-BU9^1.5)*Home!$E$39*$B$27)<=1,$B$25/((1-BU9^1.5)*Home!$E$39*$B$27),NA()) -> 0.5432958548 | BX9: 0.153740434 | BY9: 24.40081268
C10: No | K10: Spec cable, 1.9 K | L10: 1.9 | M10: 55932 | N10: 29.3 | O10: =IF(N10="","",N10*0.953708882861042*(1-(4.2/(Home!$E$36*Home!$H$2)^1.5))) -> 26.22351995 | P10: 530.7185867 | Q10: 14.46748916 | R10: =COUNTA($K$4:K10) -> 7 | S10: =IF($L10/(Home!$E$36*Home!$H$2)>1,"error: T > Tc", $L10/(Home!$E$36*Home!$H$2)) -> 0.1137913831 | T10: =(1-$S10^1.5)^(Home!$H$3/2)*(1-$S10^2)^(Home!$H$3/2) -> 0.9429932186 | X10: 10.012004 | Y10: 0.3948242897 | Z10: 1094.741963 | AA10: 729.396615 | AB10: 0.3950713579 | AE10: 0.3963954737 | AF10: 1069.700206 | AG10: 704.3548579 | AH10: 0.3602147662 | AK10: 0.4120722835 | AL10: 981.6744212 | AM10: 616.3290728 | AN10: 0.3744606867 | AQ10: 0.3750302979 | AT10: 0.4832152236 | AU10: 591.6178791 | AV10: 226.2725306 | AW10: 0.447683939 | AX10: 756.0581691 | AY10: 390.7128206 | BC10: 0.4832152236 | BD10: 591.6178791 | BE10: 226.2725306 | BH10: 7.300659684 | BI10: =IF(BH10/(Home!$E$36*Home!$H$2)<=1,BH10/(Home!$E$36*Home!$H$2),NA()) -> 0.4372379804 | BJ10: =(1-BI10^1.5)^(Home!$H$3/2)*(1-BI10^2)^(Home!$H$3/2) -> 0.5365455323 | BK10: =IF($B$25/((1-BI10^1.5)*Home!$E$39*$B$27)<=1,$B$25/((1-BI10^1.5)*Home!$E$39*$B$27),NA()) -> 0.5550267446 | BL10: 0.1475111244 | BM10: -11.12012397 | BN10: 7.039921838 | BO10: =IF(BN10/(Home!$E$36*Home!$H$2)<=1,BN10/(Home!$E$36*Home!$H$2),NA()) -> 0.4216223382 | BP10: =(1-BO10^1.5)^(Home!$H$3/2)*(1-BO10^2)^(Home!$H$3/2) -> 0.5598592563 | BQ10: =IF($B$25/((1-BO10^1.5)*Home!$E$39*$B$27)<=1,$B$25/((1-BO10^1.5)*Home!$E$39*$B$27),NA()) -> 0.5432958548 | BR10: 0.153740434 | BS10: 24.40081268 | BT10: 7.170290761 | BU10: =IF(BT10/(Home!$E$36*Home!$H$2)<=1,BT10/(Home!$E$36*Home!$H$2),NA()) -> 0.4294301593 | BV10: =(1-BU10^1.5)^(Home!$H$3/2)*(1-BU10^2)^(Home!$H$3/2) -> 0.5482105026 | BW10: =IF($B$25/((1-BU10^1.5)*Home!$E$39*$B$27)<=1,$B$25/((1-BU10^1.5)*Home!$E$39*$B$27),NA()) -> 0.5490719947 | BX10: 0.1506707893 | BY10: 6.586955741
A11: I [A] to calculate margin at | B11: 417 | K11: Op (7.2 K) | L11: 7.2 | M11: 62057 | N11: 30.50510073 | O11: =IF(N11="","",N11*0.953708882861042*(1-(4.2/(Home!$E$36*Home!$H$2)^1.5))) -> 27.30208592 | P11: 417.5751124 | Q11: 11.42247416 | R11: =COUNTA($K$4:K11) -> 8 | S11: =IF($L11/(Home!$E$36*Home!$H$2)>1,"error: T > Tc", $L11/(Home!$E$36*Home!$H$2)) -> 0.4312094516 | T11: =(1-$S11^1.5)^(Home!$H$3/2)*(1-$S11^2)^(Home!$H$3/2) -> 0.5455534403 | X11: 10.01400467 | Y11: 0.3949031862 | Z11: 1094.347206 | AA11: 728.9276323 | AB11: 0.3951503037 | AE11: 0.3964746841 | AF11: 1069.31264 | AG11: 703.8930668 | AH11: 0.3602867468 | AK11: 0.4121546266 | AL11: 981.3014204 | AM11: 615.8818473 | AN11: 0.374535514 | AQ11: 0.375105239 | AT11: 0.483311783 | AU11: 591.3377368 | AV11: 225.9181636 | AW11: 0.4477733982 | AX11: 755.7377651 | AY11: 390.3181919 | BC11: 0.483311783 | BD11: 591.3377368 | BE11: 225.9181636 | BH11: 7.300659684 | BI11: =IF(BH11/(Home!$E$36*Home!$H$2)<=1,BH11/(Home!$E$36*Home!$H$2),NA()) -> 0.4372379804 | BJ11: =(1-BI11^1.5)^(Home!$H$3/2)*(1-BI11^2)^(Home!$H$3/2) -> 0.5365455323 | BK11: =IF($B$25/((1-BI11^1.5)*Home!$E$39*$B$27)<=1,$B$25/((1-BI11^1.5)*Home!$E$39*$B$27),NA()) -> 0.5550267446 | BL11: 0.1475111244 | BM11: -11.12012397 | BN11: 7.170290761 | BO11: =IF(BN11/(Home!$E$36*Home!$H$2)<=1,BN11/(Home!$E$36*Home!$H$2),NA()) -> 0.4294301593 | BP11: =(1-BO11^1.5)^(Home!$H$3/2)*(1-BO11^2)^(Home!$H$3/2) -> 0.5482105026 | BQ11: =IF($B$25/((1-BO11^1.5)*Home!$E$39*$B$27)<=1,$B$25/((1-BO11^1.5)*Home!$E$39*$B$27),NA()) -> 0.5490719947 | BR11: 0.1506707893 | BS11: 6.586955741 | BT11: 7.235475223 | BU11: =IF(BT11/(Home!$E$36*Home!$H$2)<=1,BT11/(Home!$E$36*Home!$H$2),NA()) -> 0.4333340698 | BV11: =(1-BU11^1.5)^(Home!$H$3/2)*(1-BU11^2)^(Home!$H$3/2) -> 0.5423796857 | BW11: =IF($B$25/((1-BU11^1.5)*Home!$E$39*$B$27)<=1,$B$25/((1-BU11^1.5)*Home!$E$39*$B$27),NA()) -> 0.5520266062 | BX11: 0.1491023358 | BY11: -2.280911879
A12: ="Corresponding load line "&IF($A$11=$A$24,"B [T]", "I [A]") -> Corresponding load line B [T] | B12: =IF($A$11=$A$24,$B$25,$B$24) -> 11.40431267 | K12: Ultimate 108% OP | L12: 6.2 | M12: 62057 | N12: 30.50510073 | O12: =IF(N12="","",N12*0.953708882861042*(1-(4.2/(Home!$E$36*Home!$H$2)^1.5))) -> 27.30208592 | P12: 450.7930784 | Q12: 12.31877292 | R12: =COUNTA($K$4:K12) -> 9 | S12: =IF($L12/(Home!$E$36*Home!$H$2)>1,"error: T > Tc", $L12/(Home!$E$36*Home!$H$2)) -> 0.37131925 | T12: =(1-$S12^1.5)^(Home!$H$3/2)*(1-$S12^2)^(Home!$H$3/2) -> 0.6341322553 | X12: 10.01600534 | Y12: 0.3949820827 | Z12: 1093.952575 | AA12: 728.4587767 | AB12: 0.3952292496 | AE12: 0.3965538946 | AF12: 1068.925199 | AG12: 703.4314006 | AH12: 0.3603587274 | AK12: 0.4122369697 | AL12: 980.9285425 | AM12: 615.4347446 | AN12: 0.3746103413 | AQ12: 0.3751801801 | AT12: 0.4834083423 | AU12: 591.0576977 | AV12: 225.5638997 | AW12: 0.4478628575 | AX12: 755.4174724 | AY12: 389.9236745 | BC12: 0.4834083423 | BD12: 591.0576977 | BE12: 225.5638997 | BH12: 7.235475223 | BI12: =IF(BH12/(Home!$E$36*Home!$H$2)<=1,BH12/(Home!$E$36*Home!$H$2),NA()) -> 0.4333340698 | BJ12: =(1-BI12^1.5)^(Home!$H$3/2)*(1-BI12^2)^(Home!$H$3/2) -> 0.5423796857 | BK12: =IF($B$25/((1-BI12^1.5)*Home!$E$39*$B$27)<=1,$B$25/((1-BI12^1.5)*Home!$E$39*$B$27),NA()) -> 0.5520266062 | BL12: 0.1491023358 | BM12: -2.280911879 | BN12: 7.170290761 | BO12: =IF(BN12/(Home!$E$36*Home!$H$2)<=1,BN12/(Home!$E$36*Home!$H$2),NA()) -> 0.4294301593 | BP12: =(1-BO12^1.5)^(Home!$H$3/2)*(1-BO12^2)^(Home!$H$3/2) -> 0.5482105026 | BQ12: =IF($B$25/((1-BO12^1.5)*Home!$E$39*$B$27)<=1,$B$25/((1-BO12^1.5)*Home!$E$39*$B$27),NA()) -> 0.5490719947 | BR12: 0.1506707893 | BS12: 6.586955741 | BT12: 7.202882992 | BU12: =IF(BT12/(Home!$E$36*Home!$H$2)<=1,BT12/(Home!$E$36*Home!$H$2),NA()) -> 0.4313821146 | BV12: =(1-BU12^1.5)^(Home!$H$3/2)*(1-BU12^2)^(Home!$H$3/2) -> 0.545295556 | BW12: =IF($B$25/((1-BU12^1.5)*Home!$E$39*$B$27)<=1,$B$25/((1-BU12^1.5)*Home!$E$39*$B$27),NA()) -> 0.5505436652 | BX12: 0.1498893916 | BY12: 2.149563195
A13: SS curve to calculate margin from | B13: Cable, 4.2 K | O13: =IF(N13="","",N13*0.953708882861042*(1-(4.2/(Home!$E$36*Home!$H$2)^1.5))) ->  | R13: =COUNTA($K$4:K13) -> 9 | S13: =IF($L13/(Home!$E$36*Home!$H$2)>1,"error: T > Tc", $L13/(Home!$E$36*Home!$H$2)) -> 0 | T13: =(1-$S13^1.5)^(Home!$H$3/2)*(1-$S13^2)^(Home!$H$3/2) -> 1 | X13: 10.018006 | Y13: 0.3950609792 | Z13: 1093.558071 | AA13: 727.9900479 | AB13: 0.3953081954 | AE13: 0.396633105 | AF13: 1068.537882 | AG13: 702.9698593 | AH13: 0.360430708 | AK13: 0.4123193128 | AL13: 980.5557873 | AM13: 614.9877646 | AN13: 0.3746851686 | AQ13: 0.3752551212 | AT13: 0.4835049017 | AU13: 590.7777617 | AV13: 225.209739 | AW13: 0.4479523167 | AX13: 755.0972909 | AY13: 389.5292682 | BC13: 0.4835049017 | BD13: 590.7777617 | BE13: 225.209739 | BH13: 7.235475223 | BI13: =IF(BH13/(Home!$E$36*Home!$H$2)<=1,BH13/(Home!$E$36*Home!$H$2),NA()) -> 0.4333340698 | BJ13: =(1-BI13^1.5)^(Home!$H$3/2)*(1-BI13^2)^(Home!$H$3/2) -> 0.5423796857 | BK13: =IF($B$25/((1-BI13^1.5)*Home!$E$39*$B$27)<=1,$B$25/((1-BI13^1.5)*Home!$E$39*$B$27),NA()) -> 0.5520266062 | BL13: 0.1491023358 | BM13: -2.280911879 | BN13: 7.202882992 | BO13: =IF(BN13/(Home!$E$36*Home!$H$2)<=1,BN13/(Home!$E$36*Home!$H$2),NA()) -> 0.4313821146 | BP13: =(1-BO13^1.5)^(Home!$H$3/2)*(1-BO13^2)^(Home!$H$3/2) -> 0.545295556 | BQ13: =IF($B$25/((1-BO13^1.5)*Home!$E$39*$B$27)<=1,$B$25/((1-BO13^1.5)*Home!$E$39*$B$27),NA()) -> 0.5505436652 | BR13: 0.1498893916 | BS13: 2.149563195 | BT13: 7.219179107 | BU13: =IF(BT13/(Home!$E$36*Home!$H$2)<=1,BT13/(Home!$E$36*Home!$H$2),NA()) -> 0.4323580922 | BV13: =(1-BU13^1.5)^(Home!$H$3/2)*(1-BU13^2)^(Home!$H$3/2) -> 0.5438377307 | BW13: =IF($B$25/((1-BU13^1.5)*Home!$E$39*$B$27)<=1,$B$25/((1-BU13^1.5)*Home!$E$39*$B$27),NA()) -> 0.55128372 | BX13: 0.1494965729 | BY13: -0.0665543866
A14: Margins | B14: Margin | C14: Operating Point (X) | K14: =IF($B$9=$C$10,"","Zero temp margin (at "&L14&" K)") ->  | L14: =ROUND(C17,1) -> 7.2 | M14: =VLOOKUP($B$13,$K$4:$N$13,3,FALSE) -> 62057 | N14: =VLOOKUP($B$13,$K$4:$N$13,4,FALSE) -> 30.50510073 | O14: =N14*0.953708882861042*(1-(4.2/(Home!$E$36*Home!$H$2)^1.5)) -> 27.30208592 | P14: 417.5751124 | Q14: 11.42247416 | R14: =COUNTA($K$4:K14) -> 10 | S14: =IF($L14/(Home!$E$36*Home!$H$2)>1,"error: T > Tc", $L14/(Home!$E$36*Home!$H$2)) -> 0.4312094516 | T14: =(1-$S14^1.5)^(Home!$H$3/2)*(1-$S14^2)^(Home!$H$3/2) -> 0.5455534403 | X14: 10.02000667 | Y14: 0.3951398757 | Z14: 1093.163693 | AA14: 727.5214461 | AB14: 0.3953871413 | AE14: 0.3967123154 | AF14: 1068.15069 | AG14: 702.5084428 | AH14: 0.3605026885 | AK14: 0.4124016558 | AL14: 980.1831548 | AM14: 614.5409074 | AN14: 0.3747599958 | AQ14: 0.3753300623 | AT14: 0.4836014611 | AU14: 590.4979288 | AV14: 224.8556814 | AW14: 0.448041776 | AX14: 754.7772204 | AY14: 389.134973 | BC14: 0.4836014611 | BD14: 590.4979288 | BE14: 224.8556814 | BH14: 7.219179107 | BI14: =IF(BH14/(Home!$E$36*Home!$H$2)<=1,BH14/(Home!$E$36*Home!$H$2),NA()) -> 0.4323580922 | BJ14: =(1-BI14^1.5)^(Home!$H$3/2)*(1-BI14^2)^(Home!$H$3/2) -> 0.5438377307 | BK14: =IF($B$25/((1-BI14^1.5)*Home!$E$39*$B$27)<=1,$B$25/((1-BI14^1.5)*Home!$E$39*$B$27),NA()) -> 0.55128372 | BL14: 0.1494965729 | BM14: -0.0665543866 | BN14: 7.202882992 | BO14: =IF(BN14/(Home!$E$36*Home!$H$2)<=1,BN14/(Home!$E$36*Home!$H$2),NA()) -> 0.4313821146 | BP14: =(1-BO14^1.5)^(Home!$H$3/2)*(1-BO14^2)^(Home!$H$3/2) -> 0.545295556 | BQ14: =IF($B$25/((1-BO14^1.5)*Home!$E$39*$B$27)<=1,$B$25/((1-BO14^1.5)*Home!$E$39*$B$27),NA()) -> 0.5505436652 | BR14: 0.1498893916 | BS14: 2.149563195 | BT14: 7.21103105 | BU14: =IF(BT14/(Home!$E$36*Home!$H$2)<=1,BT14/(Home!$E$36*Home!$H$2),NA()) -> 0.4318701034 | BV14: =(1-BU14^1.5)^(Home!$H$3/2)*(1-BU14^2)^(Home!$H$3/2) -> 0.5445666716 | BW14: =IF($B$25/((1-BU14^1.5)*Home!$E$39*$B$27)<=1,$B$25/((1-BU14^1.5)*Home!$E$39*$B$27),NA()) -> 0.5509133395 | BX14: 0.1496931593 | BY14: 1.041286316
A15: Load line margin (purple arrow) | B15: =1-($B$25+$B$38/$B$37)/(B21+$B$38/$B$37) -> 0.1792623433 | C15: =$B$24/$B$20 -> 0.8205239097 | K15: ="Load line (termination at "&VLOOKUP($B$13,$K$4:$L$13,2,FALSE)&" K)" -> Load line (termination at 4.2 K) | M15: =M10/M4 -> 0.8835181499 | X15: 10.02200734 | Y15: 0.3952187721 | Z15: 1092.769443 | AA15: 727.052971 | AB15: 0.3954660871 | AE15: 0.3967915259 | AF15: 1067.763623 | AG15: 702.047151 | AH15: 0.3605746691 | AK15: 0.4124839989 | AL15: 979.810645 | AM15: 614.0941728 | AN15: 0.3748348231 | AQ15: 0.3754050034 | AT15: 0.4836980204 | AU15: 590.2181989 | AV15: 224.5017268 | AW15: 0.4481312352 | AX15: 754.4572611 | AY15: 388.7407889 | BC15: 0.4836980204 | BD15: 590.2181989 | BE15: 224.5017268 | BH15: 7.219179107 | BI15: =IF(BH15/(Home!$E$36*Home!$H$2)<=1,BH15/(Home!$E$36*Home!$H$2),NA()) -> 0.4323580922 | BJ15: =(1-BI15^1.5)^(Home!$H$3/2)*(1-BI15^2)^(Home!$H$3/2) -> 0.5438377307 | BK15: =IF($B$25/((1-BI15^1.5)*Home!$E$39*$B$27)<=1,$B$25/((1-BI15^1.5)*Home!$E$39*$B$27),NA()) -> 0.55128372 | BL15: 0.1494965729 | BM15: -0.0665543866 | BN15: 7.21103105 | BO15: =IF(BN15/(Home!$E$36*Home!$H$2)<=1,BN15/(Home!$E$36*Home!$H$2),NA()) -> 0.4318701034 | BP15: =(1-BO15^1.5)^(Home!$H$3/2)*(1-BO15^2)^(Home!$H$3/2) -> 0.5445666716 | BQ15: =IF($B$25/((1-BO15^1.5)*Home!$E$39*$B$27)<=1,$B$25/((1-BO15^1.5)*Home!$E$39*$B$27),NA()) -> 0.5509133395 | BR15: 0.1496931593 | BS15: 1.041286316 | BT15: 7.215105079 | BU15: =IF(BT15/(Home!$E$36*Home!$H$2)<=1,BT15/(Home!$E$36*Home!$H$2),NA()) -> 0.4321140978 | BV15: =(1-BU15^1.5)^(Home!$H$3/2)*(1-BU15^2)^(Home!$H$3/2) -> 0.5442022081 | BW15: =IF($B$25/((1-BU15^1.5)*Home!$E$39*$B$27)<=1,$B$25/((1-BU15^1.5)*Home!$E$39*$B$27),NA()) -> 0.5510984414 | BX15: 0.1495949104 | BY15: 0.4873112022
A16: Current margin (green arrow) | B16: =1-B24/B29 -> 0.4961154135 | C16: =B24/B29 -> 0.5038845865 | R16: Plot format comment | X16: 10.024008 | Y16: 0.3952976686 | Z16: 1092.37532 | AA16: 726.5846228 | AB16: 0.395545033 | AE16: 0.3968707363 | AF16: 1067.376681 | AG16: 701.585984 | AH16: 0.3606466497 | AK16: 0.412566342 | AL16: 979.4382577 | AM16: 613.6475609 | AN16: 0.3749096504 | AQ16: 0.3754799445 | AT16: 0.4837945798 | AU16: 589.9385721 | AV16: 224.1478752 | AW16: 0.4482206945 | AX16: 754.1374128 | AY16: 388.3467159 | BC16: 0.4837945798 | BD16: 589.9385721 | BE16: 224.1478752 | BH16: =IF(BM15*$BY15<0,BH15,$BT15) -> 7.219179107 | BI16: =IF(BH16/(Home!$E$36*Home!$H$2)<=1,BH16/(Home!$E$36*Home!$H$2),NA()) -> 0.4323580922 | BJ16: =(1-BI16^1.5)^(Home!$H$3/2)*(1-BI16^2)^(Home!$H$3/2) -> 0.5438377307 | BK16: =IF($B$25/((1-BI16^1.5)*Home!$E$39*$B$27)<=1,$B$25/((1-BI16^1.5)*Home!$E$39*$B$27),NA()) -> 0.55128372 | BL16: 0.1494965729 | BM16: -0.0665543866 | BN16: =IF(BS15*$BY15<0,BN15,$BT15) -> 7.215105079 | BO16: =IF(BN16/(Home!$E$36*Home!$H$2)<=1,BN16/(Home!$E$36*Home!$H$2),NA()) -> 0.4321140978 | BP16: =(1-BO16^1.5)^(Home!$H$3/2)*(1-BO16^2)^(Home!$H$3/2) -> 0.5442022081 | BQ16: =IF($B$25/((1-BO16^1.5)*Home!$E$39*$B$27)<=1,$B$25/((1-BO16^1.5)*Home!$E$39*$B$27),NA()) -> 0.5510984414 | BR16: 0.1495949104 | BS16: 0.4873112022 | BT16: =AVERAGE(BH16,BN16) -> 7.217142093 | BU16: =IF(BT16/(Home!$E$36*Home!$H$2)<=1,BT16/(Home!$E$36*Home!$H$2),NA()) -> 0.432236095 | BV16: =(1-BU16^1.5)^(Home!$H$3/2)*(1-BU16^2)^(Home!$H$3/2) -> 0.5440199711 | BW16: =IF($B$25/((1-BU16^1.5)*Home!$E$39*$B$27)<=1,$B$25/((1-BU16^1.5)*Home!$E$39*$B$27),NA()) -> 0.5511910586 | BX16: 0.1495457527 | BY16: 0.2103646872
A17: Temperature margin [K] | B17: =BT33-VLOOKUP($B$13,$K$4:$T$13,2,FALSE) -> 3.018689513 | C17: =BT33 -> 7.218689513 | K17: =IFERROR(INDEX($K$4:$K$13,MATCH(ROW()-ROW($K$17)+1,$R$4:$R$13,0)),"") -> Witness RW | X17: 10.02600867 | Y17: 0.3953765651 | Z17: 1091.981323 | AA17: 726.1164012 | AB17: 0.3956239789 | AE17: 0.3969499468 | AF17: 1066.989863 | AG17: 701.1249417 | AH17: 0.3607186302 | AK17: 0.4126486851 | AL17: 979.0659931 | AM17: 613.2010714 | AN17: 0.3749844777 | AQ17: 0.3755548857 | AT17: 0.4838911391 | AU17: 589.6590482 | AV17: 223.7941265 | AW17: 0.4483101537 | AX17: 753.8176754 | AY17: 387.9527538 | BC17: 0.4838911391 | BD17: 589.6590482 | BE17: 223.7941265 | BH17: 7.219179107 | BI17: =IF(BH17/(Home!$E$36*Home!$H$2)<=1,BH17/(Home!$E$36*Home!$H$2),NA()) -> 0.4323580922 | BJ17: =(1-BI17^1.5)^(Home!$H$3/2)*(1-BI17^2)^(Home!$H$3/2) -> 0.5438377307 | BK17: =IF($B$25/((1-BI17^1.5)*Home!$E$39*$B$27)<=1,$B$25/((1-BI17^1.5)*Home!$E$39*$B$27),NA()) -> 0.55128372 | BL17: 0.1494965729 | BM17: -0.0665543866 | BN17: 7.217142093 | BO17: =IF(BN17/(Home!$E$36*Home!$H$2)<=1,BN17/(Home!$E$36*Home!$H$2),NA()) -> 0.432236095 | BP17: =(1-BO17^1.5)^(Home!$H$3/2)*(1-BO17^2)^(Home!$H$3/2) -> 0.5440199711 | BQ17: =IF($B$25/((1-BO17^1.5)*Home!$E$39*$B$27)<=1,$B$25/((1-BO17^1.5)*Home!$E$39*$B$27),NA()) -> 0.5511910586 | BR17: 0.1495457527 | BS17: 0.2103646872 | BT17: 7.2181606 | BU17: =IF(BT17/(Home!$E$36*Home!$H$2)<=1,BT17/(Home!$E$36*Home!$H$2),NA()) -> 0.4322970936 | BV17: =(1-BU17^1.5)^(Home!$H$3/2)*(1-BU17^2)^(Home!$H$3/2) -> 0.5439288514 | BW17: =IF($B$25/((1-BU17^1.5)*Home!$E$39*$B$27)<=1,$B$25/((1-BU17^1.5)*Home!$E$39*$B$27),NA()) -> 0.5512373838 | BX17: 0.1495211656 | BY17: 0.07190171639
A18: Limits | K18: =IFERROR(INDEX($K$4:$K$13,MATCH(ROW()-ROW($K$17)+1,$R$4:$R$13,0)),"") -> Witness XS 2 | X18: 10.02800934 | Y18: 0.3954554616 | Z18: 1091.587453 | AA18: 725.6483064 | AB18: 0.3957029247 | AE18: 0.3970291572 | AF18: 1066.60317 | AG18: 700.6640239 | AH18: 0.3607906108 | AK18: 0.4127310282 | AL18: 978.6938509 | AM18: 612.7547045 | AN18: 0.375059305 | AQ18: 0.3756298268 | AT18: 0.4839876985 | AU18: 589.3796272 | AV18: 223.4404808 | AW18: 0.448399613 | AX18: 753.498049 | AY18: 387.5589026 | BC18: 0.4839876985 | BD18: 589.3796272 | BE18: 223.4404808 | BH18: 7.219179107 | BI18: =IF(BH18/(Home!$E$36*Home!$H$2)<=1,BH18/(Home!$E$36*Home!$H$2),NA()) -> 0.4323580922 | BJ18: =(1-BI18^1.5)^(Home!$H$3/2)*(1-BI18^2)^(Home!$H$3/2) -> 0.5438377307 | BK18: =IF($B$25/((1-BI18^1.5)*Home!$E$39*$B$27)<=1,$B$25/((1-BI18^1.5)*Home!$E$39*$B$27),NA()) -> 0.55128372 | BL18: 0.1494965729 | BM18: -0.0665543866 | BN18: 7.2181606 | BO18: =IF(BN18/(Home!$E$36*Home!$H$2)<=1,BN18/(Home!$E$36*Home!$H$2),NA()) -> 0.4322970936 | BP18: =(1-BO18^1.5)^(Home!$H$3/2)*(1-BO18^2)^(Home!$H$3/2) -> 0.5439288514 | BQ18: =IF($B$25/((1-BO18^1.5)*Home!$E$39*$B$27)<=1,$B$25/((1-BO18^1.5)*Home!$E$39*$B$27),NA()) -> 0.5512373838 | BR18: 0.1495211656 | BS18: 0.07190171639 | BT18: 7.218669854 | BU18: =IF(BT18/(Home!$E$36*Home!$H$2)<=1,BT18/(Home!$E$36*Home!$H$2),NA()) -> 0.4323275929 | BV18: =(1-BU18^1.5)^(Home!$H$3/2)*(1-BU18^2)^(Home!$H$3/2) -> 0.5438832912 | BW18: =IF($B$25/((1-BU18^1.5)*Home!$E$39*$B$27)<=1,$B$25/((1-BU18^1.5)*Home!$E$39*$B$27),NA()) -> 0.5512605505 | BX18: 0.1495088699 | BY18: 0.002672805949
A19: =""""&B13&""""&" current [A] at margin-calculation field" -> "Cable, 4.2 K" current [A] at margin-calculation field | B19: =C24 -> 827.5704619 | K19: Cable, 4.2 K | X19: 10.03001 | Y19: 0.3955343581 | Z19: 1091.193709 | AA19: 725.1803381 | AB19: 0.3957818706 | AE19: 0.3971083677 | AF19: 1066.216602 | AG19: 700.2032308 | AH19: 0.3608625914 | AK19: 0.4128133713 | AL19: 978.3218312 | AM19: 612.3084601 | AN19: 0.3751341323 | AQ19: 0.3757047679 | AT19: 0.4840842579 | AU19: 589.1003091 | AV19: 223.0869379 | AW19: 0.4484890723 | AX19: 753.1785335 | AY19: 387.1651624 | BC19: 0.4840842579 | BD19: 589.1003091 | BE19: 223.0869379 | BH19: 7.219179107 | BI19: =IF(BH19/(Home!$E$36*Home!$H$2)<=1,BH19/(Home!$E$36*Home!$H$2),NA()) -> 0.4323580922 | BJ19: =(1-BI19^1.5)^(Home!$H$3/2)*(1-BI19^2)^(Home!$H$3/2) -> 0.5438377307 | BK19: =IF($B$25/((1-BI19^1.5)*Home!$E$39*$B$27)<=1,$B$25/((1-BI19^1.5)*Home!$E$39*$B$27),NA()) -> 0.55128372 | BL19: 0.1494965729 | BM19: -0.0665543866 | BN19: 7.218669854 | BO19: =IF(BN19/(Home!$E$36*Home!$H$2)<=1,BN19/(Home!$E$36*Home!$H$2),NA()) -> 0.4323275929 | BP19: =(1-BO19^1.5)^(Home!$H$3/2)*(1-BO19^2)^(Home!$H$3/2) -> 0.5438832912 | BQ19: =IF($B$25/((1-BO19^1.5)*Home!$E$39*$B$27)<=1,$B$25/((1-BO19^1.5)*Home!$E$39*$B$27),NA()) -> 0.5512605505 | BR19: 0.1495088699 | BS19: 0.002672805949 | BT19: 7.218924481 | BU19: =IF(BT19/(Home!$E$36*Home!$H$2)<=1,BT19/(Home!$E$36*Home!$H$2),NA()) -> 0.4323428425 | BV19: =(1-BU19^1.5)^(Home!$H$3/2)*(1-BU19^2)^(Home!$H$3/2) -> 0.543860511 | BW19: =IF($B$25/((1-BU19^1.5)*Home!$E$39*$B$27)<=1,$B$25/((1-BU19^1.5)*Home!$E$39*$B$27),NA()) -> 0.5512721349 | BX19: 0.1495027216 | BY19: -0.03194100512
A20: =""""&B13&""""&" current [A] at 100% SSL" -> "Cable, 4.2 K" current [A] at 100% SSL | B20: =VLOOKUP($B$13,$K$4:$T$13,6,FALSE) -> 508.2118816 | K20: Cable, 1.9 K | X20: 10.03201067 | Y20: 0.3956132545 | Z20: 1090.800092 | AA20: 724.7124964 | AB20: 0.3958608164 | AE20: 0.3971875781 | AF20: 1065.830158 | AG20: 699.7425621 | AH20: 0.3609345719 | AK20: 0.4128957144 | AL20: 977.9499339 | AM20: 611.862338 | AN20: 0.3752089596 | AQ20: 0.375779709 | AT20: 0.4841808172 | AU20: 588.8210938 | AV20: 222.7334979 | AW20: 0.4485785315 | AX20: 752.8591288 | AY20: 386.771533 | BC20: 0.4841808172 | BD20: 588.8210938 | BE20: 222.7334979 | BH20: 7.218924481 | BI20: =IF(BH20/(Home!$E$36*Home!$H$2)<=1,BH20/(Home!$E$36*Home!$H$2),NA()) -> 0.4323428425 | BJ20: =(1-BI20^1.5)^(Home!$H$3/2)*(1-BI20^2)^(Home!$H$3/2) -> 0.543860511 | BK20: =IF($B$25/((1-BI20^1.5)*Home!$E$39*$B$27)<=1,$B$25/((1-BI20^1.5)*Home!$E$39*$B$27),NA()) -> 0.5512721349 | BL20: 0.1495027216 | BM20: -0.03194100512 | BN20: 7.218669854 | BO20: =IF(BN20/(Home!$E$36*Home!$H$2)<=1,BN20/(Home!$E$36*Home!$H$2),NA()) -> 0.4323275929 | BP20: =(1-BO20^1.5)^(Home!$H$3/2)*(1-BO20^2)^(Home!$H$3/2) -> 0.5438832912 | BQ20: =IF($B$25/((1-BO20^1.5)*Home!$E$39*$B$27)<=1,$B$25/((1-BO20^1.5)*Home!$E$39*$B$27),NA()) -> 0.5512605505 | BR20: 0.1495088699 | BS20: 0.002672805949 | BT20: 7.218797167 | BU20: =IF(BT20/(Home!$E$36*Home!$H$2)<=1,BT20/(Home!$E$36*Home!$H$2),NA()) -> 0.4323352177 | BV20: =(1-BU20^1.5)^(Home!$H$3/2)*(1-BU20^2)^(Home!$H$3/2) -> 0.5438719011 | BW20: =IF($B$25/((1-BU20^1.5)*Home!$E$39*$B$27)<=1,$B$25/((1-BU20^1.5)*Home!$E$39*$B$27),NA()) -> 0.5512663426 | BX20: 0.1495057958 | BY20: -0.01463415328
A21: =""""&B13&""""&" field [B] at 100% SSL" -> "Cable, 4.2 K" field [B] at 100% SSL | B21: =VLOOKUP($B$13,$K$4:$T$13,7,FALSE) -> 13.85928643 | K21: Spec fit, 4.2 K | X21: 10.03401134 | Y21: 0.395692151 | Z21: 1090.406602 | AA21: 724.2447812 | AB21: 0.3959397623 | AE21: 0.3972667886 | AF21: 1065.443839 | AG21: 699.2820179 | AH21: 0.3610065525 | AK21: 0.4129780575 | AL21: 977.5781589 | AM21: 611.4163383 | AN21: 0.3752837869 | AQ21: 0.3758546501 | AT21: 0.4842773766 | AU21: 588.5419813 | AV21: 222.3801607 | AW21: 0.4486679908 | AX21: 752.539835 | AY21: 386.3780143 | BC21: 0.4842773766 | BD21: 588.5419813 | BE21: 222.3801607 | BH21: 7.218797167 | BI21: =IF(BH21/(Home!$E$36*Home!$H$2)<=1,BH21/(Home!$E$36*Home!$H$2),NA()) -> 0.4323352177 | BJ21: =(1-BI21^1.5)^(Home!$H$3/2)*(1-BI21^2)^(Home!$H$3/2) -> 0.5438719011 | BK21: =IF($B$25/((1-BI21^1.5)*Home!$E$39*$B$27)<=1,$B$25/((1-BI21^1.5)*Home!$E$39*$B$27),NA()) -> 0.5512663426 | BL21: 0.1495057958 | BM21: -0.01463415328 | BN21: 7.218669854 | BO21: =IF(BN21/(Home!$E$36*Home!$H$2)<=1,BN21/(Home!$E$36*Home!$H$2),NA()) -> 0.4323275929 | BP21: =(1-BO21^1.5)^(Home!$H$3/2)*(1-BO21^2)^(Home!$H$3/2) -> 0.5438832912 | BQ21: =IF($B$25/((1-BO21^1.5)*Home!$E$39*$B$27)<=1,$B$25/((1-BO21^1.5)*Home!$E$39*$B$27),NA()) -> 0.5512605505 | BR21: 0.1495088699 | BS21: 0.002672805949 | BT21: 7.21873351 | BU21: =IF(BT21/(Home!$E$36*Home!$H$2)<=1,BT21/(Home!$E$36*Home!$H$2),NA()) -> 0.4323314053 | BV21: =(1-BU21^1.5)^(Home!$H$3/2)*(1-BU21^2)^(Home!$H$3/2) -> 0.5438775961 | BW21: =IF($B$25/((1-BU21^1.5)*Home!$E$39*$B$27)<=1,$B$25/((1-BU21^1.5)*Home!$E$39*$B$27),NA()) -> 0.5512634465 | BX21: 0.1495073329 | BY21: -0.005980687085
K22: Spec fit, 1.9 K | X22: 10.036012 | Y22: 0.3957710475 | Z22: 1090.013238 | AA22: 723.7771924 | AB22: 0.3960187081 | AE22: 0.397345999 | AF22: 1065.057643 | AG22: 698.8215981 | AH22: 0.3610785331 | AK22: 0.4130604006 | AL22: 977.2065063 | AM22: 610.9704609 | AN22: 0.3753586141 | AQ22: 0.3759295912 | AT22: 0.4843739359 | AU22: 588.2629716 | AV22: 222.0269262 | AW22: 0.44875745 | AX22: 752.2206518 | AY22: 385.9846065 | BC22: 0.4843739359 | BD22: 588.2629716 | BE22: 222.0269262 | BH22: 7.21873351 | BI22: =IF(BH22/(Home!$E$36*Home!$H$2)<=1,BH22/(Home!$E$36*Home!$H$2),NA()) -> 0.4323314053 | BJ22: =(1-BI22^1.5)^(Home!$H$3/2)*(1-BI22^2)^(Home!$H$3/2) -> 0.5438775961 | BK22: =IF($B$25/((1-BI22^1.5)*Home!$E$39*$B$27)<=1,$B$25/((1-BI22^1.5)*Home!$E$39*$B$27),NA()) -> 0.5512634465 | BL22: 0.1495073329 | BM22: -0.005980687085 | BN22: 7.218669854 | BO22: =IF(BN22/(Home!$E$36*Home!$H$2)<=1,BN22/(Home!$E$36*Home!$H$2),NA()) -> 0.4323275929 | BP22: =(1-BO22^1.5)^(Home!$H$3/2)*(1-BO22^2)^(Home!$H$3/2) -> 0.5438832912 | BQ22: =IF($B$25/((1-BO22^1.5)*Home!$E$39*$B$27)<=1,$B$25/((1-BO22^1.5)*Home!$E$39*$B$27),NA()) -> 0.5512605505 | BR22: 0.1495088699 | BS22: 0.002672805949 | BT22: 7.218701682 | BU22: =IF(BT22/(Home!$E$36*Home!$H$2)<=1,BT22/(Home!$E$36*Home!$H$2),NA()) -> 0.4323294991 | BV22: =(1-BU22^1.5)^(Home!$H$3/2)*(1-BU22^2)^(Home!$H$3/2) -> 0.5438804436 | BW22: =IF($B$25/((1-BU22^1.5)*Home!$E$39*$B$27)<=1,$B$25/((1-BU22^1.5)*Home!$E$39*$B$27),NA()) -> 0.5512619985 | BX22: 0.1495081014 | BY22: -0.001653943924
K23: Spec cable, 1.9 K | X23: 10.03801267 | Y23: 0.395849944 | Z23: 1089.62 | AA23: 723.3097301 | AB23: 0.396097654 | AE23: 0.3974252095 | AF23: 1064.671573 | AG23: 698.3613027 | AH23: 0.3611505137 | AK23: 0.4131427437 | AL23: 976.8349759 | AM23: 610.5247058 | AN23: 0.3754334414 | AQ23: 0.3760045323 | AT23: 0.4844704953 | AU23: 587.9840646 | AV23: 221.6737945 | AW23: 0.4488469093 | AX23: 751.9015795 | AY23: 385.5913094 | BC23: 0.4844704953 | BD23: 587.9840646 | BE23: 221.6737945 | BH23: 7.218701682 | BI23: =IF(BH23/(Home!$E$36*Home!$H$2)<=1,BH23/(Home!$E$36*Home!$H$2),NA()) -> 0.4323294991 | BJ23: =(1-BI23^1.5)^(Home!$H$3/2)*(1-BI23^2)^(Home!$H$3/2) -> 0.5438804436 | BK23: =IF($B$25/((1-BI23^1.5)*Home!$E$39*$B$27)<=1,$B$25/((1-BI23^1.5)*Home!$E$39*$B$27),NA()) -> 0.5512619985 | BL23: 0.1495081014 | BM23: -0.001653943924 | BN23: 7.218669854 | BO23: =IF(BN23/(Home!$E$36*Home!$H$2)<=1,BN23/(Home!$E$36*Home!$H$2),NA()) -> 0.4323275929 | BP23: =(1-BO23^1.5)^(Home!$H$3/2)*(1-BO23^2)^(Home!$H$3/2) -> 0.5438832912 | BQ23: =IF($B$25/((1-BO23^1.5)*Home!$E$39*$B$27)<=1,$B$25/((1-BO23^1.5)*Home!$E$39*$B$27),NA()) -> 0.5512605505 | BR23: 0.1495088699 | BS23: 0.002672805949 | BT23: 7.218685768 | BU23: =IF(BT23/(Home!$E$36*Home!$H$2)<=1,BT23/(Home!$E$36*Home!$H$2),NA()) -> 0.432328546 | BV23: =(1-BU23^1.5)^(Home!$H$3/2)*(1-BU23^2)^(Home!$H$3/2) -> 0.5438818674 | BW23: =IF($B$25/((1-BU23^1.5)*Home!$E$39*$B$27)<=1,$B$25/((1-BU23^1.5)*Home!$E$39*$B$27),NA()) -> 0.5512612745 | BX23: 0.1495084857 | BY23: 0.000509430174
A24: I [A] to calculate margin at | B24: =IF($A$11=$A$24,$B$11,$B$37*$B$11+$B$38) -> 417 | C24: =B29 -> 827.5704619 | D24: =B24 -> 417 | E24: =$B$20 -> 508.2118816 | K24: Op (7.2 K) | X24: 10.04001334 | Y24: 0.3959288405 | Z24: 1089.226889 | AA24: 722.8423941 | AB24: 0.3961765998 | AE24: 0.3975044199 | AF24: 1064.285626 | AG24: 697.9011316 | AH24: 0.3612224942 | AK24: 0.4132250868 | AL24: 976.4635677 | AM24: 610.0790728 | AN24: 0.3755082687 | AQ24: 0.3760794734 | AT24: 0.4845670547 | AU24: 587.7052603 | AV24: 221.3207654 | AW24: 0.4489363685 | AX24: 751.5826177 | AY24: 385.1981229 | BC24: 0.4845670547 | BD24: 587.7052603 | BE24: 221.3207654 | BH24: 7.218701682 | BI24: =IF(BH24/(Home!$E$36*Home!$H$2)<=1,BH24/(Home!$E$36*Home!$H$2),NA()) -> 0.4323294991 | BJ24: =(1-BI24^1.5)^(Home!$H$3/2)*(1-BI24^2)^(Home!$H$3/2) -> 0.5438804436 | BK24: =IF($B$25/((1-BI24^1.5)*Home!$E$39*$B$27)<=1,$B$25/((1-BI24^1.5)*Home!$E$39*$B$27),NA()) -> 0.5512619985 | BL24: 0.1495081014 | BM24: -0.001653943924 | BN24: 7.218685768 | BO24: =IF(BN24/(Home!$E$36*Home!$H$2)<=1,BN24/(Home!$E$36*Home!$H$2),NA()) -> 0.432328546 | BP24: =(1-BO24^1.5)^(Home!$H$3/2)*(1-BO24^2)^(Home!$H$3/2) -> 0.5438818674 | BQ24: =IF($B$25/((1-BO24^1.5)*Home!$E$39*$B$27)<=1,$B$25/((1-BO24^1.5)*Home!$E$39*$B$27),NA()) -> 0.5512612745 | BR24: 0.1495084857 | BS24: 0.000509430174 | BT24: 7.218693725 | BU24: =IF(BT24/(Home!$E$36*Home!$H$2)<=1,BT24/(Home!$E$36*Home!$H$2),NA()) -> 0.4323290225 | BV24: =(1-BU24^1.5)^(Home!$H$3/2)*(1-BU24^2)^(Home!$H$3/2) -> 0.5438811555 | BW24: =IF($B$25/((1-BU24^1.5)*Home!$E$39*$B$27)<=1,$B$25/((1-BU24^1.5)*Home!$E$39*$B$27),NA()) -> 0.5512616365 | BX24: 0.1495082935 | BY24: -0.0005722570841
A25: B [T] to calculate margin at | B25: =IF($A$11=$A$25,IF($B$11>B27,NA(),$B$11),IF(($B$11-$B$38)/$B$37>B27,NA(),($B$11-$B$38)/$B$37)) -> 11.40431267 | C25: =B25 -> 11.40431267 | D25: =B25 -> 11.40431267 | E25: =$B$21 -> 13.85928643 | K25: Ultimate 108% OP | X25: 10.042014 | Y25: 0.396007737 | Z25: 1088.833904 | AA25: 722.3751844 | AB25: 0.3962555457 | AE25: 0.3975836303 | AF25: 1063.899804 | AG25: 697.4410847 | AH25: 0.3612944748 | AK25: 0.4133074299 | AL25: 976.0922816 | AM25: 609.633562 | AN25: 0.375583096 | AQ25: 0.3761544145 | AT25: 0.484663614 | AU25: 587.4265585 | AV25: 220.967839 | AW25: 0.4490258278 | AX25: 751.2637666 | AY25: 384.8050471 | BC25: 0.484663614 | BD25: 587.4265585 | BE25: 220.967839 | BH25: 7.218693725 | BI25: =IF(BH25/(Home!$E$36*Home!$H$2)<=1,BH25/(Home!$E$36*Home!$H$2),NA()) -> 0.4323290225 | BJ25: =(1-BI25^1.5)^(Home!$H$3/2)*(1-BI25^2)^(Home!$H$3/2) -> 0.5438811555 | BK25: =IF($B$25/((1-BI25^1.5)*Home!$E$39*$B$27)<=1,$B$25/((1-BI25^1.5)*Home!$E$39*$B$27),NA()) -> 0.5512616365 | BL25: 0.1495082935 | BM25: -0.0005722570841 | BN25: 7.218685768 | BO25: =IF(BN25/(Home!$E$36*Home!$H$2)<=1,BN25/(Home!$E$36*Home!$H$2),NA()) -> 0.432328546 | BP25: =(1-BO25^1.5)^(Home!$H$3/2)*(1-BO25^2)^(Home!$H$3/2) -> 0.5438818674 | BQ25: =IF($B$25/((1-BO25^1.5)*Home!$E$39*$B$27)<=1,$B$25/((1-BO25^1.5)*Home!$E$39*$B$27),NA()) -> 0.5512612745 | BR25: 0.1495084857 | BS25: 0.000509430174 | BT25: 7.218689746 | BU25: =IF(BT25/(Home!$E$36*Home!$H$2)<=1,BT25/(Home!$E$36*Home!$H$2),NA()) -> 0.4323287843 | BV25: =(1-BU25^1.5)^(Home!$H$3/2)*(1-BU25^2)^(Home!$H$3/2) -> 0.5438815115 | BW25: =IF($B$25/((1-BU25^1.5)*Home!$E$39*$B$27)<=1,$B$25/((1-BU25^1.5)*Home!$E$39*$B$27),NA()) -> 0.5512614555 | BX25: 0.1495083896 | BY25: -3.14135076e-05
A26: C [AT] | B26: =VLOOKUP($B$13,$K$4:$T$13,3,FALSE) -> 62057 | X26: 10.04401467 | Y26: 0.3960866334 | Z26: 1088.441045 | AA26: 721.908101 | AB26: 0.3963344915 | AE26: 0.3976628408 | AF26: 1063.514106 | AG26: 696.981162 | AH26: 0.3613664554 | AK26: 0.413389773 | AL26: 975.7211177 | AM26: 609.1881734 | AN26: 0.3756579233 | AQ26: 0.3762293557 | AT26: 0.4847601734 | AU26: 587.1479594 | AV26: 220.6150151 | AW26: 0.4491152871 | AX26: 750.9450261 | AY26: 384.4120818 | BC26: 0.4847601734 | BD26: 587.1479594 | BE26: 220.6150151 | BH26: 7.218689746 | BI26: =IF(BH26/(Home!$E$36*Home!$H$2)<=1,BH26/(Home!$E$36*Home!$H$2),NA()) -> 0.4323287843 | BJ26: =(1-BI26^1.5)^(Home!$H$3/2)*(1-BI26^2)^(Home!$H$3/2) -> 0.5438815115 | BK26: =IF($B$25/((1-BI26^1.5)*Home!$E$39*$B$27)<=1,$B$25/((1-BI26^1.5)*Home!$E$39*$B$27),NA()) -> 0.5512614555 | BL26: 0.1495083896 | BM26: -3.14135076e-05 | BN26: 7.218685768 | BO26: =IF(BN26/(Home!$E$36*Home!$H$2)<=1,BN26/(Home!$E$36*Home!$H$2),NA()) -> 0.432328546 | BP26: =(1-BO26^1.5)^(Home!$H$3/2)*(1-BO26^2)^(Home!$H$3/2) -> 0.5438818674 | BQ26: =IF($B$25/((1-BO26^1.5)*Home!$E$39*$B$27)<=1,$B$25/((1-BO26^1.5)*Home!$E$39*$B$27),NA()) -> 0.5512612745 | BR26: 0.1495084857 | BS26: 0.000509430174 | BT26: 7.218687757 | BU26: =IF(BT26/(Home!$E$36*Home!$H$2)<=1,BT26/(Home!$E$36*Home!$H$2),NA()) -> 0.4323286651 | BV26: =(1-BU26^1.5)^(Home!$H$3/2)*(1-BU26^2)^(Home!$H$3/2) -> 0.5438816894 | BW26: =IF($B$25/((1-BU26^1.5)*Home!$E$39*$B$27)<=1,$B$25/((1-BU26^1.5)*Home!$E$39*$B$27),NA()) -> 0.551261365 | BX26: 0.1495084376 | BY26: 0.0002390083201
A27: BC2*(0,0) [T] | B27: =VLOOKUP($B$13,$K$4:$T$13,4,FALSE) -> 30.50510073 | X27: 10.04601534 | Y27: 0.3961655299 | Z27: 1088.048313 | AA27: 721.4411437 | AB27: 0.3964134374 | AE27: 0.3977420512 | AF27: 1063.128533 | AG27: 696.5213635 | AH27: 0.3614384359 | AK27: 0.4134721161 | AL27: 975.3500758 | AM27: 608.7429067 | AN27: 0.3757327506 | AQ27: 0.3763042968 | AT27: 0.4848567327 | AU27: 586.8694629 | AV27: 220.2622938 | AW27: 0.4492047463 | AX27: 750.6263961 | AY27: 384.0192271 | BC27: 0.4848567327 | BD27: 586.8694629 | BE27: 220.2622938 | BH27: 7.218689746 | BI27: =IF(BH27/(Home!$E$36*Home!$H$2)<=1,BH27/(Home!$E$36*Home!$H$2),NA()) -> 0.4323287843 | BJ27: =(1-BI27^1.5)^(Home!$H$3/2)*(1-BI27^2)^(Home!$H$3/2) -> 0.5438815115 | BK27: =IF($B$25/((1-BI27^1.5)*Home!$E$39*$B$27)<=1,$B$25/((1-BI27^1.5)*Home!$E$39*$B$27),NA()) -> 0.5512614555 | BL27: 0.1495083896 | BM27: -3.14135076e-05 | BN27: 7.218687757 | BO27: =IF(BN27/(Home!$E$36*Home!$H$2)<=1,BN27/(Home!$E$36*Home!$H$2),NA()) -> 0.4323286651 | BP27: =(1-BO27^1.5)^(Home!$H$3/2)*(1-BO27^2)^(Home!$H$3/2) -> 0.5438816894 | BQ27: =IF($B$25/((1-BO27^1.5)*Home!$E$39*$B$27)<=1,$B$25/((1-BO27^1.5)*Home!$E$39*$B$27),NA()) -> 0.551261365 | BR27: 0.1495084376 | BS27: 0.0002390083201 | BT27: 7.218688752 | BU27: =IF(BT27/(Home!$E$36*Home!$H$2)<=1,BT27/(Home!$E$36*Home!$H$2),NA()) -> 0.4323287247 | BV27: =(1-BU27^1.5)^(Home!$H$3/2)*(1-BU27^2)^(Home!$H$3/2) -> 0.5438816004 | BW27: =IF($B$25/((1-BU27^1.5)*Home!$E$39*$B$27)<=1,$B$25/((1-BU27^1.5)*Home!$E$39*$B$27),NA()) -> 0.5512614103 | BX27: 0.1495084136 | BY27: 0.0001037974031
A28: b | B28: =$B$25/VLOOKUP($B$13,$K$4:$T$13,4,FALSE)/(1-VLOOKUP($B$13,$K$4:$T$13,9,FALSE)^1.5)/$B$32 -> 0.4515197878 | X28: 10.04801601 | Y28: 0.3962444264 | Z28: 1087.655706 | AA28: 720.9743126 | AB28: 0.3964923832 | AE28: 0.3978212617 | AF28: 1062.743083 | AG28: 696.061689 | AH28: 0.3615104165 | AK28: 0.4135544591 | AL28: 974.9791559 | AM28: 608.2977621 | AN28: 0.3758075779 | AQ28: 0.3763792379 | AT28: 0.4849532921 | AU28: 586.5910688 | AV28: 219.909675 | AW28: 0.4492942056 | AX28: 750.3078766 | AY28: 383.6264828 | BC28: 0.4849532921 | BD28: 586.5910688 | BE28: 219.909675 | BH28: 7.218689746 | BI28: =IF(BH28/(Home!$E$36*Home!$H$2)<=1,BH28/(Home!$E$36*Home!$H$2),NA()) -> 0.4323287843 | BJ28: =(1-BI28^1.5)^(Home!$H$3/2)*(1-BI28^2)^(Home!$H$3/2) -> 0.5438815115 | BK28: =IF($B$25/((1-BI28^1.5)*Home!$E$39*$B$27)<=1,$B$25/((1-BI28^1.5)*Home!$E$39*$B$27),NA()) -> 0.5512614555 | BL28: 0.1495083896 | BM28: -3.14135076e-05 | BN28: 7.218688752 | BO28: =IF(BN28/(Home!$E$36*Home!$H$2)<=1,BN28/(Home!$E$36*Home!$H$2),NA()) -> 0.4323287247 | BP28: =(1-BO28^1.5)^(Home!$H$3/2)*(1-BO28^2)^(Home!$H$3/2) -> 0.5438816004 | BQ28: =IF($B$25/((1-BO28^1.5)*Home!$E$39*$B$27)<=1,$B$25/((1-BO28^1.5)*Home!$E$39*$B$27),NA()) -> 0.5512614103 | BR28: 0.1495084136 | BS28: 0.0001037974031 | BT28: 7.218689249 | BU28: =IF(BT28/(Home!$E$36*Home!$H$2)<=1,BT28/(Home!$E$36*Home!$H$2),NA()) -> 0.4323287545 | BV28: =(1-BU28^1.5)^(Home!$H$3/2)*(1-BU28^2)^(Home!$H$3/2) -> 0.5438815559 | BW28: =IF($B$25/((1-BU28^1.5)*Home!$E$39*$B$27)<=1,$B$25/((1-BU28^1.5)*Home!$E$39*$B$27),NA()) -> 0.5512614329 | BX28: 0.1495084016 | BY28: 3.619194672e-05
A29: Current at margin calculation B | B29: =1/$B$25*VLOOKUP($B$13,$K$4:$T$13,3,FALSE)*$B$31*VLOOKUP($B$13,$K$4:$T$13,10,FALSE)*$B$28^$B$33*(1-$B$28)^$B$34 -> 827.5704619 | X29: 10.05001667 | Y29: 0.3963233229 | Z29: 1087.263226 | AA29: 720.5076075 | AB29: 0.3965713291 | AE29: 0.3979004721 | AF29: 1062.357757 | AG29: 695.6021386 | AH29: 0.3615823971 | AK29: 0.4136368022 | AL29: 974.6083579 | AM29: 607.8527394 | AN29: 0.3758824051 | AQ29: 0.376454179 | AT29: 0.4850498515 | AU29: 586.3127772 | AV29: 219.5571587 | AW29: 0.4493836648 | AX29: 749.9894676 | AY29: 383.233849 | BC29: 0.4850498515 | BD29: 586.3127772 | BE29: 219.5571587 | BH29: 7.218689746 | BI29: =IF(BH29/(Home!$E$36*Home!$H$2)<=1,BH29/(Home!$E$36*Home!$H$2),NA()) -> 0.4323287843 | BJ29: =(1-BI29^1.5)^(Home!$H$3/2)*(1-BI29^2)^(Home!$H$3/2) -> 0.5438815115 | BK29: =IF($B$25/((1-BI29^1.5)*Home!$E$39*$B$27)<=1,$B$25/((1-BI29^1.5)*Home!$E$39*$B$27),NA()) -> 0.5512614555 | BL29: 0.1495083896 | BM29: -3.14135076e-05 | BN29: 7.218689249 | BO29: =IF(BN29/(Home!$E$36*Home!$H$2)<=1,BN29/(Home!$E$36*Home!$H$2),NA()) -> 0.4323287545 | BP29: =(1-BO29^1.5)^(Home!$H$3/2)*(1-BO29^2)^(Home!$H$3/2) -> 0.5438815559 | BQ29: =IF($B$25/((1-BO29^1.5)*Home!$E$39*$B$27)<=1,$B$25/((1-BO29^1.5)*Home!$E$39*$B$27),NA()) -> 0.5512614329 | BR29: 0.1495084016 | BS29: 3.619194672e-05 | BT29: 7.218689498 | BU29: =IF(BT29/(Home!$E$36*Home!$H$2)<=1,BT29/(Home!$E$36*Home!$H$2),NA()) -> 0.4323287694 | BV29: =(1-BU29^1.5)^(Home!$H$3/2)*(1-BU29^2)^(Home!$H$3/2) -> 0.5438815337 | BW29: =IF($B$25/((1-BU29^1.5)*Home!$E$39*$B$27)<=1,$B$25/((1-BU29^1.5)*Home!$E$39*$B$27),NA()) -> 0.5512614442 | BX29: 0.1495083956 | BY29: 2.389219503e-06
X30: 10.05201734 | Y30: 0.3964022194 | Z30: 1086.870872 | AA30: 720.0410285 | AB30: 0.3966502749 | AE30: 0.3979796826 | AF30: 1061.972556 | AG30: 695.1427122 | AH30: 0.3616543776 | AK30: 0.4137191453 | AL30: 974.2376819 | AM30: 607.4078386 | AN30: 0.3759572324 | AQ30: 0.3765291201 | AT30: 0.4851464108 | AU30: 586.0345881 | AV30: 219.2047448 | AW30: 0.4494731241 | AX30: 749.6711689 | AY30: 382.8413256 | BC30: 0.4851464108 | BD30: 586.0345881 | BE30: 219.2047448 | BH30: 7.218689746 | BI30: =IF(BH30/(Home!$E$36*Home!$H$2)<=1,BH30/(Home!$E$36*Home!$H$2),NA()) -> 0.4323287843 | BJ30: =(1-BI30^1.5)^(Home!$H$3/2)*(1-BI30^2)^(Home!$H$3/2) -> 0.5438815115 | BK30: =IF($B$25/((1-BI30^1.5)*Home!$E$39*$B$27)<=1,$B$25/((1-BI30^1.5)*Home!$E$39*$B$27),NA()) -> 0.5512614555 | BL30: 0.1495083896 | BM30: -3.14135076e-05 | BN30: 7.218689498 | BO30: =IF(BN30/(Home!$E$36*Home!$H$2)<=1,BN30/(Home!$E$36*Home!$H$2),NA()) -> 0.4323287694 | BP30: =(1-BO30^1.5)^(Home!$H$3/2)*(1-BO30^2)^(Home!$H$3/2) -> 0.5438815337 | BQ30: =IF($B$25/((1-BO30^1.5)*Home!$E$39*$B$27)<=1,$B$25/((1-BO30^1.5)*Home!$E$39*$B$27),NA()) -> 0.5512614442 | BR30: 0.1495083956 | BS30: 2.389219503e-06 | BT30: 7.218689622 | BU30: =IF(BT30/(Home!$E$36*Home!$H$2)<=1,BT30/(Home!$E$36*Home!$H$2),NA()) -> 0.4323287768 | BV30: =(1-BU30^1.5)^(Home!$H$3/2)*(1-BU30^2)^(Home!$H$3/2) -> 0.5438815226 | BW30: =IF($B$25/((1-BU30^1.5)*Home!$E$39*$B$27)<=1,$B$25/((1-BU30^1.5)*Home!$E$39*$B$27),NA()) -> 0.5512614499 | BX30: 0.1495083926 | BY30: -1.451214428e-05
A31: g | B31: =Home!E31 -> 0.9424200166 | X31: 10.05401801 | Y31: 0.3964811158 | Z31: 1086.478644 | AA31: 719.5745755 | AB31: 0.3967292208 | AE31: 0.398058893 | AF31: 1061.587478 | AG31: 694.6834098 | AH31: 0.3617263582 | AK31: 0.4138014884 | AL31: 973.8671276 | AM31: 606.9630596 | AN31: 0.3760320597 | AQ31: 0.3766040612 | AT31: 0.4852429702 | AU31: 585.7565013 | AV31: 218.8524333 | AW31: 0.4495625833 | AX31: 749.3529806 | AY31: 382.4489126 | BC31: 0.4852429702 | BD31: 585.7565013 | BE31: 218.8524333 | BH31: 7.218689622 | BI31: =IF(BH31/(Home!$E$36*Home!$H$2)<=1,BH31/(Home!$E$36*Home!$H$2),NA()) -> 0.4323287768 | BJ31: =(1-BI31^1.5)^(Home!$H$3/2)*(1-BI31^2)^(Home!$H$3/2) -> 0.5438815226 | BK31: =IF($B$25/((1-BI31^1.5)*Home!$E$39*$B$27)<=1,$B$25/((1-BI31^1.5)*Home!$E$39*$B$27),NA()) -> 0.5512614499 | BL31: 0.1495083926 | BM31: -1.451214428e-05 | BN31: 7.218689498 | BO31: =IF(BN31/(Home!$E$36*Home!$H$2)<=1,BN31/(Home!$E$36*Home!$H$2),NA()) -> 0.4323287694 | BP31: =(1-BO31^1.5)^(Home!$H$3/2)*(1-BO31^2)^(Home!$H$3/2) -> 0.5438815337 | BQ31: =IF($B$25/((1-BO31^1.5)*Home!$E$39*$B$27)<=1,$B$25/((1-BO31^1.5)*Home!$E$39*$B$27),NA()) -> 0.5512614442 | BR31: 0.1495083956 | BS31: 2.389219503e-06 | BT31: 7.21868956 | BU31: =IF(BT31/(Home!$E$36*Home!$H$2)<=1,BT31/(Home!$E$36*Home!$H$2),NA()) -> 0.4323287731 | BV31: =(1-BU31^1.5)^(Home!$H$3/2)*(1-BU31^2)^(Home!$H$3/2) -> 0.5438815281 | BW31: =IF($B$25/((1-BU31^1.5)*Home!$E$39*$B$27)<=1,$B$25/((1-BU31^1.5)*Home!$E$39*$B$27),NA()) -> 0.551261447 | BX31: 0.1495083941 | BY31: -6.061462443e-06
A32: bC2(ε) | B32: =Home!E39 -> 0.9475146001 | X32: 10.05601867 | Y32: 0.3965600123 | Z32: 1086.086541 | AA32: 719.1082484 | AB32: 0.3968081666 | AE32: 0.3981381035 | AF32: 1061.202524 | AG32: 694.2242312 | AH32: 0.3617983388 | AK32: 0.4138838315 | AL32: 973.4966952 | AM32: 606.5184025 | AN32: 0.376106887 | AQ32: 0.3766790023 | AT32: 0.4853395295 | AU32: 585.4785169 | AV32: 218.5002241 | AW32: 0.4496520426 | AX32: 749.0349026 | AY32: 382.0566099 | BC32: 0.4853395295 | BD32: 585.4785169 | BE32: 218.5002241 | BH32: 7.21868956 | BI32: =IF(BH32/(Home!$E$36*Home!$H$2)<=1,BH32/(Home!$E$36*Home!$H$2),NA()) -> 0.4323287731 | BJ32: =(1-BI32^1.5)^(Home!$H$3/2)*(1-BI32^2)^(Home!$H$3/2) -> 0.5438815281 | BK32: =IF($B$25/((1-BI32^1.5)*Home!$E$39*$B$27)<=1,$B$25/((1-BI32^1.5)*Home!$E$39*$B$27),NA()) -> 0.551261447 | BL32: 0.1495083941 | BM32: -6.061462443e-06 | BN32: 7.218689498 | BO32: =IF(BN32/(Home!$E$36*Home!$H$2)<=1,BN32/(Home!$E$36*Home!$H$2),NA()) -> 0.4323287694 | BP32: =(1-BO32^1.5)^(Home!$H$3/2)*(1-BO32^2)^(Home!$H$3/2) -> 0.5438815337 | BQ32: =IF($B$25/((1-BO32^1.5)*Home!$E$39*$B$27)<=1,$B$25/((1-BO32^1.5)*Home!$E$39*$B$27),NA()) -> 0.5512614442 | BR32: 0.1495083956 | BS32: 2.389219503e-06 | BT32: 7.218689529 | BU32: =IF(BT32/(Home!$E$36*Home!$H$2)<=1,BT32/(Home!$E$36*Home!$H$2),NA()) -> 0.4323287712 | BV32: =(1-BU32^1.5)^(Home!$H$3/2)*(1-BU32^2)^(Home!$H$3/2) -> 0.5438815309 | BW32: =IF($B$25/((1-BU32^1.5)*Home!$E$39*$B$27)<=1,$B$25/((1-BU32^1.5)*Home!$E$39*$B$27),NA()) -> 0.5512614456 | BX32: 0.1495083949 | BY32: -1.836121555e-06
A33: p | B33: =Home!H10 -> 0.5 | X33: 10.05801934 | Y33: 0.3966389088 | Z33: 1085.694565 | AA33: 718.6420472 | AB33: 0.3968871125 | AE33: 0.3982173139 | AF33: 1060.817694 | AG33: 693.7651765 | AH33: 0.3618703194 | AK33: 0.4139661746 | AL33: 973.1263846 | AM33: 606.0738671 | AN33: 0.3761817143 | AQ33: 0.3767539434 | AT33: 0.4854360889 | AU33: 585.2006348 | AV33: 218.1481173 | AW33: 0.4497415019 | AX33: 748.7169349 | AY33: 381.6644174 | BC33: 0.4854360889 | BD33: 585.2006348 | BE33: 218.1481173 | BH33: 7.218689529 | BI33: =IF(BH33/(Home!$E$36*Home!$H$2)<=1,BH33/(Home!$E$36*Home!$H$2),NA()) -> 0.4323287712 | BJ33: =(1-BI33^1.5)^(Home!$H$3/2)*(1-BI33^2)^(Home!$H$3/2) -> 0.5438815309 | BK33: =IF($B$25/((1-BI33^1.5)*Home!$E$39*$B$27)<=1,$B$25/((1-BI33^1.5)*Home!$E$39*$B$27),NA()) -> 0.5512614456 | BL33: 0.1495083949 | BM33: -1.836121555e-06 | BN33: 7.218689498 | BO33: =IF(BN33/(Home!$E$36*Home!$H$2)<=1,BN33/(Home!$E$36*Home!$H$2),NA()) -> 0.4323287694 | BP33: =(1-BO33^1.5)^(Home!$H$3/2)*(1-BO33^2)^(Home!$H$3/2) -> 0.5438815337 | BQ33: =IF($B$25/((1-BO33^1.5)*Home!$E$39*$B$27)<=1,$B$25/((1-BO33^1.5)*Home!$E$39*$B$27),NA()) -> 0.5512614442 | BR33: 0.1495083956 | BS33: 2.389219503e-06 | BT33: 7.218689513 | BU33: =IF(BT33/(Home!$E$36*Home!$H$2)<=1,BT33/(Home!$E$36*Home!$H$2),NA()) -> 0.4323287703 | BV33: =(1-BU33^1.5)^(Home!$H$3/2)*(1-BU33^2)^(Home!$H$3/2) -> 0.5438815323 | BW33: =IF($B$25/((1-BU33^1.5)*Home!$E$39*$B$27)<=1,$B$25/((1-BU33^1.5)*Home!$E$39*$B$27),NA()) -> 0.5512614449 | BX33: 0.1495083952 | BY33: 2.765489171e-07
A34: q | B34: =Home!H11 -> 2 | X34: 10.06002001 | Y34: 0.3967178053 | Z34: 1085.302714 | AA34: 718.1759718 | AB34: 0.3969660583 | AE34: 0.3982965244 | AF34: 1060.432988 | AG34: 693.3062455 | AH34: 0.3619422999 | AK34: 0.4140485177 | AL34: 972.7561956 | AM34: 605.6294534 | AN34: 0.3762565416 | AQ34: 0.3768288845 | AT34: 0.4855326483 | AU34: 584.9228549 | AV34: 217.7961127 | AW34: 0.4498309611 | AX34: 748.3990774 | AY34: 381.2723352 | BC34: 0.4855326483 | BD34: 584.9228549 | BE34: 217.7961127
X35: 10.06202067 | Y35: 0.3967967018 | Z35: 1084.910989 | AA35: 717.7100222 | AB35: 0.3970450042 | AE35: 0.3983757348 | AF35: 1060.048405 | AG35: 692.8474383 | AH35: 0.3620142805 | AK35: 0.4141308608 | AL35: 972.3861283 | AM35: 605.1851613 | AN35: 0.3763313689 | AQ35: 0.3769038256 | AT35: 0.4856292076 | AU35: 584.6451773 | AV35: 217.4442103 | AW35: 0.4499204204 | AX35: 748.0813301 | AY35: 380.8803631 | BC35: 0.4856292076 | BD35: 584.6451773 | BE35: 217.4442103
A36: ="Load line plot" -> Load line plot | X36: 10.06402134 | Y36: 0.3968755982 | Z36: 1084.51939 | AA36: 717.2441983 | AB36: 0.39712395 | AE36: 0.3984549452 | AF36: 1059.663947 | AG36: 692.3887548 | AH36: 0.3620862611 | AK36: 0.4142132039 | AL36: 972.0161826 | AM36: 604.7409908 | AN36: 0.3764061962 | AQ36: 0.3769787668 | AT36: 0.485725767 | AU36: 584.3676019 | AV36: 217.0924102 | AW36: 0.4500098796 | AX36: 747.7636929 | AY36: 380.4885012 | BC36: 0.485725767 | BD36: 584.3676019 | BE36: 217.0924102
A37: m | B37: =SLOPE(D4:D13,E4:E13) -> 37.1 | X37: 10.06602201 | Y37: 0.3969544947 | Z37: 1084.127917 | AA37: 716.7785 | AB37: 0.3972028959 | AE37: 0.3985341557 | AF37: 1059.279611 | AG37: 691.9301949 | AH37: 0.3621582416 | AK37: 0.414295547 | AL37: 971.6463584 | AM37: 604.2969419 | AN37: 0.3764810234 | AQ37: 0.3770537079 | AT37: 0.4858223263 | AU37: 584.0901286 | AV37: 216.7407121 | AW37: 0.4500993389 | AX37: 747.4461658 | AY37: 380.0967493 | BC37: 0.4858223263 | BD37: 584.0901286 | BE37: 216.7407121
A38: c | B38: =INTERCEPT(D4:D13,E4:E13) -> -6.1 | X38: 10.06802267 | Y38: 0.3970333912 | Z38: 1083.736569 | AA38: 716.3129274 | AB38: 0.3972818417 | AE38: 0.3986133661 | AF38: 1058.8954 | AG38: 691.4717586 | AH38: 0.3622302222 | AK38: 0.4143778901 | AL38: 971.2766557 | AM38: 603.8530145 | AN38: 0.3765558507 | AQ38: 0.377128649 | AT38: 0.4859188857 | AU38: 583.8127574 | AV38: 216.3891162 | AW38: 0.4501887981 | AX38: 747.1287488 | AY38: 379.7051075 | BC38: 0.4859188857 | BD38: 583.8127574 | BE38: 216.3891162
A39: =VLOOKUP($B$7,$K$4:$Q$13,6,FALSE) -> 508.2118816 | B39: =VLOOKUP($B$7,$K$4:$Q$13,7,FALSE) -> 13.85928643 | X39: 10.07002334 | Y39: 0.3971122877 | Z39: 1083.345346 | AA39: 715.8474803 | AB39: 0.3973607876 | AE39: 0.3986925766 | AF39: 1058.511312 | AG39: 691.0134458 | AH39: 0.3623022028 | AK39: 0.4144602332 | AL39: 970.9070745 | AM39: 603.4092086 | AN39: 0.376630678 | AQ39: 0.3772035901 | AT39: 0.4860154451 | AU39: 583.5354883 | AV39: 216.0376223 | AW39: 0.4502782574 | AX39: 746.8114417 | AY39: 379.3135757 | BC39: 0.4860154451 | BD39: 583.5354883 | BE39: 216.0376223
A40: 0 | B40: =(A40-B38)/B37 -> 0.1644204852 | X40: 10.07202401 | Y40: 0.3971911842 | Z40: 1082.954249 | AA40: 715.3821588 | AB40: 0.3974397334 | AE40: 0.398771787 | AF40: 1058.127347 | AG40: 690.5552565 | AH40: 0.3623741833 | AK40: 0.4145425763 | AL40: 970.5376147 | AM40: 602.965524 | AN40: 0.3767055053 | AQ40: 0.3772785312 | AT40: 0.4861120044 | AU40: 583.2583212 | AV40: 215.6862305 | AW40: 0.4503677166 | AX40: 746.4942446 | AY40: 378.9221539 | BC40: 0.4861120044 | BD40: 583.2583212 | BE40: 215.6862305
A41: =IF(D4="",NA(),D4) -> 401 | B41: =IF(E4="",NA(),E4) -> 11 | X41: 10.07402467 | Y41: 0.3972700807 | Z41: 1082.563278 | AA41: 714.9169627 | AB41: 0.3975186793 | AE41: 0.3988509975 | AF41: 1057.743506 | AG41: 690.0971907 | AH41: 0.3624461639 | AK41: 0.4146249194 | AL41: 970.1682762 | AM41: 602.5219608 | AN41: 0.3767803326 | AQ41: 0.3773534723 | AT41: 0.4862085638 | AU41: 582.9812561 | AV41: 215.3349407 | AW41: 0.4504571759 | AX41: 746.1771574 | AY41: 378.530842 | BC41: 0.4862085638 | BD41: 582.9812561 | BE41: 215.3349407
A42: 440 | B42: 12 | X42: 10.07602534 | Y42: 0.3973489771 | Z42: 1082.172432 | AA42: 714.451892 | AB42: 0.3975976251 | AE42: 0.3989302079 | AF42: 1057.359788 | AG42: 689.6392482 | AH42: 0.3625181445 | AK42: 0.4147072624 | AL42: 969.799059 | AM42: 602.0785188 | AN42: 0.3768551599 | AQ42: 0.3774284134 | AT42: 0.4863051231 | AU42: 582.7042929 | AV42: 214.9837527 | AW42: 0.4505466352 | AX42: 745.8601801 | AY42: 378.1396399 | BC42: 0.4863051231 | BD42: 582.7042929 | BE42: 214.9837527
A43: 477 | B43: 13 | X43: 10.07802601 | Y43: 0.3974278736 | Z43: 1081.781712 | AA43: 713.9869467 | AB43: 0.397676571 | AE43: 0.3990094184 | AF43: 1056.976194 | AG43: 689.181429 | AH43: 0.3625901251 | AK43: 0.4147896055 | AL43: 969.4299631 | AM43: 601.6351981 | AN43: 0.3769299872 | AQ43: 0.3775033545 | AT43: 0.4864016825 | AU43: 582.4274317 | AV43: 214.6326667 | AW43: 0.4506360944 | AX43: 745.5433126 | AY43: 377.7485477 | BC43: 0.4864016825 | BD43: 582.4274317 | BE43: 214.6326667
A44: 513 | B44: 14 | X44: 10.08002668 | Y44: 0.3975067701 | Z44: 1081.391116 | AA44: 713.5221266 | AB44: 0.3977555169 | AE44: 0.3990886288 | AF44: 1056.592723 | AG44: 688.7237331 | AH44: 0.3626621056 | AK44: 0.4148719486 | AL44: 969.0609883 | AM44: 601.1919987 | AN44: 0.3770048145 | AQ44: 0.3775782956 | AT44: 0.4864982419 | AU44: 582.1506723 | AV44: 214.2816826 | AW44: 0.4507255537 | AX44: 745.2265549 | AY44: 377.3575652 | BC44: 0.4864982419 | BD44: 582.1506723 | BE44: 214.2816826
A45: 550 | B45: 15 | X45: 10.08202734 | Y45: 0.3975856666 | Z45: 1081.000646 | AA45: 713.0574319 | AB45: 0.3978344627 | AE45: 0.3991678393 | AF45: 1056.209375 | AG45: 688.2661604 | AH45: 0.3627340862 | AK45: 0.4149542917 | AL45: 968.6921347 | AM45: 600.7489203 | AN45: 0.3770796417 | AQ45: 0.3776532368 | AT45: 0.4865948012 | AU45: 581.8740147 | AV45: 213.9308003 | AW45: 0.4508150129 | AX45: 744.9099069 | AY45: 376.9666925 | BC45: 0.4865948012 | BD45: 581.8740147 | BE45: 213.9308003
X46: 10.08402801 | Y46: 0.3976645631 | Z46: 1080.610301 | AA46: 712.5928623 | AB46: 0.3979134086 | AE46: 0.3992470497 | AF46: 1055.82615 | AG46: 687.8087109 | AH46: 0.3628060668 | AK46: 0.4150366348 | AL46: 968.3234022 | AM46: 600.3059631 | AN46: 0.377154469 | AQ46: 0.3777281779 | AT46: 0.4866913606 | AU46: 581.5974589 | AV46: 213.5800197 | AW46: 0.4509044722 | AX46: 744.5933686 | AY46: 376.5759294 | BC46: 0.4866913606 | BD46: 581.5974589 | BE46: 213.5800197
X47: 10.08602868 | Y47: 0.3977434595 | Z47: 1080.220082 | AA47: 712.1284178 | AB47: 0.3979923544 | AE47: 0.3993262601 | AF47: 1055.443048 | AG47: 687.3513845 | AH47: 0.3628780473 | AK47: 0.4151189779 | AL47: 967.9547908 | AM47: 599.8631269 | AN47: 0.3772292963 | AQ47: 0.377803119 | AT47: 0.4867879199 | AU47: 581.3210048 | AV47: 213.229341 | AW47: 0.4509939314 | AX47: 744.2769399 | AY47: 376.185276 | BC47: 0.4867879199 | BD47: 581.3210048 | BE47: 213.229341
X48: 10.08802934 | Y48: 0.397822356 | Z48: 1079.829987 | AA48: 711.6640985 | AB48: 0.3980713003 | AE48: 0.3994054706 | AF48: 1055.06007 | AG48: 686.8941812 | AH48: 0.3629500279 | AK48: 0.415201321 | AL48: 967.5863003 | AM48: 599.4204117 | AN48: 0.3773041236 | AQ48: 0.3778780601 | AT48: 0.4868844793 | AU48: 581.0446525 | AV48: 212.8787639 | AW48: 0.4510833907 | AX48: 743.9606209 | AY48: 375.7947322 | BC48: 0.4868844793 | BD48: 581.0446525 | BE48: 212.8787639
X49: 10.09003001 | Y49: 0.3979012525 | Z49: 1079.440018 | AA49: 711.1999042 | AB49: 0.3981502461 | AE49: 0.399484681 | AF49: 1054.677214 | AG49: 686.4371009 | AH49: 0.3630220085 | AK49: 0.4152836641 | AL49: 967.2179308 | AM49: 598.9778175 | AN49: 0.3773789509 | AQ49: 0.3779530012 | AT49: 0.4869810387 | AU49: 580.7684018 | AV49: 212.5282884 | AW49: 0.45117285 | AX49: 743.6444114 | AY49: 375.404298 | BC49: 0.4869810387 | BD49: 580.7684018 | BE49: 212.5282884
X50: 10.09203068 | Y50: 0.397980149 | Z50: 1079.050173 | AA50: 710.7358349 | AB50: 0.398229192 | AE50: 0.3995638915 | AF50: 1054.294482 | AG50: 685.9801436 | AH50: 0.363093989 | AK50: 0.4153660072 | AL50: 966.8496822 | AM50: 598.5353441 | AN50: 0.3774537782 | AQ50: 0.3780279423 | AT50: 0.487077598 | AU50: 580.4922527 | AV50: 212.1779146 | AW50: 0.4512623092 | AX50: 743.3283114 | AY50: 375.0139733 | BC50: 0.487077598 | BD50: 580.4922527 | BE50: 212.1779146
X51: 10.09403134 | Y51: 0.3980590455 | Z51: 1078.660453 | AA51: 710.2718905 | AB51: 0.3983081378 | AE51: 0.3996431019 | AF51: 1053.911872 | AG51: 685.5233092 | AH51: 0.3631659696 | AK51: 0.4154483503 | AL51: 966.4815545 | AM51: 598.0929916 | AN51: 0.3775286055 | AQ51: 0.3781028834 | AT51: 0.4871741574 | AU51: 580.2162053 | AV51: 211.8276424 | AW51: 0.4513517685 | AX51: 743.0123209 | AY51: 374.623758 | BC51: 0.4871741574 | BD51: 580.2162053 | BE51: 211.8276424
X52: 10.09603201 | Y52: 0.3981379419 | Z52: 1078.270859 | AA52: 709.808071 | AB52: 0.3983870837 | AE52: 0.3997223124 | AF52: 1053.529385 | AG52: 685.0665976 | AH52: 0.3632379502 | AK52: 0.4155306934 | AL52: 966.1135475 | AM52: 597.6507599 | AN52: 0.3776034327 | AQ52: 0.3781778245 | AT52: 0.4872707167 | AU52: 579.9402593 | AV52: 211.4774717 | AW52: 0.4514412277 | AX52: 742.6964398 | AY52: 374.2336522 | BC52: 0.4872707167 | BD52: 579.9402593 | BE52: 211.4774717
X53: 10.09803268 | Y53: 0.3982168384 | Z53: 1077.881389 | AA53: 709.3443763 | AB53: 0.3984660295 | AE53: 0.3998015228 | AF53: 1053.147021 | AG53: 684.6100089 | AH53: 0.3633099308 | AK53: 0.4156130365 | AL53: 965.7456613 | AM53: 597.208649 | AN53: 0.37767826 | AQ53: 0.3782527656 | AT53: 0.4873672761 | AU53: 579.6644149 | AV53: 211.1274025 | AW53: 0.451530687 | AX53: 742.3806681 | AY53: 373.8436557 | BC53: 0.4873672761 | BD53: 579.6644149 | BE53: 211.1274025
X54: 10.10003334 | Y54: 0.3982957349 | Z54: 1077.492044 | AA54: 708.8808065 | AB54: 0.3985449754 | AE54: 0.3998807333 | AF54: 1052.76478 | AG54: 684.1535429 | AH54: 0.3633819113 | AK54: 0.4156953796 | AL54: 965.3778958 | AM54: 596.7666588 | AN54: 0.3777530873 | AQ54: 0.3783277068 | AT54: 0.4874638355 | AU54: 579.3886719 | AV54: 210.7774348 | AW54: 0.4516201462 | AX54: 742.0650057 | AY54: 373.4537686 | BC54: 0.4874638355 | BD54: 579.3886719 | BE54: 210.7774348
X55: 10.10203401 | Y55: 0.3983746314 | Z55: 1077.102823 | AA55: 708.4173613 | AB55: 0.3986239212 | AE55: 0.3999599437 | AF55: 1052.382661 | AG55: 683.6971996 | AH55: 0.3634538919 | AK55: 0.4157777226 | AL55: 965.010251 | AM55: 596.3247892 | AN55: 0.3778279146 | AQ55: 0.3784026479 | AT55: 0.4875603948 | AU55: 579.1130303 | AV55: 210.4275685 | AW55: 0.4517096055 | AX55: 741.7494526 | AY55: 373.0639908 | BC55: 0.4875603948 | BD55: 579.1130303 | BE55: 210.4275685
X56: 10.10403468 | Y56: 0.3984535279 | Z56: 1076.713727 | AA56: 707.9540408 | AB56: 0.3987028671 | AE56: 0.4000391542 | AF56: 1052.000666 | AG56: 683.240979 | AH56: 0.3635258725 | AK56: 0.4158600657 | AL56: 964.6427267 | AM56: 595.8830402 | AN56: 0.3779027419 | AQ56: 0.378477589 | AT56: 0.4876569542 | AU56: 578.8374902 | AV56: 210.0778036 | AW56: 0.4517990647 | AX56: 741.4340088 | AY56: 372.6743222 | BC56: 0.4876569542 | BD56: 578.8374902 | BE56: 210.0778036
X57: 10.10603535 | Y57: 0.3985324243 | Z57: 1076.324756 | AA57: 707.490845 | AB57: 0.3987818129 | AE57: 0.4001183646 | AF57: 1051.618792 | AG57: 682.7848811 | AH57: 0.363597853 | AK57: 0.4159424088 | AL57: 964.275323 | AM57: 595.4414117 | AN57: 0.3779775692 | AQ57: 0.3785525301 | AT57: 0.4877535135 | AU57: 578.5620513 | AV57: 209.72814 | AW57: 0.451888524 | AX57: 741.1186742 | AY57: 372.2847629 | BC57: 0.4877535135 | BD57: 578.5620513 | BE57: 209.72814
X58: 10.10803601 | Y58: 0.3986113208 | Z58: 1075.93591 | AA58: 707.0277737 | AB58: 0.3988607588 | AC58: 1099.773225 | AD58: 730.8650894 | AE58: 0.4001975751 | AF58: 1051.237042 | AG58: 682.3289056 | AH58: 0.3636698336 | AK58: 0.4160247519 | AL58: 963.9080399 | AM58: 594.9999038 | AN58: 0.3780523965 | AQ58: 0.3786274712 | AT58: 0.4878500729 | AU58: 578.2867138 | AV58: 209.3785778 | AW58: 0.4519779833 | AX58: 740.8034487 | AY58: 371.8953126 | BC58: 0.4878500729 | BD58: 578.2867138 | BE58: 209.3785778
X59: 10.11003668 | Y59: 0.3986902173 | Z59: 1075.547188 | AA59: 706.564827 | AB59: 0.3989397046 | AC59: 1099.375591 | AD59: 730.3932302 | AE59: 0.4002767855 | AF59: 1050.855414 | AG59: 681.8730527 | AH59: 0.3637418142 | AK59: 0.416107095 | AL59: 963.5408771 | AM59: 594.5585163 | AN59: 0.3781272238 | AQ59: 0.3787024123 | AT59: 0.4879466323 | AU59: 578.0114776 | AV59: 209.0291168 | AW59: 0.4520674425 | AX59: 740.4883323 | AY59: 371.5059716 | BC59: 0.4879466323 | BD59: 578.0114776 | BE59: 209.0291168
X60: 10.11203735 | Y60: 0.3987691138 | Z60: 1075.15859 | AA60: 706.1020047 | AB60: 0.3990186505 | AC60: 1098.978084 | AD60: 729.9214984 | AE60: 0.4003559959 | AF60: 1050.473908 | AG60: 681.4173223 | AH60: 0.3638137948 | AK60: 0.4161894381 | AL60: 963.1738348 | AM60: 594.1172493 | AN60: 0.378202051 | AQ60: 0.3787773534 | AT60: 0.4880431916 | AU60: 577.7363425 | AV60: 208.679757 | AW60: 0.4521569018 | AX60: 740.1733251 | AY60: 371.1167395 | BC60: 0.4880431916 | BD60: 577.7363425 | BE60: 208.679757
X61: 10.11403801 | Y61: 0.3988480103 | Z61: 1074.770117 | AA61: 705.6393069 | AB61: 0.3990975963 | AC61: 1098.580704 | AD61: 729.4498939 | AE61: 0.4004352064 | AF61: 1050.092524 | AG61: 680.9617142 | AH61: 0.3638857753 | AK61: 0.4162717812 | AL61: 962.8069128 | AM61: 593.6761025 | AN61: 0.3782768783 | AQ61: 0.3788522945 | AT61: 0.488139751 | AU61: 577.4613087 | AV61: 208.3304984 | AW61: 0.452246361 | AX61: 739.8584268 | AY61: 370.7276166 | BC61: 0.488139751 | BD61: 577.4613087 | BE61: 208.3304984
X62: 10.11603868 | Y62: 0.3989269068 | Z62: 1074.381768 | AA62: 705.1767334 | AB62: 0.3991765422 | AC62: 1098.183452 | AD62: 728.9784167 | AE62: 0.4005144168 | AF62: 1049.711264 | AG62: 680.5062285 | AH62: 0.3639577559 | AK62: 0.4163541243 | AL62: 962.4401111 | AM62: 593.2350761 | AN62: 0.3783517056 | AQ62: 0.3789272356 | AT62: 0.4882363103 | AU62: 577.1863759 | AV62: 207.9813409 | AW62: 0.4523358203 | AX62: 739.5436376 | AY62: 370.3386026 | BC62: 0.4882363103 | BD62: 577.1863759 | BE62: 207.9813409
X63: 10.11803935 | Y63: 0.3990058032 | Z63: 1073.993544 | AA63: 704.7142843 | AB63: 0.399255488 | AC63: 1097.786326 | AD63: 728.5070667 | AE63: 0.4005936273 | AF63: 1049.330125 | AG63: 680.0508652 | AH63: 0.3640297365 | AK63: 0.4164364674 | AL63: 962.0734297 | AM63: 592.79417 | AN63: 0.3784265329 | AQ63: 0.3790021767 | AT63: 0.4883328697 | AU63: 576.9115443 | AV63: 207.6322846 | AW63: 0.4524252795 | AX63: 739.2289573 | AY63: 369.9496975 | BC63: 0.4883328697 | BD63: 576.9115443 | BE63: 207.6322846
X64: 10.12004001 | Y64: 0.3990846997 | Z64: 1073.605444 | AA64: 704.2519594 | AB64: 0.3993344339 | AC64: 1097.389328 | AD64: 728.0358439 | AE64: 0.4006728377 | AF64: 1048.949109 | AG64: 679.595624 | AH64: 0.364101717 | AK64: 0.4165188105 | AL64: 961.7068685 | AM64: 592.353384 | AN64: 0.3785013602 | AQ64: 0.3790771179 | AT64: 0.4884294291 | AU64: 576.6368138 | AV64: 207.2833293 | AW64: 0.4525147388 | AX64: 738.9143859 | AY64: 369.5609014 | BC64: 0.4884294291 | BD64: 576.6368138 | BE64: 207.2833293
X65: 10.12204068 | Y65: 0.3991635962 | Z65: 1073.217468 | AA65: 703.7897587 | AB65: 0.3994133797 | AC65: 1096.992457 | AD65: 727.5647481 | AE65: 0.4007520482 | AF65: 1048.568214 | AG65: 679.1405051 | AH65: 0.3641736976 | AK65: 0.4166011536 | AL65: 961.3404274 | AM65: 591.9127182 | AN65: 0.3785761875 | AQ65: 0.379152059 | AT65: 0.4885259884 | AU65: 576.3621843 | AV65: 206.934475 | AW65: 0.4526041981 | AX65: 738.5999233 | AY65: 369.1722141 | BC65: 0.4885259884 | BD65: 576.3621843 | BE65: 206.934475
X66: 10.12404135 | Y66: 0.3992424927 | Z66: 1072.829616 | AA66: 703.3276822 | AB66: 0.3994923256 | AC66: 1096.595713 | AD66: 727.0937794 | AE66: 0.4008312586 | AF66: 1048.187442 | AG66: 678.6855084 | AH66: 0.3642456782 | AK66: 0.4166834967 | AL66: 960.9741065 | AM66: 591.4721725 | AN66: 0.3786510148 | AQ66: 0.3792270001 | AT66: 0.4886225478 | AU66: 576.0876557 | AV66: 206.5857217 | AW66: 0.4526936573 | AX66: 738.2855695 | AY66: 368.7836356 | BC66: 0.4886225478 | BD66: 576.0876557 | BE66: 206.5857217
X67: 10.12604201 | Y67: 0.3993213892 | Z67: 1072.441889 | AA67: 702.8657298 | AB67: 0.3995712714 | AC67: 1096.199096 | AD67: 726.6229377 | AE67: 0.4009104691 | AF67: 1047.806792 | AG67: 678.2306337 | AH67: 0.3643176587 | AK67: 0.4167658398 | AL67: 960.6079056 | AM67: 591.0317469 | AN67: 0.3787258421 | AQ67: 0.3793019412 | AT67: 0.4887191071 | AU67: 575.8132281 | AV67: 206.2370694 | AW67: 0.4527831166 | AX67: 737.9713246 | AY67: 368.3951658 | BC67: 0.4887191071 | BD67: 575.8132281 | BE67: 206.2370694
X68: 10.12804268 | Y68: =IFERROR(IF($X68/(1-INDEX($S$4:$S$13,QUOTIENT(COLUMN(),3)-7,)^1.5)/$B$32/Y$2<=1,$X68/(1-INDEX($S$4:$S$13,QUOTIENT(COLUMN(),3)-7,)^1.5)/$B$32/Y$2,NA()),NA()) -> 0.3994002856 | Z68: =IFERROR(IF(OR($X68<$B$3,$X68>$B$4),NA(),IF(OR(1/$X68*Z$2*$B$31*INDEX($T$4:$T$13,QUOTIENT(COLUMN(),3)-7,)*Y68^$B$33*(1-Y68)^$B$34<$B$5,1/$X68*Z$2*$B$31*INDEX($T$4:$T$13,QUOTIENT(COLUMN(),3)-7,)*Y68^$B$33*(1-Y68)^$B$34>$B$6),NA(),1/$X68*Z$2*$B$31*INDEX($T$4:$T$13,QUOTIENT(COLUMN(),3)-7,)*Y68^$B$33*(1-Y68)^$B$34)),NA()) -> 1072.054285 | AA68: =IFERROR(ABS(Z68-($B$37*$X68+$B$38)),"") -> 702.4039015 | AB68: =IFERROR(IF($X68/(1-INDEX($S$4:$S$13,QUOTIENT(COLUMN(),3)-7,)^1.5)/$B$32/AB$2<=1,$X68/(1-INDEX($S$4:$S$13,QUOTIENT(COLUMN(),3)-7,)^1.5)/$B$32/AB$2,NA()),NA()) -> 0.3996502173 | AC68: =IFERROR(IF(OR($X68<$B$3,$X68>$B$4),NA(),IF(OR(1/$X68*AC$2*$B$31*INDEX($T$4:$T$13,QUOTIENT(COLUMN(),3)-7,)*AB68^$B$33*(1-AB68)^$B$34<$B$5,1/$X68*AC$2*$B$31*INDEX($T$4:$T$13,QUOTIENT(COLUMN(),3)-7,)*AB68^$B$33*(1-AB68)^$B$34>$B$6),NA(),1/$X68*AC$2*$B$31*INDEX($T$4:$T$13,QUOTIENT(COLUMN(),3)-7,)*AB68^$B$33*(1-AB68)^$B$34)),NA()) -> 1095.802606 | AD68: =IFERROR(ABS(AC68-($B$37*$X68+$B$38)),"") -> 726.152223 | AE68: =IFERROR(IF($X68/(1-INDEX($S$4:$S$13,QUOTIENT(COLUMN(),3)-7,)^1.5)/$B$32/AE$2<=1,$X68/(1-INDEX($S$4:$S$13,QUOTIENT(COLUMN(),3)-7,)^1.5)/$B$32/AE$2,NA()),NA()) -> 0.4009896795 | AF68: =IFERROR(IF(OR($X68<$B$3,$X68>$B$4),NA(),IF(OR(1/$X68*AF$2*$B$31*INDEX($T$4:$T$13,QUOTIENT(COLUMN(),3)-7,)*AE68^$B$33*(1-AE68)^$B$34<$B$5,1/$X68*AF$2*$B$31*INDEX($T$4:$T$13,QUOTIENT(COLUMN(),3)-7,)*AE68^$B$33*(1-AE68)^$B$34>$B$6),NA(),1/$X68*AF$2*$B$31*INDEX($T$4:$T$13,QUOTIENT(COLUMN(),3)-7,)*AE68^$B$33*(1-AE68)^$B$34)),NA()) -> 1047.426265 | AG68: =IFERROR(ABS(AF68-($B$37*$X68+$B$38)),"") -> 677.7758811 | AH68: =IFERROR(IF($X68/(1-INDEX($S$4:$S$13,QUOTIENT(COLUMN(),3)-7,)^1.5)/$B$32/AH$2<=1,$X68/(1-INDEX($S$4:$S$13,QUOTIENT(COLUMN(),3)-7,)^1.5)/$B$32/AH$2,NA()),NA()) -> 0.3643896393 | AI68: =IFERROR(IF(OR($X68<$B$3,$X68>$B$4),NA(),IF(OR(1/$X68*AI$2*$B$31*INDEX($T$4:$T$13,QUOTIENT(COLUMN(),3)-7,)*AH68^$B$33*(1-AH68)^$B$34<$B$5,1/$X68*AI$2*$B$31*INDEX($T$4:$T$13,QUOTIENT(COLUMN(),3)-7,)*AH68^$B$33*(1-AH68)^$B$34>$B$6),NA(),1/$X68*AI$2*$B$31*INDEX($T$4:$T$13,QUOTIENT(COLUMN(),3)-7,)*AH68^$B$33*(1-AH68)^$B$34)),NA()) ->  | AJ68: =IFERROR(ABS(AI68-($B$37*$X68+$B$38)),"") ->  | AK68: =IFERROR(IF($X68/(1-INDEX($S$4:$S$13,QUOTIENT(COLUMN(),3)-7,)^1.5)/$B$32/AK$2<=1,$X68/(1-INDEX($S$4:$S$13,QUOTIENT(COLUMN(),3)-7,)^1.5)/$B$32/AK$2,NA()),NA()) -> 0.4168481829 | AL68: =IFERROR(IF(OR($X68<$B$3,$X68>$B$4),NA(),IF(OR(1/$X68*AL$2*$B$31*INDEX($T$4:$T$13,QUOTIENT(COLUMN(),3)-7,)*AK68^$B$33*(1-AK68)^$B$34<$B$5,1/$X68*AL$2*$B$31*INDEX($T$4:$T$13,QUOTIENT(COLUMN(),3)-7,)*AK68^$B$33*(1-AK68)^$B$34>$B$6),NA(),1/$X68*AL$2*$B$31*INDEX($T$4:$T$13,QUOTIENT(COLUMN(),3)-7,)*AK68^$B$33*(1-AK68)^$B$34)),NA()) -> 960.2418247 | AM68: =IFERROR(ABS(AL68-($B$37*$X68+$B$38)),"") -> 590.5914413 | AN68: =IFERROR(IF($X68/(1-INDEX($S$4:$S$13,QUOTIENT(COLUMN(),3)-7,)^1.5)/$B$32/AN$2<=1,$X68/(1-INDEX($S$4:$S$13,QUOTIENT(COLUMN(),3)-7,)^1.5)/$B$32/AN$2,NA()),NA()) -> 0.3788006693 | AO68: =IFERROR(IF(OR($X68<$B$3,$X68>$B$4),NA(),IF(OR(1/$X68*AO$2*$B$31*INDEX($T$4:$T$13,QUOTIENT(COLUMN(),3)-7,)*AN68^$B$33*(1-AN68)^$B$34<$B$5,1/$X68*AO$2*$B$31*INDEX($T$4:$T$13,QUOTIENT(COLUMN(),3)-7,)*AN68^$B$33*(1-AN68)^$B$34>$B$6),NA(),1/$X68*AO$2*$B$31*INDEX($T$4:$T$13,QUOTIENT(COLUMN(),3)-7,)*AN68^$B$33*(1-AN68)^$B$34)),NA()) ->  | AP68: =IFERROR(ABS(AO68-($B$37*$X68+$B$38)),"") ->  | AQ68: =IFERROR(IF($X68/(1-INDEX($S$4:$S$13,QUOTIENT(COLUMN(),3)-7,)^1.5)/$B$32/AQ$2<=1,$X68/(1-INDEX($S$4:$S$13,QUOTIENT(COLUMN(),3)-7,)^1.5)/$B$32/AQ$2,NA()),NA()) -> 0.3793768823 | AR68: =IFERROR(IF(OR($X68<$B$3,$X68>$B$4),NA(),IF(OR(1/$X68*AR$2*$B$31*INDEX($T$4:$T$13,QUOTIENT(COLUMN(),3)-7,)*AQ68^$B$33*(1-AQ68)^$B$34<$B$5,1/$X68*AR$2*$B$31*INDEX($T$4:$T$13,QUOTIENT(COLUMN(),3)-7,)*AQ68^$B$33*(1-AQ68)^$B$34>$B$6),NA(),1/$X68*AR$2*$B$31*INDEX($T$4:$T$13,QUOTIENT(COLUMN(),3)-7,)*AQ68^$B$33*(1-AQ68)^$B$34)),NA()) ->  | AS68: =IFERROR(ABS(AR68-($B$37*$X68+$B$38)),"") ->  | AT68: =IFERROR(IF($X68/(1-INDEX($S$4:$S$13,QUOTIENT(COLUMN(),3)-7,)^1.5)/$B$32/AT$2<=1,$X68/(1-INDEX($S$4:$S$13,QUOTIENT(COLUMN(),3)-7,)^1.5)/$B$32/AT$2,NA()),NA()) -> 0.4888156665 | AU68: =IFERROR(IF(OR($X68<$B$3,$X68>$B$4),NA(),IF(OR(1/$X68*AU$2*$B$31*INDEX($T$4:$T$13,QUOTIENT(COLUMN(),3)-7,)*AT68^$B$33*(1-AT68)^$B$34<$B$5,1/$X68*AU$2*$B$31*INDEX($T$4:$T$13,QUOTIENT(COLUMN(),3)-7,)*AT68^$B$33*(1-AT68)^$B$34>$B$6),NA(),1/$X68*AU$2*$B$31*INDEX($T$4:$T$13,QUOTIENT(COLUMN(),3)-7,)*AT68^$B$33*(1-AT68)^$B$34)),NA()) -> 575.5389014 | AV68: =IFERROR(ABS(AU68-($B$37*$X68+$B$38)),"") -> 205.888518 | AW68: =IFERROR(IF($X68/(1-INDEX($S$4:$S$13,QUOTIENT(COLUMN(),3)-7,)^1.5)/$B$32/AW$2<=1,$X68/(1-INDEX($S$4:$S$13,QUOTIENT(COLUMN(),3)-7,)^1.5)/$B$32/AW$2,NA()),NA()) -> 0.4528725758 | AX68: =IFERROR(IF(OR($X68<$B$3,$X68>$B$4),NA(),IF(OR(1/$X68*AX$2*$B$31*INDEX($T$4:$T$13,QUOTIENT(COLUMN(),3)-7,)*AW68^$B$33*(1-AW68)^$B$34<$B$5,1/$X68*AX$2*$B$31*INDEX($T$4:$T$13,QUOTIENT(COLUMN(),3)-7,)*AW68^$B$33*(1-AW68)^$B$34>$B$6),NA(),1/$X68*AX$2*$B$31*INDEX($T$4:$T$13,QUOTIENT(COLUMN(),3)-7,)*AW68^$B$33*(1-AW68)^$B$34)),NA()) -> 737.6571883 | AY68: =IFERROR(ABS(AX68-($B$37*$X68+$B$38)),"") -> 368.0068049 | AZ68: =IFERROR(IF($X68/(1-INDEX($S$4:$S$13,QUOTIENT(COLUMN(),3)-7,)^1.5)/$B$32/AZ$2<=1,$X68/(1-INDEX($S$4:$S$13,QUOTIENT(COLUMN(),3)-7,)^1.5)/$B$32/AZ$2,NA()),NA()) ->  | BA68: =IFERROR(IF(OR($X68<$B$3,$X68>$B$4),NA(),IF(OR(1/$X68*BA$2*$B$31*INDEX($T$4:$T$13,QUOTIENT(COLUMN(),3)-7,)*AZ68^$B$33*(1-AZ68)^$B$34<$B$5,1/$X68*BA$2*$B$31*INDEX($T$4:$T$13,QUOTIENT(COLUMN(),3)-7,)*AZ68^$B$33*(1-AZ68)^$B$34>$B$6),NA(),1/$X68*BA$2*$B$31*INDEX($T$4:$T$13,QUOTIENT(COLUMN(),3)-7,)*AZ68^$B$33*(1-AZ68)^$B$34)),NA()) ->  | BB68: =IFERROR(ABS(BA68-($B$37*$X68+$B$38)),"") ->  | BC68: 0.4888156665 | BD68: 575.5389014 | BE68: 205.888518
X69: 10.13004335 | Y69: 0.3994791821 | Z69: 1071.666805 | AA69: 701.9421972 | AB69: 0.3997291631 | AC69: 1095.406243 | AD69: 725.6816352 | AE69: 0.40106889 | AF69: 1047.045859 | AG69: 677.3212505 | AH69: 0.3644616199 | AK69: 0.4169305259 | AL69: 959.8758638 | AM69: 590.1512556 | AN69: 0.3788754966 | AQ69: 0.3794518234 | AT69: 0.4889122259 | AU69: 575.2646756 | AV69: 205.5400674 | AW69: 0.4529620351 | AX69: 737.3431607 | AY69: 367.6185525 | BC69: =IFERROR(IF($X69/(1-$S$14^1.5)/$B$32/BC$2<=1,$X69/(1-$S$14^1.5)/$B$32/BC$2,NA()),NA()) -> 0.4889122259 | BD69: =IFERROR(IF(OR($X69<$B$3,$X69>$B$4),NA(),IF(OR(1/$X69*BD$2*$B$31*$T$14*BC69^$B$33*(1-BC69)^$B$34<$B$5,1/$X69*BD$2*$B$31*$T$14*BC69^$B$33*(1-BC69)^$B$34>$B$6),NA(),1/$X69*BD$2*$B$31*$T$14*BC69^$B$33*(1-BC69)^$B$34)),NA()) -> 575.2646756 | BE69: =IFERROR(ABS(BD69-($B$37*$X69+$B$38)),"") -> 205.5400674 | BF69: =IF($B$9=$C$9,BD69,NA()) -> 
X70: =X69+$X$2 -> 10.13204401 | Y70: 0.3995580786 | Z70: 1071.27945 | AA70: 701.4806168 | AB70: 0.399808109 | AC70: 1095.010007 | AD70: 725.2111742 | AE70: 0.4011481004 | AF70: 1046.665575 | AG70: 676.8667419 | AH70: 0.3645336005 | AK70: 0.417012869 | AL70: 959.5100228 | AM70: 589.7111899 | AN70: 0.3789503239 | AQ70: 0.3795267645 | AT70: 0.4890087852 | AU70: 574.9905506 | AV70: 205.1917177 | AW70: 0.4530514943 | AX70: 737.0292418 | AY70: 367.2304089 | BC70: 0.4890087852 | BD70: 574.9905506 | BE70: 205.1917177
X71: 10.13404468 | Y71: 0.3996369751 | Z71: 1070.892218 | AA71: 701.0191604 | AB71: 0.3998870549 | AC71: 1094.613898 | AD71: 724.74084 | AE71: 0.4012273108 | AF71: 1046.285413 | AG71: 676.4123552 | AH71: 0.364605581 | AK71: 0.4170952121 | AL71: 959.1443017 | AM71: 589.271244 | AN71: 0.3790251512 | AQ71: 0.3796017056 | AT71: 0.4891053446 | AU71: 574.7165264 | AV71: 204.8434687 | AW71: 0.4531409536 | AX71: 736.7154315 | AY71: 366.8423738 | BC71: 0.4891053446 | BD71: 574.7165264 | BE71: 204.8434687
X72: 10.13604535 | Y72: 0.3997158716 | Z72: 1070.50511 | AA72: 700.5578278 | AB72: 0.3999660007 | AC72: 1094.217915 | AD72: 724.2706325 | AE72: 0.4013065213 | AF72: 1045.905373 | AG72: 675.9580903 | AH72: 0.3646775616 | AK72: 0.4171775552 | AL72: 958.7787004 | AM72: 588.831418 | AN72: 0.3790999785 | AQ72: 0.3796766467 | AT72: 0.4892019039 | AU72: 574.4426029 | AV72: 204.4953205 | AW72: 0.4532304129 | AX72: 736.4017297 | AY72: 366.4544472 | BC72: 0.4892019039 | BD72: 574.4426029 | BE72: 204.4953205
X73: 10.13804602 | Y73: 0.399794768 | Z73: 1070.118126 | AA73: 700.096619 | AB73: 0.4000449466 | AC73: 1093.822059 | AD73: 723.8005517 | AE73: 0.4013857317 | AF73: 1045.525454 | AG73: 675.5039472 | AH73: 0.3647495422 | AK73: 0.4172598983 | AL73: 958.4132188 | AM73: 588.3917117 | AN73: 0.3791748058 | AQ73: 0.3797515879 | AT73: 0.4892984633 | AU73: 574.1687802 | AV73: 204.147273 | AW73: 0.4533198721 | AX73: 736.0881364 | AY73: 366.0666292 | BC73: 0.4892984633 | BD73: 574.1687802 | BE73: 204.147273
X74: 10.14004668 | Y74: 0.3998736645 | Z74: 1069.731266 | AA74: 699.635534 | AB74: 0.4001238924 | AC74: 1093.426329 | AD74: 723.3305976 | AE74: 0.4014649422 | AF74: 1045.145658 | AG74: 675.0499259 | AH74: 0.3648215227 | AK74: 0.4173422414 | AL74: 958.047857 | AM74: 587.9521251 | AN74: 0.3792496331 | AQ74: 0.379826529 | AT74: 0.4893950227 | AU74: 573.8950581 | AV74: 203.7993262 | AW74: 0.4534093314 | AX74: 735.7746516 | AY74: 365.6789196 | BC74: 0.4893950227 | BD74: 573.8950581 | BE74: 203.7993262
X75: 10.14204735 | Y75: 0.399952561 | Z75: 1069.344529 | AA75: 699.1745727 | AB75: 0.4002028383 | AC75: 1093.030727 | AD75: 722.86077 | AE75: 0.4015441526 | AF75: 1044.765983 | AG75: 674.5960263 | AH75: 0.3648935033 | AK75: 0.4174245845 | AL75: 957.6826148 | AM75: 587.5126582 | AN75: 0.3793244604 | AQ75: 0.3799014701 | AT75: 0.489491582 | AU75: 573.6214366 | AV75: 203.45148 | AW75: 0.4534987906 | AX75: 735.4612752 | AY75: 365.2913185 | BC75: 0.489491582 | BD75: 573.6214366 | BE75: 203.45148
X76: 10.14404802 | Y76: 0.4000314575 | Z76: 1068.957916 | AA76: 698.713735 | AB76: 0.4002817841 | AC76: 1092.63525 | AD76: 722.391069 | AE76: 0.4016233631 | AF76: 1044.38643 | AG76: 674.1422483 | AH76: 0.3649654839 | AK76: 0.4175069276 | AL76: 957.3174923 | AM76: 587.0733109 | AN76: 0.3793992876 | AQ76: 0.3799764112 | AT76: 0.4895881414 | AU76: 573.3479158 | AV76: 203.1037344 | AW76: 0.4535882499 | AX76: 735.1480071 | AY76: 364.9038257 | BC76: 0.4895881414 | BD76: 573.3479158 | BE76: 203.1037344
X77: 10.14604868 | Y77: 0.400110354 | Z77: 1068.571427 | AA77: 698.253021 | AB77: 0.40036073 | AC77: 1092.239901 | AD77: 721.9214944 | AE77: 0.4017025735 | AF77: 1044.006998 | AG77: 673.688592 | AH77: 0.3650374644 | AK77: 0.4175892707 | AL77: 956.9524893 | AM77: 586.6340832 | AN77: 0.3794741149 | AQ77: 0.3800513523 | AT77: 0.4896847007 | AU77: 573.0744955 | AV77: 202.7560893 | AW77: 0.4536777091 | AX77: 734.8348474 | AY77: 364.5164413 | BC77: 0.4896847007 | BD77: 573.0744955 | BE77: 202.7560893
X78: 10.14804935 | Y78: 0.4001892504 | Z78: 1068.185061 | AA78: 697.7924304 | AB78: 0.4004396758 | AC78: 1091.844677 | AD78: 721.4520463 | AE78: 0.401781784 | AF78: 1043.627688 | AG78: 673.2350572 | AH78: 0.365109445 | AK78: 0.4176716138 | AL78: 956.5876058 | AM78: 586.194975 | AN78: 0.3795489422 | AQ78: 0.3801262934 | AT78: 0.4897812601 | AU78: 572.8011756 | AV78: 202.4085448 | AW78: 0.4537671684 | AX78: 734.521796 | AY78: 364.1291652 | BC78: 0.4897812601 | BD78: 572.8011756 | BE78: 202.4085448
X79: 10.15005002 | Y79: 0.4002681469 | Z79: 1067.798819 | AA79: 697.3319634 | AB79: 0.4005186217 | AC79: 1091.44958 | AD79: 720.9827246 | AE79: 0.4018609944 | AF79: 1043.2485 | AG79: 672.7816439 | AH79: 0.3651814256 | AK79: 0.4177539569 | AL79: 956.2228418 | AM79: 585.7559862 | AN79: 0.3796237695 | AQ79: 0.3802012345 | AT79: 0.4898778195 | AU79: 572.5279563 | AV79: 202.0611007 | AW79: 0.4538566276 | AX79: 734.2088529 | AY79: 363.7419973 | BC79: 0.4898778195 | BD79: 572.5279563 | BE79: 202.0611007
X80: 10.15205068 | Y80: 0.4003470434 | Z80: 1067.4127 | AA80: 696.8716199 | AB80: 0.4005975675 | AC80: 1091.05461 | AD80: 720.5135291 | AE80: 0.4019402049 | AF80: 1042.869432 | AG80: 672.328352 | AH80: 0.3652534062 | AK80: 0.4178363 | AL80: 955.8581973 | AM80: 585.3171169 | AN80: 0.3796985968 | AQ80: 0.3802761756 | AT80: 0.4899743788 | AU80: 572.2548374 | AV80: 201.713757 | AW80: 0.4539460869 | AX80: 733.8960179 | AY80: 363.3549376 | BC80: 0.4899743788 | BD80: 572.2548374 | BE80: 201.713757
X81: 10.15405135 | Y81: 0.4004259399 | Z81: 1067.026705 | AA81: 696.4113997 | AB81: 0.4006765134 | AC81: 1090.659765 | AD81: 720.04446 | AE81: 0.4020194153 | AF81: 1042.490487 | AG81: 671.8751816 | AH81: 0.3653253867 | AK81: 0.4179186431 | AL81: 955.4936721 | AM81: 584.878367 | AN81: 0.3797734241 | AQ81: 0.3803511167 | AT81: 0.4900709382 | AU81: 571.9818189 | AV81: 201.3665138 | AW81: 0.4540355462 | AX81: 733.5832911 | AY81: 362.967986 | BC81: 0.4900709382 | BD81: 571.9818189 | BE81: 201.3665138
X82: 10.15605202 | Y82: 0.4005048364 | Z82: 1066.640833 | AA82: 695.9513029 | AB82: 0.4007554592 | AC82: 1090.265047 | AD82: 719.5755171 | AE82: 0.4020986257 | AF82: 1042.111662 | AG82: 671.4221325 | AH82: 0.3653973673 | AK82: 0.4180009862 | AL82: 955.1292662 | AM82: 584.4397364 | AN82: 0.3798482514 | AQ82: 0.3804260578 | AT82: 0.4901674975 | AU82: 571.7089007 | AV82: 201.0193709 | AW82: 0.4541250054 | AX82: 733.2706725 | AY82: 362.5811426 | BC82: 0.4901674975 | BD82: 571.7089007 | BE82: 201.0193709
X83: 10.15805268 | Y83: 0.4005837329 | Z83: 1066.255084 | AA83: 695.4913294 | AB83: 0.4008344051 | AC83: 1089.870455 | AD83: 719.1067003 | AE83: 0.4021778362 | AF83: 1041.732959 | AG83: 670.9692047 | AH83: 0.3654693479 | AK83: 0.4180833292 | AL83: 954.7649797 | AM83: 584.0012251 | AN83: 0.3799230786 | AQ83: 0.380500999 | AT83: 0.4902640569 | AU83: 571.4360829 | AV83: 200.6723283 | AW83: 0.4542144647 | AX83: 732.9581619 | AY83: 362.1944073 | BC83: 0.4902640569 | BD83: 571.4360829 | BE83: 200.6723283
X84: 10.16005335 | Y84: 0.4006626293 | Z84: 1065.869458 | AA84: 695.0314791 | AB84: 0.4009133509 | AC84: 1089.475989 | AD84: 718.6380096 | AE84: 0.4022570466 | AF84: 1041.354378 | AG84: 670.5163982 | AH84: 0.3655413284 | AK84: 0.4181656723 | AL84: 954.4008123 | AM84: 583.562833 | AN84: 0.3799979059 | AQ84: 0.3805759401 | AT84: 0.4903606163 | AU84: 571.1633653 | AV84: 200.325386 | AW84: 0.4543039239 | AX84: 732.6457593 | AY84: 361.80778 | BC84: 0.4903606163 | BD84: 571.1633653 | BE84: 200.325386
X85: 10.16205402 | Y85: 0.4007415258 | Z85: 1065.483956 | AA85: 694.571752 | AB85: 0.4009922968 | AC85: 1089.081649 | AD85: 718.169445 | AE85: 0.4023362571 | AF85: 1040.975917 | AG85: 670.0637129 | AH85: 0.365613309 | AK85: 0.4182480154 | AL85: 954.0367641 | AM85: 583.1245601 | AN85: 0.3800727332 | AQ85: 0.3806508812 | AT85: 0.4904571756 | AU85: 570.890748 | AV85: 199.9785439 | AW85: 0.4543933832 | AX85: 732.3334647 | AY85: 361.4212607 | BC85: 0.4904571756 | BD85: 570.890748 | BE85: 199.9785439
X86: 10.16405468 | Y86: 0.4008204223 | Z86: 1065.098577 | AA86: 694.1121481 | AB86: 0.4010712426 | AC86: 1088.687435 | AD86: 717.7010065 | AE86: 0.4024154675 | AF86: 1040.597578 | AG86: 669.6111487 | AH86: 0.3656852896 | AK86: 0.4183303585 | AL86: 953.6728351 | AM86: 582.6864063 | AN86: 0.3801475605 | AQ86: 0.3807258223 | AT86: 0.490553735 | AU86: 570.6182308 | AV86: 199.631802 | AW86: 0.4544828424 | AX86: 732.0212781 | AY86: 361.0348493 | BC86: 0.490553735 | BD86: 570.6182308 | BE86: 199.631802
X87: 10.16605535 | Y87: 0.4008993188 | Z87: 1064.713321 | AA87: 693.6526673 | AB87: 0.4011501885 | AC87: 1088.293347 | AD87: 717.2326938 | AE87: 0.402494678 | AF87: 1040.219359 | AG87: 669.1587057 | AH87: 0.3657572701 | AK87: 0.4184127016 | AL87: 953.3090252 | AM87: 582.2483716 | AN87: 0.3802223878 | AQ87: 0.3808007634 | AT87: 0.4906502943 | AU87: 570.3458138 | AV87: 199.2851603 | AW87: 0.4545723017 | AX87: 731.7091994 | AY87: 360.6485458 | BC87: 0.4906502943 | BD87: 570.3458138 | BE87: 199.2851603
X88: 10.16805602 | Y88: 0.4009782153 | Z88: 1064.328188 | AA88: 693.1933095 | AB88: 0.4012291343 | AC88: 1087.899385 | AD88: 716.7645071 | AE88: 0.4025738884 | AF88: 1039.841262 | AG88: 668.7063837 | AH88: 0.3658292507 | AK88: 0.4184950447 | AL88: 952.9453342 | AM88: 581.8104559 | AN88: 0.3802972151 | AQ88: 0.3808757045 | AT88: 0.4907468537 | AU88: 570.073497 | AV88: 198.9386187 | AW88: 0.454661761 | AX88: 731.3972285 | AY88: 360.2623502 | BC88: 0.4907468537 | BD88: 570.073497 | BE88: 198.9386187
X89: 10.17005669 | Y89: 0.4010571117 | Z89: 1063.943178 | AA89: 692.7340747 | AB89: 0.4013080802 | AC89: 1087.505549 | AD89: 716.2964463 | AE89: 0.4026530989 | AF89: 1039.463286 | AG89: 668.2541827 | AH89: 0.3659012313 | AK89: 0.4185773878 | AL89: 952.5817623 | AM89: 581.3726593 | AN89: 0.3803720424 | AQ89: 0.3809506456 | AT89: 0.4908434131 | AU89: 569.8012802 | AV89: 198.5921772 | AW89: 0.4547512202 | AX89: 731.0853654 | AY89: 359.8762624 | BC89: 0.4908434131 | BD89: 569.8012802 | BE89: 198.5921772
X90: 10.17205735 | Y90: 0.4011360082 | Z90: 1063.558291 | AA90: 692.2749629 | AB90: 0.401387026 | AC90: 1087.111839 | AD90: 715.8285112 | AE90: 0.4027323093 | AF90: 1039.08543 | AG90: 667.8021026 | AH90: 0.3659732119 | AK90: 0.4186597309 | AL90: 952.2183093 | AM90: 580.9349815 | AN90: 0.3804468697 | AQ90: 0.3810255867 | AT90: 0.4909399724 | AU90: 569.5291635 | AV90: 198.2458357 | AW90: 0.4548406795 | AX90: 730.7736102 | AY90: 359.4902824 | BC90: 0.4909399724 | BD90: 569.5291635 | BE90: 198.2458357
X91: 10.17405802 | Y91: 0.4012149047 | Z91: 1063.173526 | AA91: 691.8159739 | AB91: 0.4014659719 | AC91: 1086.718254 | AD91: 715.3607019 | AE91: 0.4028115198 | AF91: 1038.707696 | AG91: 667.3501435 | AH91: 0.3660451924 | AK91: 0.418742074 | AL91: 951.8549752 | AM91: 580.4974227 | AN91: 0.3805216969 | AQ91: 0.3811005278 | AT91: 0.4910365318 | AU91: 569.2571467 | AV91: 197.8995942 | AW91: 0.4549301387 | AX91: 730.4619626 | AY91: 359.1044101 | BC91: 0.4910365318 | BD91: 569.2571467 | BE91: 197.8995942
X92: 10.17605869 | Y92: 0.4012938012 | Z92: 1062.788885 | AA92: 691.3571078 | AB92: 0.4015449177 | AC92: 1086.324796 | AD92: 714.8930183 | AE92: 0.4028907302 | AF92: 1038.330082 | AG92: 666.8983052 | AH92: 0.366117173 | AK92: 0.4188244171 | AL92: 951.49176 | AM92: 580.0599827 | AN92: 0.3805965242 | AQ92: 0.381175469 | AT92: 0.4911330911 | AU92: 568.9852299 | AV92: 197.5534527 | AW92: 0.455019598 | AX92: 730.1504227 | AY92: 358.7186455 | BC92: 0.4911330911 | BD92: 568.9852299 | BE92: 197.5534527
X93: 10.17805935 | Y93: 0.4013726977 | Z93: 1062.404366 | AA93: 690.8983645 | AB93: 0.4016238636 | AC93: 1085.931462 | AD93: 714.4254603 | AE93: 0.4029699407 | AF93: 1037.95259 | AG93: 666.4465877 | AH93: 0.3661891536 | AK93: 0.4189067602 | AL93: 951.1286635 | AM93: 579.6226615 | AN93: 0.3806713515 | AQ93: 0.3812504101 | AT93: 0.4912296505 | AU93: 568.7134131 | AV93: 197.2074111 | AW93: 0.4551090572 | AX93: 729.8389905 | AY93: 358.3329885 | BC93: 0.4912296505 | BD93: 568.7134131 | BE93: 197.2074111
X94: 10.18006002 | Y94: 0.4014515941 | Z94: 1062.019971 | AA94: 690.4397439 | AB94: 0.4017028094 | AC94: 1085.538255 | AD94: 713.958028 | AE94: 0.4030491511 | AF94: 1037.575218 | AG94: 665.994991 | AH94: 0.3662611341 | AK94: 0.4189891033 | AL94: 950.7656858 | AM94: 579.185459 | AN94: 0.3807461788 | AQ94: 0.3813253512 | AT94: 0.4913262099 | AU94: 568.4416961 | AV94: 196.8614693 | AW94: 0.4551985165 | AX94: 729.5276659 | AY94: 357.9474391 | BC94: 0.4913262099 | BD94: 568.4416961 | BE94: 196.8614693
X95: 10.18206069 | Y95: 0.4015304906 | Z95: 1061.635698 | AA95: 689.981246 | AB95: 0.4017817553 | AC95: 1085.145173 | AD95: 713.4907212 | AE95: 0.4031283615 | AF95: 1037.197966 | AG95: 665.543515 | AH95: 0.3663331147 | AK95: 0.4190714464 | AL95: 950.4028268 | AM95: 578.7483753 | AN95: 0.3808210061 | AQ95: 0.3814002923 | AT95: 0.4914227692 | AU95: 568.170079 | AV95: 196.5156275 | AW95: 0.4552879757 | AX95: 729.2164488 | AY95: 357.5619973 | BC95: 0.4914227692 | BD95: 568.170079 | BE95: 196.5156275
X96: 10.18406135 | Y96: 0.4016093871 | Z96: 1061.251547 | AA96: 689.5228708 | AB96: 0.4018607011 | AC96: 1084.752216 | AD96: 713.0235399 | AE96: 0.403207572 | AF96: 1036.820836 | AG96: 665.0921597 | AH96: 0.3664050953 | AK96: 0.4191537894 | AL96: 950.0400864 | AM96: 578.3114102 | AN96: 0.3808958334 | AQ96: 0.3814752334 | AT96: 0.4915193286 | AU96: 567.8985616 | AV96: 196.1698854 | AW96: 0.455377435 | AX96: 728.9053393 | AY96: 357.1766631 | BC96: 0.4915193286 | BD96: 567.8985616 | BE96: 196.1698854
X97: 10.18606202 | Y97: 0.4016882836 | Z97: 1060.867519 | AA97: 689.0646181 | AB97: 0.401939647 | AC97: 1084.359385 | AD97: 712.556484 | AE97: 0.4032867824 | AF97: 1036.443826 | AG97: 664.6409249 | AH97: 0.3664770758 | AK97: 0.4192361325 | AL97: 949.6774646 | AM97: 577.8745637 | AN97: 0.3809706607 | AQ97: 0.3815501745 | AT97: 0.4916158879 | AU97: 567.6271441 | AV97: 195.8242431 | AW97: 0.4554668943 | AX97: 728.5943372 | AY97: 356.7914362 | BC97: 0.4916158879 | BD97: 567.6271441 | BE97: 195.8242431
X98: 10.18806269 | Y98: 0.4017671801 | Z98: 1060.483614 | AA98: 688.606488 | AB98: 0.4020185929 | AC98: 1083.966679 | AD98: 712.0895535 | AE98: 0.4033659929 | AF98: 1036.066936 | AG98: 664.1898107 | AH98: 0.3665490564 | AK98: 0.4193184756 | AL98: 949.3149614 | AM98: 577.4378357 | AN98: 0.381045488 | AQ98: 0.3816251156 | AT98: 0.4917124473 | AU98: 567.3558263 | AV98: 195.4787005 | AW98: 0.4555563535 | AX98: 728.2834426 | AY98: 356.4063169 | BC98: 0.4917124473 | BD98: 567.3558263 | BE98: 195.4787005
X99: 10.19006335 | Y99: 0.4018460765 | Z99: 1060.099831 | AA99: 688.1484804 | AB99: 0.4020975387 | AC99: 1083.574099 | AD99: 711.6227484 | AE99: 0.4034452033 | AF99: 1035.690168 | AG99: 663.7388171 | AH99: 0.366621037 | AK99: 0.4194008187 | AL99: 948.9525767 | AM99: 577.0012262 | AN99: 0.3811203152 | AQ99: 0.3817000567 | AT99: 0.4918090067 | AU99: 567.0846081 | AV99: 195.1332577 | AW99: 0.4556458128 | AX99: 727.9726553 | AY99: 356.0213049 | BC99: 0.4918090067 | BD99: 567.0846081 | BE99: 195.1332577
X100: 10.19206402 | Y100: 0.401924973 | Z100: 1059.71617 | AA100: 687.6905952 | AB100: 0.4021764846 | AC100: 1083.181644 | AD100: 711.1560685 | AE100: 0.4035244138 | AF100: 1035.313519 | AG100: 663.2879439 | AH100: 0.3666930176 | AK100: 0.4194831618 | AL100: 948.5903104 | AM100: 576.5647352 | AN100: 0.3811951425 | AQ100: 0.3817749978 | AT100: 0.491905566 | AU100: 566.8134896 | AV100: 194.7879144 | AW100: 0.455735272 | AX100: 727.6619754 | AY100: 355.6364002 | BC100: 0.491905566 | BD100: 566.8134896 | BE100: 194.7879144
X101: 10.19406469 | Y101: 0.4020038695 | Z101: 1059.332632 | AA101: 687.2328324 | AB101: 0.4022554304 | AC101: 1082.789314 | AD101: 710.6895139 | AE101: 0.4036036242 | AF101: 1034.936991 | AG101: 662.8371911 | AH101: 0.3667649981 | AK101: 0.4195655049 | AL101: 948.2281626 | AM101: 576.1283627 | AN101: 0.3812699698 | AQ101: 0.3818499389 | AT101: 0.4920021254 | AU101: 566.5424708 | AV101: 194.4426708 | AW101: 0.4558247313 | AX101: 727.3514028 | AY101: 355.2516029 | BC101: 0.4920021254 | BD101: 566.5424708 | BE101: 194.4426708
X102: 10.19606536 | Y102: 0.402082766 | Z102: 1058.949217 | AA102: 686.775192 | AB102: 0.4023343763 | AC102: 1082.397109 | AD102: 710.2230845 | AE102: 0.4036828347 | AF102: 1034.560583 | AG102: 662.3865586 | AH102: 0.3668369787 | AK102: 0.419647848 | AL102: 947.8661331 | AM102: 575.6921084 | AN102: 0.3813447971 | AQ102: 0.3819248801 | AT102: 0.4920986847 | AU102: 566.2715515 | AV102: 194.0975268 | AW102: 0.4559141905 | AX102: 727.0409374 | AY102: 354.8669128 | BC102: 0.4920986847 | BD102: 566.2715515 | BE102: 194.0975268
X103: 10.19806602 | Y103: 0.4021616625 | Z103: 1058.565923 | AA103: 686.3176738 | AB103: 0.4024133221 | AC103: 1082.00503 | AD103: 709.7567802 | AE103: 0.4037620451 | AF103: 1034.184296 | AG103: 661.9360465 | AH103: 0.3669089593 | AK103: 0.4197301911 | AL103: 947.5042219 | AM103: 575.2559725 | AN103: 0.3814196244 | AQ103: 0.3819998212 | AT103: 0.4921952441 | AU103: 566.0007317 | AV103: 193.7524823 | AW103: 0.4560036498 | AX103: 726.7305793 | AY103: 354.4823299 | BC103: 0.4921952441 | BD103: 566.0007317 | BE103: 193.7524823
X104: 10.20006669 | Y104: 0.402240559 | Z104: 1058.182752 | AA104: 685.8602779 | AB104: 0.402492268 | AC104: 1081.613075 | AD104: 709.290601 | AE104: 0.4038412556 | AF104: 1033.808129 | AG104: 661.4856547 | AH104: 0.3669809398 | AK104: 0.4198125342 | AL104: 947.142429 | AM104: 574.8199549 | AN104: 0.3814944517 | AQ104: 0.3820747623 | AT104: 0.4922918035 | AU104: 565.7300114 | AV104: 193.4075373 | AW104: 0.4560931091 | AX104: 726.4203284 | AY104: 354.0978542 | BC104: 0.4922918035 | BD104: 565.7300114 | BE104: 193.4075373
X105: 10.20206736 | Y105: 0.4023194554 | Z105: 1057.799703 | AA105: 685.4030042 | AB105: 0.4025712138 | AC105: 1081.221246 | AD105: 708.8245469 | AE105: 0.403920466 | AF105: 1033.432082 | AG105: 661.035383 | AH105: 0.3670529204 | AK105: 0.4198948773 | AL105: 946.7807543 | AM105: 574.3840554 | AN105: 0.381569279 | AQ105: 0.3821497034 | AT105: 0.4923883628 | AU105: 565.4593906 | AV105: 193.0626917 | AW105: 0.4561825683 | AX105: 726.1101845 | AY105: 353.7134856 | BC105: 0.4923883628 | BD105: 565.4593906 | BE105: 193.0626917
X106: 10.20406802 | Y106: 0.4023983519 | Z106: 1057.416776 | AA106: 684.9458526 | AB106: 0.4026501597 | AC106: 1080.829541 | AD106: 708.3586177 | AE106: 0.4039996764 | AF106: 1033.056155 | AG106: 660.5852315 | AH106: 0.367124901 | AK106: 0.4199772204 | AL106: 946.4191978 | AM106: 573.9482742 | AN106: 0.3816441062 | AQ106: 0.3822246445 | AT106: 0.4924849222 | AU106: 565.1888692 | AV106: 192.7179456 | AW106: 0.4562720276 | AX106: 725.8001478 | AY106: 353.3292242 | BC106: 0.4924849222 | BD106: 565.1888692 | BE106: 192.7179456
X107: 10.20606869 | Y107: 0.4024772484 | Z107: 1057.033971 | AA107: 684.4888231 | AB107: 0.4027291055 | AC107: 1080.437962 | AD107: 707.8928134 | AE107: 0.4040788869 | AF107: 1032.680349 | AG107: 660.1352002 | AH107: 0.3671968815 | AK107: 0.4200595635 | AL107: 946.0577594 | AM107: 573.512611 | AN107: 0.3817189335 | AQ107: 0.3822995856 | AT107: 0.4925814815 | AU107: 564.9184472 | AV107: 192.3732988 | AW107: 0.4563614868 | AX107: 725.4902181 | AY107: 352.9450697 | BC107: 0.4925814815 | BD107: 564.9184472 | BE107: 192.3732988
X108: 10.20806936 | Y108: 0.4025561449 | Z108: 1056.651289 | AA108: 684.0319156 | AB108: 0.4028080514 | AC108: 1080.046507 | AD108: 707.427134 | AE108: 0.4041580973 | AF108: 1032.304662 | AG108: 659.6852889 | AH108: 0.3672688621 | AK108: 0.4201419066 | AL108: 945.6964391 | AM108: 573.077066 | AN108: 0.3817937608 | AQ108: 0.3823745267 | AT108: 0.4926780409 | AU108: 564.6481245 | AV108: 192.0287514 | AW108: 0.4564509461 | AX108: 725.1803954 | AY108: 352.5610223 | BC108: 0.4926780409 | BD108: 564.6481245 | BE108: 192.0287514
X109: 10.21007002 | Y109: 0.4026350414 | Z109: 1056.268728 | AA109: 683.5751301 | AB109: 0.4028869972 | AC109: 1079.655177 | AD109: 706.9615795 | AE109: 0.4042373078 | AF109: 1031.929095 | AG109: 659.2354976 | AH109: 0.3673408427 | AK109: 0.4202242497 | AL109: 945.3352368 | AM109: 572.6416389 | AN109: 0.3818685881 | AQ109: 0.3824494678 | AT109: 0.4927746003 | AU109: 564.3779011 | AV109: 191.6843033 | AW109: 0.4565404053 | AX109: 724.8706797 | AY109: 352.1770818 | BC109: 0.4927746003 | BD109: 564.3779011 | BE109: 191.6843033
X110: 10.21207069 | Y110: 0.4027139378 | Z110: 1055.886289 | AA110: 683.1184666 | AB110: 0.4029659431 | AC110: 1079.263972 | AD110: 706.4961497 | AE110: 0.4043165182 | AF110: 1031.553649 | AG110: 658.7858263 | AH110: 0.3674128233 | AK110: 0.4203065927 | AL110: 944.9741525 | AM110: 572.2063299 | AN110: 0.3819434154 | AQ110: 0.3825244089 | AT110: 0.4928711596 | AU110: 564.107777 | AV110: 191.3399544 | AW110: 0.4566298646 | AX110: 724.5610709 | AY110: 351.7932483 | BC110: 0.4928711596 | BD110: 564.107777 | BE110: 191.3399544
X111: 10.21407136 | Y111: 0.4027928343 | Z111: 1055.503972 | AA111: 682.661925 | AB111: 0.4030448889 | AC111: 1078.872892 | AD111: 706.0308447 | AE111: 0.4043957287 | AF111: 1031.178322 | AG111: 658.336275 | AH111: 0.3674848038 | AK111: 0.4203889358 | AL111: 944.6131861 | AM111: 571.7711387 | AN111: 0.3820182427 | AQ111: 0.3825993501 | AT111: 0.492967719 | AU111: 563.8377522 | AV111: 190.9957048 | AW111: 0.4567193239 | AX111: 724.251569 | AY111: 351.4095216 | BC111: 0.492967719 | BD111: 563.8377522 | BE111: 190.9957048
X112: 10.21607202 | Y112: 0.4028717308 | Z112: 1055.121777 | AA112: 682.2055052 | AB112: 0.4031238348 | AC112: 1078.481936 | AD112: 705.5656643 | AE112: 0.4044749391 | AF112: 1030.803116 | AG112: 657.8868434 | AH112: 0.3675567844 | AK112: 0.4204712789 | AL112: 944.2523376 | AM112: 571.3360655 | AN112: 0.38209307 | AQ112: 0.3826742912 | AT112: 0.4930642783 | AU112: 563.5678265 | AV112: 190.6515544 | AW112: 0.4568087831 | AX112: 723.9421739 | AY112: 351.0259018 | BC112: 0.4930642783 | BD112: 563.5678265 | BE112: 190.6515544
X113: 10.21807269 | Y113: 0.4029506273 | Z113: 1054.739704 | AA113: 681.7492072 | AB113: 0.4032027806 | AC113: 1078.091105 | AD113: 705.1006086 | AE113: 0.4045541496 | AF113: 1030.428029 | AG113: 657.4375318 | AH113: 0.367628765 | AK113: 0.420553622 | AL113: 943.8916069 | AM113: 570.9011101 | AN113: 0.3821678973 | AQ113: 0.3827492323 | AT113: 0.4931608377 | AU113: 563.2979999 | AV113: 190.3075031 | AW113: 0.4568982424 | AX113: 723.6328856 | AY113: 350.6423888 | BC113: 0.4931608377 | BD113: 563.2979999 | BE113: 190.3075031
X114: 10.22007336 | Y114: 0.4030295238 | Z114: 1054.357752 | AA114: 681.2930309 | AB114: 0.4032817265 | AC114: 1077.700399 | AD114: 704.6356774 | AE114: 0.40463336 | AF114: 1030.053061 | AG114: 656.9883399 | AH114: 0.3677007455 | AK114: 0.4206359651 | AL114: 943.530994 | AM114: 570.4662724 | AN114: 0.3822427245 | AQ114: 0.3828241734 | AT114: 0.4932573971 | AU114: 563.0282725 | AV114: 189.9635509 | AW114: 0.4569877016 | AX114: 723.3237041 | AY114: 350.2589825 | BC114: 0.4932573971 | BD114: 563.0282725 | BE114: 189.9635509
X115: 10.22207402 | Y115: 0.4031084202 | Z115: 1053.975923 | AA115: 680.8369763 | AB115: 0.4033606723 | AC115: 1077.309817 | AD115: 704.1708708 | AE115: 0.4047125705 | AF115: 1029.678214 | AG115: 656.5392677 | AH115: 0.3677727261 | AK115: 0.4207183082 | AL115: 943.1704988 | AM115: 570.0315525 | AN115: 0.3823175518 | AQ115: 0.3828991145 | AT115: 0.4933539564 | AU115: 562.7586441 | AV115: 189.6196978 | AW115: 0.4570771609 | AX115: 723.0146292 | AY115: 349.8756829 | BC115: 0.4933539564 | BD115: 562.7586441 | BE115: 189.6196978
X116: 10.22407469 | Y116: 0.4031873167 | Z116: 1053.594214 | AA116: 680.3810434 | AB116: 0.4034396182 | AC116: 1076.91936 | AD116: 703.7061886 | AE116: 0.4047917809 | AF116: 1029.303486 | AG116: 656.0903152 | AH116: 0.3678447067 | AK116: 0.4208006513 | AL116: 942.8101214 | AM116: 569.5969503 | AN116: 0.3823923791 | AQ116: 0.3829740556 | AT116: 0.4934505158 | AU116: 562.4891148 | AV116: 189.2759437 | AW116: 0.4571666201 | AX116: 722.705661 | AY116: 349.49249 | BC116: 0.4934505158 | BD116: 562.4891148 | BE116: 189.2759437
X117: 10.22607536 | Y117: 0.4032662132 | Z117: 1053.212628 | AA117: 679.9252321 | AB117: 0.403518564 | AC117: 1076.529027 | AD117: 703.2416309 | AE117: 0.4048709913 | AF117: 1028.928878 | AG117: 655.6414823 | AH117: 0.3679166872 | AK117: 0.4208829944 | AL117: 942.4498616 | AM117: 569.1624658 | AN117: 0.3824672064 | AQ117: 0.3830489967 | AT117: 0.4935470751 | AU117: 562.2196845 | AV117: 188.9322887 | AW117: 0.4572560794 | AX117: 722.3967995 | AY117: 349.1094037 | BC117: 0.4935470751 | BD117: 562.2196845 | BE117: 188.9322887
X118: 10.22807603 | Y118: 0.4033451097 | Z118: 1052.831163 | AA118: 679.4695423 | AB118: 0.4035975099 | AC118: 1076.138818 | AD118: 702.7771975 | AE118: 0.4049502018 | AF118: 1028.55439 | AG118: 655.192769 | AH118: 0.3679886678 | AK118: 0.4209653375 | AL118: 942.0897194 | AM118: 568.7280988 | AN118: 0.3825420337 | AQ118: 0.3831239378 | AT118: 0.4936436345 | AU118: 561.9503531 | AV118: 188.5887325 | AW118: 0.4573455386 | AX118: 722.0880445 | AY118: 348.726424 | BC118: 0.4936436345 | BD118: 561.9503531 | BE118: 188.5887325
X119: 10.23007669 | Y119: 0.4034240062 | Z119: 1052.449819 | AA119: 679.013974 | AB119: 0.4036764557 | AC119: 1075.748734 | AD119: 702.3128884 | AE119: 0.4050294122 | AF119: 1028.18002 | AG119: 654.7441752 | AH119: 0.3680606484 | AK119: 0.4210476806 | AL119: 941.7296947 | AM119: 568.2938494 | AN119: 0.382616861 | AQ119: 0.3831988789 | AT119: 0.4937401939 | AU119: 561.6811206 | AV119: 188.2452753 | AW119: 0.4574349979 | AX119: 721.7793961 | AY119: 348.3435508 | BC119: 0.4937401939 | BD119: 561.6811206 | BE119: 188.2452753
X120: 10.23207736 | Y120: 0.4035029026 | Z120: 1052.068597 | AA120: 678.5585271 | AB120: 0.4037554016 | AC120: 1075.358774 | AD120: 701.8487036 | AE120: 0.4051086227 | AF120: 1027.805771 | AG120: 654.2957009 | AH120: 0.368132629 | AK120: 0.4211300237 | AL120: 941.3697875 | AM120: 567.8597175 | AN120: 0.3826916883 | AQ120: 0.3832738201 | AT120: 0.4938367532 | AU120: 561.411987 | AV120: 187.901917 | AW120: 0.4575244572 | AX120: 721.4708542 | AY120: 347.9607841 | BC120: 0.4938367532 | BD120: 561.411987 | BE120: 187.901917
X121: 10.23407803 | Y121: 0.4035817991 | Z121: 1051.687496 | AA121: 678.1032016 | AB121: 0.4038343474 | AC121: 1074.968938 | AD121: 701.3846431 | AE121: 0.4051878331 | AF121: 1027.431641 | AG121: 653.8473461 | AH121: 0.3682046095 | AK121: 0.4212123668 | AL121: 941.0099978 | AM121: 567.4257031 | AN121: 0.3827665156 | AQ121: 0.3833487612 | AT121: 0.4939333126 | AU121: 561.1429523 | AV121: 187.5586575 | AW121: 0.4576139164 | AX121: 721.1624187 | AY121: 347.5781239 | BC121: 0.4939333126 | BD121: 561.1429523 | BE121: 187.5586575
X122: 10.23607869 | Y122: 0.4036606956 | Z122: 1051.306517 | AA122: 677.6479975 | AB122: 0.4039132933 | AC122: 1074.579226 | AD122: 700.9207067 | AE122: 0.4052670436 | AF122: 1027.05763 | AG122: 653.3991106 | AH122: 0.3682765901 | AK122: 0.4212947099 | AL122: 940.6503255 | AM122: 566.991806 | AN122: 0.3828413428 | AQ122: 0.3834237023 | AT122: 0.4940298719 | AU122: 560.8740164 | AV122: 187.2154969 | AW122: 0.4577033757 | AX122: 720.8540896 | AY122: 347.1955701 | BC122: 0.4940298719 | BD122: 560.8740164 | BE122: 187.2154969
X123: 10.23807936 | Y123: 0.4037395921 | Z123: 1050.925659 | AA123: 677.1929147 | AB123: 0.4039922391 | AC123: 1074.189639 | AD123: 700.4568944 | AE123: 0.405346254 | AF123: 1026.683739 | AG123: 652.9509945 | AH123: 0.3683485707 | AK123: 0.421377053 | AL123: 940.2907706 | AM123: 566.5580263 | AN123: 0.3829161701 | AQ123: 0.3834986434 | AT123: 0.4941264313 | AU123: 560.6051792 | AV123: 186.8724349 | AW123: 0.4577928349 | AX123: 720.5458669 | AY123: 346.8131227 | BC123: 0.4941264313 | BD123: 560.6051792 | BE123: 186.8724349
X124: 10.24008003 | Y124: 0.4038184886 | Z124: 1050.544922 | AA124: 676.7379531 | AB124: 0.404071185 | AC124: 1073.800175 | AD124: 699.9932062 | AE124: 0.4054254645 | AF124: 1026.309967 | AG124: 652.5029976 | AH124: 0.3684205512 | AK124: 0.421459396 | AL124: 939.9313329 | AM124: 566.124364 | AN124: 0.3829909974 | AQ124: 0.3835735845 | AT124: 0.4942229907 | AU124: 560.3364407 | AV124: 186.5294718 | AW124: 0.4578822942 | AX124: 720.2377506 | AY124: 346.4307816 | BC124: 0.4942229907 | BD124: 560.3364407 | BE124: 186.5294718
X125: 10.24208069 | Y125: 0.4038973851 | Z125: 1050.164306 | AA125: 676.2831127 | AB125: 0.4041501309 | AC125: 1073.410836 | AD125: 699.529642 | AE125: 0.4055046749 | AF125: 1025.936314 | AG125: 652.05512 | AH125: 0.3684925318 | AK125: 0.4215417391 | AL125: 939.5720126 | AM125: 565.6908188 | AN125: 0.3830658247 | AQ125: 0.3836485256 | AT125: 0.49431955 | AU125: 560.067801 | AV125: 186.1866073 | AW125: 0.4579717534 | AX125: 719.9297405 | AY125: 346.0485468 | BC125: 0.49431955 | BD125: 560.067801 | BE125: 186.1866073
X126: 10.24408136 | Y126: 0.4039762815 | Z126: 1049.783812 | AA126: 675.8283935 | AB126: 0.4042290767 | AC126: 1073.02162 | AD126: 699.0662017 | AE126: 0.4055838854 | AF126: 1025.56278 | AG126: 651.6073616 | AH126: 0.3685645124 | AK126: 0.4216240822 | AL126: 939.2128094 | AM126: 565.257391 | AN126: 0.383140652 | AQ126: 0.3837234667 | AT126: 0.4944161094 | AU126: 559.7992599 | AV126: 185.8438414 | AW126: 0.4580612127 | AX126: 719.6218367 | AY126: 345.6664182 | BC126: 0.4944161094 | BD126: 559.7992599 | BE126: 185.8438414
X127: 10.24608203 | Y127: 0.404055178 | Z127: 1049.403439 | AA127: 675.3737954 | AB127: 0.4043080226 | AC127: 1072.632529 | AD127: 698.6028854 | AE127: 0.4056630958 | AF127: 1025.189366 | AG127: 651.1597223 | AH127: 0.3686364929 | AK127: 0.4217064253 | AL127: 938.8537235 | AM127: 564.8240802 | AN127: 0.3832154793 | AQ127: 0.3837984078 | AT127: 0.4945126687 | AU127: 559.5308174 | AV127: 185.5011742 | AW127: 0.458150672 | AX127: 719.314039 | AY127: 345.2843958 | BC127: 0.4945126687 | BD127: 559.5308174 | BE127: 185.5011742
X128: 10.24808269 | Y128: 0.4041340745 | Z128: 1049.023186 | AA128: 674.9193183 | AB128: 0.4043869684 | AC128: 1072.243561 | AD128: 698.139693 | AE128: 0.4057423062 | AF128: 1024.81607 | AG128: 650.7122021 | AH128: 0.3687084735 | AK128: 0.4217887684 | AL128: 938.4947546 | AM128: 564.3908866 | AN128: 0.3832903066 | AQ128: 0.3838733489 | AT128: 0.4946092281 | AU128: 559.2624735 | AV128: 185.1586055 | AW128: 0.4582401312 | AX128: 719.0063476 | AY128: 344.9024796 | BC128: 0.4946092281 | BD128: 559.2624735 | BE128: 185.1586055
X129: 10.25008336 | Y129: 0.404212971 | Z129: 1048.643055 | AA129: 674.4649622 | AB129: 0.4044659143 | AC129: 1071.854717 | AD129: 697.6766243 | AE129: 0.4058215167 | AF129: 1024.442894 | AG129: 650.264801 | AH129: 0.3687804541 | AK129: 0.4218711115 | AL129: 938.1359028 | AM129: 563.9578101 | AN129: 0.3833651338 | AQ129: 0.38394829 | AT129: 0.4947057875 | AU129: 558.9942281 | AV129: 184.8161354 | AW129: 0.4583295905 | AX129: 718.6987622 | AY129: 344.5206695 | BC129: 0.4947057875 | BD129: 558.9942281 | BE129: 184.8161354
X130: 10.25208403 | Y130: 0.4042918675 | Z130: 1048.263044 | AA130: 674.0107271 | AB130: 0.4045448601 | AC130: 1071.465997 | AD130: 697.2136795 | AE130: 0.4059007271 | AF130: 1024.069836 | AG130: 649.8175188 | AH130: 0.3688524347 | AK130: 0.4219534546 | AL130: 937.7771681 | AM130: 563.5248506 | AN130: 0.3834399611 | AQ130: 0.3840232312 | AT130: 0.4948023468 | AU130: 558.7260812 | AV130: 184.4737638 | AW130: 0.4584190497 | AX130: 718.391283 | AY130: 344.1389655 | BC130: 0.4948023468 | BD130: 558.7260812 | BE130: 184.4737638
X131: 10.25408469 | Y131: 0.4043707639 | Z131: 1047.883155 | AA131: 673.5566128 | AB131: 0.404623806 | AC131: 1071.0774 | AD131: 696.7508583 | AE131: 0.4059799376 | AF131: 1023.696898 | AG131: 649.3703557 | AH131: 0.3689244152 | AK131: 0.4220357977 | AL131: 937.4185503 | AM131: 563.0920081 | AN131: 0.3835147884 | AQ131: 0.3840981723 | AT131: 0.4948989062 | AU131: 558.4580328 | AV131: 184.1314906 | AW131: 0.458508509 | AX131: 718.0839097 | AY131: 343.7573676 | BC131: 0.4948989062 | BD131: 558.4580328 | BE131: 184.1314906
X132: 10.25608536 | Y132: =IFERROR(IF($X132/(1-INDEX($S$4:$S$13,QUOTIENT(COLUMN(),3)-7,)^1.5)/$B$32/Y$2<=1,$X132/(1-INDEX($S$4:$S$13,QUOTIENT(COLUMN(),3)-7,)^1.5)/$B$32/Y$2,NA()),NA()) -> 0.4044496604 | Z132: =IFERROR(IF(OR($X132<$B$3,$X132>$B$4),NA(),IF(OR(1/$X132*Z$2*$B$31*INDEX($T$4:$T$13,QUOTIENT(COLUMN(),3)-7,)*Y132^$B$33*(1-Y132)^$B$34<$B$5,1/$X132*Z$2*$B$31*INDEX($T$4:$T$13,QUOTIENT(COLUMN(),3)-7,)*Y132^$B$33*(1-Y132)^$B$34>$B$6),NA(),1/$X132*Z$2*$B$31*INDEX($T$4:$T$13,QUOTIENT(COLUMN(),3)-7,)*Y132^$B$33*(1-Y132)^$B$34)),NA()) -> 1047.503386 | AA132: =IFERROR(ABS(Z132-($B$37*$X132+$B$38)),"") -> 673.1026194 | AB132: =IFERROR(IF($X132/(1-INDEX($S$4:$S$13,QUOTIENT(COLUMN(),3)-7,)^1.5)/$B$32/AB$2<=1,$X132/(1-INDEX($S$4:$S$13,QUOTIENT(COLUMN(),3)-7,)^1.5)/$B$32/AB$2,NA()),NA()) -> 0.4047027518 | AC132: =IFERROR(IF(OR($X132<$B$3,$X132>$B$4),NA(),IF(OR(1/$X132*AC$2*$B$31*INDEX($T$4:$T$13,QUOTIENT(COLUMN(),3)-7,)*AB132^$B$33*(1-AB132)^$B$34<$B$5,1/$X132*AC$2*$B$31*INDEX($T$4:$T$13,QUOTIENT(COLUMN(),3)-7,)*AB132^$B$33*(1-AB132)^$B$34>$B$6),NA(),1/$X132*AC$2*$B$31*INDEX($T$4:$T$13,QUOTIENT(COLUMN(),3)-7,)*AB132^$B$33*(1-AB132)^$B$34)),NA()) -> 1070.688928 | AD132: =IFERROR(ABS(AC132-($B$37*$X132+$B$38)),"") -> 696.2881608 | AE132: =IFERROR(IF($X132/(1-INDEX($S$4:$S$13,QUOTIENT(COLUMN(),3)-7,)^1.5)/$B$32/AE$2<=1,$X132/(1-INDEX($S$4:$S$13,QUOTIENT(COLUMN(),3)-7,)^1.5)/$B$32/AE$2,NA()),NA()) -> 0.406059148 | AF132: =IFERROR(IF(OR($X132<$B$3,$X132>$B$4),NA(),IF(OR(1/$X132*AF$2*$B$31*INDEX($T$4:$T$13,QUOTIENT(COLUMN(),3)-7,)*AE132^$B$33*(1-AE132)^$B$34<$B$5,1/$X132*AF$2*$B$31*INDEX($T$4:$T$13,QUOTIENT(COLUMN(),3)-7,)*AE132^$B$33*(1-AE132)^$B$34>$B$6),NA(),1/$X132*AF$2*$B$31*INDEX($T$4:$T$13,QUOTIENT(COLUMN(),3)-7,)*AE132^$B$33*(1-AE132)^$B$34)),NA()) -> 1023.324078 | AG132: =IFERROR(ABS(AF132-($B$37*$X132+$B$38)),"") -> 648.9233114 | AH132: =IFERROR(IF($X132/(1-INDEX($S$4:$S$13,QUOTIENT(COLUMN(),3)-7,)^1.5)/$B$32/AH$2<=1,$X132/(1-INDEX($S$4:$S$13,QUOTIENT(COLUMN(),3)-7,)^1.5)/$B$32/AH$2,NA()),NA()) -> 0.3689963958 | AI132: =IFERROR(IF(OR($X132<$B$3,$X132>$B$4),NA(),IF(OR(1/$X132*AI$2*$B$31*INDEX($T$4:$T$13,QUOTIENT(COLUMN(),3)-7,)*AH132^$B$33*(1-AH132)^$B$34<$B$5,1/$X132*AI$2*$B$31*INDEX($T$4:$T$13,QUOTIENT(COLUMN(),3)-7,)*AH132^$B$33*(1-AH132)^$B$34>$B$6),NA(),1/$X132*AI$2*$B$31*INDEX($T$4:$T$13,QUOTIENT(COLUMN(),3)-7,)*AH132^$B$33*(1-AH132)^$B$34)),NA()) ->  | AJ132: =IFERROR(ABS(AI132-($B$37*$X132+$B$38)),"") ->  | AK132: =IFERROR(IF($X132/(1-INDEX($S$4:$S$13,QUOTIENT(COLUMN(),3)-7,)^1.5)/$B$32/AK$2<=1,$X132/(1-INDEX($S$4:$S$13,QUOTIENT(COLUMN(),3)-7,)^1.5)/$B$32/AK$2,NA()),NA()) -> 0.4221181408 | AL132: =IFERROR(IF(OR($X132<$B$3,$X132>$B$4),NA(),IF(OR(1/$X132*AL$2*$B$31*INDEX($T$4:$T$13,QUOTIENT(COLUMN(),3)-7,)*AK132^$B$33*(1-AK132)^$B$34<$B$5,1/$X132*AL$2*$B$31*INDEX($T$4:$T$13,QUOTIENT(COLUMN(),3)-7,)*AK132^$B$33*(1-AK132)^$B$34>$B$6),NA(),1/$X132*AL$2*$B$31*INDEX($T$4:$T$13,QUOTIENT(COLUMN(),3)-7,)*AK132^$B$33*(1-AK132)^$B$34)),NA()) -> 937.0600495 | AM132: =IFERROR(ABS(AL132-($B$37*$X132+$B$38)),"") -> 562.6592826 | AN132: =IFERROR(IF($X132/(1-INDEX($S$4:$S$13,QUOTIENT(COLUMN(),3)-7,)^1.5)/$B$32/AN$2<=1,$X132/(1-INDEX($S$4:$S$13,QUOTIENT(COLUMN(),3)-7,)^1.5)/$B$32/AN$2,NA()),NA()) -> 0.3835896157 | AO132: =IFERROR(IF(OR($X132<$B$3,$X132>$B$4),NA(),IF(OR(1/$X132*AO$2*$B$31*INDEX($T$4:$T$13,QUOTIENT(COLUMN(),3)-7,)*AN132^$B$33*(1-AN132)^$B$34<$B$5,1/$X132*AO$2*$B$31*INDEX($T$4:$T$13,QUOTIENT(COLUMN(),3)-7,)*AN132^$B$33*(1-AN132)^$B$34>$B$6),NA(),1/$X132*AO$2*$B$31*INDEX($T$4:$T$13,QUOTIENT(COLUMN(),3)-7,)*AN132^$B$33*(1-AN132)^$B$34)),NA()) ->  | AP132: =IFERROR(ABS(AO132-($B$37*$X132+$B$38)),"") ->  | AQ132: =IFERROR(IF($X132/(1-INDEX($S$4:$S$13,QUOTIENT(COLUMN(),3)-7,)^1.5)/$B$32/AQ$2<=1,$X132/(1-INDEX($S$4:$S$13,QUOTIENT(COLUMN(),3)-7,)^1.5)/$B$32/AQ$2,NA()),NA()) -> 0.3841731134 | AR132: =IFERROR(IF(OR($X132<$B$3,$X132>$B$4),NA(),IF(OR(1/$X132*AR$2*$B$31*INDEX($T$4:$T$13,QUOTIENT(COLUMN(),3)-7,)*AQ132^$B$33*(1-AQ132)^$B$34<$B$5,1/$X132*AR$2*$B$31*INDEX($T$4:$T$13,QUOTIENT(COLUMN(),3)-7,)*AQ132^$B$33*(1-AQ132)^$B$34>$B$6),NA(),1/$X132*AR$2*$B$31*INDEX($T$4:$T$13,QUOTIENT(COLUMN(),3)-7,)*AQ132^$B$33*(1-AQ132)^$B$34)),NA()) ->  | AS132: =IFERROR(ABS(AR132-($B$37*$X132+$B$38)),"") ->  | AT132: =IFERROR(IF($X132/(1-INDEX($S$4:$S$13,QUOTIENT(COLUMN(),3)-7,)^1.5)/$B$32/AT$2<=1,$X132/(1-INDEX($S$4:$S$13,QUOTIENT(COLUMN(),3)-7,)^1.5)/$B$32/AT$2,NA()),NA()) -> 0.4949954655 | AU132: =IFERROR(IF(OR($X132<$B$3,$X132>$B$4),NA(),IF(OR(1/$X132*AU$2*$B$31*INDEX($T$4:$T$13,QUOTIENT(COLUMN(),3)-7,)*AT132^$B$33*(1-AT132)^$B$34<$B$5,1/$X132*AU$2*$B$31*INDEX($T$4:$T$13,QUOTIENT(COLUMN(),3)-7,)*AT132^$B$33*(1-AT132)^$B$34>$B$6),NA(),1/$X132*AU$2*$B$31*INDEX($T$4:$T$13,QUOTIENT(COLUMN(),3)-7,)*AT132^$B$33*(1-AT132)^$B$34)),NA()) -> 558.1900828 | AV132: =IFERROR(ABS(AU132-($B$37*$X132+$B$38)),"") -> 183.7893159 | AW132: =IFERROR(IF($X132/(1-INDEX($S$4:$S$13,QUOTIENT(COLUMN(),3)-7,)^1.5)/$B$32/AW$2<=1,$X132/(1-INDEX($S$4:$S$13,QUOTIENT(COLUMN(),3)-7,)^1.5)/$B$32/AW$2,NA()),NA()) -> 0.4585979682 | AX132: =IFERROR(IF(OR($X132<$B$3,$X132>$B$4),NA(),IF(OR(1/$X132*AX$2*$B$31*INDEX($T$4:$T$13,QUOTIENT(COLUMN(),3)-7,)*AW132^$B$33*(1-AW132)^$B$34<$B$5,1/$X132*AX$2*$B$31*INDEX($T$4:$T$13,QUOTIENT(COLUMN(),3)-7,)*AW132^$B$33*(1-AW132)^$B$34>$B$6),NA(),1/$X132*AX$2*$B$31*INDEX($T$4:$T$13,QUOTIENT(COLUMN(),3)-7,)*AW132^$B$33*(1-AW132)^$B$34)),NA()) -> 717.7766425 | AY132: =IFERROR(ABS(AX132-($B$37*$X132+$B$38)),"") -> 343.3758756 | AZ132: =IFERROR(IF($X132/(1-INDEX($S$4:$S$13,QUOTIENT(COLUMN(),3)-7,)^1.5)/$B$32/AZ$2<=1,$X132/(1-INDEX($S$4:$S$13,QUOTIENT(COLUMN(),3)-7,)^1.5)/$B$32/AZ$2,NA()),NA()) ->  | BA132: =IFERROR(IF(OR($X132<$B$3,$X132>$B$4),NA(),IF(OR(1/$X132*BA$2*$B$31*INDEX($T$4:$T$13,QUOTIENT(COLUMN(),3)-7,)*AZ132^$B$33*(1-AZ132)^$B$34<$B$5,1/$X132*BA$2*$B$31*INDEX($T$4:$T$13,QUOTIENT(COLUMN(),3)-7,)*AZ132^$B$33*(1-AZ132)^$B$34>$B$6),NA(),1/$X132*BA$2*$B$31*INDEX($T$4:$T$13,QUOTIENT(COLUMN(),3)-7,)*AZ132^$B$33*(1-AZ132)^$B$34)),NA()) ->  | BB132: =IFERROR(ABS(BA132-($B$37*$X132+$B$38)),"") ->  | BC132: 0.4949954655 | BD132: 558.1900828 | BE132: 183.7893159
X133: 10.25808603 | Y133: 0.4045285569 | Z133: 1047.123739 | AA133: 672.6487468 | AB133: 0.4047816977 | AC133: 1070.300579 | AD133: 695.8255869 | AE133: 0.4061383585 | AF133: 1022.951378 | AG133: 648.4763859 | AH133: 0.3690683764 | AK133: 0.4222004839 | AL133: 936.7016655 | AM133: 562.2266739 | AN133: 0.383664443 | AQ133: 0.3842480545 | AT133: 0.4950920249 | AU133: 557.9222312 | AV133: 183.4472395 | AW133: 0.4586874275 | AX133: 717.4694812 | AY133: 342.9944895 | BC133: =IFERROR(IF($X133/(1-$S$14^1.5)/$B$32/BC$2<=1,$X133/(1-$S$14^1.5)/$B$32/BC$2,NA()),NA()) -> 0.4950920249 | BD133: =IFERROR(IF(OR($X133<$B$3,$X133>$B$4),NA(),IF(OR(1/$X133*BD$2*$B$31*$T$14*BC133^$B$33*(1-BC133)^$B$34<$B$5,1/$X133*BD$2*$B$31*$T$14*BC133^$B$33*(1-BC133)^$B$34>$B$6),NA(),1/$X133*BD$2*$B$31*$T$14*BC133^$B$33*(1-BC133)^$B$34)),NA()) -> 557.9222312 | BE133: =IFERROR(ABS(BD133-($B$37*$X133+$B$38)),"") -> 183.4472395 | BF133: =IF($B$9=$C$9,BD133,NA()) -> 
X134: =X133+$X$2 -> 10.2600867 | Y134: 0.4046074534 | Z134: 1046.744211 | AA134: 672.194995 | AB134: 0.4048606435 | AC134: 1069.912353 | AD134: 695.3631366 | AE134: 0.4062175689 | AF134: 1022.578796 | AG134: 648.0295793 | AH134: 0.3691403569 | AK134: 0.422282827 | AL134: 936.3433984 | AM134: 561.794182 | AN134: 0.3837392703 | AQ134: 0.3843229956 | AT134: 0.4951885843 | AU134: 557.6544779 | AV134: 183.1052615 | AW134: 0.4587768868 | AX134: 717.1624258 | AY134: 342.6132094 | BC134: 0.4951885843 | BD134: 557.6544779 | BE134: 183.1052615
X135: 10.26208736 | Y135: 0.4046863499 | Z135: 1046.364805 | AA135: 671.7413639 | AB135: 0.4049395894 | AC135: 1069.524251 | AD135: 694.9008098 | AE135: 0.4062967794 | AF135: 1022.206333 | AG135: 647.5828914 | AH135: 0.3692123375 | AK135: 0.4223651701 | AL135: 935.9852481 | AM135: 561.361807 | AN135: 0.3838140976 | AQ135: 0.3843979367 | AT135: 0.4952851436 | AU135: 557.3868229 | AV135: 182.7633818 | AW135: 0.458866346 | AX135: 716.8554763 | AY135: 342.2320352 | BC135: 0.4952851436 | BD135: 557.3868229 | BE135: 182.7633818
X136: 10.26408803 | Y136: 0.4047652463 | Z136: 1045.985519 | AA136: 671.2878534 | AB136: 0.4050185352 | AC136: 1069.136272 | AD136: 694.4386065 | AE136: 0.4063759898 | AF136: 1021.833988 | AG136: 647.1363222 | AH136: 0.3692843181 | AK136: 0.4224475132 | AL136: 935.6272146 | AM136: 560.9295487 | AN136: 0.3838889249 | AQ136: 0.3844728778 | AT136: 0.495381703 | AU136: 557.1192662 | AV136: 182.4216003 | AW136: 0.4589558053 | AX136: 716.5486326 | AY136: 341.8509667 | BC136: 0.495381703 | BD136: 557.1192662 | BE136: 182.4216003
X137: 10.2660887 | Y137: 0.4048441428 | Z137: 1045.606354 | AA137: 670.8344636 | AB137: 0.4050974811 | AC137: 1068.748417 | AD137: 693.9765265 | AE137: 0.4064552003 | AF137: 1021.461762 | AG137: 646.6898717 | AH137: 0.3693562986 | AK137: 0.4225298562 | AL137: 935.2692977 | AM137: 560.4974071 | AN137: 0.3839637521 | AQ137: 0.3845478189 | AT137: 0.4954782623 | AU137: 556.8518078 | AV137: 182.0799171 | AW137: 0.4590452645 | AX137: 716.2418947 | AY137: 341.4700041 | BC137: 0.4954782623 | BD137: 556.8518078 | BE137: 182.0799171
X138: 10.26808936 | Y138: 0.4049230393 | Z138: 1045.22731 | AA138: 670.3811943 | AB138: 0.4051764269 | AC138: 1068.360685 | AD138: 693.51457 | AE138: 0.4065344107 | AF138: 1021.089655 | AG138: 646.2435398 | AH138: 0.3694282792 | AK138: 0.4226121993 | AL138: 934.9114975 | AM138: 560.0653821 | AN138: 0.3840385794 | AQ138: 0.38462276 | AT138: 0.4955748217 | AU138: 556.5844475 | AV138: 181.7383321 | AW138: 0.4591347238 | AX138: 715.9352626 | AY138: 341.0891472 | BC138: 0.4955748217 | BD138: 556.5844475 | BE138: 181.7383321
X139: 10.27009003 | Y139: 0.4050019358 | Z139: 1044.848386 | AA139: 669.9280455 | AB139: 0.4052553728 | AC139: 1067.973077 | AD139: 693.0527367 | AE139: 0.4066136212 | AF139: 1020.717667 | AG139: 645.7973264 | AH139: 0.3695002598 | AK139: 0.4226945424 | AL139: 934.5538139 | AM139: 559.6334738 | AN139: 0.3841134067 | AQ139: 0.3846977012 | AT139: 0.4956713811 | AU139: 556.3171854 | AV139: 181.3968453 | AW139: 0.459224183 | AX139: 715.6287361 | AY139: 340.708396 | BC139: 0.4956713811 | BD139: 556.3171854 | BE139: 181.3968453
X140: 10.2720907 | Y140: 0.4050808323 | Z140: 1044.469582 | AA140: 669.4750171 | AB140: 0.4053343186 | AC140: 1067.585592 | AD140: 692.5910267 | AE140: 0.4066928316 | AF140: 1020.345796 | AG140: 645.3512316 | AH140: 0.3695722404 | AK140: 0.4227768855 | AL140: 934.1962469 | AM140: 559.201682 | AN140: 0.384188234 | AQ140: 0.3847726423 | AT140: 0.4957679404 | AU140: 556.0500214 | AV140: 181.0554565 | AW140: 0.4593136423 | AX140: 715.3223153 | AY140: 340.3277505 | BC140: 0.4957679404 | BD140: 556.0500214 | BE140: 181.0554565
X141: 10.27409136 | Y141: 0.4051597287 | Z141: 1044.090899 | AA141: 669.0221092 | AB141: 0.4054132645 | AC141: 1067.19823 | AD141: 692.12944 | AE141: 0.406772042 | AF141: 1019.974045 | AG141: 644.9052552 | AH141: 0.3696442209 | AK141: 0.4228592286 | AL141: 933.8387963 | AM141: 558.7700067 | AN141: 0.3842630613 | AQ141: 0.3848475834 | AT141: 0.4958644998 | AU141: 555.7829555 | AV141: 180.7141659 | AW141: 0.4594031015 | AX141: 715.0160002 | AY141: 339.9472106 | BC141: 0.4958644998 | BD141: 555.7829555 | BE141: 180.7141659
X142: 10.27609203 | Y142: 0.4052386252 | Z142: 1043.712336 | AA142: 668.5693216 | AB142: 0.4054922103 | AC142: 1066.810991 | AD142: 691.6679764 | AE142: 0.4068512525 | AF142: 1019.602412 | AG142: 644.4593973 | AH142: 0.3697162015 | AK142: 0.4229415717 | AL142: 933.4814623 | AM142: 558.3384479 | AN142: 0.3843378886 | AQ142: 0.3849225245 | AT142: 0.4959610591 | AU142: 555.5159876 | AV142: 180.3729733 | AW142: 0.4594925608 | AX142: 714.7097906 | AY142: 339.5667762 | BC142: 0.4959610591 | BD142: 555.5159876 | BE142: 180.3729733
X143: 10.2780927 | Y143: 0.4053175217 | Z143: 1043.333893 | AA143: 668.1166544 | AB143: 0.4055711562 | AC143: 1066.423875 | AD143: 691.2066359 | AE143: 0.4069304629 | AF143: 1019.230897 | AG143: 644.0136577 | AH143: 0.3697881821 | AK143: 0.4230239148 | AL143: 933.1242446 | AM143: 557.9070055 | AN143: 0.3844127159 | AQ143: 0.3849974656 | AT143: 0.4960576185 | AU143: 555.2491178 | AV143: 180.0318787 | AW143: 0.4595820201 | AX143: 714.4036865 | AY143: 339.1864474 | BC143: 0.4960576185 | BD143: 555.2491178 | BE143: 180.0318787
X144: 10.28009336 | Y144: 0.4053964182 | Z144: 1042.955571 | AA144: 667.6641074 | AB144: 0.405650102 | AC144: 1066.036882 | AD144: 690.7454184 | AE144: 0.4070096734 | AF144: 1018.8595 | AG144: 643.5680365 | AH144: 0.3698601626 | AK144: 0.4231062579 | AL144: 932.7671433 | AM144: 557.4756795 | AN144: 0.3844875432 | AQ144: 0.3850724067 | AT144: 0.4961541779 | AU144: 554.9823459 | AV144: 179.690882 | AW144: 0.4596714793 | AX144: 714.0976879 | AY144: 338.8062241 | BC144: 0.4961541779 | BD144: 554.9823459 | BE144: 179.690882
X145: 10.28209403 | Y145: 0.4054753147 | Z145: 1042.577369 | AA145: 667.2116806 | AB145: 0.4057290479 | AC145: 1065.650013 | AD145: 690.284324 | AE145: 0.4070888838 | AF145: 1018.488222 | AG145: 643.1225335 | AH145: 0.3699321432 | AK145: 0.423188601 | AL145: 932.4101584 | AM145: 557.0444698 | AN145: 0.3845623704 | AQ145: 0.3851473478 | AT145: 0.4962507372 | AU145: 554.7156719 | AV145: 179.3499833 | AW145: 0.4597609386 | AX145: 713.7917948 | AY145: 338.4261063 | BC145: 0.4962507372 | BD145: 554.7156719 | BE145: 179.3499833
X146: 10.2840947 | Y146: 0.4055542112 | Z146: 1042.199287 | AA146: 666.759374 | AB146: 0.4058079937 | AC146: 1065.263266 | AD146: 689.8233525 | AE146: 0.4071680943 | AF146: 1018.117062 | AG146: 642.6771487 | AH146: 0.3700041238 | AK146: 0.4232709441 | AL146: 932.0532897 | AM146: 556.6133764 | AN146: 0.3846371977 | AQ146: 0.3852222889 | AT146: 0.4963472966 | AU146: 554.4490958 | AV146: 179.0091825 | AW146: 0.4598503978 | AX146: 713.4860071 | AY146: 338.0460938 | BC146: 0.4963472966 | BD146: 554.4490958 | BE146: 179.0091825
X147: 10.28609537 | Y147: 0.4056331076 | Z147: 1041.821326 | AA147: 666.3071875 | AB147: 0.4058869396 | AC147: 1064.876642 | AD147: 689.362504 | AE147: 0.4072473047 | AF147: 1017.74602 | AG147: 642.2318822 | AH147: 0.3700761043 | AK147: 0.4233532872 | AL147: 931.6965373 | AM147: 556.1823992 | AN147: 0.384712025 | AQ147: 0.38529723 | AT147: 0.4964438559 | AU147: 554.1826176 | AV147: 178.6684796 | AW147: 0.4599398571 | AX147: 713.1803248 | AY147: 337.6661867 | BC147: 0.4964438559 | BD147: 554.1826176 | BE147: 178.6684796
X148: 10.28809603 | Y148: 0.4057120041 | Z148: 1041.443484 | AA148: 665.8551211 | AB148: 0.4059658854 | AC148: 1064.490141 | AD148: 688.9017783 | AE148: 0.4073265152 | AF148: 1017.375097 | AG148: 641.7867337 | AH148: 0.3701480849 | AK148: 0.4234356303 | AL148: 931.339901 | AM148: 555.7515382 | AN148: 0.3847868523 | AQ148: 0.3853721711 | AT148: 0.4965404153 | AU148: 553.9162372 | AV148: 178.3278744 | AW148: 0.4600293163 | AX148: 712.8747478 | AY148: 337.286385 | BC148: 0.4965404153 | BD148: 553.9162372 | BE148: 178.3278744
X149: 10.2900967 | Y149: 0.4057909006 | Z149: 1041.065762 | AA149: 665.4031747 | AB149: 0.4060448313 | AC149: 1064.103763 | AD149: 688.4411754 | AE149: 0.4074057256 | AF149: 1017.004291 | AG149: 641.3417034 | AH149: 0.3702200655 | AK149: 0.4235179734 | AL149: 930.9833809 | AM149: 555.3207934 | AN149: 0.3848616796 | AQ149: 0.3854471123 | AT149: 0.4966369747 | AU149: 553.6499546 | AV149: 177.9873671 | AW149: 0.4601187756 | AX149: 712.5692761 | AY149: 336.9066885 | BC149: 0.4966369747 | BD149: 553.6499546 | BE149: 177.9873671
X150: 10.29209737 | Y150: 0.4058697971 | Z150: 1040.688161 | AA150: 664.9513483 | AB150: 0.4061237771 | AC150: 1063.717508 | AD150: 687.9806953 | AE150: 0.4074849361 | AF150: 1016.633603 | AG150: 640.896791 | AH150: 0.3702920461 | AK150: 0.4236003165 | AL150: 930.6269769 | AM150: 554.8901646 | AN150: 0.3849365069 | AQ150: 0.3855220534 | AT150: 0.496733534 | AU150: 553.3837697 | AV150: 177.6469574 | AW150: 0.4602082349 | AX150: 712.2639096 | AY150: 336.5270973 | BC150: 0.496733534 | BD150: 553.3837697 | BE150: 177.6469574
X151: 10.29409803 | Y151: 0.4059486936 | Z151: 1040.310679 | AA151: 664.4996418 | AB151: 0.406202723 | AC151: 1063.331375 | AD151: 687.520338 | AE151: 0.4075641465 | AF151: 1016.263034 | AG151: 640.4519967 | AH151: 0.3703640266 | AK151: 0.4236826595 | AL151: 930.2706889 | AM151: 554.4596519 | AN151: 0.3850113342 | AQ151: 0.3855969945 | AT151: 0.4968300934 | AU151: 553.1176825 | AV151: 177.3066455 | AW151: 0.4602976941 | AX151: 711.9586483 | AY151: 336.1476113 | BC151: 0.4968300934 | BD151: 553.1176825 | BE151: 177.3066455
X152: 10.2960987 | Y152: 0.40602759 | Z152: 1039.933317 | AA152: 664.0480552 | AB152: 0.4062816689 | AC152: 1062.945365 | AD152: 687.0601032 | AE152: 0.4076433569 | AF152: 1015.892582 | AG152: 640.0073203 | AH152: 0.3704360072 | AK152: 0.4237650026 | AL152: 929.914517 | AM152: 554.0292552 | AN152: 0.3850861615 | AQ152: 0.3856719356 | AT152: 0.4969266527 | AU152: 552.851693 | AV152: 176.9664313 | AW152: 0.4603871534 | AX152: 711.6534922 | AY152: 335.7682305 | BC152: 0.4969266527 | BD152: 552.851693 | BE152: 176.9664313
X153: 10.29809937 | Y153: 0.4061064865 | Z153: 1039.556075 | AA153: 663.5965884 | AB153: 0.4063606147 | AC153: 1062.559478 | AD153: 686.5999911 | AE153: 0.4077225674 | AF153: 1015.522248 | AG153: 639.5627618 | AH153: 0.3705079878 | AK153: 0.4238473457 | AL153: 929.5584609 | AM153: 553.5989744 | AN153: 0.3851609887 | AQ153: 0.3857468767 | AT153: 0.4970232121 | AU153: 552.5858011 | AV153: 176.6263146 | AW153: 0.4604766126 | AX153: 711.3484412 | AY153: 335.3889548 | BC153: 0.4970232121 | BD153: 552.5858011 | BE153: 176.6263146
X154: 10.30010003 | Y154: 0.406185383 | Z154: 1039.178953 | AA154: 663.1452414 | AB154: 0.4064395606 | AC154: 1062.173713 | AD154: 686.1400016 | AE154: 0.4078017778 | AF154: 1015.152032 | AG154: 639.1183211 | AH154: 0.3705799683 | AK154: 0.4239296888 | AL154: 929.2025208 | AM154: 553.1688096 | AN154: 0.385235816 | AQ154: 0.3858218178 | AT154: 0.4971197714 | AU154: 552.3200069 | AV154: 176.2862956 | AW154: 0.4605660719 | AX154: 711.0434953 | AY154: 335.0097841 | BC154: 0.4971197714 | BD154: 552.3200069 | BE154: 176.2862956
X155: 10.3021007 | Y155: 0.4062642795 | Z155: 1038.80195 | AA155: 662.6940141 | AB155: 0.4065185064 | AC155: 1061.788071 | AD155: 685.6801346 | AE155: 0.4078809883 | AF155: 1014.781934 | AG155: 638.6739983 | AH155: 0.3706519489 | AK155: 0.4240120319 | AL155: 928.8466966 | AM155: 552.7387606 | AN155: 0.3853106433 | AQ155: 0.3858967589 | AT155: 0.4972163308 | AU155: 552.0543101 | AV155: 175.9463741 | AW155: 0.4606555311 | AX155: 710.7386545 | AY155: 334.6307185 | BC155: 0.4972163308 | BD155: 552.0543101 | BE155: 175.9463741
X156: 10.30410137 | Y156: 0.406343176 | Z156: 1038.425067 | AA156: 662.2429065 | AB156: 0.4065974523 | AC156: 1061.402551 | AD156: 685.22039 | AE156: 0.4079601987 | AF156: 1014.411954 | AG156: 638.2297932 | AH156: 0.3707239295 | AK156: 0.424094375 | AL156: 928.4909881 | AM156: 552.3088274 | AN156: 0.3853854706 | AQ156: 0.3859717 | AT156: 0.4973128902 | AU156: 551.7887109 | AV156: 175.6065502 | AW156: 0.4607449904 | AX156: 710.4339186 | AY156: 334.2517579 | BC156: 0.4973128902 | BD156: 551.7887109 | BE156: 175.6065502
X157: 10.30610203 | Y157: 0.4064220724 | Z157: 1038.048304 | AA157: 661.7919185 | AB157: 0.4066763981 | AC157: 1061.017153 | AD157: 684.7607679 | AE157: 0.4080394092 | AF157: 1014.042091 | AG157: 637.7857058 | AH157: 0.37079591 | AK157: 0.4241767181 | AL157: 928.1353955 | AM157: 551.87901 | AN157: 0.3854602979 | AQ157: 0.3860466411 | AT157: 0.4974094495 | AU157: 551.5232092 | AV157: 175.2668237 | AW157: 0.4608344496 | AX157: 710.1292877 | AY157: 333.8729023 | BC157: 0.4974094495 | BD157: 551.5232092 | BE157: 175.2668237
X158: 10.3081027 | Y158: 0.4065009689 | Z158: 1037.67166 | AA158: 661.3410501 | AB158: 0.406755344 | AC158: 1060.631878 | AD158: 684.3012681 | AE158: 0.4081186196 | AF158: 1013.672346 | AG158: 637.341736 | AH158: 0.3708678906 | AK158: 0.4242590612 | AL158: 927.7799185 | AM158: 551.4493083 | AN158: 0.3855351252 | AQ158: 0.3861215823 | AT158: 0.4975060089 | AU158: 551.2578049 | AV158: 174.9271947 | AW158: 0.4609239089 | AX158: 709.8247617 | AY158: 333.4941515 | BC158: 0.4975060089 | BD158: 551.2578049 | BE158: 174.9271947
X159: 10.31010337 | Y159: 0.4065798654 | Z159: 1037.295136 | AA159: 660.8903013 | AB159: 0.4068342898 | AC159: 1060.246726 | AD159: 683.8418906 | AE159: 0.4081978301 | AF159: 1013.302719 | AG159: 636.8978839 | AH159: 0.3709398712 | AK159: 0.4243414043 | AL159: 927.4245572 | AM159: 551.0197223 | AN159: 0.3856099525 | AQ159: 0.3861965234 | AT159: 0.4976025682 | AU159: 550.992498 | AV159: 174.587663 | AW159: 0.4610133682 | AX159: 709.5203406 | AY159: 333.1155057 | BC159: 0.4976025682 | BD159: 550.992498 | BE159: 174.587663
X160: 10.31210403 | Y160: 0.4066587619 | Z160: 1036.918732 | AA160: 660.4396719 | AB160: 0.4069132357 | AC160: 1059.861695 | AD160: 683.3826355 | AE160: 0.4082770405 | AF160: 1012.933209 | AG160: 636.4541493 | AH160: 0.3710118518 | AK160: 0.4244237474 | AL160: 927.0693116 | AM160: 550.5902519 | AN160: 0.3856847797 | AQ160: 0.3862714645 | AT160: 0.4976991276 | AU160: 550.7272884 | AV160: 174.2482288 | AW160: 0.4611028274 | AX160: 709.2160243 | AY160: 332.7369646 | BC160: 0.4976991276 | BD160: 550.7272884 | BE160: 174.2482288
X161: 10.3141047 | Y161: 0.4067376584 | Z161: 1036.542446 | AA161: 659.989162 | AB161: 0.4069921815 | AC161: 1059.476787 | AD161: 682.9235025 | AE161: 0.408356251 | AF161: 1012.563817 | AG161: 636.0105322 | AH161: 0.3710838323 | AK161: 0.4245060905 | AL161: 926.7141815 | AM161: 550.1608971 | AN161: 0.385759607 | AQ161: 0.3863464056 | AT161: 0.497795687 | AU161: 550.4621762 | AV161: 173.9088918 | AW161: 0.4611922867 | AX161: 708.9118128 | AY161: 332.3585284 | BC161: 0.497795687 | BD161: 550.4621762 | BE161: 173.9088918
X162: 10.31610537 | Y162: 0.4068165549 | Z162: 1036.166281 | AA162: 659.5387715 | AB162: 0.4070711274 | AC162: 1059.092001 | AD162: 682.4644917 | AE162: 0.4084354614 | AF162: 1012.194542 | AG162: 635.5670326 | AH162: 0.3711558129 | AK162: 0.4245884336 | AL162: 926.359167 | AM162: 549.7316578 | AN162: 0.3858344343 | AQ162: 0.3864213467 | AT162: 0.4978922463 | AU162: 550.1971613 | AV162: 173.5696522 | AW162: 0.4612817459 | AX162: 708.6077061 | AY162: 331.9801969 | BC162: 0.4978922463 | BD162: 550.1971613 | BE162: 173.5696522
X163: 10.31810604 | Y163: 0.4068954513 | Z163: 1035.790234 | AA163: 659.0885003 | AB163: 0.4071500732 | AC163: 1058.707337 | AD163: 682.005603 | AE163: 0.4085146718 | AF163: 1011.825384 | AG163: 635.1236504 | AH163: 0.3712277935 | AK163: 0.4246707767 | AL163: 926.004268 | AM163: 549.302534 | AN163: 0.3859092616 | AQ163: 0.3864962878 | AT163: 0.4979888057 | AU163: 549.9322437 | AV163: 173.2305098 | AW163: 0.4613712052 | AX163: 708.3037041 | AY163: 331.6019702 | BC163: 0.4979888057 | BD163: 549.9322437 | BE163: 173.2305098
X164: 10.3201067 | Y164: 0.4069743478 | Z164: 1035.414307 | AA164: 658.6383484 | AB164: 0.4072290191 | AC164: 1058.322795 | AD164: 681.5468364 | AE164: 0.4085938823 | AF164: 1011.456344 | AG164: 634.6803856 | AH164: 0.371299774 | AK164: 0.4247531198 | AL164: 925.6494844 | AM164: 548.8735257 | AN164: 0.3859840889 | AQ164: 0.3865712289 | AT164: 0.498085365 | AU164: 549.6674233 | AV164: 172.8914646 | AW164: 0.4614606644 | AX164: 707.9998067 | AY164: 331.2238481 | BC164: 0.498085365 | BD164: 549.6674233 | BE164: 172.8914646
X165: 10.32210737 | Y165: 0.4070532443 | Z165: 1035.038499 | AA165: 658.1883157 | AB165: 0.4073079649 | AC165: 1057.938375 | AD165: 681.0881918 | AE165: 0.4086730927 | AF165: 1011.087421 | AG165: 634.2372381 | AH165: 0.3713717546 | AK165: 0.4248354628 | AL165: 925.2948162 | AM165: 548.4446328 | AN165: 0.3860589162 | AQ165: 0.38664617 | AT165: 0.4981819244 | AU165: 549.4027 | AV165: 172.5525166 | AW165: 0.4615501237 | AX165: 707.696014 | AY165: 330.8458306 | BC165: 0.4981819244 | BD165: 549.4027 | BE165: 172.5525166
X166: 10.32410804 | Y166: 0.4071321408 | Z166: 1034.66281 | AA166: 657.7384023 | AB166: 0.4073869108 | AC166: 1057.554077 | AD166: 680.6296692 | AE166: 0.4087523032 | AF166: 1010.718616 | AG166: 633.7942078 | AH166: 0.3714437352 | AK166: 0.4249178059 | AL166: 924.9402633 | AM166: 548.0158552 | AN166: 0.3861337435 | AQ166: 0.3867211111 | AT166: 0.4982784838 | AU166: 549.1380739 | AV166: 172.2136658 | AW166: 0.461639583 | AX166: 707.3923259 | AY166: 330.4679177 | BC166: 0.4982784838 | BD166: 549.1380739 | BE166: 172.2136658
X167: 10.3261087 | Y167: 0.4072110373 | Z167: 1034.287241 | AA167: 657.288608 | AB167: 0.4074658566 | AC167: 1057.169901 | AD167: 680.1712686 | AE167: 0.4088315136 | AF167: 1010.349928 | AG167: 633.3512948 | AH167: 0.3715157157 | AK167: 0.425000149 | AL167: 924.5858258 | AM167: 547.5871929 | AN167: 0.3862085708 | AQ167: 0.3867960522 | AT167: 0.4983750431 | AU167: 548.8735449 | AV167: 171.874912 | AW167: 0.4617290422 | AX167: 707.0887423 | AY167: 330.0901094 | BC167: 0.4983750431 | BD167: 548.8735449 | BE167: 171.874912
X168: 10.32810937 | Y168: 0.4072899337 | Z168: 1033.91179 | AA168: 656.8389328 | AB168: 0.4075448025 | AC168: 1056.785847 | AD168: 679.7129898 | AE168: 0.4089107241 | AF168: 1009.981357 | AG168: 632.908499 | AH168: 0.3715876963 | AK168: 0.4250824921 | AL168: 924.2315035 | AM168: 547.1586459 | AN168: 0.386283398 | AQ168: 0.3868709934 | AT168: 0.4984716025 | AU168: 548.609113 | AV168: 171.5362554 | AW168: 0.4618185015 | AX168: 706.7852632 | AY168: 329.7124056 | BC168: 0.4984716025 | BD168: 548.609113 | BE168: 171.5362554
X169: 10.33011004 | Y169: 0.4073688302 | Z169: 1033.536459 | AA169: 656.3893767 | AB169: 0.4076237483 | AC169: 1056.401915 | AD169: 679.2548328 | AE169: 0.4089899345 | AF169: 1009.612903 | AG169: 632.4658203 | AH169: 0.3716596769 | AK169: 0.4251648352 | AL169: 923.8772964 | AM169: 546.7302141 | AN169: 0.3863582253 | AQ169: 0.3869459345 | AT169: 0.4985681618 | AU169: 548.3447781 | AV169: 171.1976957 | AW169: 0.4619079607 | AX169: 706.4818886 | AY169: 329.3348062 | BC169: 0.4985681618 | BD169: 548.3447781 | BE169: 171.1976957
X170: 10.3321107 | Y170: 0.4074477267 | Z170: 1033.161247 | AA170: 655.9399396 | AB170: 0.4077026942 | AC170: 1056.018105 | AD170: 678.7967976 | AE170: 0.409069145 | AF170: 1009.244566 | AG170: 632.0232588 | AH170: 0.3717316575 | AK170: 0.4252471783 | AL170: 923.5232045 | AM170: 546.3018974 | AN170: 0.3864330526 | AQ170: 0.3870208756 | AT170: 0.4986647212 | AU170: 548.0805402 | AV170: 170.8592331 | AW170: 0.46199742 | AX170: 706.1786184 | AY170: 328.9573113 | BC170: 0.4986647212 | BD170: 548.0805402 | BE170: 170.8592331
X171: 10.33411137 | Y171: 0.4075266232 | Z171: 1032.786153 | AA171: 655.4906214 | AB171: 0.40778164 | AC171: 1055.634416 | AD171: 678.3388841 | AE171: 0.4091483554 | AF171: 1008.876346 | AG171: 631.5808142 | AH171: 0.371803638 | AK171: 0.4253295214 | AL171: 923.1692278 | AM171: 545.8736959 | AN171: 0.3865078799 | AQ171: 0.3870958167 | AT171: 0.4987612806 | AU171: 547.8163992 | AV171: 170.5208674 | AW171: 0.4620868792 | AX171: 705.8754525 | AY171: 328.5799207 | BC171: 0.4987612806 | BD171: 547.8163992 | BE171: 170.5208674
X172: 10.33611204 | Y172: 0.4076055197 | Z172: 1032.411179 | AA172: 655.0414222 | AB172: 0.4078605859 | AC172: 1055.250849 | AD172: 677.8810923 | AE172: 0.4092275659 | AF172: 1008.508243 | AG172: 631.1384866 | AH172: 0.3718756186 | AK172: 0.4254118645 | AL172: 922.8153661 | AM172: 545.4456095 | AN172: 0.3865827072 | AQ172: 0.3871707578 | AT172: 0.4988578399 | AU172: 547.5523552 | AV172: 170.1825986 | AW172: 0.4621763385 | AX172: 705.5723911 | AY172: 328.2026345 | BC172: 0.4988578399 | BD172: 547.5523552 | BE172: 170.1825986
X173: 10.3381127 | Y173: 0.4076844161 | Z173: 1032.036323 | AA173: 654.5923418 | AB173: 0.4079395317 | AC173: 1054.867403 | AD173: 677.4234221 | AE173: 0.4093067763 | AF173: 1008.140257 | AG173: 630.696276 | AH173: 0.3719475992 | AK173: 0.4254942076 | AL173: 922.4616194 | AM173: 545.0176381 | AN173: 0.3866575345 | AQ173: 0.3872456989 | AT173: 0.4989543993 | AU173: 547.2884081 | AV173: 169.8444267 | AW173: 0.4622657978 | AX173: 705.2694339 | AY173: 327.8254526 | BC173: 0.4989543993 | BD173: 547.2884081 | BE173: 169.8444267
X174: 10.34011337 | Y174: 0.4077633126 | Z174: 1031.661586 | AA174: 654.1433802 | AB174: 0.4080184776 | AC174: 1054.48408 | AD174: 676.9658736 | AE174: 0.4093859868 | AF174: 1007.772388 | AG174: 630.2541823 | AH174: 0.3720195797 | AK174: 0.4255765507 | AL174: 922.1079877 | AM174: 544.5897817 | AN174: 0.3867323618 | AQ174: 0.38732064 | AT174: 0.4990509586 | AU174: 547.0245578 | AV174: 169.5063517 | AW174: 0.462355257 | AX174: 704.966581 | AY174: 327.4483749 | BC174: 0.4990509586 | BD174: 547.0245578 | BE174: 169.5063517
X175: 10.34211404 | Y175: 0.4078422091 | Z175: 1031.286968 | AA175: 653.6945374 | AB175: 0.4080974234 | AC175: 1054.100877 | AD175: 676.5084465 | AE175: 0.4094651972 | AF175: 1007.404636 | AG175: 629.8122054 | AH175: 0.3720915603 | AK175: 0.4256588938 | AL175: 921.754471 | AM175: 544.1620402 | AN175: 0.3868071891 | AQ175: 0.3873955811 | AT175: 0.499147518 | AU175: 546.7608043 | AV175: 169.1683735 | AW175: 0.4624447163 | AX175: 704.6638323 | AY175: 327.0714015 | BC175: 0.499147518 | BD175: 546.7608043 | BE175: 169.1683735
X176: 10.3441147 | Y176: 0.4079211056 | Z176: 1030.912469 | AA176: 653.2458133 | AB176: 0.4081763693 | AC176: 1053.717796 | AD176: 676.0511409 | AE176: 0.4095444076 | AF176: 1007.037001 | AG176: 629.3703454 | AH176: 0.3721635409 | AK176: 0.4257412369 | AL176: 921.4010691 | AM176: 543.7344136 | AN176: 0.3868820163 | AQ176: 0.3874705222 | AT176: 0.4992440774 | AU176: 546.4971476 | AV176: 168.830492 | AW176: 0.4625341755 | AX176: 704.3611878 | AY176: 326.6945323 | BC176: 0.4992440774 | BD176: 546.4971476 | BE176: 168.830492
X177: 10.34611537 | Y177: 0.4080000021 | Z177: 1030.538088 | AA177: 652.7972079 | AB177: 0.4082553151 | AC177: 1053.334837 | AD177: 675.5939568 | AE177: 0.4096236181 | AF177: 1006.669482 | AG177: 628.9286021 | AH177: 0.3722355215 | AK177: 0.42582358 | AL177: 921.0477821 | AM177: 543.3069018 | AN177: 0.3869568436 | AQ177: 0.3875454634 | AT177: 0.4993406367 | AU177: 546.2335876 | AV177: 168.4927073 | AW177: 0.4626236348 | AX177: 704.0586475 | AY177: 326.3177672 | BC177: 0.4993406367 | BD177: 546.2335876 | BE177: 168.4927073
X178: 10.34811604 | Y178: 0.4080788985 | Z178: 1030.163826 | AA178: 652.3487211 | AB178: 0.408334261 | AC178: 1052.951999 | AD178: 675.1368941 | AE178: 0.4097028285 | AF178: 1006.302081 | AG178: 628.4869755 | AH178: 0.372307502 | AK178: 0.425905923 | AL178: 920.6946099 | AM178: 542.8795049 | AN178: 0.3870316709 | AQ178: 0.3876204045 | AT178: 0.4994371961 | AU178: 545.9701243 | AV178: 168.1550193 | AW178: 0.462713094 | AX178: 703.7562112 | AY178: 325.9411062 | BC178: 0.4994371961 | BD178: 545.9701243 | BE178: 168.1550193
X179: 10.35011671 | Y179: 0.408157795 | Z179: 1029.789683 | AA179: 651.9003529 | AB179: 0.4084132069 | AC179: 1052.569282 | AD179: 674.6799526 | AE179: 0.409782039 | AF179: 1005.934795 | AG179: 628.0454656 | AH179: 0.3723794826 | AK179: 0.4259882661 | AL179: 920.3415525 | AM179: 542.4522227 | AN179: 0.3871064982 | AQ179: 0.3876953456 | AT179: 0.4995337554 | AU179: 545.7067577 | AV179: 167.8174279 | AW179: 0.4628025533 | AX179: 703.453879 | AY179: 325.5645492 | BC179: 0.4995337554 | BD179: 545.7067577 | BE179: 167.8174279
X180: 10.35211737 | Y180: 0.4082366915 | Z180: 1029.415658 | AA180: 651.4521032 | AB180: 0.4084921527 | AC180: 1052.186687 | AD180: 674.2231325 | AE180: 0.4098612494 | AF180: 1005.567627 | AG180: 627.6040722 | AH180: 0.3724514632 | AK180: 0.4260706092 | AL180: 919.9886097 | AM180: 542.0250552 | AN180: 0.3871813255 | AQ180: 0.3877702867 | AT180: 0.4996303148 | AU180: 545.4434877 | AV180: 167.4799332 | AW180: 0.4628920125 | AX180: 703.1516508 | AY180: 325.1880963 | BC180: 0.4996303148 | BD180: 545.4434877 | BE180: 167.4799332
X181: 10.35411804 | Y181: 0.408315588 | Z181: 1029.041751 | AA181: 651.003972 | AB181: 0.4085710986 | AC181: 1051.804213 | AD181: 673.7664336 | AE181: 0.4099404599 | AF181: 1005.200575 | AG181: 627.1627955 | AH181: 0.3725234437 | AK181: 0.4261529523 | AL181: 919.6357817 | AM181: 541.5980024 | AN181: 0.3872561528 | AQ181: 0.3878452278 | AT181: 0.4997268742 | AU181: 545.1803143 | AV181: 167.142535 | AW181: 0.4629814718 | AX181: 702.8495266 | AY181: 324.8117473 | BC181: 0.4997268742 | BD181: 545.1803143 | BE181: 167.142535
X182: 10.35611871 | Y182: 0.4083944845 | Z182: 1028.667963 | AA182: 650.5559593 | AB182: 0.4086500444 | AC182: 1051.42186 | AD182: 673.3098559 | AE182: 0.4100196703 | AF182: 1004.833639 | AG182: 626.7216353 | AH182: 0.3725954243 | AK182: 0.4262352954 | AL182: 919.2830682 | AM182: 541.1710642 | AN182: 0.3873309801 | AQ182: 0.3879201689 | AT182: 0.4998234335 | AU182: 544.9172375 | AV182: 166.8052335 | AW182: 0.4630709311 | AX182: 702.5475063 | AY182: 324.4355023 | BC182: 0.4998234335 | BD182: 544.9172375 | BE182: 166.8052335
X183: 10.35811937 | Y183: 0.408473381 | Z183: 1028.294294 | AA183: 650.1080649 | AB183: 0.4087289903 | AC183: 1051.039628 | AD183: 672.8533994 | AE183: 0.4100988808 | AF183: 1004.46682 | AG183: 626.2805915 | AH183: 0.3726674049 | AK183: 0.4263176385 | AL183: 918.9304693 | AM183: 540.7442406 | AN183: 0.3874058073 | AQ183: 0.38799511 | AT183: 0.4999199929 | AU183: 544.6542571 | AV183: 166.4680284 | AW183: 0.4631603903 | AX183: 702.2455899 | AY183: 324.0593612 | BC183: 0.4999199929 | BD183: 544.6542571 | BE183: 166.4680284
X184: 10.36012004 | Y184: 0.4085522774 | Z184: 1027.920742 | AA184: 649.6602888 | AB184: 0.4088079361 | AC184: 1050.657517 | AD184: 672.3970639 | AE184: 0.4101780912 | AF184: 1004.100118 | AG184: 625.8396642 | AH184: 0.3727393854 | AK184: 0.4263999816 | AL184: 918.577985 | AM184: 540.3175315 | AN184: 0.3874806346 | AQ184: 0.3880700511 | AT184: 0.5000165522 | AU184: 544.3913733 | AV184: 166.1309198 | AW184: 0.4632498496 | AX184: 701.9437774 | AY184: 323.6833239 | BC184: 0.5000165522 | BD184: 544.3913733 | BE184: 166.1309198
X185: 10.36212071 | Y185: 0.4086311739 | Z185: 1027.547309 | AA185: 649.2126311 | AB185: 0.408886882 | AC185: 1050.275528 | AD185: 671.9408495 | AE185: 0.4102573017 | AF185: 1003.733532 | AG185: 625.3988533 | AH185: 0.372811366 | AK185: 0.4264823247 | AL185: 918.2256151 | AM185: 539.8909369 | AN185: 0.3875554619 | AQ185: 0.3881449922 | AT185: 0.5001131116 | AU185: 544.1285858 | AV185: 165.7939076 | AW185: 0.4633393088 | AX185: 701.6420687 | AY185: 323.3073905 | BC185: 0.5001131116 | BD185: 544.1285858 | BE185: 165.7939076
X186: 10.36412137 | Y186: 0.4087100704 | Z186: 1027.173995 | AA186: 648.7650916 | AB186: 0.4089658278 | AC186: 1049.893659 | AD186: 671.4847561 | AE186: 0.4103365121 | AF186: 1003.367062 | AG186: 624.9581587 | AH186: 0.3728833466 | AK186: 0.4265646678 | AL186: 917.8733597 | AM186: 539.4644567 | AN186: 0.3876302892 | AQ186: 0.3882199334 | AT186: 0.500209671 | AU186: 543.8658948 | AV186: 165.4569919 | AW186: 0.4634287681 | AX186: 701.3404638 | AY186: 322.9315608 | BC186: 0.500209671 | BD186: 543.8658948 | BE186: 165.4569919
X187: 10.36612204 | Y187: 0.4087889669 | Z187: 1026.800798 | AA187: 648.3176703 | AB187: 0.4090447737 | AC187: 1049.511911 | AD187: 671.0287836 | AE187: 0.4104157225 | AF187: 1003.000708 | AG187: 624.5175804 | AH187: 0.3729553272 | AK187: 0.4266470109 | AL187: 917.5212186 | AM187: 539.0380909 | AN187: 0.3877051165 | AQ187: 0.3882948745 | AT187: 0.5003062303 | AU187: 543.6033002 | AV187: 165.1201725 | AW187: 0.4635182273 | AX187: 701.0389626 | AY187: 322.5558349 | BC187: 0.5003062303 | BD187: 543.6033002 | BE187: 165.1201725
X188: 10.36812271 | Y188: 0.4088678634 | Z188: 1026.42772 | AA188: 647.8703671 | AB188: 0.4091237195 | AC188: 1049.130285 | AD188: 670.5729321 | AE188: 0.410494933 | AF188: 1002.634471 | AG188: 624.0771184 | AH188: 0.3730273077 | AK188: 0.426729354 | AL188: 917.1691919 | AM188: 538.6118395 | AN188: 0.3877799438 | AQ188: 0.3883698156 | AT188: 0.5004027897 | AU188: 543.3408019 | AV188: 164.7834494 | AW188: 0.4636076866 | AX188: 700.7375651 | AY188: 322.1802126 | BC188: 0.5004027897 | BD188: 543.3408019 | BE188: 164.7834494
X189: 10.37012337 | Y189: 0.4089467598 | Z189: 1026.054759 | AA189: 647.4231821 | AB189: 0.4092026654 | AC189: 1048.748779 | AD189: 670.1172013 | AE189: 0.4105741434 | AF189: 1002.26835 | AG189: 623.6367725 | AH189: 0.3730992883 | AK189: 0.4268116971 | AL189: 916.8172795 | AM189: 538.1857023 | AN189: 0.3878547711 | AQ189: 0.3884447567 | AT189: 0.500499349 | AU189: 543.0783998 | AV189: 164.4468226 | AW189: 0.4636971459 | AX189: 700.4362712 | AY189: 321.8046941 | BC189: 0.500499349 | BD189: 543.0783998 | BE189: 164.4468226
X190: 10.37212404 | Y190: 0.4090256563 | Z190: 1025.681917 | AA190: 646.9761151 | AB190: 0.4092816112 | AC190: 1048.367393 | AD190: 669.6615914 | AE190: 0.4106533539 | AF190: 1001.902345 | AG190: 623.1965428 | AH190: 0.3731712689 | AK190: 0.4268940402 | AL190: 916.4654814 | AM190: 537.7596794 | AN190: 0.3879295984 | AQ190: 0.3885196978 | AT190: 0.5005959084 | AU190: 542.8160941 | AV190: 164.1102921 | AW190: 0.4637866051 | AX190: 700.135081 | AY190: 321.4292791 | BC190: 0.5005959084 | BD190: 542.8160941 | BE190: 164.1102921
X191: 10.37412471 | Y191: 0.4091045528 | Z191: 1025.309193 | AA191: 646.5291661 | AB191: 0.4093605571 | AC191: 1047.986129 | AD191: 669.2061023 | AE191: 0.4107325643 | AF191: 1001.536456 | AG191: 622.7564292 | AH191: 0.3732432494 | AK191: 0.4269763833 | AL191: 916.1137974 | AM191: 537.3337708 | AN191: 0.3880044256 | AQ191: 0.3885946389 | AT191: 0.5006924678 | AU191: 542.5538845 | AV191: 163.7738578 | AW191: 0.4638760644 | AX191: 699.8339944 | AY191: 321.0539677 | BC191: 0.5006924678 | BD191: 542.5538845 | BE191: 163.7738578
X192: 10.37612538 | Y192: 0.4091834493 | Z192: 1024.936586 | AA192: 646.082335 | AB192: 0.4094395029 | AC192: 1047.604985 | AD192: 668.7507338 | AE192: 0.4108117748 | AF192: 1001.170683 | AG192: 622.3164316 | AH192: 0.37331523 | AK192: 0.4270587263 | AL192: 915.7622277 | AM192: 536.9079762 | AN192: 0.3880792529 | AQ192: 0.38866958 | AT192: 0.5007890271 | AU192: 542.2917712 | AV192: 163.4375197 | AW192: 0.4639655236 | AX192: 699.5330112 | AY192: 320.6787598 | BC192: 0.5007890271 | BD192: 542.2917712 | BE192: 163.4375197
X193: 10.37812604 | Y193: 0.4092623458 | Z193: 1024.564098 | AA193: 645.6356219 | AB193: 0.4095184488 | AC193: 1047.223962 | AD193: 668.295486 | AE193: 0.4108909852 | AF193: 1000.805026 | AG193: 621.8765501 | AH193: 0.3733872106 | AK193: 0.4271410694 | AL193: 915.410772 | AM193: 536.4822959 | AN193: 0.3881540802 | AQ193: 0.3887445211 | AT193: 0.5008855865 | AU193: 542.0297539 | AV193: 163.1012778 | AW193: 0.4640549829 | AX193: 699.2321316 | AY193: 320.3036554 | BC193: 0.5008855865 | BD193: 542.0297539 | BE193: 163.1012778
X194: 10.38012671 | Y194: 0.4093412422 | Z194: 1024.191728 | AA194: 645.1890267 | AB194: 0.4095973946 | AC194: 1046.84306 | AD194: 667.8403588 | AE194: 0.4109701957 | AF194: 1000.439485 | AG194: 621.4367845 | AH194: 0.3734591911 | AK194: 0.4272234125 | AL194: 915.0594304 | AM194: 536.0567295 | AN194: 0.3882289075 | AQ194: 0.3888194622 | AT194: 0.5009821458 | AU194: 541.7678328 | AV194: 162.7651319 | AW194: 0.4641444421 | AX194: 698.9313554 | AY194: 319.9286545 | BC194: 0.5009821458 | BD194: 541.7678328 | BE194: 162.7651319
X195: 10.38212738 | Y195: 0.4094201387 | Z195: 1023.819475 | AA195: 644.7425492 | AB195: 0.4096763405 | AC195: 1046.462278 | AD195: 667.3853522 | AE195: 0.4110494061 | AF195: 1000.074061 | AG195: 620.9971349 | AH195: 0.3735311717 | AK195: 0.4273057556 | AL195: 914.7082029 | AM195: 535.6312772 | AN195: 0.3883037348 | AQ195: 0.3888944033 | AT195: 0.5010787052 | AU195: 541.5060078 | AV195: 162.4290822 | AW195: 0.4642339014 | AX195: 698.6306827 | AY195: 319.553757 | BC195: 0.5010787052 | BD195: 541.5060078 | BE195: 162.4290822
X196: 10.38412804 | Y196: =IFERROR(IF($X196/(1-INDEX($S$4:$S$13,QUOTIENT(COLUMN(),3)-7,)^1.5)/$B$32/Y$2<=1,$X196/(1-INDEX($S$4:$S$13,QUOTIENT(COLUMN(),3)-7,)^1.5)/$B$32/Y$2,NA()),NA()) -> 0.4094990352 | Z196: =IFERROR(IF(OR($X196<$B$3,$X196>$B$4),NA(),IF(OR(1/$X196*Z$2*$B$31*INDEX($T$4:$T$13,QUOTIENT(COLUMN(),3)-7,)*Y196^$B$33*(1-Y196)^$B$34<$B$5,1/$X196*Z$2*$B$31*INDEX($T$4:$T$13,QUOTIENT(COLUMN(),3)-7,)*Y196^$B$33*(1-Y196)^$B$34>$B$6),NA(),1/$X196*Z$2*$B$31*INDEX($T$4:$T$13,QUOTIENT(COLUMN(),3)-7,)*Y196^$B$33*(1-Y196)^$B$34)),NA()) -> 1023.44734 | AA196: =IFERROR(ABS(Z196-($B$37*$X196+$B$38)),"") -> 644.2961896 | AB196: =IFERROR(IF($X196/(1-INDEX($S$4:$S$13,QUOTIENT(COLUMN(),3)-7,)^1.5)/$B$32/AB$2<=1,$X196/(1-INDEX($S$4:$S$13,QUOTIENT(COLUMN(),3)-7,)^1.5)/$B$32/AB$2,NA()),NA()) -> 0.4097552863 | AC196: =IFERROR(IF(OR($X196<$B$3,$X196>$B$4),NA(),IF(OR(1/$X196*AC$2*$B$31*INDEX($T$4:$T$13,QUOTIENT(COLUMN(),3)-7,)*AB196^$B$33*(1-AB196)^$B$34<$B$5,1/$X196*AC$2*$B$31*INDEX($T$4:$T$13,QUOTIENT(COLUMN(),3)-7,)*AB196^$B$33*(1-AB196)^$B$34>$B$6),NA(),1/$X196*AC$2*$B$31*INDEX($T$4:$T$13,QUOTIENT(COLUMN(),3)-7,)*AB196^$B$33*(1-AB196)^$B$34)),NA()) -> 1046.081616 | AD196: =IFERROR(ABS(AC196-($B$37*$X196+$B$38)),"") -> 666.9304661 | AE196: =IFERROR(IF($X196/(1-INDEX($S$4:$S$13,QUOTIENT(COLUMN(),3)-7,)^1.5)/$B$32/AE$2<=1,$X196/(1-INDEX($S$4:$S$13,QUOTIENT(COLUMN(),3)-7,)^1.5)/$B$32/AE$2,NA()),NA()) -> 0.4111286166 | AF196: =IFERROR(IF(OR($X196<$B$3,$X196>$B$4),NA(),IF(OR(1/$X196*AF$2*$B$31*INDEX($T$4:$T$13,QUOTIENT(COLUMN(),3)-7,)*AE196^$B$33*(1-AE196)^$B$34<$B$5,1/$X196*AF$2*$B$31*INDEX($T$4:$T$13,QUOTIENT(COLUMN(),3)-7,)*AE196^$B$33*(1-AE196)^$B$34>$B$6),NA(),1/$X196*AF$2*$B$31*INDEX($T$4:$T$13,QUOTIENT(COLUMN(),3)-7,)*AE196^$B$33*(1-AE196)^$B$34)),NA()) -> 999.7087515 | AG196: =IFERROR(ABS(AF196-($B$37*$X196+$B$38)),"") -> 620.5576011 | AH196: =IFERROR(IF($X196/(1-INDEX($S$4:$S$13,QUOTIENT(COLUMN(),3)-7,)^1.5)/$B$32/AH$2<=1,$X196/(1-INDEX($S$4:$S$13,QUOTIENT(COLUMN(),3)-7,)^1.5)/$B$32/AH$2,NA()),NA()) -> 0.3736031523 | AI196: =IFERROR(IF(OR($X196<$B$3,$X196>$B$4),NA(),IF(OR(1/$X196*AI$2*$B$31*INDEX($T$4:$T$13,QUOTIENT(COLUMN(),3)-7,)*AH196^$B$33*(1-AH196)^$B$34<$B$5,1/$X196*AI$2*$B$31*INDEX($T$4:$T$13,QUOTIENT(COLUMN(),3)-7,)*AH196^$B$33*(1-AH196)^$B$34>$B$6),NA(),1/$X196*AI$2*$B$31*INDEX($T$4:$T$13,QUOTIENT(COLUMN(),3)-7,)*AH196^$B$33*(1-AH196)^$B$34)),NA()) ->  | AJ196: =IFERROR(ABS(AI196-($B$37*$X196+$B$38)),"") ->  | AK196: =IFERROR(IF($X196/(1-INDEX($S$4:$S$13,QUOTIENT(COLUMN(),3)-7,)^1.5)/$B$32/AK$2<=1,$X196/(1-INDEX($S$4:$S$13,QUOTIENT(COLUMN(),3)-7,)^1.5)/$B$32/AK$2,NA()),NA()) -> 0.4273880987 | AL196: =IFERROR(IF(OR($X196<$B$3,$X196>$B$4),NA(),IF(OR(1/$X196*AL$2*$B$31*INDEX($T$4:$T$13,QUOTIENT(COLUMN(),3)-7,)*AK196^$B$33*(1-AK196)^$B$34<$B$5,1/$X196*AL$2*$B$31*INDEX($T$4:$T$13,QUOTIENT(COLUMN(),3)-7,)*AK196^$B$33*(1-AK196)^$B$34>$B$6),NA(),1/$X196*AL$2*$B$31*INDEX($T$4:$T$13,QUOTIENT(COLUMN(),3)-7,)*AK196^$B$33*(1-AK196)^$B$34)),NA()) -> 914.3570893 | AM196: =IFERROR(ABS(AL196-($B$37*$X196+$B$38)),"") -> 535.2059389 | AN196: =IFERROR(IF($X196/(1-INDEX($S$4:$S$13,QUOTIENT(COLUMN(),3)-7,)^1.5)/$B$32/AN$2<=1,$X196/(1-INDEX($S$4:$S$13,QUOTIENT(COLUMN(),3)-7,)^1.5)/$B$32/AN$2,NA()),NA()) -> 0.3883785621 | AO196: =IFERROR(IF(OR($X196<$B$3,$X196>$B$4),NA(),IF(OR(1/$X196*AO$2*$B$31*INDEX($T$4:$T$13,QUOTIENT(COLUMN(),3)-7,)*AN196^$B$33*(1-AN196)^$B$34<$B$5,1/$X196*AO$2*$B$31*INDEX($T$4:$T$13,QUOTIENT(COLUMN(),3)-7,)*AN196^$B$33*(1-AN196)^$B$34>$B$6),NA(),1/$X196*AO$2*$B$31*INDEX($T$4:$T$13,QUOTIENT(COLUMN(),3)-7,)*AN196^$B$33*(1-AN196)^$B$34)),NA()) ->  | AP196: =IFERROR(ABS(AO196-($B$37*$X196+$B$38)),"") ->  | AQ196: =IFERROR(IF($X196/(1-INDEX($S$4:$S$13,QUOTIENT(COLUMN(),3)-7,)^1.5)/$B$32/AQ$2<=1,$X196/(1-INDEX($S$4:$S$13,QUOTIENT(COLUMN(),3)-7,)^1.5)/$B$32/AQ$2,NA()),NA()) -> 0.3889693445 | AR196: =IFERROR(IF(OR($X196<$B$3,$X196>$B$4),NA(),IF(OR(1/$X196*AR$2*$B$31*INDEX($T$4:$T$13,QUOTIENT(COLUMN(),3)-7,)*AQ196^$B$33*(1-AQ196)^$B$34<$B$5,1/$X196*AR$2*$B$31*INDEX($T$4:$T$13,QUOTIENT(COLUMN(),3)-7,)*AQ196^$B$33*(1-AQ196)^$B$34>$B$6),NA(),1/$X196*AR$2*$B$31*INDEX($T$4:$T$13,QUOTIENT(COLUMN(),3)-7,)*AQ196^$B$33*(1-AQ196)^$B$34)),NA()) ->  | AS196: =IFERROR(ABS(AR196-($B$37*$X196+$B$38)),"") ->  | AT196: =IFERROR(IF($X196/(1-INDEX($S$4:$S$13,QUOTIENT(COLUMN(),3)-7,)^1.5)/$B$32/AT$2<=1,$X196/(1-INDEX($S$4:$S$13,QUOTIENT(COLUMN(),3)-7,)^1.5)/$B$32/AT$2,NA()),NA()) -> 0.5011752646 | AU196: =IFERROR(IF(OR($X196<$B$3,$X196>$B$4),NA(),IF(OR(1/$X196*AU$2*$B$31*INDEX($T$4:$T$13,QUOTIENT(COLUMN(),3)-7,)*AT196^$B$33*(1-AT196)^$B$34<$B$5,1/$X196*AU$2*$B$31*INDEX($T$4:$T$13,QUOTIENT(COLUMN(),3)-7,)*AT196^$B$33*(1-AT196)^$B$34>$B$6),NA(),1/$X196*AU$2*$B$31*INDEX($T$4:$T$13,QUOTIENT(COLUMN(),3)-7,)*AT196^$B$33*(1-AT196)^$B$34)),NA()) -> 541.2442788 | AV196: =IFERROR(ABS(AU196-($B$37*$X196+$B$38)),"") -> 162.0931284 | AW196: =IFERROR(IF($X196/(1-INDEX($S$4:$S$13,QUOTIENT(COLUMN(),3)-7,)^1.5)/$B$32/AW$2<=1,$X196/(1-INDEX($S$4:$S$13,QUOTIENT(COLUMN(),3)-7,)^1.5)/$B$32/AW$2,NA()),NA()) -> 0.4643233606 | AX196: =IFERROR(IF(OR($X196<$B$3,$X196>$B$4),NA(),IF(OR(1/$X196*AX$2*$B$31*INDEX($T$4:$T$13,QUOTIENT(COLUMN(),3)-7,)*AW196^$B$33*(1-AW196)^$B$34<$B$5,1/$X196*AX$2*$B$31*INDEX($T$4:$T$13,QUOTIENT(COLUMN(),3)-7,)*AW196^$B$33*(1-AW196)^$B$34>$B$6),NA(),1/$X196*AX$2*$B$31*INDEX($T$4:$T$13,QUOTIENT(COLUMN(),3)-7,)*AW196^$B$33*(1-AW196)^$B$34)),NA()) -> 698.3301133 | AY196: =IFERROR(ABS(AX196-($B$37*$X196+$B$38)),"") -> 319.1789629 | AZ196: =IFERROR(IF($X196/(1-INDEX($S$4:$S$13,QUOTIENT(COLUMN(),3)-7,)^1.5)/$B$32/AZ$2<=1,$X196/(1-INDEX($S$4:$S$13,QUOTIENT(COLUMN(),3)-7,)^1.5)/$B$32/AZ$2,NA()),NA()) ->  | BA196: =IFERROR(IF(OR($X196<$B$3,$X196>$B$4),NA(),IF(OR(1/$X196*BA$2*$B$31*INDEX($T$4:$T$13,QUOTIENT(COLUMN(),3)-7,)*AZ196^$B$33*(1-AZ196)^$B$34<$B$5,1/$X196*BA$2*$B$31*INDEX($T$4:$T$13,QUOTIENT(COLUMN(),3)-7,)*AZ196^$B$33*(1-AZ196)^$B$34>$B$6),NA(),1/$X196*BA$2*$B$31*INDEX($T$4:$T$13,QUOTIENT(COLUMN(),3)-7,)*AZ196^$B$33*(1-AZ196)^$B$34)),NA()) ->  | BB196: =IFERROR(ABS(BA196-($B$37*$X196+$B$38)),"") ->  | BC196: 0.5011752646 | BD196: 541.2442788 | BE196: 162.0931284
X197: 10.38612871 | Y197: 0.4095779317 | Z197: 1023.075323 | AA197: 643.8499476 | AB197: 0.4098342322 | AC197: 1045.701076 | AD197: 666.4757004 | AE197: 0.411207827 | AF197: 999.3435583 | AG197: 620.1181831 | AH197: 0.3736751329 | AK197: 0.4274704418 | AL197: 914.0060897 | AM197: 534.7807146 | AN197: 0.3884533894 | AQ197: 0.3890442856 | AT197: 0.5012718239 | AU197: 540.9826458 | AV197: 161.7572707 | AW197: 0.4644128199 | AX197: 698.0296472 | AY197: 318.8042721 | BC197: =IFERROR(IF($X197/(1-$S$14^1.5)/$B$32/BC$2<=1,$X197/(1-$S$14^1.5)/$B$32/BC$2,NA()),NA()) -> 0.5012718239 | BD197: =IFERROR(IF(OR($X197<$B$3,$X197>$B$4),NA(),IF(OR(1/$X197*BD$2*$B$31*$T$14*BC197^$B$33*(1-BC197)^$B$34<$B$5,1/$X197*BD$2*$B$31*$T$14*BC197^$B$33*(1-BC197)^$B$34>$B$6),NA(),1/$X197*BD$2*$B$31*$T$14*BC197^$B$33*(1-BC197)^$B$34)),NA()) -> 540.9826458 | BE197: =IFERROR(ABS(BD197-($B$37*$X197+$B$38)),"") -> 161.7572707 | BF197: =IF($B$9=$C$9,BD197,NA()) -> 
X198: =X197+$X$2 -> 10.38812938 | Y198: 0.4096568282 | Z198: 1022.703423 | AA198: 643.4038234 | AB198: 0.409913178 | AC198: 1045.320655 | AD198: 666.0210552 | AE198: 0.4112870374 | AF198: 998.9784808 | AG198: 619.6788809 | AH198: 0.3737471134 | AK198: 0.4275527849 | AL198: 913.655204 | AM198: 534.3556041 | AN198: 0.3885282167 | AQ198: 0.3891192267 | AT198: 0.5013683833 | AU198: 540.7211088 | AV198: 161.4215089 | AW198: 0.4645022792 | AX198: 697.7292844 | AY198: 318.4296846 | BC198: 0.5013683833 | BD198: 540.7211088 | BE198: 161.4215089
X199: 10.39013004 | Y199: 0.4097357246 | Z199: 1022.331641 | AA199: 642.9578167 | AB199: 0.4099921239 | AC199: 1044.940355 | AD199: 665.5665303 | AE199: 0.4113662479 | AF199: 998.6135191 | AG199: 619.2396945 | AH199: 0.373819094 | AK199: 0.427635128 | AL199: 913.3044321 | AM199: 533.9306075 | AN199: 0.3886030439 | AQ199: 0.3891941678 | AT199: 0.5014649426 | AU199: 540.4596677 | AV199: 161.0858431 | AW199: 0.4645917384 | AX199: 697.4290249 | AY199: 318.0552003 | BC199: 0.5014649426 | BD199: 540.4596677 | BE199: 161.0858431
X200: 10.39213071 | Y200: 0.4098146211 | Z200: 1021.959977 | AA200: 642.5119277 | AB200: 0.4100710697 | AC200: 1044.560175 | AD200: 665.1121257 | AE200: 0.4114454583 | AF200: 998.2486731 | AG200: 618.8006237 | AH200: 0.3738910746 | AK200: 0.4277174711 | AL200: 912.953774 | AM200: 533.5057246 | AN200: 0.3886778712 | AQ200: 0.3892691089 | AT200: 0.501561502 | AU200: 540.1983225 | AV200: 160.7502732 | AW200: 0.4646811977 | AX200: 697.1288686 | AY200: 317.6808193 | BC200: 0.501561502 | BD200: 540.1983225 | BE200: 160.7502732
... 925 more rows

Sheet Button Macro (hidden)
A1: Sub Button3_Click() Dim x1 As Integer Dim x2 As Integer Dim y1 As Integer Dim y2 As Integer Dim c As Integer Dim r As Integer Dim i As Integer Dim j As Integer Dim k As Integer x1 = ActiveSheet.Range("C5").Value x2 = ActiveSheet.Range("c6").Value y1 = ActiveSheet.Range("c2").Value y2 = ActiveSheet.Range("c3").Value c = 4 r = 1 ActiveSheet.ChartObjects("Chart 13").Activate ActiveChart.SetSourceData Source:=ActiveSheet.Range(Cells(x1, y1), Cells(x2, y2)) ActiveChart.FullSeriesCollection(1).XValues = ActiveSheet.Range(Cells(x1, c), Cells(x2, c)) ' Worksheets(2).ChartObjects("Chart 7").Select ' ActiveChart.SetSourceData Source:=Worksheets(6).Range(Cells(x1, y1), Cells(x2, y2)) ' ActiveChart.FullSeriesCollection(1).XValues = Worksheets(6).Range(Cells(x1, c), Cells(x2, c)) i = 1 j = y2 - y1 + 1 For i = 1 To j k = ActiveSheet.Range("B2").Value + ((i - 1) * ActiveSheet.Range("b4").Value) ActiveSheet.ChartObjects("Chart 13").Select ActiveChart.FullSeriesCollection(i).Name = k ' Worksheets(2).ChartObjects("Chart 7").Select ' ActiveChart.FullSeriesCollection(i).Name = k Next i End Sub

Sheet I(B) (hidden)
A1: g | B1: =Home!E39^Home!H4 -> 0.9424200166 | D1: B [T] | E1: b | F1: Ic [A] | H1: =F1&" vs. "&D1&" at "&Home!E19&" "&Home!F19&", "&Home!E20&Home!F20&" "&Home!B20 -> Ic [A] vs. B [T] at 4.2 K, -0.1% Intrinsic strain
A2: t | B2: =Home!E19/Home!E39^(1/3)/Home!H2 -> 0.2515388468 | D2: =IF((ROW()-1)*0.1<=Home!$H$15,(ROW()-1)*0.1,NA()) -> 0.1 | E2: =IF(D2/(1-$B$2^1.5)/Home!$E$39/Home!$H$15<=1,D2/(1-$B$2^1.5)/Home!$E$39/Home!$H$15,NA()) -> 0.004115782249 | F2: =1/D2*Home!$E$30*$B$1*$B$3*E2^Home!$H$10*(1-E2)^Home!$H$11 -> 28183.6874 | G2: =IF(OR(D2<$B$5,D2>$B$6),NA(),F2) ->  | H2: =F1&" vs. "&D1&" at "&Home!E19&" "&Home!F19&", "&Home!E20&Home!F20&" "&Home!B20 -> Ic [A] vs. B [T] at 4.2 K, -0.1% Intrinsic strain
A3: h | B3: =(1-B2^1.5)^(Home!H3/2)*(1-B2^2)^(Home!H3/2) -> 0.7983227332 | D3: =IF((ROW()-1)*0.1<=Home!$H$15,(ROW()-1)*0.1,NA()) -> 0.2 | E3: =IF(D3/(1-$B$2^1.5)/Home!$E$39/Home!$H$15<=1,D3/(1-$B$2^1.5)/Home!$E$39/Home!$H$15,NA()) -> 0.008231564498 | F3: =1/D3*Home!$E$30*$B$1*$B$3*E3^Home!$H$10*(1-E3)^Home!$H$11 -> 19764.49306 | G3: =IF(OR(D3<$B$5,D3>$B$6),NA(),F3) -> 
D4: =IF((ROW()-1)*0.1<=Home!$H$15,(ROW()-1)*0.1,NA()) -> 0.3 | E4: =IF(D4/(1-$B$2^1.5)/Home!$E$39/Home!$H$15<=1,D4/(1-$B$2^1.5)/Home!$E$39/Home!$H$15,NA()) -> 0.01234734675 | F4: =1/D4*Home!$E$30*$B$1*$B$3*E4^Home!$H$10*(1-E4)^Home!$H$11 -> 16003.97836
A5: Bmin (plot) | B5: 4 | D5: =IF((ROW()-1)*0.1<=Home!$H$15,(ROW()-1)*0.1,NA()) -> 0.4 | E5: =IF(D5/(1-$B$2^1.5)/Home!$E$39/Home!$H$15<=1,D5/(1-$B$2^1.5)/Home!$E$39/Home!$H$15,NA()) -> 0.016463129 | F5: =1/D5*Home!$E$30*$B$1*$B$3*E5^Home!$H$10*(1-E5)^Home!$H$11 -> 13744.57795
A6: Bmax (plot) | B6: 16 | D6: =IF((ROW()-1)*0.1<=Home!$H$15,(ROW()-1)*0.1,NA()) -> 0.5 | E6: =IF(D6/(1-$B$2^1.5)/Home!$E$39/Home!$H$15<=1,D6/(1-$B$2^1.5)/Home!$E$39/Home!$H$15,NA()) -> 0.02057891125 | F6: =1/D6*Home!$E$30*$B$1*$B$3*E6^Home!$H$10*(1-E6)^Home!$H$11 -> 12190.85071
A7: Data start | B7: =C7/10 -> 8 | C7: 80 | D7: =IF((ROW()-1)*0.1<=Home!$H$15,(ROW()-1)*0.1,NA()) -> 0.6 | E7: =IF(D7/(1-$B$2^1.5)/Home!$E$39/Home!$H$15<=1,D7/(1-$B$2^1.5)/Home!$E$39/Home!$H$15,NA()) -> 0.0246946935 | F7: =1/D7*Home!$E$30*$B$1*$B$3*E7^Home!$H$10*(1-E7)^Home!$H$11 -> 11035.33858
A8: Data step | B8: =C8/10 -> 0.2 | C8: 2 | D8: =IF((ROW()-1)*0.1<=Home!$H$15,(ROW()-1)*0.1,NA()) -> 0.7 | E8: =IF(D8/(1-$B$2^1.5)/Home!$E$39/Home!$H$15<=1,D8/(1-$B$2^1.5)/Home!$E$39/Home!$H$15,NA()) -> 0.02881047574 | F8: =1/D8*Home!$E$30*$B$1*$B$3*E8^Home!$H$10*(1-E8)^Home!$H$11 -> 10130.69106
D9: =IF((ROW()-1)*0.1<=Home!$H$15,(ROW()-1)*0.1,NA()) -> 0.8 | E9: =IF(D9/(1-$B$2^1.5)/Home!$E$39/Home!$H$15<=1,D9/(1-$B$2^1.5)/Home!$E$39/Home!$H$15,NA()) -> 0.03292625799 | F9: =1/D9*Home!$E$30*$B$1*$B$3*E9^Home!$H$10*(1-E9)^Home!$H$11 -> 9396.244364
D10: =IF((ROW()-1)*0.1<=Home!$H$15,(ROW()-1)*0.1,NA()) -> 0.9 | E10: =IF(D10/(1-$B$2^1.5)/Home!$E$39/Home!$H$15<=1,D10/(1-$B$2^1.5)/Home!$E$39/Home!$H$15,NA()) -> 0.03704204024 | F10: =1/D10*Home!$E$30*$B$1*$B$3*E10^Home!$H$10*(1-E10)^Home!$H$11 -> 8783.619482
D11: =IF((ROW()-1)*0.1<=Home!$H$15,(ROW()-1)*0.1,NA()) -> 1 | E11: =IF(D11/(1-$B$2^1.5)/Home!$E$39/Home!$H$15<=1,D11/(1-$B$2^1.5)/Home!$E$39/Home!$H$15,NA()) -> 0.04115782249 | F11: =1/D11*Home!$E$30*$B$1*$B$3*E11^Home!$H$10*(1-E11)^Home!$H$11 -> 8261.794195
D12: =IF((ROW()-1)*0.1<=Home!$H$15,(ROW()-1)*0.1,NA()) -> 1.1 | E12: =IF(D12/(1-$B$2^1.5)/Home!$E$39/Home!$H$15<=1,D12/(1-$B$2^1.5)/Home!$E$39/Home!$H$15,NA()) -> 0.04527360474 | F12: =1/D12*Home!$E$30*$B$1*$B$3*E12^Home!$H$10*(1-E12)^Home!$H$11 -> 7809.83089
D13: =IF((ROW()-1)*0.1<=Home!$H$15,(ROW()-1)*0.1,NA()) -> 1.2 | E13: =IF(D13/(1-$B$2^1.5)/Home!$E$39/Home!$H$15<=1,D13/(1-$B$2^1.5)/Home!$E$39/Home!$H$15,NA()) -> 0.04938938699 | F13: =1/D13*Home!$E$30*$B$1*$B$3*E13^Home!$H$10*(1-E13)^Home!$H$11 -> 7413.013782
D14: =IF((ROW()-1)*0.1<=Home!$H$15,(ROW()-1)*0.1,NA()) -> 1.3 | E14: =IF(D14/(1-$B$2^1.5)/Home!$E$39/Home!$H$15<=1,D14/(1-$B$2^1.5)/Home!$E$39/Home!$H$15,NA()) -> 0.05350516924 | F14: =1/D14*Home!$E$30*$B$1*$B$3*E14^Home!$H$10*(1-E14)^Home!$H$11 -> 7060.654002
D15: =IF((ROW()-1)*0.1<=Home!$H$15,(ROW()-1)*0.1,NA()) -> 1.4 | E15: =IF(D15/(1-$B$2^1.5)/Home!$E$39/Home!$H$15<=1,D15/(1-$B$2^1.5)/Home!$E$39/Home!$H$15,NA()) -> 0.05762095149 | F15: =1/D15*Home!$E$30*$B$1*$B$3*E15^Home!$H$10*(1-E15)^Home!$H$11 -> 6744.773028
D16: =IF((ROW()-1)*0.1<=Home!$H$15,(ROW()-1)*0.1,NA()) -> 1.5 | E16: =IF(D16/(1-$B$2^1.5)/Home!$E$39/Home!$H$15<=1,D16/(1-$B$2^1.5)/Home!$E$39/Home!$H$15,NA()) -> 0.06173673374 | F16: =1/D16*Home!$E$30*$B$1*$B$3*E16^Home!$H$10*(1-E16)^Home!$H$11 -> 6459.277028
D17: =IF((ROW()-1)*0.1<=Home!$H$15,(ROW()-1)*0.1,NA()) -> 1.6 | E17: =IF(D17/(1-$B$2^1.5)/Home!$E$39/Home!$H$15<=1,D17/(1-$B$2^1.5)/Home!$E$39/Home!$H$15,NA()) -> 0.06585251599 | F17: =1/D17*Home!$E$30*$B$1*$B$3*E17^Home!$H$10*(1-E17)^Home!$H$11 -> 6199.419411
D18: =IF((ROW()-1)*0.1<=Home!$H$15,(ROW()-1)*0.1,NA()) -> 1.7 | E18: =IF(D18/(1-$B$2^1.5)/Home!$E$39/Home!$H$15<=1,D18/(1-$B$2^1.5)/Home!$E$39/Home!$H$15,NA()) -> 0.06996829824 | F18: =1/D18*Home!$E$30*$B$1*$B$3*E18^Home!$H$10*(1-E18)^Home!$H$11 -> 5961.43973
D19: =IF((ROW()-1)*0.1<=Home!$H$15,(ROW()-1)*0.1,NA()) -> 1.8 | E19: =IF(D19/(1-$B$2^1.5)/Home!$E$39/Home!$H$15<=1,D19/(1-$B$2^1.5)/Home!$E$39/Home!$H$15,NA()) -> 0.07408408049 | F19: =1/D19*Home!$E$30*$B$1*$B$3*E19^Home!$H$10*(1-E19)^Home!$H$11 -> 5742.314345
D20: =IF((ROW()-1)*0.1<=Home!$H$15,(ROW()-1)*0.1,NA()) -> 1.9 | E20: =IF(D20/(1-$B$2^1.5)/Home!$E$39/Home!$H$15<=1,D20/(1-$B$2^1.5)/Home!$E$39/Home!$H$15,NA()) -> 0.07819986273 | F20: =1/D20*Home!$E$30*$B$1*$B$3*E20^Home!$H$10*(1-E20)^Home!$H$11 -> 5539.580142
D21: =IF((ROW()-1)*0.1<=Home!$H$15,(ROW()-1)*0.1,NA()) -> 2 | E21: =IF(D21/(1-$B$2^1.5)/Home!$E$39/Home!$H$15<=1,D21/(1-$B$2^1.5)/Home!$E$39/Home!$H$15,NA()) -> 0.08231564498 | F21: =1/D21*Home!$E$30*$B$1*$B$3*E21^Home!$H$10*(1-E21)^Home!$H$11 -> 5351.207246
D22: =IF((ROW()-1)*0.1<=Home!$H$15,(ROW()-1)*0.1,NA()) -> 2.1 | E22: =IF(D22/(1-$B$2^1.5)/Home!$E$39/Home!$H$15<=1,D22/(1-$B$2^1.5)/Home!$E$39/Home!$H$15,NA()) -> 0.08643142723 | F22: =1/D22*Home!$E$30*$B$1*$B$3*E22^Home!$H$10*(1-E22)^Home!$H$11 -> 5175.505427
D23: =IF((ROW()-1)*0.1<=Home!$H$15,(ROW()-1)*0.1,NA()) -> 2.2 | E23: =IF(D23/(1-$B$2^1.5)/Home!$E$39/Home!$H$15<=1,D23/(1-$B$2^1.5)/Home!$E$39/Home!$H$15,NA()) -> 0.09054720948 | F23: =1/D23*Home!$E$30*$B$1*$B$3*E23^Home!$H$10*(1-E23)^Home!$H$11 -> 5011.054113
D24: =IF((ROW()-1)*0.1<=Home!$H$15,(ROW()-1)*0.1,NA()) -> 2.3 | E24: =IF(D24/(1-$B$2^1.5)/Home!$E$39/Home!$H$15<=1,D24/(1-$B$2^1.5)/Home!$E$39/Home!$H$15,NA()) -> 0.09466299173 | F24: =1/D24*Home!$E$30*$B$1*$B$3*E24^Home!$H$10*(1-E24)^Home!$H$11 -> 4856.649286
D25: =IF((ROW()-1)*0.1<=Home!$H$15,(ROW()-1)*0.1,NA()) -> 2.4 | E25: =IF(D25/(1-$B$2^1.5)/Home!$E$39/Home!$H$15<=1,D25/(1-$B$2^1.5)/Home!$E$39/Home!$H$15,NA()) -> 0.09877877398 | F25: =1/D25*Home!$E$30*$B$1*$B$3*E25^Home!$H$10*(1-E25)^Home!$H$11 -> 4711.262646
D26: =IF((ROW()-1)*0.1<=Home!$H$15,(ROW()-1)*0.1,NA()) -> 2.5 | E26: =IF(D26/(1-$B$2^1.5)/Home!$E$39/Home!$H$15<=1,D26/(1-$B$2^1.5)/Home!$E$39/Home!$H$15,NA()) -> 0.1028945562 | F26: =1/D26*Home!$E$30*$B$1*$B$3*E26^Home!$H$10*(1-E26)^Home!$H$11 -> 4574.009824
D27: =IF((ROW()-1)*0.1<=Home!$H$15,(ROW()-1)*0.1,NA()) -> 2.6 | E27: =IF(D27/(1-$B$2^1.5)/Home!$E$39/Home!$H$15<=1,D27/(1-$B$2^1.5)/Home!$E$39/Home!$H$15,NA()) -> 0.1070103385 | F27: =1/D27*Home!$E$30*$B$1*$B$3*E27^Home!$H$10*(1-E27)^Home!$H$11 -> 4444.125361
D28: =IF((ROW()-1)*0.1<=Home!$H$15,(ROW()-1)*0.1,NA()) -> 2.7 | E28: =IF(D28/(1-$B$2^1.5)/Home!$E$39/Home!$H$15<=1,D28/(1-$B$2^1.5)/Home!$E$39/Home!$H$15,NA()) -> 0.1111261207 | F28: =1/D28*Home!$E$30*$B$1*$B$3*E28^Home!$H$10*(1-E28)^Home!$H$11 -> 4320.942821
D29: =IF((ROW()-1)*0.1<=Home!$H$15,(ROW()-1)*0.1,NA()) -> 2.8 | E29: =IF(D29/(1-$B$2^1.5)/Home!$E$39/Home!$H$15<=1,D29/(1-$B$2^1.5)/Home!$E$39/Home!$H$15,NA()) -> 0.115241903 | F29: =1/D29*Home!$E$30*$B$1*$B$3*E29^Home!$H$10*(1-E29)^Home!$H$11 -> 4203.878826
D30: =IF((ROW()-1)*0.1<=Home!$H$15,(ROW()-1)*0.1,NA()) -> 2.9 | E30: =IF(D30/(1-$B$2^1.5)/Home!$E$39/Home!$H$15<=1,D30/(1-$B$2^1.5)/Home!$E$39/Home!$H$15,NA()) -> 0.1193576852 | F30: =1/D30*Home!$E$30*$B$1*$B$3*E30^Home!$H$10*(1-E30)^Home!$H$11 -> 4092.420139
D31: =IF((ROW()-1)*0.1<=Home!$H$15,(ROW()-1)*0.1,NA()) -> 3 | E31: =IF(D31/(1-$B$2^1.5)/Home!$E$39/Home!$H$15<=1,D31/(1-$B$2^1.5)/Home!$E$39/Home!$H$15,NA()) -> 0.1234734675 | F31: =1/D31*Home!$E$30*$B$1*$B$3*E31^Home!$H$10*(1-E31)^Home!$H$11 -> 3986.113122
D32: =IF((ROW()-1)*0.1<=Home!$H$15,(ROW()-1)*0.1,NA()) -> 3.1 | E32: =IF(D32/(1-$B$2^1.5)/Home!$E$39/Home!$H$15<=1,D32/(1-$B$2^1.5)/Home!$E$39/Home!$H$15,NA()) -> 0.1275892497 | F32: =1/D32*Home!$E$30*$B$1*$B$3*E32^Home!$H$10*(1-E32)^Home!$H$11 -> 3884.555077
D33: =IF((ROW()-1)*0.1<=Home!$H$15,(ROW()-1)*0.1,NA()) -> 3.2 | E33: =IF(D33/(1-$B$2^1.5)/Home!$E$39/Home!$H$15<=1,D33/(1-$B$2^1.5)/Home!$E$39/Home!$H$15,NA()) -> 0.131705032 | F33: =1/D33*Home!$E$30*$B$1*$B$3*E33^Home!$H$10*(1-E33)^Home!$H$11 -> 3787.387073
D34: =IF((ROW()-1)*0.1<=Home!$H$15,(ROW()-1)*0.1,NA()) -> 3.3 | E34: =IF(D34/(1-$B$2^1.5)/Home!$E$39/Home!$H$15<=1,D34/(1-$B$2^1.5)/Home!$E$39/Home!$H$15,NA()) -> 0.1358208142 | F34: =1/D34*Home!$E$30*$B$1*$B$3*E34^Home!$H$10*(1-E34)^Home!$H$11 -> 3694.287982
D35: =IF((ROW()-1)*0.1<=Home!$H$15,(ROW()-1)*0.1,NA()) -> 3.4 | E35: =IF(D35/(1-$B$2^1.5)/Home!$E$39/Home!$H$15<=1,D35/(1-$B$2^1.5)/Home!$E$39/Home!$H$15,NA()) -> 0.1399365965 | F35: =1/D35*Home!$E$30*$B$1*$B$3*E35^Home!$H$10*(1-E35)^Home!$H$11 -> 3604.969475
D36: =IF((ROW()-1)*0.1<=Home!$H$15,(ROW()-1)*0.1,NA()) -> 3.5 | E36: =IF(D36/(1-$B$2^1.5)/Home!$E$39/Home!$H$15<=1,D36/(1-$B$2^1.5)/Home!$E$39/Home!$H$15,NA()) -> 0.1440523787 | F36: =1/D36*Home!$E$30*$B$1*$B$3*E36^Home!$H$10*(1-E36)^Home!$H$11 -> 3519.171807
D37: =IF((ROW()-1)*0.1<=Home!$H$15,(ROW()-1)*0.1,NA()) -> 3.6 | E37: =IF(D37/(1-$B$2^1.5)/Home!$E$39/Home!$H$15<=1,D37/(1-$B$2^1.5)/Home!$E$39/Home!$H$15,NA()) -> 0.148168161 | F37: =1/D37*Home!$E$30*$B$1*$B$3*E37^Home!$H$10*(1-E37)^Home!$H$11 -> 3436.660255
D38: =IF((ROW()-1)*0.1<=Home!$H$15,(ROW()-1)*0.1,NA()) -> 3.7 | E38: =IF(D38/(1-$B$2^1.5)/Home!$E$39/Home!$H$15<=1,D38/(1-$B$2^1.5)/Home!$E$39/Home!$H$15,NA()) -> 0.1522839432 | F38: =1/D38*Home!$E$30*$B$1*$B$3*E38^Home!$H$10*(1-E38)^Home!$H$11 -> 3357.222073
D39: =IF((ROW()-1)*0.1<=Home!$H$15,(ROW()-1)*0.1,NA()) -> 3.8 | E39: =IF(D39/(1-$B$2^1.5)/Home!$E$39/Home!$H$15<=1,D39/(1-$B$2^1.5)/Home!$E$39/Home!$H$15,NA()) -> 0.1563997255 | F39: =1/D39*Home!$E$30*$B$1*$B$3*E39^Home!$H$10*(1-E39)^Home!$H$11 -> 3280.6639
D40: =IF((ROW()-1)*0.1<=Home!$H$15,(ROW()-1)*0.1,NA()) -> 3.9 | E40: =IF(D40/(1-$B$2^1.5)/Home!$E$39/Home!$H$15<=1,D40/(1-$B$2^1.5)/Home!$E$39/Home!$H$15,NA()) -> 0.1605155077 | F40: =1/D40*Home!$E$30*$B$1*$B$3*E40^Home!$H$10*(1-E40)^Home!$H$11 -> 3206.80953
